Workbook

Sheet Cover
B3: Toolbox

Sheet General
A1: =Config!$I$128 -> GENERAL ASSUMPTIONS | AH1: Check
A2: =$D$8&" "&$F$8 -> Name of the project beneficiary: | I2: `
A3: =$D$10&" "&$F$10 -> Name of the investment project: | L3: =Config!AT$1 -> Language | W3: =Config!BE$1 -> Currency / Units
A4: =IF(SUM(AH6:AH34)<>0,Config!$I$152,"") -> All input cells should be filled in with assumptions | L4: =Config!AT$2 -> English | M4: =Config!AU$2 -> Polish | N4: =Config!AV$2 -> […] | O4: =Config!AW$2 -> […] | P4: =Config!AX$2 -> […] | Q4: =Config!AY$2 -> […] | R4: =Config!AZ$2 -> […] | S4: =Config!BA$2 -> […] | T4: =Config!BB$2 -> […] | U4: =Config!BC$2 -> […] | W4: =Config!BE$2 -> EUR | X4: =Config!BF$2 -> PLN | Y4: =Config!BG$2 -> […] | Z4: =Config!BH$2 -> […] | AA4: =Config!BI$2 -> […] | AB4: =Config!BJ$2 -> […] | AC4: =Config!BK$2 -> […] | AD4: =Config!BL$2 -> […] | AE4: =Config!BM$2 -> […] | AF4: =Config!BN$2 -> […]
A6: =INDEX($L6:$U6,MATCH(General!$F$14,$L$4:$U$4,0)) -> Identification of the project | E6: =Config!$I$141 -> Unit | L6: Identification of the project | M6: […] | N6: […] | O6: […] | P6: […] | Q6: […] | R6: […] | S6: […] | T6: […] | U6: […]
B8: =IF(AH8<>0,"!","") -> ! | D8: =INDEX($L8:$U8,MATCH(General!$F$14,$L$4:$U$4,0)) -> Name of the project beneficiary: | E8: =INDEX($W8:$AF8,MATCH(General!$F$16,$W$4:$AF$4,0)) -> tekst | L8: Name of the project beneficiary: | M8: […] | N8: […] | O8: […] | P8: […] | Q8: […] | R8: […] | S8: […] | T8: […] | U8: […] | W8: text | X8: tekst | Y8: […] | Z8: […] | AA8: […] | AB8: […] | AC8: […] | AD8: […] | AE8: […] | AF8: […] | AH8: =COUNTIFS(F8,"") -> 1
B10: =IF(AH10<>0,"!","") -> ! | D10: =INDEX($L10:$U10,MATCH(General!$F$14,$L$4:$U$4,0)) -> Name of the investment project: | E10: =INDEX($W10:$AF10,MATCH(General!$F$16,$W$4:$AF$4,0)) -> tekst | L10: Name of the investment project: | M10: […] | N10: […] | O10: […] | P10: […] | Q10: […] | R10: […] | S10: […] | T10: […] | U10: […] | W10: text | X10: tekst | Y10: […] | Z10: […] | AA10: […] | AB10: […] | AC10: […] | AD10: […] | AE10: […] | AF10: […] | AH10: =COUNTIFS(F10,"") -> 1
A12: =INDEX($L12:$U12,MATCH(General!$F$14,$L$4:$U$4,0)) -> General information | E12: =Config!$I$141 -> Unit | L12: General information | M12: […] | N12: […] | O12: […] | P12: […] | Q12: […] | R12: […] | S12: […] | T12: […] | U12: […]
B14: =IF(AH14<>0,"!","") ->  | D14: =INDEX($L14:$U14,MATCH(General!$F$14,$L$4:$U$4,0)) -> Language | E14: =INDEX($W14:$AF14,MATCH(General!$F$16,$W$4:$AF$4,0)) -> tekst | F14: English | L14: Language | M14: […] | N14: […] | O14: […] | P14: […] | Q14: […] | R14: […] | S14: […] | T14: […] | U14: […] | W14: text | X14: tekst | Y14: […] | Z14: […] | AA14: […] | AB14: […] | AC14: […] | AD14: […] | AE14: […] | AF14: […] | AH14: =COUNTIFS(F14,"") -> 0
B16: =IF(AH16<>0,"!","") ->  | D16: =INDEX($L16:$U16,MATCH(General!$F$14,$L$4:$U$4,0)) -> Currency / Units | E16: # | F16: PLN | L16: Currency / Units | M16: […] | N16: […] | O16: […] | P16: […] | Q16: […] | R16: […] | S16: […] | T16: […] | U16: […] | W16: text | X16: tekst | Y16: […] | Z16: […] | AA16: […] | AB16: […] | AC16: […] | AD16: […] | AE16: […] | AF16: […] | AH16: =COUNTIFS(F16,"") -> 0
B18: =IF(AH18<>0,"!","") ->  | D18: =INDEX($L18:$U18,MATCH(General!$F$14,$L$4:$U$4,0)) -> Country | E18: name | F18: Poland | L18: Country | M18: […] | N18: […] | O18: […] | P18: […] | Q18: […] | R18: […] | S18: […] | T18: […] | U18: […] | W18: text | X18: tekst | Y18: […] | Z18: […] | AA18: […] | AB18: […] | AC18: […] | AD18: […] | AE18: […] | AF18: […] | AH18: =COUNTIFS(F18,"") -> 0
B20: =IF(AH20<>0,"!","") ->  | D20: =INDEX($L20:$U20,MATCH(General!$F$14,$L$4:$U$4,0)) -> First year of infrastructure roll-out | E20: =INDEX($W20:$AF20,MATCH(General!$F$16,$W$4:$AF$4,0)) -> rok | F20: 2026 | L20: First year of infrastructure roll-out | M20: […] | N20: […] | O20: […] | P20: […] | Q20: […] | R20: […] | S20: […] | T20: […] | U20: […] | W20: year | X20: rok | Y20: […] | Z20: […] | AA20: […] | AB20: […] | AC20: […] | AD20: […] | AE20: […] | AF20: […] | AH20: =COUNTIFS(F20,"") -> 0
B22: =IF(AH22<>0,"!","") ->  | D22: =INDEX($L22:$U22,MATCH(General!$F$14,$L$4:$U$4,0)) -> Number of roll-out years | E22: =INDEX($W22:$AF22,MATCH(General!$F$16,$W$4:$AF$4,0)) -> lata | F22: 2 | L22: Number of roll-out years | M22: […] | N22: […] | O22: […] | P22: […] | Q22: […] | R22: […] | S22: […] | T22: […] | U22: […] | W22: years | X22: lata | Y22: […] | Z22: […] | AA22: […] | AB22: […] | AC22: […] | AD22: […] | AE22: […] | AF22: […] | AH22: =COUNTIFS(F22,"") -> 0
B24: =IF(AH24<>0,"!","") ->  | D24: =INDEX($L24:$U24,MATCH(General!$F$14,$L$4:$U$4,0)) -> Reference period | E24: =INDEX($W24:$AF24,MATCH(General!$F$16,$W$4:$AF$4,0)) -> lata | F24: 20 | L24: Reference period | M24: […] | N24: […] | O24: […] | P24: […] | Q24: […] | R24: […] | S24: […] | T24: […] | U24: […] | W24: years | X24: lata | Y24: […] | Z24: […] | AA24: […] | AB24: […] | AC24: […] | AD24: […] | AE24: […] | AF24: […] | AH24: =COUNTIFS(F24,"") -> 0
B26: =IF(AH26<>0,"!","") ->  | D26: =INDEX($L26:$U26,MATCH(General!$F$14,$L$4:$U$4,0)) -> Is VAT recoverable by the investor? | E26: =INDEX($W26:$AF26,MATCH(General!$F$16,$W$4:$AF$4,0)) -> 0=tak; 1=nie | F26: 0 | L26: Is VAT recoverable by the investor? | M26: […] | N26: […] | O26: […] | P26: […] | Q26: […] | R26: […] | S26: […] | T26: […] | U26: […] | W26: 0=yes; 1=no | X26: 0=tak; 1=nie | Y26: […] | Z26: […] | AA26: […] | AB26: […] | AC26: […] | AD26: […] | AE26: […] | AF26: […] | AH26: =COUNTIFS(F26,"") -> 0
B28: =IF(AH28<>0,"!","") ->  | D28: =INDEX($L28:$U28,MATCH(General!$F$14,$L$4:$U$4,0)) -> Financing model selection | E28: =INDEX($W28:$AF28,MATCH(General!$F$16,$W$4:$AF$4,0)) -> tekst | F28: Own funds + Grant | L28: Financing model selection | M28: […] | N28: […] | O28: […] | P28: […] | Q28: […] | R28: […] | S28: […] | T28: […] | U28: […] | W28: text | X28: tekst | Y28: […] | Z28: […] | AA28: […] | AB28: […] | AC28: […] | AD28: […] | AE28: […] | AF28: […] | AH28: =COUNTIFS(F28,"") -> 0
A30: =INDEX($L30:$U30,MATCH(General!$F$14,$L$4:$U$4,0)) -> Detailed calculations of the evaluation tool | L30: Detailed calculations of the evaluation tool | M30: […] | N30: […] | O30: […] | P30: […] | Q30: […] | R30: […] | S30: […] | T30: […] | U30: […]
D32: =INDEX($L32:$U32,MATCH(General!$F$14,$L$4:$U$4,0)) -> Open worksheets with detailed calculations | L32: Open worksheets with detailed calculations | M32: […] | N32: […] | O32: […] | P32: […] | Q32: […] | R32: […] | S32: […] | T32: […] | U32: […]

Sheet CAPEX
A1: =Config!$I$129 -> CAPITAL EXPENDITURES | BN1: Check
A2: =General!$D$8&" "&General!$F$8 -> Name of the project beneficiary:
A3: =General!$D$10&" "&General!$F$10 -> Name of the investment project: | AR3: =Config!AT$1 -> Language | BC3: =Config!BE$1 -> Currency / Units
A4: =IF(SUM(BN6:BN102)<>0,Config!$I$152,"") -> All input cells should be filled in with assumptions | AR4: =Config!AT$2 -> English | AS4: =Config!AU$2 -> Polish | AT4: =Config!AV$2 -> […] | AU4: =Config!AW$2 -> […] | AV4: =Config!AX$2 -> […] | AW4: =Config!AY$2 -> […] | AX4: =Config!AZ$2 -> […] | AY4: =Config!BA$2 -> […] | AZ4: =Config!BB$2 -> […] | BA4: =Config!BC$2 -> […] | BC4: =Config!BE$2 -> EUR | BD4: =Config!BF$2 -> PLN | BE4: =Config!BG$2 -> […] | BF4: =Config!BH$2 -> […] | BG4: =Config!BI$2 -> […] | BH4: =Config!BJ$2 -> […] | BI4: =Config!BK$2 -> […] | BJ4: =Config!BL$2 -> […] | BK4: =Config!BM$2 -> […] | BL4: =Config!BN$2 -> […]
A6: =INDEX($AR6:$BA6,MATCH(General!$F$14,$AR$4:$BA$4,0)) -> Capital expenditures | AR6: Capital expenditures | AS6: […] | AT6: […] | AU6: […] | AV6: […] | AW6: […] | AX6: […] | AY6: […] | AZ6: […] | BA6: […]
D8: =INDEX($AR8:$BA8,MATCH(General!$F$14,$AR$4:$BA$4,0)) -> Capital expenditures - eligible for grant funding | E8: =Config!$I$141 -> Unit | F8: Sum | G8: =Config!I$1 -> 2026 | H8: =Config!J$1 -> 2027 | I8: =Config!K$1 -> 2028 | J8: =Config!L$1 -> 2029 | K8: =Config!M$1 -> 2030 | L8: =Config!N$1 -> 2031 | M8: =Config!O$1 -> 2032 | N8: =Config!P$1 -> 2033 | O8: =Config!Q$1 -> 2034 | P8: =Config!R$1 -> 2035 | Q8: =Config!S$1 -> 2036 | R8: =Config!T$1 -> 2037 | S8: =Config!U$1 -> 2038 | T8: =Config!V$1 -> 2039 | U8: =Config!W$1 -> 2040 | V8: =Config!X$1 -> 2041 | W8: =Config!Y$1 -> 2042 | X8: =Config!Z$1 -> 2043 | Y8: =Config!AA$1 -> 2044 | Z8: =Config!AB$1 -> 2045 | AA8: =Config!AC$1 ->  | AB8: =Config!AD$1 ->  | AC8: =Config!AE$1 ->  | AD8: =Config!AF$1 ->  | AE8: =Config!AG$1 ->  | AF8: =Config!AH$1 ->  | AG8: =Config!AI$1 ->  | AH8: =Config!AJ$1 ->  | AI8: =Config!AK$1 ->  | AJ8: =Config!AL$1 ->  | AK8: =Config!AM$1 ->  | AL8: =Config!AN$1 ->  | AM8: =Config!AO$1 ->  | AN8: =Config!AP$1 ->  | AO8: =Config!AQ$1 ->  | AP8: =Config!AR$1 ->  | AR8: Capital expenditures - eligible for grant funding | AS8: […] | AT8: […] | AU8: […] | AV8: […] | AW8: […] | AX8: […] | AY8: […] | AZ8: […] | BA8: […]
G9: =Config!I$2 -> Construction | H9: =Config!J$2 -> Construction | I9: =Config!K$2 -> Operation | J9: =Config!L$2 -> Operation | K9: =Config!M$2 -> Operation | L9: =Config!N$2 -> Operation | M9: =Config!O$2 -> Operation | N9: =Config!P$2 -> Operation | O9: =Config!Q$2 -> Operation | P9: =Config!R$2 -> Operation | Q9: =Config!S$2 -> Operation | R9: =Config!T$2 -> Operation | S9: =Config!U$2 -> Operation | T9: =Config!V$2 -> Operation | U9: =Config!W$2 -> Operation | V9: =Config!X$2 -> Operation | W9: =Config!Y$2 -> Operation | X9: =Config!Z$2 -> Operation | Y9: =Config!AA$2 -> Operation | Z9: =Config!AB$2 -> Operation | AA9: =Config!AC$2 ->  | AB9: =Config!AD$2 ->  | AC9: =Config!AE$2 ->  | AD9: =Config!AF$2 ->  | AE9: =Config!AG$2 ->  | AF9: =Config!AH$2 ->  | AG9: =Config!AI$2 ->  | AH9: =Config!AJ$2 ->  | AI9: =Config!AK$2 ->  | AJ9: =Config!AL$2 ->  | AK9: =Config!AM$2 ->  | AL9: =Config!AN$2 ->  | AM9: =Config!AO$2 ->  | AN9: =Config!AP$2 ->  | AO9: =Config!AQ$2 ->  | AP9: =Config!AR$2 -> 
B10: =IF(BN10<>0,"!","") -> ! | D10: =INDEX($AR10:$BA10,MATCH(General!$F$14,$AR$4:$BA$4,0)) -> 1. Planning/design fees | E10: =INDEX($BC10:$BL10,MATCH(General!$F$16,$BC$4:$BL$4,0)) -> PLN | F10: =SUM(G10:AP10) -> 10000 | G10: 10000 | AR10: 1. Planning/design fees | AS10: […] | AT10: […] | AU10: […] | AV10: […] | AW10: […] | AX10: […] | AY10: […] | AZ10: […] | BA10: […] | BC10: EUR | BD10: PLN | BE10: […] | BF10: […] | BG10: […] | BH10: […] | BI10: […] | BJ10: […] | BK10: […] | BL10: […] | BN10: =COUNTIFS($G10:$AP10,"",$G$8:$AP$8,"<="&Config!$F$12) -> 19
B11: =IF(BN11<>0,"!","") -> ! | D11: =INDEX($AR11:$BA11,MATCH(General!$F$14,$AR$4:$BA$4,0)) -> 2. Land purchase | E11: =INDEX($BC11:$BL11,MATCH(General!$F$16,$BC$4:$BL$4,0)) -> PLN | F11: 0 | AR11: 2. Land purchase | AS11: […] | AT11: […] | AU11: […] | AV11: […] | AW11: […] | AX11: […] | AY11: […] | AZ11: […] | BA11: […] | BC11: EUR | BD11: PLN | BE11: […] | BF11: […] | BG11: […] | BH11: […] | BI11: […] | BJ11: […] | BK11: […] | BL11: […] | BN11: =COUNTIFS($G11:$AP11,"",$G$8:$AP$8,"<="&Config!$F$12) -> 20
D12: =INDEX($AR12:$BA12,MATCH(General!$F$14,$AR$4:$BA$4,0)) -> 3. Building and construction | E12: =INDEX($BC12:$BL12,MATCH(General!$F$16,$BC$4:$BL$4,0)) -> PLN | F12: 577957.5 | H12: =SUM(H13:H18) -> 577957.5 | I12: 0 | J12: 0 | K12: 0 | L12: 0 | M12: 0 | N12: 0 | O12: 0 | P12: 0 | Q12: 0 | R12: 0 | S12: 0 | T12: 0 | U12: 0 | V12: 0 | W12: 0 | X12: 0 | Y12: 0 | Z12: 0 | AA12: 0 | AB12: 0 | AC12: 0 | AD12: 0 | AE12: 0 | AF12: 0 | AG12: 0 | AH12: 0 | AI12: 0 | AJ12: 0 | AK12: 0 | AL12: 0 | AM12: 0 | AN12: 0 | AO12: 0 | AP12: 0 | AR12: 3. Building and construction | AS12: […] | AT12: […] | AU12: […] | AV12: […] | AW12: […] | AX12: […] | AY12: […] | AZ12: […] | BA12: […] | BC12: EUR | BD12: PLN | BE12: […] | BF12: […] | BG12: […] | BH12: […] | BI12: […] | BJ12: […] | BK12: […] | BL12: […]
B13: =IF(BN13<>0,"!","") -> ! | D13: =INDEX($AR13:$BA13,MATCH(General!$F$14,$AR$4:$BA$4,0)) -> a. Construction elements | E13: =INDEX($BC13:$BL13,MATCH(General!$F$16,$BC$4:$BL$4,0)) -> PLN | F13: 0 | AR13: a. Construction elements | AS13: […] | AT13: […] | AU13: […] | AV13: […] | AW13: […] | AX13: […] | AY13: […] | AZ13: […] | BA13: […] | BC13: EUR | BD13: PLN | BE13: […] | BF13: […] | BG13: […] | BH13: […] | BI13: […] | BJ13: […] | BK13: […] | BL13: […] | BN13: =COUNTIFS($G13:$AP13,"",$G$8:$AP$8,"<="&Config!$F$12) -> 20
B14: ! | D14: =INDEX($AR14:$BA14,MATCH(General!$F$14,$AR$4:$BA$4,0)) -> b. Insulation and facade | E14: =INDEX($BC14:$BL14,MATCH(General!$F$16,$BC$4:$BL$4,0)) -> PLN | F14: 577957.5 | H14: 577957.5 | AR14: b. Insulation and facade | AS14: […] | AT14: […] | AU14: […] | AV14: […] | AW14: […] | AX14: […] | AY14: […] | AZ14: […] | BA14: […] | BC14: EUR | BD14: PLN | BE14: […] | BF14: […] | BG14: […] | BH14: […] | BI14: […] | BJ14: […] | BK14: […] | BL14: […] | BN14: =COUNTIFS($G14:$AP14,"",$G$8:$AP$8,"<="&Config!$F$12) -> 19
B15: ! | D15: =INDEX($AR15:$BA15,MATCH(General!$F$14,$AR$4:$BA$4,0)) -> c. Windows | E15: =INDEX($BC15:$BL15,MATCH(General!$F$16,$BC$4:$BL$4,0)) -> PLN | F15: 0 | AR15: c. Windows | AS15: […] | AT15: […] | AU15: […] | AV15: […] | AW15: […] | AX15: […] | AY15: […] | AZ15: […] | BA15: […] | BC15: EUR | BD15: PLN | BE15: […] | BF15: […] | BG15: […] | BH15: […] | BI15: […] | BJ15: […] | BK15: […] | BL15: […] | BN15: =COUNTIFS($G15:$AP15,"",$G$8:$AP$8,"<="&Config!$F$12) -> 20
B16: ! | D16: =INDEX($AR16:$BA16,MATCH(General!$F$14,$AR$4:$BA$4,0)) -> d. Seismic retrofit reinforcements | E16: =INDEX($BC16:$BL16,MATCH(General!$F$16,$BC$4:$BL$4,0)) -> PLN | F16: 0 | AR16: d. Seismic retrofit reinforcements | AS16: […] | AT16: […] | AU16: […] | AV16: […] | AW16: […] | AX16: […] | AY16: […] | AZ16: […] | BA16: […] | BC16: EUR | BD16: PLN | BE16: […] | BF16: […] | BG16: […] | BH16: […] | BI16: […] | BJ16: […] | BK16: […] | BL16: […] | BN16: =COUNTIFS($G16:$AP16,"",$G$8:$AP$8,"<="&Config!$F$12) -> 20
B17: ! | D17: =INDEX($AR17:$BA17,MATCH(General!$F$14,$AR$4:$BA$4,0)) -> e. Green infrastructure (NBS) | E17: =INDEX($BC17:$BL17,MATCH(General!$F$16,$BC$4:$BL$4,0)) -> PLN | F17: 0 | AR17: e. Green infrastructure (NBS) | AS17: […] | AT17: […] | AU17: […] | AV17: […] | AW17: […] | AX17: […] | AY17: […] | AZ17: […] | BA17: […] | BC17: EUR | BD17: PLN | BE17: […] | BF17: […] | BG17: […] | BH17: […] | BI17: […] | BJ17: […] | BK17: […] | BL17: […] | BN17: =COUNTIFS($G17:$AP17,"",$G$8:$AP$8,"<="&Config!$F$12) -> 20
B18: ! | D18: =INDEX($AR18:$BA18,MATCH(General!$F$14,$AR$4:$BA$4,0)) -> f. Other | E18: =INDEX($BC18:$BL18,MATCH(General!$F$16,$BC$4:$BL$4,0)) -> PLN | F18: 0 | AR18: f. Other | AS18: […] | AT18: […] | AU18: […] | AV18: […] | AW18: […] | AX18: […] | AY18: […] | AZ18: […] | BA18: […] | BC18: EUR | BD18: PLN | BE18: […] | BF18: […] | BG18: […] | BH18: […] | BI18: […] | BJ18: […] | BK18: […] | BL18: […] | BN18: =COUNTIFS($G18:$AP18,"",$G$8:$AP$8,"<="&Config!$F$12) -> 20
D19: =INDEX($AR19:$BA19,MATCH(General!$F$14,$AR$4:$BA$4,0)) -> 4. Plant and machinery | E19: =INDEX($BC19:$BL19,MATCH(General!$F$16,$BC$4:$BL$4,0)) -> PLN | F19: 3486497 | G19: =SUM(G20:G26) -> 0 | H19: =SUM(H20:H26) -> 3486497 | I19: 0 | J19: 0 | K19: 0 | L19: 0 | M19: 0 | N19: 0 | O19: 0 | P19: 0 | Q19: 0 | R19: 0 | S19: 0 | T19: 0 | U19: 0 | V19: 0 | W19: 0 | X19: 0 | Y19: 0 | Z19: 0 | AA19: 0 | AB19: 0 | AC19: 0 | AD19: 0 | AE19: 0 | AF19: 0 | AG19: 0 | AH19: 0 | AI19: 0 | AJ19: 0 | AK19: 0 | AL19: 0 | AM19: 0 | AN19: 0 | AO19: 0 | AP19: 0 | AR19: 4. Plant and machinery | AS19: […] | AT19: […] | AU19: […] | AV19: […] | AW19: […] | AX19: […] | AY19: […] | AZ19: […] | BA19: […] | BC19: EUR | BD19: PLN | BE19: […] | BF19: […] | BG19: […] | BH19: […] | BI19: […] | BJ19: […] | BK19: […] | BL19: […]
B20: =IF(BN20<>0,"!","") -> ! | D20: =INDEX($AR20:$BA20,MATCH(General!$F$14,$AR$4:$BA$4,0)) -> a. Heating, ventilation, and air conditioning | E20: =INDEX($BC20:$BL20,MATCH(General!$F$16,$BC$4:$BL$4,0)) -> PLN | F20: 2728772 | H20: 2728772 | AR20: a. Heating, ventilation, and air conditioning | AS20: […] | AT20: […] | AU20: […] | AV20: […] | AW20: […] | AX20: […] | AY20: […] | AZ20: […] | BA20: […] | BC20: EUR | BD20: PLN | BE20: […] | BF20: […] | BG20: […] | BH20: […] | BI20: […] | BJ20: […] | BK20: […] | BL20: […] | BN20: =COUNTIFS($G20:$AP20,"",$G$8:$AP$8,"<="&Config!$F$12) -> 19
B21: ! | D21: =INDEX($AR21:$BA21,MATCH(General!$F$14,$AR$4:$BA$4,0)) -> b. Solar power plant | E21: =INDEX($BC21:$BL21,MATCH(General!$F$16,$BC$4:$BL$4,0)) -> PLN | F21: 562725 | H21: 562725 | AR21: b. Solar power plant | AS21: […] | AT21: […] | AU21: […] | AV21: […] | AW21: […] | AX21: […] | AY21: […] | AZ21: […] | BA21: […] | BC21: EUR | BD21: PLN | BE21: […] | BF21: […] | BG21: […] | BH21: […] | BI21: […] | BJ21: […] | BK21: […] | BL21: […] | BN21: =COUNTIFS($G21:$AP21,"",$G$8:$AP$8,"<="&Config!$F$12) -> 19
B22: ! | D22: =INDEX($AR22:$BA22,MATCH(General!$F$14,$AR$4:$BA$4,0)) -> c. Battery energy storage system | E22: =INDEX($BC22:$BL22,MATCH(General!$F$16,$BC$4:$BL$4,0)) -> PLN | F22: 0 | AR22: c. Battery energy storage system | AS22: […] | AT22: […] | AU22: […] | AV22: […] | AW22: […] | AX22: […] | AY22: […] | AZ22: […] | BA22: […] | BC22: EUR | BD22: PLN | BE22: […] | BF22: […] | BG22: […] | BH22: […] | BI22: […] | BJ22: […] | BK22: […] | BL22: […] | BN22: =COUNTIFS($G22:$AP22,"",$G$8:$AP$8,"<="&Config!$F$12) -> 20
B23: ! | D23: =INDEX($AR23:$BA23,MATCH(General!$F$14,$AR$4:$BA$4,0)) -> d. Charging equipment | E23: =INDEX($BC23:$BL23,MATCH(General!$F$16,$BC$4:$BL$4,0)) -> PLN | F23: 0 | AR23: d. Charging equipment | AS23: […] | AT23: […] | AU23: […] | AV23: […] | AW23: […] | AX23: […] | AY23: […] | AZ23: […] | BA23: […] | BC23: EUR | BD23: PLN | BE23: […] | BF23: […] | BG23: […] | BH23: […] | BI23: […] | BJ23: […] | BK23: […] | BL23: […] | BN23: =COUNTIFS($G23:$AP23,"",$G$8:$AP$8,"<="&Config!$F$12) -> 20
B24: ! | D24: =INDEX($AR24:$BA24,MATCH(General!$F$14,$AR$4:$BA$4,0)) -> e. IT equipment and sensors | E24: =INDEX($BC24:$BL24,MATCH(General!$F$16,$BC$4:$BL$4,0)) -> PLN | F24: 0 | AR24: e. IT equipment and sensors | AS24: […] | AT24: […] | AU24: […] | AV24: […] | AW24: […] | AX24: […] | AY24: […] | AZ24: […] | BA24: […] | BC24: EUR | BD24: PLN | BE24: […] | BF24: […] | BG24: […] | BH24: […] | BI24: […] | BJ24: […] | BK24: […] | BL24: […] | BN24: =COUNTIFS($G24:$AP24,"",$G$8:$AP$8,"<="&Config!$F$12) -> 20
B25: ! | D25: =INDEX($AR25:$BA25,MATCH(General!$F$14,$AR$4:$BA$4,0)) -> f. Other electric equipment | E25: =INDEX($BC25:$BL25,MATCH(General!$F$16,$BC$4:$BL$4,0)) -> PLN | F25: 0 | AR25: f. Other electric equipment | AS25: […] | AT25: […] | AU25: […] | AV25: […] | AW25: […] | AX25: […] | AY25: […] | AZ25: […] | BA25: […] | BC25: EUR | BD25: PLN | BE25: […] | BF25: […] | BG25: […] | BH25: […] | BI25: […] | BJ25: […] | BK25: […] | BL25: […] | BN25: =COUNTIFS($G25:$AP25,"",$G$8:$AP$8,"<="&Config!$F$12) -> 20
B26: ! | D26: =INDEX($AR26:$BA26,MATCH(General!$F$14,$AR$4:$BA$4,0)) -> g. Indoor lighting | E26: =INDEX($BC26:$BL26,MATCH(General!$F$16,$BC$4:$BL$4,0)) -> PLN | F26: 195000 | H26: 195000 | AR26: g. Indoor lighting | AS26: […] | AT26: […] | AU26: […] | AV26: […] | AW26: […] | AX26: […] | AY26: […] | AZ26: […] | BA26: […] | BC26: EUR | BD26: PLN | BE26: […] | BF26: […] | BG26: […] | BH26: […] | BI26: […] | BJ26: […] | BK26: […] | BL26: […] | BN26: =COUNTIFS($G26:$AP26,"",$G$8:$AP$8,"<="&Config!$F$12) -> 19
B27: ! | D27: =INDEX($AR27:$BA27,MATCH(General!$F$14,$AR$4:$BA$4,0)) -> 5. Contingencies | E27: =INDEX($BC27:$BL27,MATCH(General!$F$16,$BC$4:$BL$4,0)) -> PLN | F27: 0 | AR27: 5. Contingencies | AS27: […] | AT27: […] | AU27: […] | AV27: […] | AW27: […] | AX27: […] | AY27: […] | AZ27: […] | BA27: […] | BC27: EUR | BD27: PLN | BE27: […] | BF27: […] | BG27: […] | BH27: […] | BI27: […] | BJ27: […] | BK27: […] | BL27: […] | BN27: =COUNTIFS($G27:$AP27,"",$G$8:$AP$8,"<="&Config!$F$12) -> 20
B28: ! | D28: =INDEX($AR28:$BA28,MATCH(General!$F$14,$AR$4:$BA$4,0)) -> 6. Price adjustment | E28: =INDEX($BC28:$BL28,MATCH(General!$F$16,$BC$4:$BL$4,0)) -> PLN | F28: 0 | AR28: 6. Price adjustment | AS28: […] | AT28: […] | AU28: […] | AV28: […] | AW28: […] | AX28: […] | AY28: […] | AZ28: […] | BA28: […] | BC28: EUR | BD28: PLN | BE28: […] | BF28: […] | BG28: […] | BH28: […] | BI28: […] | BJ28: […] | BK28: […] | BL28: […] | BN28: =COUNTIFS($G28:$AP28,"",$G$8:$AP$8,"<="&Config!$F$12) -> 20
B29: ! | D29: =INDEX($AR29:$BA29,MATCH(General!$F$14,$AR$4:$BA$4,0)) -> 7. Publicity | E29: =INDEX($BC29:$BL29,MATCH(General!$F$16,$BC$4:$BL$4,0)) -> PLN | F29: 0 | AR29: 7. Publicity | AS29: […] | AT29: […] | AU29: […] | AV29: […] | AW29: […] | AX29: […] | AY29: […] | AZ29: […] | BA29: […] | BC29: EUR | BD29: PLN | BE29: […] | BF29: […] | BG29: […] | BH29: […] | BI29: […] | BJ29: […] | BK29: […] | BL29: […] | BN29: =COUNTIFS($G29:$AP29,"",$G$8:$AP$8,"<="&Config!$F$12) -> 20
B30: ! | D30: =INDEX($AR30:$BA30,MATCH(General!$F$14,$AR$4:$BA$4,0)) -> 8. Supervision during contrusction implementation | E30: =INDEX($BC30:$BL30,MATCH(General!$F$16,$BC$4:$BL$4,0)) -> PLN | F30: 1000 | H30: 1000 | AR30: 8. Supervision during contrusction implementation | AS30: […] | AT30: […] | AU30: […] | AV30: […] | AW30: […] | AX30: […] | AY30: […] | AZ30: […] | BA30: […] | BC30: EUR | BD30: PLN | BE30: […] | BF30: […] | BG30: […] | BH30: […] | BI30: […] | BJ30: […] | BK30: […] | BL30: […] | BN30: =COUNTIFS($G30:$AP30,"",$G$8:$AP$8,"<="&Config!$F$12) -> 19
B31: ! | D31: =INDEX($AR31:$BA31,MATCH(General!$F$14,$AR$4:$BA$4,0)) -> 9. Technical assistance | E31: =INDEX($BC31:$BL31,MATCH(General!$F$16,$BC$4:$BL$4,0)) -> PLN | F31: 0 | AR31: 9. Technical assistance | AS31: […] | AT31: […] | AU31: […] | AV31: […] | AW31: […] | AX31: […] | AY31: […] | AZ31: […] | BA31: […] | BC31: EUR | BD31: PLN | BE31: […] | BF31: […] | BG31: […] | BH31: […] | BI31: […] | BJ31: […] | BK31: […] | BL31: […] | BN31: =COUNTIFS($G31:$AP31,"",$G$8:$AP$8,"<="&Config!$F$12) -> 20
D32: =INDEX($AR32:$BA32,MATCH(General!$F$14,$AR$4:$BA$4,0)) -> Total | E32: =INDEX($BC32:$BL32,MATCH(General!$F$16,$BC$4:$BL$4,0)) -> PLN | F32: 4075454.5 | G32: =SUM(G10:G12,G19,G27:G31) -> 10000 | H32: =SUM(H10:H12,H19,H27:H31) -> 4065454.5 | I32: 0 | J32: 0 | K32: 0 | L32: 0 | M32: 0 | N32: 0 | O32: 0 | P32: 0 | Q32: 0 | R32: 0 | S32: 0 | T32: 0 | U32: 0 | V32: 0 | W32: 0 | X32: 0 | Y32: 0 | Z32: 0 | AA32: 0 | AB32: 0 | AC32: 0 | AD32: 0 | AE32: 0 | AF32: 0 | AG32: 0 | AH32: 0 | AI32: 0 | AJ32: 0 | AK32: 0 | AL32: 0 | AM32: 0 | AN32: 0 | AO32: 0 | AP32: 0 | AR32: Total | AS32: […] | AT32: […] | AU32: […] | AV32: […] | AW32: […] | AX32: […] | AY32: […] | AZ32: […] | BA32: […] | BC32: EUR | BD32: PLN | BE32: […] | BF32: […] | BG32: […] | BH32: […] | BI32: […] | BJ32: […] | BK32: […] | BL32: […]
B33: =IF(BN33<>0,"!","") -> ! | D33: =INDEX($AR33:$BA33,MATCH(General!$F$14,$AR$4:$BA$4,0)) -> VAT expense | E33: =INDEX($BC33:$BL33,MATCH(General!$F$16,$BC$4:$BL$4,0)) -> PLN | F33: 0 | AR33: VAT expense | AS33: […] | AT33: […] | AU33: […] | AV33: […] | AW33: […] | AX33: […] | AY33: […] | AZ33: […] | BA33: […] | BC33: EUR | BD33: PLN | BE33: […] | BF33: […] | BG33: […] | BH33: […] | BI33: […] | BJ33: […] | BK33: […] | BL33: […] | BN33: =COUNTIFS($G33:$AP33,"",$G$8:$AP$8,"<="&Config!$F$12) -> 20
D34: =INDEX($AR34:$BA34,MATCH(General!$F$14,$AR$4:$BA$4,0)) -> Total incl. VAT | E34: =INDEX($BC34:$BL34,MATCH(General!$F$16,$BC$4:$BL$4,0)) -> PLN | F34: 4075454.5 | G34: =SUM(G32:G33) -> 10000 | H34: =SUM(H32:H33) -> 4065454.5 | I34: =SUM(I32:I33) -> 0 | J34: =SUM(J32:J33) -> 0 | K34: =SUM(K32:K33) -> 0 | L34: =SUM(L32:L33) -> 0 | M34: =SUM(M32:M33) -> 0 | N34: =SUM(N32:N33) -> 0 | O34: =SUM(O32:O33) -> 0 | P34: =SUM(P32:P33) -> 0 | Q34: =SUM(Q32:Q33) -> 0 | R34: =SUM(R32:R33) -> 0 | S34: =SUM(S32:S33) -> 0 | T34: =SUM(T32:T33) -> 0 | U34: =SUM(U32:U33) -> 0 | V34: =SUM(V32:V33) -> 0 | W34: =SUM(W32:W33) -> 0 | X34: =SUM(X32:X33) -> 0 | Y34: =SUM(Y32:Y33) -> 0 | Z34: =SUM(Z32:Z33) -> 0 | AA34: =SUM(AA32:AA33) -> 0 | AB34: =SUM(AB32:AB33) -> 0 | AC34: =SUM(AC32:AC33) -> 0 | AD34: =SUM(AD32:AD33) -> 0 | AE34: =SUM(AE32:AE33) -> 0 | AF34: =SUM(AF32:AF33) -> 0 | AG34: =SUM(AG32:AG33) -> 0 | AH34: =SUM(AH32:AH33) -> 0 | AI34: =SUM(AI32:AI33) -> 0 | AJ34: =SUM(AJ32:AJ33) -> 0 | AK34: =SUM(AK32:AK33) -> 0 | AL34: =SUM(AL32:AL33) -> 0 | AM34: =SUM(AM32:AM33) -> 0 | AN34: =SUM(AN32:AN33) -> 0 | AO34: =SUM(AO32:AO33) -> 0 | AP34: =SUM(AP32:AP33) -> 0 | AR34: Total incl. VAT | AS34: […] | AT34: […] | AU34: […] | AV34: […] | AW34: […] | AX34: […] | AY34: […] | AZ34: […] | BA34: […] | BC34: EUR | BD34: PLN | BE34: […] | BF34: […] | BG34: […] | BH34: […] | BI34: […] | BJ34: […] | BK34: […] | BL34: […]
D36: =INDEX($AR36:$BA36,MATCH(General!$F$14,$AR$4:$BA$4,0)) -> Capital expenditures - non-eligible for grant funding | E36: =Config!$I$141 -> Unit | F36: Sum | G36: =Config!I$1 -> 2026 | H36: =Config!J$1 -> 2027 | I36: =Config!K$1 -> 2028 | J36: =Config!L$1 -> 2029 | K36: =Config!M$1 -> 2030 | L36: =Config!N$1 -> 2031 | M36: =Config!O$1 -> 2032 | N36: =Config!P$1 -> 2033 | O36: =Config!Q$1 -> 2034 | P36: =Config!R$1 -> 2035 | Q36: =Config!S$1 -> 2036 | R36: =Config!T$1 -> 2037 | S36: =Config!U$1 -> 2038 | T36: =Config!V$1 -> 2039 | U36: =Config!W$1 -> 2040 | V36: =Config!X$1 -> 2041 | W36: =Config!Y$1 -> 2042 | X36: =Config!Z$1 -> 2043 | Y36: =Config!AA$1 -> 2044 | Z36: =Config!AB$1 -> 2045 | AA36: =Config!AC$1 ->  | AB36: =Config!AD$1 ->  | AC36: =Config!AE$1 ->  | AD36: =Config!AF$1 ->  | AE36: =Config!AG$1 ->  | AF36: =Config!AH$1 ->  | AG36: =Config!AI$1 ->  | AH36: =Config!AJ$1 ->  | AI36: =Config!AK$1 ->  | AJ36: =Config!AL$1 ->  | AK36: =Config!AM$1 ->  | AL36: =Config!AN$1 ->  | AM36: =Config!AO$1 ->  | AN36: =Config!AP$1 ->  | AO36: =Config!AQ$1 ->  | AP36: =Config!AR$1 ->  | AR36: Capital expenditures - non-eligible for grant funding | AS36: […] | AT36: […] | AU36: […] | AV36: […] | AW36: […] | AX36: […] | AY36: […] | AZ36: […] | BA36: […]
G37: =Config!I$2 -> Construction | H37: =Config!J$2 -> Construction | I37: =Config!K$2 -> Operation | J37: =Config!L$2 -> Operation | K37: =Config!M$2 -> Operation | L37: =Config!N$2 -> Operation | M37: =Config!O$2 -> Operation | N37: =Config!P$2 -> Operation | O37: =Config!Q$2 -> Operation | P37: =Config!R$2 -> Operation | Q37: =Config!S$2 -> Operation | R37: =Config!T$2 -> Operation | S37: =Config!U$2 -> Operation | T37: =Config!V$2 -> Operation | U37: =Config!W$2 -> Operation | V37: =Config!X$2 -> Operation | W37: =Config!Y$2 -> Operation | X37: =Config!Z$2 -> Operation | Y37: =Config!AA$2 -> Operation | Z37: =Config!AB$2 -> Operation | AA37: =Config!AC$2 ->  | AB37: =Config!AD$2 ->  | AC37: =Config!AE$2 ->  | AD37: =Config!AF$2 ->  | AE37: =Config!AG$2 ->  | AF37: =Config!AH$2 ->  | AG37: =Config!AI$2 ->  | AH37: =Config!AJ$2 ->  | AI37: =Config!AK$2 ->  | AJ37: =Config!AL$2 ->  | AK37: =Config!AM$2 ->  | AL37: =Config!AN$2 ->  | AM37: =Config!AO$2 ->  | AN37: =Config!AP$2 ->  | AO37: =Config!AQ$2 ->  | AP37: =Config!AR$2 -> 
B38: =IF(BN38<>0,"!","") -> ! | D38: =INDEX($AR38:$BA38,MATCH(General!$F$14,$AR$4:$BA$4,0)) -> 1. Planning/design fees | E38: =INDEX($BC38:$BL38,MATCH(General!$F$16,$BC$4:$BL$4,0)) -> PLN | F38: =SUM(G38:AP38) -> 0 | AR38: 1. Planning/design fees | AS38: […] | AT38: […] | AU38: […] | AV38: […] | AW38: […] | AX38: […] | AY38: […] | AZ38: […] | BA38: […] | BC38: EUR | BD38: PLN | BE38: […] | BF38: […] | BG38: […] | BH38: […] | BI38: […] | BJ38: […] | BK38: […] | BL38: […] | BN38: =COUNTIFS($G38:$AP38,"",$G$36:$AP$36,"<="&Config!$F$12) -> 20
B39: ! | D39: =INDEX($AR39:$BA39,MATCH(General!$F$14,$AR$4:$BA$4,0)) -> 2. Land purchase | E39: =INDEX($BC39:$BL39,MATCH(General!$F$16,$BC$4:$BL$4,0)) -> PLN | F39: 0 | AR39: 2. Land purchase | AS39: […] | AT39: […] | AU39: […] | AV39: […] | AW39: […] | AX39: […] | AY39: […] | AZ39: […] | BA39: […] | BC39: EUR | BD39: PLN | BE39: […] | BF39: […] | BG39: […] | BH39: […] | BI39: […] | BJ39: […] | BK39: […] | BL39: […] | BN39: =COUNTIFS($G39:$AP39,"",$G$36:$AP$36,"<="&Config!$F$12) -> 20
D40: =INDEX($AR40:$BA40,MATCH(General!$F$14,$AR$4:$BA$4,0)) -> 3. Building and construction | E40: =INDEX($BC40:$BL40,MATCH(General!$F$16,$BC$4:$BL$4,0)) -> PLN | F40: 0 | G40: =SUM(G41:G46) -> 0 | H40: =SUM(H41:H46) -> 0 | I40: 0 | J40: 0 | K40: 0 | L40: 0 | M40: 0 | N40: 0 | O40: 0 | P40: 0 | Q40: 0 | R40: 0 | S40: 0 | T40: 0 | U40: 0 | V40: 0 | W40: 0 | X40: 0 | Y40: 0 | Z40: 0 | AA40: 0 | AB40: 0 | AC40: 0 | AD40: 0 | AE40: 0 | AF40: 0 | AG40: 0 | AH40: 0 | AI40: 0 | AJ40: 0 | AK40: 0 | AL40: 0 | AM40: 0 | AN40: 0 | AO40: 0 | AP40: 0 | AR40: 3. Building and construction | AS40: […] | AT40: […] | AU40: […] | AV40: […] | AW40: […] | AX40: […] | AY40: […] | AZ40: […] | BA40: […] | BC40: EUR | BD40: PLN | BE40: […] | BF40: […] | BG40: […] | BH40: […] | BI40: […] | BJ40: […] | BK40: […] | BL40: […]
B41: =IF(BN41<>0,"!","") -> ! | D41: =INDEX($AR41:$BA41,MATCH(General!$F$14,$AR$4:$BA$4,0)) -> a. Construction elements | E41: =INDEX($BC41:$BL41,MATCH(General!$F$16,$BC$4:$BL$4,0)) -> PLN | F41: 0 | AR41: a. Construction elements | AS41: […] | AT41: […] | AU41: […] | AV41: […] | AW41: […] | AX41: […] | AY41: […] | AZ41: […] | BA41: […] | BC41: EUR | BD41: PLN | BE41: […] | BF41: […] | BG41: […] | BH41: […] | BI41: […] | BJ41: […] | BK41: […] | BL41: […] | BN41: =COUNTIFS($G41:$AP41,"",$G$36:$AP$36,"<="&Config!$F$12) -> 20
B42: ! | D42: =INDEX($AR42:$BA42,MATCH(General!$F$14,$AR$4:$BA$4,0)) -> b. Insulation and facade | E42: =INDEX($BC42:$BL42,MATCH(General!$F$16,$BC$4:$BL$4,0)) -> PLN | F42: 0 | AR42: b. Insulation and facade | AS42: […] | AT42: […] | AU42: […] | AV42: […] | AW42: […] | AX42: […] | AY42: […] | AZ42: […] | BA42: […] | BC42: EUR | BD42: PLN | BE42: […] | BF42: […] | BG42: […] | BH42: […] | BI42: […] | BJ42: […] | BK42: […] | BL42: […] | BN42: =COUNTIFS($G42:$AP42,"",$G$36:$AP$36,"<="&Config!$F$12) -> 20
B43: ! | D43: =INDEX($AR43:$BA43,MATCH(General!$F$14,$AR$4:$BA$4,0)) -> c. Windows | E43: =INDEX($BC43:$BL43,MATCH(General!$F$16,$BC$4:$BL$4,0)) -> PLN | F43: 0 | AR43: c. Windows | AS43: […] | AT43: […] | AU43: […] | AV43: […] | AW43: […] | AX43: […] | AY43: […] | AZ43: […] | BA43: […] | BC43: EUR | BD43: PLN | BE43: […] | BF43: […] | BG43: […] | BH43: […] | BI43: […] | BJ43: […] | BK43: […] | BL43: […] | BN43: =COUNTIFS($G43:$AP43,"",$G$36:$AP$36,"<="&Config!$F$12) -> 20
B44: ! | D44: =INDEX($AR44:$BA44,MATCH(General!$F$14,$AR$4:$BA$4,0)) -> d. Seismic retrofit reinforcements | E44: =INDEX($BC44:$BL44,MATCH(General!$F$16,$BC$4:$BL$4,0)) -> PLN | F44: 0 | AR44: d. Seismic retrofit reinforcements | AS44: […] | AT44: […] | AU44: […] | AV44: […] | AW44: […] | AX44: […] | AY44: […] | AZ44: […] | BA44: […] | BC44: EUR | BD44: PLN | BE44: […] | BF44: […] | BG44: […] | BH44: […] | BI44: […] | BJ44: […] | BK44: […] | BL44: […] | BN44: =COUNTIFS($G44:$AP44,"",$G$36:$AP$36,"<="&Config!$F$12) -> 20
B45: ! | D45: =INDEX($AR45:$BA45,MATCH(General!$F$14,$AR$4:$BA$4,0)) -> e. Green infrastructure (NBS) | E45: =INDEX($BC45:$BL45,MATCH(General!$F$16,$BC$4:$BL$4,0)) -> PLN | F45: 0 | AR45: e. Green infrastructure (NBS) | AS45: […] | AT45: […] | AU45: […] | AV45: […] | AW45: […] | AX45: […] | AY45: […] | AZ45: […] | BA45: […] | BC45: EUR | BD45: PLN | BE45: […] | BF45: […] | BG45: […] | BH45: […] | BI45: […] | BJ45: […] | BK45: […] | BL45: […] | BN45: =COUNTIFS($G45:$AP45,"",$G$36:$AP$36,"<="&Config!$F$12) -> 20
B46: ! | D46: =INDEX($AR46:$BA46,MATCH(General!$F$14,$AR$4:$BA$4,0)) -> f. Other | E46: =INDEX($BC46:$BL46,MATCH(General!$F$16,$BC$4:$BL$4,0)) -> PLN | F46: 0 | AR46: f. Other | AS46: […] | AT46: […] | AU46: […] | AV46: […] | AW46: […] | AX46: […] | AY46: […] | AZ46: […] | BA46: […] | BC46: EUR | BD46: PLN | BE46: […] | BF46: […] | BG46: […] | BH46: […] | BI46: […] | BJ46: […] | BK46: […] | BL46: […] | BN46: =COUNTIFS($G46:$AP46,"",$G$36:$AP$36,"<="&Config!$F$12) -> 20
D47: =INDEX($AR47:$BA47,MATCH(General!$F$14,$AR$4:$BA$4,0)) -> 4. Plant and machinery | E47: =INDEX($BC47:$BL47,MATCH(General!$F$16,$BC$4:$BL$4,0)) -> PLN | F47: 0 | G47: =SUM(G48:G54) -> 0 | H47: =SUM(H48:H54) -> 0 | I47: 0 | J47: 0 | K47: 0 | L47: 0 | M47: 0 | N47: 0 | O47: 0 | P47: 0 | Q47: 0 | R47: 0 | S47: 0 | T47: 0 | U47: 0 | V47: 0 | W47: 0 | X47: 0 | Y47: 0 | Z47: 0 | AA47: 0 | AB47: 0 | AC47: 0 | AD47: 0 | AE47: 0 | AF47: 0 | AG47: 0 | AH47: 0 | AI47: 0 | AJ47: 0 | AK47: 0 | AL47: 0 | AM47: 0 | AN47: 0 | AO47: 0 | AP47: 0 | AR47: 4. Plant and machinery | AS47: […] | AT47: […] | AU47: […] | AV47: […] | AW47: […] | AX47: […] | AY47: […] | AZ47: […] | BA47: […] | BC47: EUR | BD47: PLN | BE47: […] | BF47: […] | BG47: […] | BH47: […] | BI47: […] | BJ47: […] | BK47: […] | BL47: […]
B48: =IF(BN48<>0,"!","") -> ! | D48: =INDEX($AR48:$BA48,MATCH(General!$F$14,$AR$4:$BA$4,0)) -> a. Heating, ventilation, and air conditioning | E48: =INDEX($BC48:$BL48,MATCH(General!$F$16,$BC$4:$BL$4,0)) -> PLN | F48: 0 | AR48: a. Heating, ventilation, and air conditioning | AS48: […] | AT48: […] | AU48: […] | AV48: […] | AW48: […] | AX48: […] | AY48: […] | AZ48: […] | BA48: […] | BC48: EUR | BD48: PLN | BE48: […] | BF48: […] | BG48: […] | BH48: […] | BI48: […] | BJ48: […] | BK48: […] | BL48: […] | BN48: =COUNTIFS($G48:$AP48,"",$G$36:$AP$36,"<="&Config!$F$12) -> 20
B49: ! | D49: =INDEX($AR49:$BA49,MATCH(General!$F$14,$AR$4:$BA$4,0)) -> b. Solar power plant | E49: =INDEX($BC49:$BL49,MATCH(General!$F$16,$BC$4:$BL$4,0)) -> PLN | F49: 0 | AR49: b. Solar power plant | AS49: […] | AT49: […] | AU49: […] | AV49: […] | AW49: […] | AX49: […] | AY49: […] | AZ49: […] | BA49: […] | BC49: EUR | BD49: PLN | BE49: […] | BF49: […] | BG49: […] | BH49: […] | BI49: […] | BJ49: […] | BK49: […] | BL49: […] | BN49: =COUNTIFS($G49:$AP49,"",$G$36:$AP$36,"<="&Config!$F$12) -> 20
B50: ! | D50: =INDEX($AR50:$BA50,MATCH(General!$F$14,$AR$4:$BA$4,0)) -> c. Battery energy storage system | E50: =INDEX($BC50:$BL50,MATCH(General!$F$16,$BC$4:$BL$4,0)) -> PLN | F50: 0 | AR50: c. Battery energy storage system | AS50: […] | AT50: […] | AU50: […] | AV50: […] | AW50: […] | AX50: […] | AY50: […] | AZ50: […] | BA50: […] | BC50: EUR | BD50: PLN | BE50: […] | BF50: […] | BG50: […] | BH50: […] | BI50: […] | BJ50: […] | BK50: […] | BL50: […] | BN50: =COUNTIFS($G50:$AP50,"",$G$36:$AP$36,"<="&Config!$F$12) -> 20
B51: ! | D51: =INDEX($AR51:$BA51,MATCH(General!$F$14,$AR$4:$BA$4,0)) -> d. Charging equipment | E51: =INDEX($BC51:$BL51,MATCH(General!$F$16,$BC$4:$BL$4,0)) -> PLN | F51: 0 | AR51: d. Charging equipment | AS51: […] | AT51: […] | AU51: […] | AV51: […] | AW51: […] | AX51: […] | AY51: […] | AZ51: […] | BA51: […] | BC51: EUR | BD51: PLN | BE51: […] | BF51: […] | BG51: […] | BH51: […] | BI51: […] | BJ51: […] | BK51: […] | BL51: […] | BN51: =COUNTIFS($G51:$AP51,"",$G$36:$AP$36,"<="&Config!$F$12) -> 20
B52: ! | D52: =INDEX($AR52:$BA52,MATCH(General!$F$14,$AR$4:$BA$4,0)) -> e. IT equipment and sensors | E52: =INDEX($BC52:$BL52,MATCH(General!$F$16,$BC$4:$BL$4,0)) -> PLN | F52: 0 | AR52: e. IT equipment and sensors | AS52: […] | AT52: […] | AU52: […] | AV52: […] | AW52: […] | AX52: […] | AY52: […] | AZ52: […] | BA52: […] | BC52: EUR | BD52: PLN | BE52: […] | BF52: […] | BG52: […] | BH52: […] | BI52: […] | BJ52: […] | BK52: […] | BL52: […] | BN52: =COUNTIFS($G52:$AP52,"",$G$36:$AP$36,"<="&Config!$F$12) -> 20
B53: ! | D53: =INDEX($AR53:$BA53,MATCH(General!$F$14,$AR$4:$BA$4,0)) -> f. Other electric equipment | E53: =INDEX($BC53:$BL53,MATCH(General!$F$16,$BC$4:$BL$4,0)) -> PLN | F53: 0 | AR53: f. Other electric equipment | AS53: […] | AT53: […] | AU53: […] | AV53: […] | AW53: […] | AX53: […] | AY53: […] | AZ53: […] | BA53: […] | BC53: EUR | BD53: PLN | BE53: […] | BF53: […] | BG53: […] | BH53: […] | BI53: […] | BJ53: […] | BK53: […] | BL53: […] | BN53: =COUNTIFS($G53:$AP53,"",$G$36:$AP$36,"<="&Config!$F$12) -> 20
B54: ! | D54: =INDEX($AR54:$BA54,MATCH(General!$F$14,$AR$4:$BA$4,0)) -> g. Indoor lighting | E54: =INDEX($BC54:$BL54,MATCH(General!$F$16,$BC$4:$BL$4,0)) -> PLN | F54: 0 | AR54: g. Indoor lighting | AS54: […] | AT54: […] | AU54: […] | AV54: […] | AW54: […] | AX54: […] | AY54: […] | AZ54: […] | BA54: […] | BC54: EUR | BD54: PLN | BE54: […] | BF54: […] | BG54: […] | BH54: […] | BI54: […] | BJ54: […] | BK54: […] | BL54: […] | BN54: =COUNTIFS($G54:$AP54,"",$G$36:$AP$36,"<="&Config!$F$12) -> 20
B55: ! | D55: =INDEX($AR55:$BA55,MATCH(General!$F$14,$AR$4:$BA$4,0)) -> 5. Contingencies | E55: =INDEX($BC55:$BL55,MATCH(General!$F$16,$BC$4:$BL$4,0)) -> PLN | F55: 0 | AR55: 5. Contingencies | AS55: […] | AT55: […] | AU55: […] | AV55: […] | AW55: […] | AX55: […] | AY55: […] | AZ55: […] | BA55: […] | BC55: EUR | BD55: PLN | BE55: […] | BF55: […] | BG55: […] | BH55: […] | BI55: […] | BJ55: […] | BK55: […] | BL55: […] | BN55: =COUNTIFS($G55:$AP55,"",$G$36:$AP$36,"<="&Config!$F$12) -> 20
B56: ! | D56: =INDEX($AR56:$BA56,MATCH(General!$F$14,$AR$4:$BA$4,0)) -> 6. Price adjustment | E56: =INDEX($BC56:$BL56,MATCH(General!$F$16,$BC$4:$BL$4,0)) -> PLN | F56: 0 | AR56: 6. Price adjustment | AS56: […] | AT56: […] | AU56: […] | AV56: […] | AW56: […] | AX56: […] | AY56: […] | AZ56: […] | BA56: […] | BC56: EUR | BD56: PLN | BE56: […] | BF56: […] | BG56: […] | BH56: […] | BI56: […] | BJ56: […] | BK56: […] | BL56: […] | BN56: =COUNTIFS($G56:$AP56,"",$G$36:$AP$36,"<="&Config!$F$12) -> 20
B57: ! | D57: =INDEX($AR57:$BA57,MATCH(General!$F$14,$AR$4:$BA$4,0)) -> 7. Publicity | E57: =INDEX($BC57:$BL57,MATCH(General!$F$16,$BC$4:$BL$4,0)) -> PLN | F57: 0 | AR57: 7. Publicity | AS57: […] | AT57: […] | AU57: […] | AV57: […] | AW57: […] | AX57: […] | AY57: […] | AZ57: […] | BA57: […] | BC57: EUR | BD57: PLN | BE57: […] | BF57: […] | BG57: […] | BH57: […] | BI57: […] | BJ57: […] | BK57: […] | BL57: […] | BN57: =COUNTIFS($G57:$AP57,"",$G$36:$AP$36,"<="&Config!$F$12) -> 20
B58: ! | D58: =INDEX($AR58:$BA58,MATCH(General!$F$14,$AR$4:$BA$4,0)) -> 8. Supervision during contrusction implementation | E58: =INDEX($BC58:$BL58,MATCH(General!$F$16,$BC$4:$BL$4,0)) -> PLN | F58: 0 | AR58: 8. Supervision during contrusction implementation | AS58: […] | AT58: […] | AU58: […] | AV58: […] | AW58: […] | AX58: […] | AY58: […] | AZ58: […] | BA58: […] | BC58: EUR | BD58: PLN | BE58: […] | BF58: […] | BG58: […] | BH58: […] | BI58: […] | BJ58: […] | BK58: […] | BL58: […] | BN58: =COUNTIFS($G58:$AP58,"",$G$36:$AP$36,"<="&Config!$F$12) -> 20
B59: ! | D59: =INDEX($AR59:$BA59,MATCH(General!$F$14,$AR$4:$BA$4,0)) -> 9. Technical assistance | E59: =INDEX($BC59:$BL59,MATCH(General!$F$16,$BC$4:$BL$4,0)) -> PLN | F59: 50000 | H59: 50000 | AR59: 9. Technical assistance | AS59: […] | AT59: […] | AU59: […] | AV59: […] | AW59: […] | AX59: […] | AY59: […] | AZ59: […] | BA59: […] | BC59: EUR | BD59: PLN | BE59: […] | BF59: […] | BG59: […] | BH59: […] | BI59: […] | BJ59: […] | BK59: […] | BL59: […] | BN59: =COUNTIFS($G59:$AP59,"",$G$36:$AP$36,"<="&Config!$F$12) -> 19
D60: =INDEX($AR60:$BA60,MATCH(General!$F$14,$AR$4:$BA$4,0)) -> Total | E60: =INDEX($BC60:$BL60,MATCH(General!$F$16,$BC$4:$BL$4,0)) -> PLN | F60: 50000 | G60: =SUM(G38:G40,G47,G55:G59) -> 0 | H60: =SUM(H38:H40,H47,H55:H59) -> 50000 | I60: 0 | J60: 0 | K60: 0 | L60: 0 | M60: 0 | N60: 0 | O60: 0 | P60: 0 | Q60: 0 | R60: 0 | S60: 0 | T60: 0 | U60: 0 | V60: 0 | W60: 0 | X60: 0 | Y60: 0 | Z60: 0 | AA60: 0 | AB60: 0 | AC60: 0 | AD60: 0 | AE60: 0 | AF60: 0 | AG60: 0 | AH60: 0 | AI60: 0 | AJ60: 0 | AK60: 0 | AL60: 0 | AM60: 0 | AN60: 0 | AO60: 0 | AP60: 0 | AR60: Total | AS60: […] | AT60: […] | AU60: […] | AV60: […] | AW60: […] | AX60: […] | AY60: […] | AZ60: […] | BA60: […] | BC60: EUR | BD60: PLN | BE60: […] | BF60: […] | BG60: […] | BH60: […] | BI60: […] | BJ60: […] | BK60: […] | BL60: […]
B61: =IF(BN61<>0,"!","") -> ! | D61: =INDEX($AR61:$BA61,MATCH(General!$F$14,$AR$4:$BA$4,0)) -> VAT expense | E61: =INDEX($BC61:$BL61,MATCH(General!$F$16,$BC$4:$BL$4,0)) -> PLN | F61: 0 | AR61: VAT expense | AS61: […] | AT61: […] | AU61: […] | AV61: […] | AW61: […] | AX61: […] | AY61: […] | AZ61: […] | BA61: […] | BC61: EUR | BD61: PLN | BE61: […] | BF61: […] | BG61: […] | BH61: […] | BI61: […] | BJ61: […] | BK61: […] | BL61: […] | BN61: =COUNTIFS($G61:$AP61,"",$G$36:$AP$36,"<="&Config!$F$12) -> 20
D62: =INDEX($AR62:$BA62,MATCH(General!$F$14,$AR$4:$BA$4,0)) -> Total incl. VAT | E62: =INDEX($BC62:$BL62,MATCH(General!$F$16,$BC$4:$BL$4,0)) -> PLN | F62: 50000 | G62: =SUM(G60:G61) -> 0 | H62: =SUM(H60:H61) -> 50000 | I62: 0 | J62: 0 | K62: 0 | L62: 0 | M62: 0 | N62: 0 | O62: 0 | P62: 0 | Q62: 0 | R62: 0 | S62: 0 | T62: 0 | U62: 0 | V62: 0 | W62: 0 | X62: 0 | Y62: 0 | Z62: 0 | AA62: 0 | AB62: 0 | AC62: 0 | AD62: 0 | AE62: 0 | AF62: 0 | AG62: 0 | AH62: 0 | AI62: 0 | AJ62: 0 | AK62: 0 | AL62: 0 | AM62: 0 | AN62: 0 | AO62: 0 | AP62: 0 | AR62: Total incl. VAT | AS62: […] | AT62: […] | AU62: […] | AV62: […] | AW62: […] | AX62: […] | AY62: […] | AZ62: […] | BA62: […] | BC62: EUR | BD62: PLN | BE62: […] | BF62: […] | BG62: […] | BH62: […] | BI62: […] | BJ62: […] | BK62: […] | BL62: […]
D64: =INDEX($AR64:$BA64,MATCH(General!$F$14,$AR$4:$BA$4,0)) -> Economic useful life | E64: =Config!$I$141 -> Unit | AR64: Economic useful life | AS64: […] | AT64: […] | AU64: […] | AV64: […] | AW64: […] | AX64: […] | AY64: […] | AZ64: […] | BA64: […]
B66: =IF(BN66<>0,"!","") -> ! | D66: =INDEX($AR66:$BA66,MATCH(General!$F$14,$AR$4:$BA$4,0)) -> 1. Planning/design fees | E66: =INDEX($BC66:$BL66,MATCH(General!$F$16,$BC$4:$BL$4,0)) -> lata | AR66: 1. Planning/design fees | AS66: […] | AT66: […] | AU66: […] | AV66: […] | AW66: […] | AX66: […] | AY66: […] | AZ66: […] | BA66: […] | BC66: years | BD66: lata | BE66: […] | BF66: […] | BG66: […] | BH66: […] | BI66: […] | BJ66: […] | BK66: […] | BL66: […] | BN66: =COUNTIFS(F66,"") -> 1
B67: ! | D67: =INDEX($AR67:$BA67,MATCH(General!$F$14,$AR$4:$BA$4,0)) -> 2. Land purchase | E67: =INDEX($BC67:$BL67,MATCH(General!$F$16,$BC$4:$BL$4,0)) -> lata | AR67: 2. Land purchase | AS67: […] | AT67: […] | AU67: […] | AV67: […] | AW67: […] | AX67: […] | AY67: […] | AZ67: […] | BA67: […] | BC67: years | BD67: lata | BE67: […] | BF67: […] | BG67: […] | BH67: […] | BI67: […] | BJ67: […] | BK67: […] | BL67: […] | BN67: =COUNTIFS(F67,"") -> 1
D68: =INDEX($AR68:$BA68,MATCH(General!$F$14,$AR$4:$BA$4,0)) -> 3. Building and construction | AR68: 3. Building and construction | AS68: […] | AT68: […] | AU68: […] | AV68: […] | AW68: […] | AX68: […] | AY68: […] | AZ68: […] | BA68: […] | BC68: years | BD68: lata | BE68: […] | BF68: […] | BG68: […] | BH68: […] | BI68: […] | BJ68: […] | BK68: […] | BL68: […]
B69: =IF(BN69<>0,"!","") ->  | D69: =INDEX($AR69:$BA69,MATCH(General!$F$14,$AR$4:$BA$4,0)) -> a. Construction elements | E69: =INDEX($BC69:$BL69,MATCH(General!$F$16,$BC$4:$BL$4,0)) -> lata | F69: 40 | AR69: a. Construction elements | AS69: […] | AT69: […] | AU69: […] | AV69: […] | AW69: […] | AX69: […] | AY69: […] | AZ69: […] | BA69: […] | BC69: years | BD69: lata | BE69: […] | BF69: […] | BG69: […] | BH69: […] | BI69: […] | BJ69: […] | BK69: […] | BL69: […] | BN69: =COUNTIFS(F69,"") -> 0
D70: =INDEX($AR70:$BA70,MATCH(General!$F$14,$AR$4:$BA$4,0)) -> b. Insulation and facade | E70: =INDEX($BC70:$BL70,MATCH(General!$F$16,$BC$4:$BL$4,0)) -> lata | F70: 40 | AR70: b. Insulation and facade | AS70: […] | AT70: […] | AU70: […] | AV70: […] | AW70: […] | AX70: […] | AY70: […] | AZ70: […] | BA70: […] | BC70: years | BD70: lata | BE70: […] | BF70: […] | BG70: […] | BH70: […] | BI70: […] | BJ70: […] | BK70: […] | BL70: […] | BN70: 0
D71: =INDEX($AR71:$BA71,MATCH(General!$F$14,$AR$4:$BA$4,0)) -> c. Windows | E71: =INDEX($BC71:$BL71,MATCH(General!$F$16,$BC$4:$BL$4,0)) -> lata | F71: 20 | AR71: c. Windows | AS71: […] | AT71: […] | AU71: […] | AV71: […] | AW71: […] | AX71: […] | AY71: […] | AZ71: […] | BA71: […] | BC71: years | BD71: lata | BE71: […] | BF71: […] | BG71: […] | BH71: […] | BI71: […] | BJ71: […] | BK71: […] | BL71: […] | BN71: 0
D72: =INDEX($AR72:$BA72,MATCH(General!$F$14,$AR$4:$BA$4,0)) -> d. Seismic retrofit reinforcements | E72: =INDEX($BC72:$BL72,MATCH(General!$F$16,$BC$4:$BL$4,0)) -> lata | F72: 40 | AR72: d. Seismic retrofit reinforcements | AS72: […] | AT72: […] | AU72: […] | AV72: […] | AW72: […] | AX72: […] | AY72: […] | AZ72: […] | BA72: […] | BC72: years | BD72: lata | BE72: […] | BF72: […] | BG72: […] | BH72: […] | BI72: […] | BJ72: […] | BK72: […] | BL72: […] | BN72: 0
D73: =INDEX($AR73:$BA73,MATCH(General!$F$14,$AR$4:$BA$4,0)) -> e. Green infrastructure (NBS) | E73: =INDEX($BC73:$BL73,MATCH(General!$F$16,$BC$4:$BL$4,0)) -> lata | F73: 20 | AR73: e. Green infrastructure (NBS) | AS73: […] | AT73: […] | AU73: […] | AV73: […] | AW73: […] | AX73: […] | AY73: […] | AZ73: […] | BA73: […] | BC73: years | BD73: lata | BE73: […] | BF73: […] | BG73: […] | BH73: […] | BI73: […] | BJ73: […] | BK73: […] | BL73: […] | BN73: 0
D74: =INDEX($AR74:$BA74,MATCH(General!$F$14,$AR$4:$BA$4,0)) -> f. Other | E74: =INDEX($BC74:$BL74,MATCH(General!$F$16,$BC$4:$BL$4,0)) -> lata | F74: 20 | AR74: f. Other | AS74: […] | AT74: […] | AU74: […] | AV74: […] | AW74: […] | AX74: […] | AY74: […] | AZ74: […] | BA74: […] | BC74: years | BD74: lata | BE74: […] | BF74: […] | BG74: […] | BH74: […] | BI74: […] | BJ74: […] | BK74: […] | BL74: […] | BN74: 0
D75: =INDEX($AR75:$BA75,MATCH(General!$F$14,$AR$4:$BA$4,0)) -> 4. Plant and machinery | AR75: 4. Plant and machinery | AS75: […] | AT75: […] | AU75: […] | AV75: […] | AW75: […] | AX75: […] | AY75: […] | AZ75: […] | BA75: […] | BC75: years | BD75: lata | BE75: […] | BF75: […] | BG75: […] | BH75: […] | BI75: […] | BJ75: […] | BK75: […] | BL75: […]
B76: =IF(BN76<>0,"!","") ->  | D76: =INDEX($AR76:$BA76,MATCH(General!$F$14,$AR$4:$BA$4,0)) -> a. Heating, ventilation, and air conditioning | E76: =INDEX($BC76:$BL76,MATCH(General!$F$16,$BC$4:$BL$4,0)) -> lata | F76: 15 | AR76: a. Heating, ventilation, and air conditioning | AS76: […] | AT76: […] | AU76: […] | AV76: […] | AW76: […] | AX76: […] | AY76: […] | AZ76: […] | BA76: […] | BC76: years | BD76: lata | BE76: […] | BF76: […] | BG76: […] | BH76: […] | BI76: […] | BJ76: […] | BK76: […] | BL76: […] | BN76: =COUNTIFS(F76,"") -> 0
D77: =INDEX($AR77:$BA77,MATCH(General!$F$14,$AR$4:$BA$4,0)) -> b. Solar power plant | E77: =INDEX($BC77:$BL77,MATCH(General!$F$16,$BC$4:$BL$4,0)) -> lata | F77: 20 | AR77: b. Solar power plant | AS77: […] | AT77: […] | AU77: […] | AV77: […] | AW77: […] | AX77: […] | AY77: […] | AZ77: […] | BA77: […] | BC77: years | BD77: lata | BE77: […] | BF77: […] | BG77: […] | BH77: […] | BI77: […] | BJ77: […] | BK77: […] | BL77: […] | BN77: 0
D78: =INDEX($AR78:$BA78,MATCH(General!$F$14,$AR$4:$BA$4,0)) -> c. Battery energy storage system | E78: =INDEX($BC78:$BL78,MATCH(General!$F$16,$BC$4:$BL$4,0)) -> lata | F78: 10 | AR78: c. Battery energy storage system | AS78: […] | AT78: […] | AU78: […] | AV78: […] | AW78: […] | AX78: […] | AY78: […] | AZ78: […] | BA78: […] | BC78: years | BD78: lata | BE78: […] | BF78: […] | BG78: […] | BH78: […] | BI78: […] | BJ78: […] | BK78: […] | BL78: […] | BN78: 0
D79: =INDEX($AR79:$BA79,MATCH(General!$F$14,$AR$4:$BA$4,0)) -> d. Charging equipment | E79: =INDEX($BC79:$BL79,MATCH(General!$F$16,$BC$4:$BL$4,0)) -> lata | F79: 40 | AR79: d. Charging equipment | AS79: […] | AT79: […] | AU79: […] | AV79: […] | AW79: […] | AX79: […] | AY79: […] | AZ79: […] | BA79: […] | BC79: years | BD79: lata | BE79: […] | BF79: […] | BG79: […] | BH79: […] | BI79: […] | BJ79: […] | BK79: […] | BL79: […] | BN79: 0
D80: =INDEX($AR80:$BA80,MATCH(General!$F$14,$AR$4:$BA$4,0)) -> e. IT equipment and sensors | E80: =INDEX($BC80:$BL80,MATCH(General!$F$16,$BC$4:$BL$4,0)) -> lata | F80: 10 | AR80: e. IT equipment and sensors | AS80: […] | AT80: […] | AU80: […] | AV80: […] | AW80: […] | AX80: […] | AY80: […] | AZ80: […] | BA80: […] | BC80: years | BD80: lata | BE80: […] | BF80: […] | BG80: […] | BH80: […] | BI80: […] | BJ80: […] | BK80: […] | BL80: […] | BN80: 0
D81: =INDEX($AR81:$BA81,MATCH(General!$F$14,$AR$4:$BA$4,0)) -> f. Other electric equipment | E81: =INDEX($BC81:$BL81,MATCH(General!$F$16,$BC$4:$BL$4,0)) -> lata | F81: 10 | AR81: f. Other electric equipment | AS81: […] | AT81: […] | AU81: […] | AV81: […] | AW81: […] | AX81: […] | AY81: […] | AZ81: […] | BA81: […] | BC81: years | BD81: lata | BE81: […] | BF81: […] | BG81: […] | BH81: […] | BI81: […] | BJ81: […] | BK81: […] | BL81: […] | BN81: 0
D82: =INDEX($AR82:$BA82,MATCH(General!$F$14,$AR$4:$BA$4,0)) -> g. Indoor lighting | E82: =INDEX($BC82:$BL82,MATCH(General!$F$16,$BC$4:$BL$4,0)) -> lata | F82: 10 | AR82: g. Indoor lighting | AS82: […] | AT82: […] | AU82: […] | AV82: […] | AW82: […] | AX82: […] | AY82: […] | AZ82: […] | BA82: […] | BC82: years | BD82: lata | BE82: […] | BF82: […] | BG82: […] | BH82: […] | BI82: […] | BJ82: […] | BK82: […] | BL82: […] | BN82: 0
B83: ! | D83: =INDEX($AR83:$BA83,MATCH(General!$F$14,$AR$4:$BA$4,0)) -> 5. Contingencies | E83: =INDEX($BC83:$BL83,MATCH(General!$F$16,$BC$4:$BL$4,0)) -> lata | AR83: 5. Contingencies | AS83: […] | AT83: […] | AU83: […] | AV83: […] | AW83: […] | AX83: […] | AY83: […] | AZ83: […] | BA83: […] | BC83: years | BD83: lata | BE83: […] | BF83: […] | BG83: […] | BH83: […] | BI83: […] | BJ83: […] | BK83: […] | BL83: […] | BN83: 1
B84: ! | D84: =INDEX($AR84:$BA84,MATCH(General!$F$14,$AR$4:$BA$4,0)) -> 6. Price adjustment | E84: =INDEX($BC84:$BL84,MATCH(General!$F$16,$BC$4:$BL$4,0)) -> lata | AR84: 6. Price adjustment | AS84: […] | AT84: […] | AU84: […] | AV84: […] | AW84: […] | AX84: […] | AY84: […] | AZ84: […] | BA84: […] | BC84: years | BD84: lata | BE84: […] | BF84: […] | BG84: […] | BH84: […] | BI84: […] | BJ84: […] | BK84: […] | BL84: […] | BN84: 1
B85: ! | D85: =INDEX($AR85:$BA85,MATCH(General!$F$14,$AR$4:$BA$4,0)) -> 7. Publicity | E85: =INDEX($BC85:$BL85,MATCH(General!$F$16,$BC$4:$BL$4,0)) -> lata | AR85: 7. Publicity | AS85: […] | AT85: […] | AU85: […] | AV85: […] | AW85: […] | AX85: […] | AY85: […] | AZ85: […] | BA85: […] | BC85: years | BD85: lata | BE85: […] | BF85: […] | BG85: […] | BH85: […] | BI85: […] | BJ85: […] | BK85: […] | BL85: […] | BN85: 1
B86: ! | D86: =INDEX($AR86:$BA86,MATCH(General!$F$14,$AR$4:$BA$4,0)) -> 8. Supervision during contrusction implementation | E86: =INDEX($BC86:$BL86,MATCH(General!$F$16,$BC$4:$BL$4,0)) -> lata | AR86: 8. Supervision during contrusction implementation | AS86: […] | AT86: […] | AU86: […] | AV86: […] | AW86: […] | AX86: […] | AY86: […] | AZ86: […] | BA86: […] | BC86: years | BD86: lata | BE86: […] | BF86: […] | BG86: […] | BH86: […] | BI86: […] | BJ86: […] | BK86: […] | BL86: […] | BN86: 1
B87: ! | D87: =INDEX($AR87:$BA87,MATCH(General!$F$14,$AR$4:$BA$4,0)) -> 9. Technical assistance | E87: =INDEX($BC87:$BL87,MATCH(General!$F$16,$BC$4:$BL$4,0)) -> lata | AR87: 9. Technical assistance | AS87: […] | AT87: […] | AU87: […] | AV87: […] | AW87: […] | AX87: […] | AY87: […] | AZ87: […] | BA87: […] | BC87: years | BD87: lata | BE87: […] | BF87: […] | BG87: […] | BH87: […] | BI87: […] | BJ87: […] | BK87: […] | BL87: […] | BN87: 1
A89: =INDEX($AR89:$BA89,MATCH(General!$F$14,$AR$4:$BA$4,0)) -> Replacement & decommissioning costs | AR89: Replacement & decommissioning costs | AS89: […] | AT89: […] | AU89: […] | AV89: […] | AW89: […] | AX89: […] | AY89: […] | AZ89: […] | BA89: […]
D91: Replacement & decommissioning costs | E91: =Config!$I$141 -> Unit | F91: Sum | G91: =Config!I$1 -> 2026 | H91: =Config!J$1 -> 2027 | I91: =Config!K$1 -> 2028 | J91: =Config!L$1 -> 2029 | K91: =Config!M$1 -> 2030 | L91: =Config!N$1 -> 2031 | M91: =Config!O$1 -> 2032 | N91: =Config!P$1 -> 2033 | O91: =Config!Q$1 -> 2034 | P91: =Config!R$1 -> 2035 | Q91: =Config!S$1 -> 2036 | R91: =Config!T$1 -> 2037 | S91: =Config!U$1 -> 2038 | T91: =Config!V$1 -> 2039 | U91: =Config!W$1 -> 2040 | V91: =Config!X$1 -> 2041 | W91: =Config!Y$1 -> 2042 | X91: =Config!Z$1 -> 2043 | Y91: =Config!AA$1 -> 2044 | Z91: =Config!AB$1 -> 2045 | AA91: =Config!AC$1 ->  | AB91: =Config!AD$1 ->  | AC91: =Config!AE$1 ->  | AD91: =Config!AF$1 ->  | AE91: =Config!AG$1 ->  | AF91: =Config!AH$1 ->  | AG91: =Config!AI$1 ->  | AH91: =Config!AJ$1 ->  | AI91: =Config!AK$1 ->  | AJ91: =Config!AL$1 ->  | AK91: =Config!AM$1 ->  | AL91: =Config!AN$1 ->  | AM91: =Config!AO$1 ->  | AN91: =Config!AP$1 ->  | AO91: =Config!AQ$1 ->  | AP91: =Config!AR$1 -> 
G92: =Config!I$2 -> Construction | H92: =Config!J$2 -> Construction | I92: =Config!K$2 -> Operation | J92: =Config!L$2 -> Operation | K92: =Config!M$2 -> Operation | L92: =Config!N$2 -> Operation | M92: =Config!O$2 -> Operation | N92: =Config!P$2 -> Operation | O92: =Config!Q$2 -> Operation | P92: =Config!R$2 -> Operation | Q92: =Config!S$2 -> Operation | R92: =Config!T$2 -> Operation | S92: =Config!U$2 -> Operation | T92: =Config!V$2 -> Operation | U92: =Config!W$2 -> Operation | V92: =Config!X$2 -> Operation | W92: =Config!Y$2 -> Operation | X92: =Config!Z$2 -> Operation | Y92: =Config!AA$2 -> Operation | Z92: =Config!AB$2 -> Operation | AA92: =Config!AC$2 ->  | AB92: =Config!AD$2 ->  | AC92: =Config!AE$2 ->  | AD92: =Config!AF$2 ->  | AE92: =Config!AG$2 ->  | AF92: =Config!AH$2 ->  | AG92: =Config!AI$2 ->  | AH92: =Config!AJ$2 ->  | AI92: =Config!AK$2 ->  | AJ92: =Config!AL$2 ->  | AK92: =Config!AM$2 ->  | AL92: =Config!AN$2 ->  | AM92: =Config!AO$2 ->  | AN92: =Config!AP$2 ->  | AO92: =Config!AQ$2 ->  | AP92: =Config!AR$2 -> 
B93: =IF(BN93<>0,"!","") -> ! | D93: […] | E93: =INDEX($BC93:$BL93,MATCH(General!$F$16,$BC$4:$BL$4,0)) -> PLN | F93: =SUM(G93:AP93) -> 0 | BC93: EUR | BD93: PLN | BE93: […] | BF93: […] | BG93: […] | BH93: […] | BI93: […] | BJ93: […] | BK93: […] | BL93: […] | BN93: =COUNTIFS($G93:$AP93,"",$G$91:$AP$91,"<="&Config!$F$12) -> 20
B94: ! | D94: […] | E94: =INDEX($BC94:$BL94,MATCH(General!$F$16,$BC$4:$BL$4,0)) -> PLN | F94: 0 | BC94: EUR | BD94: PLN | BE94: […] | BF94: […] | BG94: […] | BH94: […] | BI94: […] | BJ94: […] | BK94: […] | BL94: […] | BN94: =COUNTIFS($G94:$AP94,"",$G$91:$AP$91,"<="&Config!$F$12) -> 20
B95: ! | D95: […] | E95: =INDEX($BC95:$BL95,MATCH(General!$F$16,$BC$4:$BL$4,0)) -> PLN | F95: 0 | BC95: EUR | BD95: PLN | BE95: […] | BF95: […] | BG95: […] | BH95: […] | BI95: […] | BJ95: […] | BK95: […] | BL95: […] | BN95: =COUNTIFS($G95:$AP95,"",$G$91:$AP$91,"<="&Config!$F$12) -> 20
B96: ! | D96: […] | E96: =INDEX($BC96:$BL96,MATCH(General!$F$16,$BC$4:$BL$4,0)) -> PLN | F96: 0 | BC96: EUR | BD96: PLN | BE96: […] | BF96: […] | BG96: […] | BH96: […] | BI96: […] | BJ96: […] | BK96: […] | BL96: […] | BN96: =COUNTIFS($G96:$AP96,"",$G$91:$AP$91,"<="&Config!$F$12) -> 20
B97: ! | D97: […] | E97: =INDEX($BC97:$BL97,MATCH(General!$F$16,$BC$4:$BL$4,0)) -> PLN | F97: 0 | BC97: EUR | BD97: PLN | BE97: […] | BF97: […] | BG97: […] | BH97: […] | BI97: […] | BJ97: […] | BK97: […] | BL97: […] | BN97: =COUNTIFS($G97:$AP97,"",$G$91:$AP$91,"<="&Config!$F$12) -> 20
D98: =INDEX($AR98:$BA98,MATCH(General!$F$14,$AR$4:$BA$4,0)) -> Total cost | E98: =INDEX($BC98:$BL98,MATCH(General!$F$16,$BC$4:$BL$4,0)) -> PLN | F98: 0 | G98: =SUM(G93:G97) -> 0 | H98: =SUM(H93:H97) -> 0 | I98: 0 | J98: 0 | K98: 0 | L98: 0 | M98: 0 | N98: 0 | O98: 0 | P98: 0 | Q98: 0 | R98: 0 | S98: 0 | T98: 0 | U98: 0 | V98: 0 | W98: 0 | X98: 0 | Y98: 0 | Z98: 0 | AA98: 0 | AB98: 0 | AC98: 0 | AD98: 0 | AE98: 0 | AF98: 0 | AG98: 0 | AH98: 0 | AI98: 0 | AJ98: 0 | AK98: 0 | AL98: 0 | AM98: 0 | AN98: 0 | AO98: 0 | AP98: 0 | AR98: Total cost | AS98: […] | AT98: […] | AU98: […] | AV98: […] | AW98: […] | AX98: […] | AY98: […] | AZ98: […] | BA98: […] | BC98: EUR | BD98: PLN | BE98: […] | BF98: […] | BG98: […] | BH98: […] | BI98: […] | BJ98: […] | BK98: […] | BL98: […]
B99: =IF(BN99<>0,"!","") -> ! | D99: =INDEX($AR99:$BA99,MATCH(General!$F$14,$AR$4:$BA$4,0)) -> VAT expense | E99: =INDEX($BC99:$BL99,MATCH(General!$F$16,$BC$4:$BL$4,0)) -> PLN | F99: 0 | AR99: VAT expense | AS99: […] | AT99: […] | AU99: […] | AV99: […] | AW99: […] | AX99: […] | AY99: […] | AZ99: […] | BA99: […] | BC99: EUR | BD99: PLN | BE99: […] | BF99: […] | BG99: […] | BH99: […] | BI99: […] | BJ99: […] | BK99: […] | BL99: […] | BN99: =COUNTIFS($G99:$AP99,"",$G$91:$AP$91,"<="&Config!$F$12) -> 20
D100: =INDEX($AR100:$BA100,MATCH(General!$F$14,$AR$4:$BA$4,0)) -> Total (incl. VAT) | E100: =INDEX($BC100:$BL100,MATCH(General!$F$16,$BC$4:$BL$4,0)) -> PLN | F100: 0 | G100: =SUM(G98:G99) -> 0 | H100: =SUM(H98:H99) -> 0 | I100: =SUM(I98:I99) -> 0 | J100: =SUM(J98:J99) -> 0 | K100: =SUM(K98:K99) -> 0 | L100: =SUM(L98:L99) -> 0 | M100: =SUM(M98:M99) -> 0 | N100: =SUM(N98:N99) -> 0 | O100: =SUM(O98:O99) -> 0 | P100: =SUM(P98:P99) -> 0 | Q100: =SUM(Q98:Q99) -> 0 | R100: =SUM(R98:R99) -> 0 | S100: =SUM(S98:S99) -> 0 | T100: =SUM(T98:T99) -> 0 | U100: =SUM(U98:U99) -> 0 | V100: =SUM(V98:V99) -> 0 | W100: =SUM(W98:W99) -> 0 | X100: =SUM(X98:X99) -> 0 | Y100: =SUM(Y98:Y99) -> 0 | Z100: =SUM(Z98:Z99) -> 0 | AA100: =SUM(AA98:AA99) -> 0 | AB100: =SUM(AB98:AB99) -> 0 | AC100: =SUM(AC98:AC99) -> 0 | AD100: =SUM(AD98:AD99) -> 0 | AE100: =SUM(AE98:AE99) -> 0 | AF100: =SUM(AF98:AF99) -> 0 | AG100: =SUM(AG98:AG99) -> 0 | AH100: =SUM(AH98:AH99) -> 0 | AI100: =SUM(AI98:AI99) -> 0 | AJ100: =SUM(AJ98:AJ99) -> 0 | AK100: =SUM(AK98:AK99) -> 0 | AL100: =SUM(AL98:AL99) -> 0 | AM100: =SUM(AM98:AM99) -> 0 | AN100: =SUM(AN98:AN99) -> 0 | AO100: =SUM(AO98:AO99) -> 0 | AP100: =SUM(AP98:AP99) -> 0 | AR100: Total (incl. VAT) | AS100: […] | AT100: […] | AU100: […] | AV100: […] | AW100: […] | AX100: […] | AY100: […] | AZ100: […] | BA100: […] | BC100: EUR | BD100: PLN | BE100: […] | BF100: […] | BG100: […] | BH100: […] | BI100: […] | BJ100: […] | BK100: […] | BL100: […]

Sheet Reve
A1: =Config!$I$130 -> REVENUES | BN1: Check
A2: =General!$D$8&" "&General!$F$8 -> Name of the project beneficiary:
A3: =General!$D$10&" "&General!$F$10 -> Name of the investment project: | AR3: =Config!AT$1 -> Language | BC3: =Config!BE$1 -> Currency / Units
A4: =IF(SUM(BN6:BN46)<>0,Config!$I$152,"") -> All input cells should be filled in with assumptions | AR4: =Config!AT$2 -> English | AS4: =Config!AU$2 -> Polish | AT4: =Config!AV$2 -> […] | AU4: =Config!AW$2 -> […] | AV4: =Config!AX$2 -> […] | AW4: =Config!AY$2 -> […] | AX4: =Config!AZ$2 -> […] | AY4: =Config!BA$2 -> […] | AZ4: =Config!BB$2 -> […] | BA4: =Config!BC$2 -> […] | BC4: =Config!BE$2 -> EUR | BD4: =Config!BF$2 -> PLN | BE4: =Config!BG$2 -> […] | BF4: =Config!BH$2 -> […] | BG4: =Config!BI$2 -> […] | BH4: =Config!BJ$2 -> […] | BI4: =Config!BK$2 -> […] | BJ4: =Config!BL$2 -> […] | BK4: =Config!BM$2 -> […] | BL4: =Config!BN$2 -> […]
A6: =INDEX($AR6:$BA6,MATCH(General!$F$14,$AR$4:$BA$4,0)) -> Revenues / savings | AR6: Revenues / savings | AS6: […] | AT6: […] | AU6: […] | AV6: […] | AW6: […] | AX6: […] | AY6: […] | AZ6: […] | BA6: […]
D8: =INDEX($AR8:$BA8,MATCH(General!$F$14,$AR$4:$BA$4,0)) -> Energy sold to grid / consumer | E8: =Config!$I$141 -> Unit | F8: Sum | G8: =Config!I$1 -> 2026 | H8: =Config!J$1 -> 2027 | I8: =Config!K$1 -> 2028 | J8: =Config!L$1 -> 2029 | K8: =Config!M$1 -> 2030 | L8: =Config!N$1 -> 2031 | M8: =Config!O$1 -> 2032 | N8: =Config!P$1 -> 2033 | O8: =Config!Q$1 -> 2034 | P8: =Config!R$1 -> 2035 | Q8: =Config!S$1 -> 2036 | R8: =Config!T$1 -> 2037 | S8: =Config!U$1 -> 2038 | T8: =Config!V$1 -> 2039 | U8: =Config!W$1 -> 2040 | V8: =Config!X$1 -> 2041 | W8: =Config!Y$1 -> 2042 | X8: =Config!Z$1 -> 2043 | Y8: =Config!AA$1 -> 2044 | Z8: =Config!AB$1 -> 2045 | AA8: =Config!AC$1 ->  | AB8: =Config!AD$1 ->  | AC8: =Config!AE$1 ->  | AD8: =Config!AF$1 ->  | AE8: =Config!AG$1 ->  | AF8: =Config!AH$1 ->  | AG8: =Config!AI$1 ->  | AH8: =Config!AJ$1 ->  | AI8: =Config!AK$1 ->  | AJ8: =Config!AL$1 ->  | AK8: =Config!AM$1 ->  | AL8: =Config!AN$1 ->  | AM8: =Config!AO$1 ->  | AN8: =Config!AP$1 ->  | AO8: =Config!AQ$1 ->  | AP8: =Config!AR$1 ->  | AR8: Energy sold to grid / consumer | AS8: […] | AT8: […] | AU8: […] | AV8: […] | AW8: […] | AX8: […] | AY8: […] | AZ8: […] | BA8: […]
G9: =Config!I$2 -> Construction | H9: =Config!J$2 -> Construction | I9: =Config!K$2 -> Operation | J9: =Config!L$2 -> Operation | K9: =Config!M$2 -> Operation | L9: =Config!N$2 -> Operation | M9: =Config!O$2 -> Operation | N9: =Config!P$2 -> Operation | O9: =Config!Q$2 -> Operation | P9: =Config!R$2 -> Operation | Q9: =Config!S$2 -> Operation | R9: =Config!T$2 -> Operation | S9: =Config!U$2 -> Operation | T9: =Config!V$2 -> Operation | U9: =Config!W$2 -> Operation | V9: =Config!X$2 -> Operation | W9: =Config!Y$2 -> Operation | X9: =Config!Z$2 -> Operation | Y9: =Config!AA$2 -> Operation | Z9: =Config!AB$2 -> Operation | AA9: =Config!AC$2 ->  | AB9: =Config!AD$2 ->  | AC9: =Config!AE$2 ->  | AD9: =Config!AF$2 ->  | AE9: =Config!AG$2 ->  | AF9: =Config!AH$2 ->  | AG9: =Config!AI$2 ->  | AH9: =Config!AJ$2 ->  | AI9: =Config!AK$2 ->  | AJ9: =Config!AL$2 ->  | AK9: =Config!AM$2 ->  | AL9: =Config!AN$2 ->  | AM9: =Config!AO$2 ->  | AN9: =Config!AP$2 ->  | AO9: =Config!AQ$2 ->  | AP9: =Config!AR$2 -> 
B10: =IF(BN10<>0,"!","") ->  | D10: =INDEX($AR10:$BA10,MATCH(General!$F$14,$AR$4:$BA$4,0)) -> Quantity | E10: =INDEX($BC10:$BL10,MATCH(General!$F$16,$BC$4:$BL$4,0)) -> kWh | F10: =SUM(G10:AP10) -> 0.19 | G10: 0 | H10: 0.01 | I10: 0.01 | J10: 0.01 | K10: 0.01 | L10: 0.01 | M10: 0.01 | N10: 0.01 | O10: 0.01 | P10: 0.01 | Q10: 0.01 | R10: 0.01 | S10: 0.01 | T10: 0.01 | U10: 0.01 | V10: 0.01 | W10: 0.01 | X10: 0.01 | Y10: 0.01 | Z10: 0.01 | AR10: Quantity | AS10: […] | AT10: […] | AU10: […] | AV10: […] | AW10: […] | AX10: […] | AY10: […] | AZ10: […] | BA10: […] | BC10: kWh | BD10: kWh | BE10: […] | BF10: […] | BG10: […] | BH10: […] | BI10: […] | BJ10: […] | BK10: […] | BL10: […] | BN10: =COUNTIFS($G10:$AP10,"",$G$8:$AP$8,"<="&Config!$F$12) -> 0
B11: =IF(BN11<>0,"!","") -> ! | D11: =INDEX($AR11:$BA11,MATCH(General!$F$14,$AR$4:$BA$4,0)) -> Price without taxes and subsidies | E11: =INDEX($BC11:$BL11,MATCH(General!$F$16,$BC$4:$BL$4,0)) -> PLN / kWh | H11: 0.139485215 | I11: 0.139485215 | J11: 0.139485215 | K11: 0.139485215 | L11: 0.139485215 | M11: 0.139485215 | N11: 0.139485215 | O11: 0.139485215 | P11: 0.139485215 | Q11: 0.139485215 | R11: 0.139485215 | S11: 0.139485215 | T11: 0.139485215 | U11: 0.139485215 | V11: 0.139485215 | W11: 0.139485215 | X11: 0.139485215 | Y11: 0.139485215 | Z11: 0.139485215 | AR11: Price without taxes and subsidies | AS11: […] | AT11: […] | AU11: […] | AV11: […] | AW11: […] | AX11: […] | AY11: […] | AZ11: […] | BA11: […] | BC11: EUR / kWh | BD11: PLN / kWh | BE11: […] | BF11: […] | BG11: […] | BH11: […] | BI11: […] | BJ11: […] | BK11: […] | BL11: […] | BN11: =COUNTIFS($G11:$AP11,"",$G$8:$AP$8,"<="&Config!$F$12) -> 1
D12: =INDEX($AR12:$BA12,MATCH(General!$F$14,$AR$4:$BA$4,0)) -> Price with taxes and subsidies | E12: =INDEX($BC12:$BL12,MATCH(General!$F$16,$BC$4:$BL$4,0)) -> PLN / kWh | G12: =SUM(G11,G13:G14) -> 0 | H12: 0.1576182929 | I12: 0.1576182929 | J12: 0.1576182929 | K12: 0.1576182929 | L12: 0.1576182929 | M12: 0.1576182929 | N12: 0.1576182929 | O12: 0.1576182929 | P12: 0.1576182929 | Q12: 0.1576182929 | R12: 0.1576182929 | S12: 0.1576182929 | T12: 0.1576182929 | U12: 0.1576182929 | V12: 0.1576182929 | W12: 0.1576182929 | X12: 0.1576182929 | Y12: 0.1576182929 | Z12: 0.1576182929 | AA12: 0 | AB12: 0 | AC12: 0 | AD12: 0 | AE12: 0 | AF12: 0 | AG12: 0 | AH12: 0 | AI12: 0 | AJ12: 0 | AK12: 0 | AL12: 0 | AM12: 0 | AN12: 0 | AO12: 0 | AP12: 0 | AR12: Price with taxes and subsidies | AS12: […] | AT12: […] | AU12: […] | AV12: […] | AW12: […] | AX12: […] | AY12: […] | AZ12: […] | BA12: […] | BC12: EUR / kWh | BD12: PLN / kWh | BE12: […] | BF12: […] | BG12: […] | BH12: […] | BI12: […] | BJ12: […] | BK12: […] | BL12: […]
B13: =IF(BN13<>0,"!","") -> ! | D13: =INDEX($AR13:$BA13,MATCH(General!$F$14,$AR$4:$BA$4,0)) -> VAT / special taxes | E13: =INDEX($BC13:$BL13,MATCH(General!$F$16,$BC$4:$BL$4,0)) -> PLN / kWh | H13: 0.01813307795 | I13: 0.01813307795 | J13: 0.01813307795 | K13: 0.01813307795 | L13: 0.01813307795 | M13: 0.01813307795 | N13: 0.01813307795 | O13: 0.01813307795 | P13: 0.01813307795 | Q13: 0.01813307795 | R13: 0.01813307795 | S13: 0.01813307795 | T13: 0.01813307795 | U13: 0.01813307795 | V13: 0.01813307795 | W13: 0.01813307795 | X13: 0.01813307795 | Y13: 0.01813307795 | Z13: 0.01813307795 | AR13: VAT / special taxes | AS13: […] | AT13: […] | AU13: […] | AV13: […] | AW13: […] | AX13: […] | AY13: […] | AZ13: […] | BA13: […] | BC13: EUR / kWh | BD13: PLN / kWh | BE13: […] | BF13: […] | BG13: […] | BH13: […] | BI13: […] | BJ13: […] | BK13: […] | BL13: […] | BN13: =COUNTIFS($G13:$AP13,"",$G$8:$AP$8,"<="&Config!$F$12) -> 1
B14: ! | D14: =INDEX($AR14:$BA14,MATCH(General!$F$14,$AR$4:$BA$4,0)) -> Subsidies | E14: =INDEX($BC14:$BL14,MATCH(General!$F$16,$BC$4:$BL$4,0)) -> PLN / kWh | AR14: Subsidies | AS14: […] | AT14: […] | AU14: […] | AV14: […] | AW14: […] | AX14: […] | AY14: […] | AZ14: […] | BA14: […] | BC14: EUR / kWh | BD14: PLN / kWh | BE14: […] | BF14: […] | BG14: […] | BH14: […] | BI14: […] | BJ14: […] | BK14: […] | BL14: […] | BN14: =COUNTIFS($G14:$AP14,"",$G$8:$AP$8,"<="&Config!$F$12) -> 20
D16: =INDEX($AR16:$BA16,MATCH(General!$F$14,$AR$4:$BA$4,0)) -> Energy produced for own needs | E16: =Config!$I$141 -> Unit | F16: Sum | G16: =Config!I$1 -> 2026 | H16: =Config!J$1 -> 2027 | I16: =Config!K$1 -> 2028 | J16: =Config!L$1 -> 2029 | K16: =Config!M$1 -> 2030 | L16: =Config!N$1 -> 2031 | M16: =Config!O$1 -> 2032 | N16: =Config!P$1 -> 2033 | O16: =Config!Q$1 -> 2034 | P16: =Config!R$1 -> 2035 | Q16: =Config!S$1 -> 2036 | R16: =Config!T$1 -> 2037 | S16: =Config!U$1 -> 2038 | T16: =Config!V$1 -> 2039 | U16: =Config!W$1 -> 2040 | V16: =Config!X$1 -> 2041 | W16: =Config!Y$1 -> 2042 | X16: =Config!Z$1 -> 2043 | Y16: =Config!AA$1 -> 2044 | Z16: =Config!AB$1 -> 2045 | AA16: =Config!AC$1 ->  | AB16: =Config!AD$1 ->  | AC16: =Config!AE$1 ->  | AD16: =Config!AF$1 ->  | AE16: =Config!AG$1 ->  | AF16: =Config!AH$1 ->  | AG16: =Config!AI$1 ->  | AH16: =Config!AJ$1 ->  | AI16: =Config!AK$1 ->  | AJ16: =Config!AL$1 ->  | AK16: =Config!AM$1 ->  | AL16: =Config!AN$1 ->  | AM16: =Config!AO$1 ->  | AN16: =Config!AP$1 ->  | AO16: =Config!AQ$1 ->  | AP16: =Config!AR$1 ->  | AR16: Energy produced for own needs | AS16: […] | AT16: […] | AU16: […] | AV16: […] | AW16: […] | AX16: […] | AY16: […] | AZ16: […] | BA16: […]
G17: =Config!I$2 -> Construction | H17: =Config!J$2 -> Construction | I17: =Config!K$2 -> Operation | J17: =Config!L$2 -> Operation | K17: =Config!M$2 -> Operation | L17: =Config!N$2 -> Operation | M17: =Config!O$2 -> Operation | N17: =Config!P$2 -> Operation | O17: =Config!Q$2 -> Operation | P17: =Config!R$2 -> Operation | Q17: =Config!S$2 -> Operation | R17: =Config!T$2 -> Operation | S17: =Config!U$2 -> Operation | T17: =Config!V$2 -> Operation | U17: =Config!W$2 -> Operation | V17: =Config!X$2 -> Operation | W17: =Config!Y$2 -> Operation | X17: =Config!Z$2 -> Operation | Y17: =Config!AA$2 -> Operation | Z17: =Config!AB$2 -> Operation | AA17: =Config!AC$2 ->  | AB17: =Config!AD$2 ->  | AC17: =Config!AE$2 ->  | AD17: =Config!AF$2 ->  | AE17: =Config!AG$2 ->  | AF17: =Config!AH$2 ->  | AG17: =Config!AI$2 ->  | AH17: =Config!AJ$2 ->  | AI17: =Config!AK$2 ->  | AJ17: =Config!AL$2 ->  | AK17: =Config!AM$2 ->  | AL17: =Config!AN$2 ->  | AM17: =Config!AO$2 ->  | AN17: =Config!AP$2 ->  | AO17: =Config!AQ$2 ->  | AP17: =Config!AR$2 -> 
B18: =IF(BN18<>0,"!","") -> ! | D18: =INDEX($AR18:$BA18,MATCH(General!$F$14,$AR$4:$BA$4,0)) -> Quantity | E18: =INDEX($BC18:$BL18,MATCH(General!$F$16,$BC$4:$BL$4,0)) -> kWh | F18: =SUM(G18:AP18) -> 3097779 | H18: 163041 | I18: 163041 | J18: 163041 | K18: 163041 | L18: 163041 | M18: 163041 | N18: 163041 | O18: 163041 | P18: 163041 | Q18: 163041 | R18: 163041 | S18: 163041 | T18: 163041 | U18: 163041 | V18: 163041 | W18: 163041 | X18: 163041 | Y18: 163041 | Z18: 163041 | AR18: Quantity | AS18: […] | AT18: […] | AU18: […] | AV18: […] | AW18: […] | AX18: […] | AY18: […] | AZ18: […] | BA18: […] | BC18: kWh | BD18: kWh | BE18: […] | BF18: […] | BG18: […] | BH18: […] | BI18: […] | BJ18: […] | BK18: […] | BL18: […] | BN18: =COUNTIFS($G18:$AP18,"",$G$16:$AP$16,"<="&Config!$F$12) -> 1
B19: =IF(BN19<>0,"!","") -> ! | D19: =INDEX($AR19:$BA19,MATCH(General!$F$14,$AR$4:$BA$4,0)) -> Price without taxes and subsidies | E19: =INDEX($BC19:$BL19,MATCH(General!$F$16,$BC$4:$BL$4,0)) -> PLN / kWh | H19: =H11 -> 0.139485215 | I19: =I11 -> 0.139485215 | J19: 0.139485215 | K19: 0.139485215 | L19: 0.139485215 | M19: 0.139485215 | N19: 0.139485215 | O19: 0.139485215 | P19: 0.139485215 | Q19: 0.139485215 | R19: 0.139485215 | S19: 0.139485215 | T19: 0.139485215 | U19: 0.139485215 | V19: 0.139485215 | W19: 0.139485215 | X19: 0.139485215 | Y19: 0.139485215 | Z19: 0.139485215 | AR19: Price without taxes and subsidies | AS19: […] | AT19: […] | AU19: […] | AV19: […] | AW19: […] | AX19: […] | AY19: […] | AZ19: […] | BA19: […] | BC19: EUR / kWh | BD19: PLN / kWh | BE19: […] | BF19: […] | BG19: […] | BH19: […] | BI19: […] | BJ19: […] | BK19: […] | BL19: […] | BN19: =COUNTIFS($G19:$AP19,"",$G$16:$AP$16,"<="&Config!$F$12) -> 1
D20: =INDEX($AR20:$BA20,MATCH(General!$F$14,$AR$4:$BA$4,0)) -> Price with taxes and subsidies | E20: =INDEX($BC20:$BL20,MATCH(General!$F$16,$BC$4:$BL$4,0)) -> PLN / kWh | G20: =SUM(G19,G21:G22) -> 0 | H20: 0.1576182929 | I20: 0.1576182929 | J20: 0.1576182929 | K20: 0.1576182929 | L20: 0.1576182929 | M20: 0.1576182929 | N20: 0.1576182929 | O20: 0.1576182929 | P20: 0.1576182929 | Q20: 0.1576182929 | R20: 0.1576182929 | S20: 0.1576182929 | T20: 0.1576182929 | U20: 0.1576182929 | V20: 0.1576182929 | W20: 0.1576182929 | X20: 0.1576182929 | Y20: 0.1576182929 | Z20: 0.1576182929 | AA20: 0 | AB20: 0 | AC20: 0 | AD20: 0 | AE20: 0 | AF20: 0 | AG20: 0 | AH20: 0 | AI20: 0 | AJ20: 0 | AK20: 0 | AL20: 0 | AM20: 0 | AN20: 0 | AO20: 0 | AP20: 0 | AR20: Price with taxes and subsidies | AS20: […] | AT20: […] | AU20: […] | AV20: […] | AW20: […] | AX20: […] | AY20: […] | AZ20: […] | BA20: […] | BC20: EUR / kWh | BD20: PLN / kWh | BE20: […] | BF20: […] | BG20: […] | BH20: […] | BI20: […] | BJ20: […] | BK20: […] | BL20: […]
B21: =IF(BN21<>0,"!","") -> ! | D21: =INDEX($AR21:$BA21,MATCH(General!$F$14,$AR$4:$BA$4,0)) -> VAT / special taxes | E21: =INDEX($BC21:$BL21,MATCH(General!$F$16,$BC$4:$BL$4,0)) -> PLN / kWh | H21: =H13 -> 0.01813307795 | I21: =I13 -> 0.01813307795 | J21: 0.01813307795 | K21: 0.01813307795 | L21: 0.01813307795 | M21: 0.01813307795 | N21: 0.01813307795 | O21: 0.01813307795 | P21: 0.01813307795 | Q21: 0.01813307795 | R21: 0.01813307795 | S21: 0.01813307795 | T21: 0.01813307795 | U21: 0.01813307795 | V21: 0.01813307795 | W21: 0.01813307795 | X21: 0.01813307795 | Y21: 0.01813307795 | Z21: 0.01813307795 | AR21: VAT / special taxes | AS21: […] | AT21: […] | AU21: […] | AV21: […] | AW21: […] | AX21: […] | AY21: […] | AZ21: […] | BA21: […] | BC21: EUR / kWh | BD21: PLN / kWh | BE21: […] | BF21: […] | BG21: […] | BH21: […] | BI21: […] | BJ21: […] | BK21: […] | BL21: […] | BN21: =COUNTIFS($G21:$AP21,"",$G$16:$AP$16,"<="&Config!$F$12) -> 1
B22: ! | D22: =INDEX($AR22:$BA22,MATCH(General!$F$14,$AR$4:$BA$4,0)) -> Subsidies | E22: =INDEX($BC22:$BL22,MATCH(General!$F$16,$BC$4:$BL$4,0)) -> PLN / kWh | AR22: Subsidies | AS22: […] | AT22: […] | AU22: […] | AV22: […] | AW22: […] | AX22: […] | AY22: […] | AZ22: […] | BA22: […] | BC22: EUR / kWh | BD22: PLN / kWh | BE22: […] | BF22: […] | BG22: […] | BH22: […] | BI22: […] | BJ22: […] | BK22: […] | BL22: […] | BN22: =COUNTIFS($G22:$AP22,"",$G$16:$AP$16,"<="&Config!$F$12) -> 20
D24: =INDEX($AR24:$BA24,MATCH(General!$F$14,$AR$4:$BA$4,0)) -> Operation and maintance fee (O&M) | E24: =Config!$I$141 -> Unit | F24: Sum | G24: =Config!I$1 -> 2026 | H24: =Config!J$1 -> 2027 | I24: =Config!K$1 -> 2028 | J24: =Config!L$1 -> 2029 | K24: =Config!M$1 -> 2030 | L24: =Config!N$1 -> 2031 | M24: =Config!O$1 -> 2032 | N24: =Config!P$1 -> 2033 | O24: =Config!Q$1 -> 2034 | P24: =Config!R$1 -> 2035 | Q24: =Config!S$1 -> 2036 | R24: =Config!T$1 -> 2037 | S24: =Config!U$1 -> 2038 | T24: =Config!V$1 -> 2039 | U24: =Config!W$1 -> 2040 | V24: =Config!X$1 -> 2041 | W24: =Config!Y$1 -> 2042 | X24: =Config!Z$1 -> 2043 | Y24: =Config!AA$1 -> 2044 | Z24: =Config!AB$1 -> 2045 | AA24: =Config!AC$1 ->  | AB24: =Config!AD$1 ->  | AC24: =Config!AE$1 ->  | AD24: =Config!AF$1 ->  | AE24: =Config!AG$1 ->  | AF24: =Config!AH$1 ->  | AG24: =Config!AI$1 ->  | AH24: =Config!AJ$1 ->  | AI24: =Config!AK$1 ->  | AJ24: =Config!AL$1 ->  | AK24: =Config!AM$1 ->  | AL24: =Config!AN$1 ->  | AM24: =Config!AO$1 ->  | AN24: =Config!AP$1 ->  | AO24: =Config!AQ$1 ->  | AP24: =Config!AR$1 ->  | AR24: Operation and maintance fee (O&M) | AS24: […] | AT24: […] | AU24: […] | AV24: […] | AW24: […] | AX24: […] | AY24: […] | AZ24: […] | BA24: […]
G25: =Config!I$2 -> Construction | H25: =Config!J$2 -> Construction | I25: =Config!K$2 -> Operation | J25: =Config!L$2 -> Operation | K25: =Config!M$2 -> Operation | L25: =Config!N$2 -> Operation | M25: =Config!O$2 -> Operation | N25: =Config!P$2 -> Operation | O25: =Config!Q$2 -> Operation | P25: =Config!R$2 -> Operation | Q25: =Config!S$2 -> Operation | R25: =Config!T$2 -> Operation | S25: =Config!U$2 -> Operation | T25: =Config!V$2 -> Operation | U25: =Config!W$2 -> Operation | V25: =Config!X$2 -> Operation | W25: =Config!Y$2 -> Operation | X25: =Config!Z$2 -> Operation | Y25: =Config!AA$2 -> Operation | Z25: =Config!AB$2 -> Operation | AA25: =Config!AC$2 ->  | AB25: =Config!AD$2 ->  | AC25: =Config!AE$2 ->  | AD25: =Config!AF$2 ->  | AE25: =Config!AG$2 ->  | AF25: =Config!AH$2 ->  | AG25: =Config!AI$2 ->  | AH25: =Config!AJ$2 ->  | AI25: =Config!AK$2 ->  | AJ25: =Config!AL$2 ->  | AK25: =Config!AM$2 ->  | AL25: =Config!AN$2 ->  | AM25: =Config!AO$2 ->  | AN25: =Config!AP$2 ->  | AO25: =Config!AQ$2 ->  | AP25: =Config!AR$2 -> 
B26: =IF(BN26<>0,"!","") -> ! | D26: […] | E26: =INDEX($BC26:$BL26,MATCH(General!$F$16,$BC$4:$BL$4,0)) -> PLN | F26: =SUM(G26:AP26) -> 0 | BC26: EUR | BD26: PLN | BE26: […] | BF26: […] | BG26: […] | BH26: […] | BI26: […] | BJ26: […] | BK26: […] | BL26: […] | BN26: =COUNTIFS($G26:$AP26,"",$G$24:$AP$24,"<="&Config!$F$12) -> 20
B27: ! | D27: […] | E27: =INDEX($BC27:$BL27,MATCH(General!$F$16,$BC$4:$BL$4,0)) -> PLN | F27: 0 | BC27: EUR | BD27: PLN | BE27: […] | BF27: […] | BG27: […] | BH27: […] | BI27: […] | BJ27: […] | BK27: […] | BL27: […] | BN27: =COUNTIFS($G27:$AP27,"",$G$24:$AP$24,"<="&Config!$F$12) -> 20
B28: ! | D28: […] | E28: =INDEX($BC28:$BL28,MATCH(General!$F$16,$BC$4:$BL$4,0)) -> PLN | F28: 0 | BC28: EUR | BD28: PLN | BE28: […] | BF28: […] | BG28: […] | BH28: […] | BI28: […] | BJ28: […] | BK28: […] | BL28: […] | BN28: =COUNTIFS($G28:$AP28,"",$G$24:$AP$24,"<="&Config!$F$12) -> 20
B29: ! | D29: […] | E29: =INDEX($BC29:$BL29,MATCH(General!$F$16,$BC$4:$BL$4,0)) -> PLN | F29: 0 | BC29: EUR | BD29: PLN | BE29: […] | BF29: […] | BG29: […] | BH29: […] | BI29: […] | BJ29: […] | BK29: […] | BL29: […] | BN29: =COUNTIFS($G29:$AP29,"",$G$24:$AP$24,"<="&Config!$F$12) -> 20
B30: ! | D30: […] | E30: =INDEX($BC30:$BL30,MATCH(General!$F$16,$BC$4:$BL$4,0)) -> PLN | F30: 0 | BC30: EUR | BD30: PLN | BE30: […] | BF30: […] | BG30: […] | BH30: […] | BI30: […] | BJ30: […] | BK30: […] | BL30: […] | BN30: =COUNTIFS($G30:$AP30,"",$G$24:$AP$24,"<="&Config!$F$12) -> 20
D31: =INDEX($AR31:$BA31,MATCH(General!$F$14,$AR$4:$BA$4,0)) -> Total revenues | E31: =INDEX($BC31:$BL31,MATCH(General!$F$16,$BC$4:$BL$4,0)) -> PLN | F31: 0 | G31: =SUM(G26:G30) -> 0 | H31: =SUM(H26:H30) -> 0 | I31: 0 | J31: 0 | K31: 0 | L31: 0 | M31: 0 | N31: 0 | O31: 0 | P31: 0 | Q31: 0 | R31: 0 | S31: 0 | T31: 0 | U31: 0 | V31: 0 | W31: 0 | X31: 0 | Y31: 0 | Z31: 0 | AA31: 0 | AB31: 0 | AC31: 0 | AD31: 0 | AE31: 0 | AF31: 0 | AG31: 0 | AH31: 0 | AI31: 0 | AJ31: 0 | AK31: 0 | AL31: 0 | AM31: 0 | AN31: 0 | AO31: 0 | AP31: 0 | AR31: Total revenues | AS31: […] | AT31: […] | AU31: […] | AV31: […] | AW31: […] | AX31: […] | AY31: […] | AZ31: […] | BA31: […] | BC31: EUR | BD31: PLN | BE31: […] | BF31: […] | BG31: […] | BH31: […] | BI31: […] | BJ31: […] | BK31: […] | BL31: […]
B32: =IF(BN32<>0,"!","") -> ! | D32: =INDEX($AR32:$BA32,MATCH(General!$F$14,$AR$4:$BA$4,0)) -> VAT | E32: =INDEX($BC32:$BL32,MATCH(General!$F$16,$BC$4:$BL$4,0)) -> PLN | F32: =SUM(G32:AP32) -> 0 | AR32: VAT | AS32: […] | AT32: […] | AU32: […] | AV32: […] | AW32: […] | AX32: […] | AY32: […] | AZ32: […] | BA32: […] | BC32: EUR | BD32: PLN | BE32: […] | BF32: […] | BG32: […] | BH32: […] | BI32: […] | BJ32: […] | BK32: […] | BL32: […] | BN32: =COUNTIFS($G32:$AP32,"",$G$24:$AP$24,"<="&Config!$F$12) -> 20
D33: =INDEX($AR33:$BA33,MATCH(General!$F$14,$AR$4:$BA$4,0)) -> Total revenues incl. VAT | E33: =INDEX($BC33:$BL33,MATCH(General!$F$16,$BC$4:$BL$4,0)) -> PLN | F33: =SUM(G33:AP33) -> 0 | G33: =SUM(G31:G32) -> 0 | H33: =SUM(H31:H32) -> 0 | I33: 0 | J33: 0 | K33: 0 | L33: 0 | M33: 0 | N33: 0 | O33: 0 | P33: 0 | Q33: 0 | R33: 0 | S33: 0 | T33: 0 | U33: 0 | V33: 0 | W33: 0 | X33: 0 | Y33: 0 | Z33: 0 | AA33: 0 | AB33: 0 | AC33: 0 | AD33: 0 | AE33: 0 | AF33: 0 | AG33: 0 | AH33: 0 | AI33: 0 | AJ33: 0 | AK33: 0 | AL33: 0 | AM33: 0 | AN33: 0 | AO33: 0 | AP33: 0 | AR33: Total revenues incl. VAT | AS33: […] | AT33: […] | AU33: […] | AV33: […] | AW33: […] | AX33: […] | AY33: […] | AZ33: […] | BA33: […] | BC33: EUR | BD33: PLN | BE33: […] | BF33: […] | BG33: […] | BH33: […] | BI33: […] | BJ33: […] | BK33: […] | BL33: […]
D35: =INDEX($AR35:$BA35,MATCH(General!$F$14,$AR$4:$BA$4,0)) -> Other | E35: =Config!$I$141 -> Unit | F35: Sum | G35: =Config!I$1 -> 2026 | H35: =Config!J$1 -> 2027 | I35: =Config!K$1 -> 2028 | J35: =Config!L$1 -> 2029 | K35: =Config!M$1 -> 2030 | L35: =Config!N$1 -> 2031 | M35: =Config!O$1 -> 2032 | N35: =Config!P$1 -> 2033 | O35: =Config!Q$1 -> 2034 | P35: =Config!R$1 -> 2035 | Q35: =Config!S$1 -> 2036 | R35: =Config!T$1 -> 2037 | S35: =Config!U$1 -> 2038 | T35: =Config!V$1 -> 2039 | U35: =Config!W$1 -> 2040 | V35: =Config!X$1 -> 2041 | W35: =Config!Y$1 -> 2042 | X35: =Config!Z$1 -> 2043 | Y35: =Config!AA$1 -> 2044 | Z35: =Config!AB$1 -> 2045 | AA35: =Config!AC$1 ->  | AB35: =Config!AD$1 ->  | AC35: =Config!AE$1 ->  | AD35: =Config!AF$1 ->  | AE35: =Config!AG$1 ->  | AF35: =Config!AH$1 ->  | AG35: =Config!AI$1 ->  | AH35: =Config!AJ$1 ->  | AI35: =Config!AK$1 ->  | AJ35: =Config!AL$1 ->  | AK35: =Config!AM$1 ->  | AL35: =Config!AN$1 ->  | AM35: =Config!AO$1 ->  | AN35: =Config!AP$1 ->  | AO35: =Config!AQ$1 ->  | AP35: =Config!AR$1 ->  | AR35: Other | AS35: […] | AT35: […] | AU35: […] | AV35: […] | AW35: […] | AX35: […] | AY35: […] | AZ35: […] | BA35: […]
G36: =Config!I$2 -> Construction | H36: =Config!J$2 -> Construction | I36: =Config!K$2 -> Operation | J36: =Config!L$2 -> Operation | K36: =Config!M$2 -> Operation | L36: =Config!N$2 -> Operation | M36: =Config!O$2 -> Operation | N36: =Config!P$2 -> Operation | O36: =Config!Q$2 -> Operation | P36: =Config!R$2 -> Operation | Q36: =Config!S$2 -> Operation | R36: =Config!T$2 -> Operation | S36: =Config!U$2 -> Operation | T36: =Config!V$2 -> Operation | U36: =Config!W$2 -> Operation | V36: =Config!X$2 -> Operation | W36: =Config!Y$2 -> Operation | X36: =Config!Z$2 -> Operation | Y36: =Config!AA$2 -> Operation | Z36: =Config!AB$2 -> Operation | AA36: =Config!AC$2 ->  | AB36: =Config!AD$2 ->  | AC36: =Config!AE$2 ->  | AD36: =Config!AF$2 ->  | AE36: =Config!AG$2 ->  | AF36: =Config!AH$2 ->  | AG36: =Config!AI$2 ->  | AH36: =Config!AJ$2 ->  | AI36: =Config!AK$2 ->  | AJ36: =Config!AL$2 ->  | AK36: =Config!AM$2 ->  | AL36: =Config!AN$2 ->  | AM36: =Config!AO$2 ->  | AN36: =Config!AP$2 ->  | AO36: =Config!AQ$2 ->  | AP36: =Config!AR$2 -> 
B37: =IF(BN37<>0,"!","") -> ! | D37: […] | E37: =INDEX($BC37:$BL37,MATCH(General!$F$16,$BC$4:$BL$4,0)) -> PLN | F37: =SUM(G37:AP37) -> 0 | BC37: EUR | BD37: PLN | BE37: […] | BF37: […] | BG37: […] | BH37: […] | BI37: […] | BJ37: […] | BK37: […] | BL37: […] | BN37: =COUNTIFS($G37:$AP37,"",$G$35:$AP$35,"<="&Config!$F$12) -> 20
B38: ! | D38: […] | E38: =INDEX($BC38:$BL38,MATCH(General!$F$16,$BC$4:$BL$4,0)) -> PLN | F38: 0 | BC38: EUR | BD38: PLN | BE38: […] | BF38: […] | BG38: […] | BH38: […] | BI38: […] | BJ38: […] | BK38: […] | BL38: […] | BN38: =COUNTIFS($G38:$AP38,"",$G$35:$AP$35,"<="&Config!$F$12) -> 20
B39: ! | D39: […] | E39: =INDEX($BC39:$BL39,MATCH(General!$F$16,$BC$4:$BL$4,0)) -> PLN | F39: 0 | BC39: EUR | BD39: PLN | BE39: […] | BF39: […] | BG39: […] | BH39: […] | BI39: […] | BJ39: […] | BK39: […] | BL39: […] | BN39: =COUNTIFS($G39:$AP39,"",$G$35:$AP$35,"<="&Config!$F$12) -> 20
B40: ! | D40: […] | E40: =INDEX($BC40:$BL40,MATCH(General!$F$16,$BC$4:$BL$4,0)) -> PLN | F40: 0 | BC40: EUR | BD40: PLN | BE40: […] | BF40: […] | BG40: […] | BH40: […] | BI40: […] | BJ40: […] | BK40: […] | BL40: […] | BN40: =COUNTIFS($G40:$AP40,"",$G$35:$AP$35,"<="&Config!$F$12) -> 20
B41: ! | D41: […] | E41: =INDEX($BC41:$BL41,MATCH(General!$F$16,$BC$4:$BL$4,0)) -> PLN | F41: 0 | BC41: EUR | BD41: PLN | BE41: […] | BF41: […] | BG41: […] | BH41: […] | BI41: […] | BJ41: […] | BK41: […] | BL41: […] | BN41: =COUNTIFS($G41:$AP41,"",$G$35:$AP$35,"<="&Config!$F$12) -> 20
D42: =INDEX($AR42:$BA42,MATCH(General!$F$14,$AR$4:$BA$4,0)) -> Total revenues | E42: =INDEX($BC42:$BL42,MATCH(General!$F$16,$BC$4:$BL$4,0)) -> PLN | F42: 0 | G42: =SUM(G37:G41) -> 0 | H42: =SUM(H37:H41) -> 0 | I42: 0 | J42: 0 | K42: 0 | L42: 0 | M42: 0 | N42: 0 | O42: 0 | P42: 0 | Q42: 0 | R42: 0 | S42: 0 | T42: 0 | U42: 0 | V42: 0 | W42: 0 | X42: 0 | Y42: 0 | Z42: 0 | AA42: 0 | AB42: 0 | AC42: 0 | AD42: 0 | AE42: 0 | AF42: 0 | AG42: 0 | AH42: 0 | AI42: 0 | AJ42: 0 | AK42: 0 | AL42: 0 | AM42: 0 | AN42: 0 | AO42: 0 | AP42: 0 | AR42: Total revenues | AS42: […] | AT42: […] | AU42: […] | AV42: […] | AW42: […] | AX42: […] | AY42: […] | AZ42: […] | BA42: […] | BC42: EUR | BD42: PLN | BE42: […] | BF42: […] | BG42: […] | BH42: […] | BI42: […] | BJ42: […] | BK42: […] | BL42: […]
B43: =IF(BN43<>0,"!","") -> ! | D43: =INDEX($AR43:$BA43,MATCH(General!$F$14,$AR$4:$BA$4,0)) -> VAT | E43: =INDEX($BC43:$BL43,MATCH(General!$F$16,$BC$4:$BL$4,0)) -> PLN | F43: =SUM(G43:AP43) -> 0 | AR43: VAT | AS43: […] | AT43: […] | AU43: […] | AV43: […] | AW43: […] | AX43: […] | AY43: […] | AZ43: […] | BA43: […] | BC43: EUR | BD43: PLN | BE43: […] | BF43: […] | BG43: […] | BH43: […] | BI43: […] | BJ43: […] | BK43: […] | BL43: […] | BN43: =COUNTIFS($G43:$AP43,"",$G$35:$AP$35,"<="&Config!$F$12) -> 20
D44: =INDEX($AR44:$BA44,MATCH(General!$F$14,$AR$4:$BA$4,0)) -> Total revenues incl. VAT | E44: =INDEX($BC44:$BL44,MATCH(General!$F$16,$BC$4:$BL$4,0)) -> PLN | F44: =SUM(G44:AP44) -> 0 | G44: =SUM(G42:G43) -> 0 | H44: =SUM(H42:H43) -> 0 | I44: =SUM(I42:I43) -> 0 | J44: =SUM(J42:J43) -> 0 | K44: =SUM(K42:K43) -> 0 | L44: =SUM(L42:L43) -> 0 | M44: =SUM(M42:M43) -> 0 | N44: =SUM(N42:N43) -> 0 | O44: =SUM(O42:O43) -> 0 | P44: =SUM(P42:P43) -> 0 | Q44: =SUM(Q42:Q43) -> 0 | R44: =SUM(R42:R43) -> 0 | S44: =SUM(S42:S43) -> 0 | T44: =SUM(T42:T43) -> 0 | U44: =SUM(U42:U43) -> 0 | V44: =SUM(V42:V43) -> 0 | W44: =SUM(W42:W43) -> 0 | X44: =SUM(X42:X43) -> 0 | Y44: =SUM(Y42:Y43) -> 0 | Z44: =SUM(Z42:Z43) -> 0 | AA44: =SUM(AA42:AA43) -> 0 | AB44: =SUM(AB42:AB43) -> 0 | AC44: =SUM(AC42:AC43) -> 0 | AD44: =SUM(AD42:AD43) -> 0 | AE44: =SUM(AE42:AE43) -> 0 | AF44: =SUM(AF42:AF43) -> 0 | AG44: =SUM(AG42:AG43) -> 0 | AH44: =SUM(AH42:AH43) -> 0 | AI44: =SUM(AI42:AI43) -> 0 | AJ44: =SUM(AJ42:AJ43) -> 0 | AK44: =SUM(AK42:AK43) -> 0 | AL44: =SUM(AL42:AL43) -> 0 | AM44: =SUM(AM42:AM43) -> 0 | AN44: =SUM(AN42:AN43) -> 0 | AO44: =SUM(AO42:AO43) -> 0 | AP44: =SUM(AP42:AP43) -> 0 | AR44: Total revenues incl. VAT | AS44: […] | AT44: […] | AU44: […] | AV44: […] | AW44: […] | AX44: […] | AY44: […] | AZ44: […] | BA44: […] | BC44: EUR | BD44: PLN | BE44: […] | BF44: […] | BG44: […] | BH44: […] | BI44: […] | BJ44: […] | BK44: […] | BL44: […]

Sheet OPEX
A1: =Config!$I$131 -> OPERATING EXPENSES | BN1: Check
A2: =General!$D$8&" "&General!$F$8 -> Name of the project beneficiary:
A3: =General!$D$10&" "&General!$F$10 -> Name of the investment project: | AR3: =Config!AT$1 -> Language | BC3: =Config!BE$1 -> Currency / Units
A4: =IF(SUM(BN6:BN172)<>0,Config!$I$152,"") -> All input cells should be filled in with assumptions | AR4: =Config!AT$2 -> English | AS4: =Config!AU$2 -> Polish | AT4: =Config!AV$2 -> […] | AU4: =Config!AW$2 -> […] | AV4: =Config!AX$2 -> […] | AW4: =Config!AY$2 -> […] | AX4: =Config!AZ$2 -> […] | AY4: =Config!BA$2 -> […] | AZ4: =Config!BB$2 -> […] | BA4: =Config!BC$2 -> […] | BC4: =Config!BE$2 -> EUR | BD4: =Config!BF$2 -> PLN | BE4: =Config!BG$2 -> […] | BF4: =Config!BH$2 -> […] | BG4: =Config!BI$2 -> […] | BH4: =Config!BJ$2 -> […] | BI4: =Config!BK$2 -> […] | BJ4: =Config!BL$2 -> […] | BK4: =Config!BM$2 -> […] | BL4: =Config!BN$2 -> […]
A6: =INDEX($AR6:$BA6,MATCH(General!$F$14,$AR$4:$BA$4,0)) -> Operating costs - current costs before energy renovation | AR6: Operating costs - current costs before energy renovation | AS6: […] | AT6: […] | AU6: […] | AV6: […] | AW6: […] | AX6: […] | AY6: […] | AZ6: […] | BA6: […]
D8: =INDEX($AR8:$BA8,MATCH(General!$F$14,$AR$4:$BA$4,0)) -> Energy consumption - by energy carrier | E8: =Config!$I$141 -> Unit | F8: Sum | G8: =Config!I$1 -> 2026 | H8: =Config!J$1 -> 2027 | I8: =Config!K$1 -> 2028 | J8: =Config!L$1 -> 2029 | K8: =Config!M$1 -> 2030 | L8: =Config!N$1 -> 2031 | M8: =Config!O$1 -> 2032 | N8: =Config!P$1 -> 2033 | O8: =Config!Q$1 -> 2034 | P8: =Config!R$1 -> 2035 | Q8: =Config!S$1 -> 2036 | R8: =Config!T$1 -> 2037 | S8: =Config!U$1 -> 2038 | T8: =Config!V$1 -> 2039 | U8: =Config!W$1 -> 2040 | V8: =Config!X$1 -> 2041 | W8: =Config!Y$1 -> 2042 | X8: =Config!Z$1 -> 2043 | Y8: =Config!AA$1 -> 2044 | Z8: =Config!AB$1 -> 2045 | AA8: =Config!AC$1 ->  | AB8: =Config!AD$1 ->  | AC8: =Config!AE$1 ->  | AD8: =Config!AF$1 ->  | AE8: =Config!AG$1 ->  | AF8: =Config!AH$1 ->  | AG8: =Config!AI$1 ->  | AH8: =Config!AJ$1 ->  | AI8: =Config!AK$1 ->  | AJ8: =Config!AL$1 ->  | AK8: =Config!AM$1 ->  | AL8: =Config!AN$1 ->  | AM8: =Config!AO$1 ->  | AN8: =Config!AP$1 ->  | AO8: =Config!AQ$1 ->  | AP8: =Config!AR$1 ->  | AR8: Energy consumption - by energy carrier | AS8: […] | AT8: […] | AU8: […] | AV8: […] | AW8: […] | AX8: […] | AY8: […] | AZ8: […] | BA8: […]
G9: =Config!I$2 -> Construction | H9: =Config!J$2 -> Construction | I9: =Config!K$2 -> Operation | J9: =Config!L$2 -> Operation | K9: =Config!M$2 -> Operation | L9: =Config!N$2 -> Operation | M9: =Config!O$2 -> Operation | N9: =Config!P$2 -> Operation | O9: =Config!Q$2 -> Operation | P9: =Config!R$2 -> Operation | Q9: =Config!S$2 -> Operation | R9: =Config!T$2 -> Operation | S9: =Config!U$2 -> Operation | T9: =Config!V$2 -> Operation | U9: =Config!W$2 -> Operation | V9: =Config!X$2 -> Operation | W9: =Config!Y$2 -> Operation | X9: =Config!Z$2 -> Operation | Y9: =Config!AA$2 -> Operation | Z9: =Config!AB$2 -> Operation | AA9: =Config!AC$2 ->  | AB9: =Config!AD$2 ->  | AC9: =Config!AE$2 ->  | AD9: =Config!AF$2 ->  | AE9: =Config!AG$2 ->  | AF9: =Config!AH$2 ->  | AG9: =Config!AI$2 ->  | AH9: =Config!AJ$2 ->  | AI9: =Config!AK$2 ->  | AJ9: =Config!AL$2 ->  | AK9: =Config!AM$2 ->  | AL9: =Config!AN$2 ->  | AM9: =Config!AO$2 ->  | AN9: =Config!AP$2 ->  | AO9: =Config!AQ$2 ->  | AP9: =Config!AR$2 -> 
D10: =INDEX($AR10:$BA10,MATCH(General!$F$14,$AR$4:$BA$4,0)) -> Electricity | AR10: Electricity | AS10: […] | AT10: […] | AU10: […] | AV10: […] | AW10: […] | AX10: […] | AY10: […] | AZ10: […] | BA10: […]
B11: =IF(BN11<>0,"!","") -> ! | D11: =INDEX($AR11:$BA11,MATCH(General!$F$14,$AR$4:$BA$4,0)) -> Quantity | E11: =INDEX($BC11:$BL11,MATCH(General!$F$16,$BC$4:$BL$4,0)) -> kWh | F11: =SUM(G11:AP11) -> 22362639 | H11: 1176981 | I11: 1176981 | J11: 1176981 | K11: 1176981 | L11: 1176981 | M11: 1176981 | N11: 1176981 | O11: 1176981 | P11: 1176981 | Q11: 1176981 | R11: 1176981 | S11: 1176981 | T11: 1176981 | U11: 1176981 | V11: 1176981 | W11: 1176981 | X11: 1176981 | Y11: 1176981 | Z11: 1176981 | AR11: Quantity | AS11: […] | AT11: […] | AU11: […] | AV11: […] | AW11: […] | AX11: […] | AY11: […] | AZ11: […] | BA11: […] | BC11: kWh | BD11: kWh | BE11: […] | BF11: […] | BG11: […] | BH11: […] | BI11: […] | BJ11: […] | BK11: […] | BL11: […] | BN11: =COUNTIFS($G11:$AP11,"",$G$8:$AP$8,"<="&Config!$F$12) -> 1
B12: =IF(BN12<>0,"!","") -> ! | D12: =INDEX($AR12:$BA12,MATCH(General!$F$14,$AR$4:$BA$4,0)) -> Price without taxes and subsidies | E12: =INDEX($BC12:$BL12,MATCH(General!$F$16,$BC$4:$BL$4,0)) -> PLN / kWh | H12: 0.5 | I12: 0.5 | J12: 0.5 | K12: 0.5 | L12: 0.5 | M12: 0.5 | N12: 0.5 | O12: 0.5 | P12: 0.5 | Q12: 0.5 | R12: 0.5 | S12: 0.5 | T12: 0.5 | U12: 0.5 | V12: 0.5 | W12: 0.5 | X12: 0.5 | Y12: 0.5 | Z12: 0.5 | AR12: Price without taxes and subsidies | AS12: […] | AT12: […] | AU12: […] | AV12: […] | AW12: […] | AX12: […] | AY12: […] | AZ12: […] | BA12: […] | BC12: EUR / kWh | BD12: PLN / kWh | BE12: […] | BF12: […] | BG12: […] | BH12: […] | BI12: […] | BJ12: […] | BK12: […] | BL12: […] | BN12: =COUNTIFS($G12:$AP12,"",$G$8:$AP$8,"<="&Config!$F$12) -> 1
D13: =INDEX($AR13:$BA13,MATCH(General!$F$14,$AR$4:$BA$4,0)) -> Price with taxes and subsidies | E13: =INDEX($BC13:$BL13,MATCH(General!$F$16,$BC$4:$BL$4,0)) -> PLN / kWh | G13: =SUM(G12,G14:G15) -> 0 | H13: 0.615 | I13: 0.615 | J13: 0.615 | K13: 0.615 | L13: 0.615 | M13: 0.615 | N13: 0.615 | O13: 0.615 | P13: 0.615 | Q13: 0.615 | R13: 0.615 | S13: 0.615 | T13: 0.615 | U13: 0.615 | V13: 0.615 | W13: 0.615 | X13: 0.615 | Y13: 0.615 | Z13: 0.615 | AA13: 0 | AB13: 0 | AC13: 0 | AD13: 0 | AE13: 0 | AF13: 0 | AG13: 0 | AH13: 0 | AI13: 0 | AJ13: 0 | AK13: 0 | AL13: 0 | AM13: 0 | AN13: 0 | AO13: 0 | AP13: 0 | AR13: Price with taxes and subsidies | AS13: […] | AT13: […] | AU13: […] | AV13: […] | AW13: […] | AX13: […] | AY13: […] | AZ13: […] | BA13: […] | BC13: EUR / kWh | BD13: PLN / kWh | BE13: […] | BF13: […] | BG13: […] | BH13: […] | BI13: […] | BJ13: […] | BK13: […] | BL13: […]
B14: =IF(BN14<>0,"!","") -> ! | D14: =INDEX($AR14:$BA14,MATCH(General!$F$14,$AR$4:$BA$4,0)) -> VAT / special taxes | E14: =INDEX($BC14:$BL14,MATCH(General!$F$16,$BC$4:$BL$4,0)) -> PLN / kWh | H14: =H12*23% -> 0.115 | I14: =I12*23% -> 0.115 | J14: 0.115 | K14: 0.115 | L14: 0.115 | M14: 0.115 | N14: 0.115 | O14: 0.115 | P14: 0.115 | Q14: 0.115 | R14: 0.115 | S14: 0.115 | T14: 0.115 | U14: 0.115 | V14: 0.115 | W14: 0.115 | X14: 0.115 | Y14: 0.115 | Z14: 0.115 | AR14: VAT / special taxes | AS14: […] | AT14: […] | AU14: […] | AV14: […] | AW14: […] | AX14: […] | AY14: […] | AZ14: […] | BA14: […] | BC14: EUR / kWh | BD14: PLN / kWh | BE14: […] | BF14: […] | BG14: […] | BH14: […] | BI14: […] | BJ14: […] | BK14: […] | BL14: […] | BN14: =COUNTIFS($G14:$AP14,"",$G$8:$AP$8,"<="&Config!$F$12) -> 1
B15: =IF(BN15<>0,"!","") -> ! | D15: =INDEX($AR15:$BA15,MATCH(General!$F$14,$AR$4:$BA$4,0)) -> Subsidies | E15: =INDEX($BC15:$BL15,MATCH(General!$F$16,$BC$4:$BL$4,0)) -> PLN / kWh | AR15: Subsidies | AS15: […] | AT15: […] | AU15: […] | AV15: […] | AW15: […] | AX15: […] | AY15: […] | AZ15: […] | BA15: […] | BC15: EUR / kWh | BD15: PLN / kWh | BE15: […] | BF15: […] | BG15: […] | BH15: […] | BI15: […] | BJ15: […] | BK15: […] | BL15: […] | BN15: =COUNTIFS($G15:$AP15,"",$G$8:$AP$8,"<="&Config!$F$12) -> 20
D16: =INDEX($AR16:$BA16,MATCH(General!$F$14,$AR$4:$BA$4,0)) -> Gas | AR16: Gas | AS16: […] | AT16: […] | AU16: […] | AV16: […] | AW16: […] | AX16: […] | AY16: […] | AZ16: […] | BA16: […]
B17: =IF(BN17<>0,"!","") -> ! | D17: =INDEX($AR17:$BA17,MATCH(General!$F$14,$AR$4:$BA$4,0)) -> Quantity | E17: =INDEX($BC17:$BL17,MATCH(General!$F$16,$BC$4:$BL$4,0)) -> kWh | F17: =SUM(G17:AP17) -> 0 | AR17: Quantity | AS17: […] | AT17: […] | AU17: […] | AV17: […] | AW17: […] | AX17: […] | AY17: […] | AZ17: […] | BA17: […] | BC17: kWh | BD17: kWh | BE17: […] | BF17: […] | BG17: […] | BH17: […] | BI17: […] | BJ17: […] | BK17: […] | BL17: […] | BN17: =COUNTIFS($G17:$AP17,"",$G$8:$AP$8,"<="&Config!$F$12) -> 20
B18: ! | D18: =INDEX($AR18:$BA18,MATCH(General!$F$14,$AR$4:$BA$4,0)) -> Price without taxes and subsidies | E18: =INDEX($BC18:$BL18,MATCH(General!$F$16,$BC$4:$BL$4,0)) -> PLN / kWh | H18: 0.037631491 | I18: 0.037631491 | J18: 0.037631491 | K18: 0.037631491 | L18: 0.037631491 | M18: 0.037631491 | N18: 0.037631491 | O18: 0.037631491 | P18: 0.037631491 | Q18: 0.037631491 | R18: 0.037631491 | S18: 0.037631491 | T18: 0.037631491 | U18: 0.037631491 | V18: 0.037631491 | W18: 0.037631491 | X18: 0.037631491 | Y18: 0.037631491 | Z18: 0.037631491 | AR18: Price without taxes and subsidies | AS18: […] | AT18: […] | AU18: […] | AV18: […] | AW18: […] | AX18: […] | AY18: […] | AZ18: […] | BA18: […] | BC18: EUR / kWh | BD18: PLN / kWh | BE18: […] | BF18: […] | BG18: […] | BH18: […] | BI18: […] | BJ18: […] | BK18: […] | BL18: […] | BN18: =COUNTIFS($G18:$AP18,"",$G$8:$AP$8,"<="&Config!$F$12) -> 1
D19: =INDEX($AR19:$BA19,MATCH(General!$F$14,$AR$4:$BA$4,0)) -> Price with taxes and subsidies | E19: =INDEX($BC19:$BL19,MATCH(General!$F$16,$BC$4:$BL$4,0)) -> PLN / kWh | G19: =SUM(G18,G20:G21) -> 0 | H19: 0.04628673393 | I19: 0.04628673393 | J19: 0.04628673393 | K19: 0.04628673393 | L19: 0.04628673393 | M19: 0.04628673393 | N19: 0.04628673393 | O19: 0.04628673393 | P19: 0.04628673393 | Q19: 0.04628673393 | R19: 0.04628673393 | S19: 0.04628673393 | T19: 0.04628673393 | U19: 0.04628673393 | V19: 0.04628673393 | W19: 0.04628673393 | X19: 0.04628673393 | Y19: 0.04628673393 | Z19: 0.04628673393 | AA19: 0 | AB19: 0 | AC19: 0 | AD19: 0 | AE19: 0 | AF19: 0 | AG19: 0 | AH19: 0 | AI19: 0 | AJ19: 0 | AK19: 0 | AL19: 0 | AM19: 0 | AN19: 0 | AO19: 0 | AP19: 0 | AR19: Price with taxes and subsidies | AS19: […] | AT19: […] | AU19: […] | AV19: […] | AW19: […] | AX19: […] | AY19: […] | AZ19: […] | BA19: […] | BC19: EUR / kWh | BD19: PLN / kWh | BE19: […] | BF19: […] | BG19: […] | BH19: […] | BI19: […] | BJ19: […] | BK19: […] | BL19: […]
B20: =IF(BN20<>0,"!","") -> ! | D20: =INDEX($AR20:$BA20,MATCH(General!$F$14,$AR$4:$BA$4,0)) -> VAT / special taxes | E20: =INDEX($BC20:$BL20,MATCH(General!$F$16,$BC$4:$BL$4,0)) -> PLN / kWh | H20: =H18*23% -> 0.00865524293 | I20: =I18*23% -> 0.00865524293 | J20: 0.00865524293 | K20: 0.00865524293 | L20: 0.00865524293 | M20: 0.00865524293 | N20: 0.00865524293 | O20: 0.00865524293 | P20: 0.00865524293 | Q20: 0.00865524293 | R20: 0.00865524293 | S20: 0.00865524293 | T20: 0.00865524293 | U20: 0.00865524293 | V20: 0.00865524293 | W20: 0.00865524293 | X20: 0.00865524293 | Y20: 0.00865524293 | Z20: 0.00865524293 | AR20: VAT / special taxes | AS20: […] | AT20: […] | AU20: […] | AV20: […] | AW20: […] | AX20: […] | AY20: […] | AZ20: […] | BA20: […] | BC20: EUR / kWh | BD20: PLN / kWh | BE20: […] | BF20: […] | BG20: […] | BH20: […] | BI20: […] | BJ20: […] | BK20: […] | BL20: […] | BN20: =COUNTIFS($G20:$AP20,"",$G$8:$AP$8,"<="&Config!$F$12) -> 1
B21: ! | D21: =INDEX($AR21:$BA21,MATCH(General!$F$14,$AR$4:$BA$4,0)) -> Subsidies | E21: =INDEX($BC21:$BL21,MATCH(General!$F$16,$BC$4:$BL$4,0)) -> PLN / kWh | AR21: Subsidies | AS21: […] | AT21: […] | AU21: […] | AV21: […] | AW21: […] | AX21: […] | AY21: […] | AZ21: […] | BA21: […] | BC21: EUR / kWh | BD21: PLN / kWh | BE21: […] | BF21: […] | BG21: […] | BH21: […] | BI21: […] | BJ21: […] | BK21: […] | BL21: […] | BN21: =COUNTIFS($G21:$AP21,"",$G$8:$AP$8,"<="&Config!$F$12) -> 20
D22: =INDEX($AR22:$BA22,MATCH(General!$F$14,$AR$4:$BA$4,0)) -> Fuel oil | AR22: Fuel oil | AS22: […] | AT22: […] | AU22: […] | AV22: […] | AW22: […] | AX22: […] | AY22: […] | AZ22: […] | BA22: […]
B23: =IF(BN23<>0,"!","") -> ! | D23: =INDEX($AR23:$BA23,MATCH(General!$F$14,$AR$4:$BA$4,0)) -> Quantity | E23: =INDEX($BC23:$BL23,MATCH(General!$F$16,$BC$4:$BL$4,0)) -> kWh | F23: =SUM(G23:AP23) -> 0 | AR23: Quantity | AS23: […] | AT23: […] | AU23: […] | AV23: […] | AW23: […] | AX23: […] | AY23: […] | AZ23: […] | BA23: […] | BC23: kWh | BD23: kWh | BE23: […] | BF23: […] | BG23: […] | BH23: […] | BI23: […] | BJ23: […] | BK23: […] | BL23: […] | BN23: =COUNTIFS($G23:$AP23,"",$G$8:$AP$8,"<="&Config!$F$12) -> 20
B24: ! | D24: =INDEX($AR24:$BA24,MATCH(General!$F$14,$AR$4:$BA$4,0)) -> Price without taxes and subsidies | E24: =INDEX($BC24:$BL24,MATCH(General!$F$16,$BC$4:$BL$4,0)) -> PLN / kWh | H24: 0.1102 | I24: 0.1102 | J24: 0.1102 | K24: 0.1102 | L24: 0.1102 | M24: 0.1102 | N24: 0.1102 | O24: 0.1102 | P24: 0.1102 | Q24: 0.1102 | R24: 0.1102 | S24: 0.1102 | T24: 0.1102 | U24: 0.1102 | V24: 0.1102 | W24: 0.1102 | X24: 0.1102 | Y24: 0.1102 | Z24: 0.1102 | AR24: Price without taxes and subsidies | AS24: […] | AT24: […] | AU24: […] | AV24: […] | AW24: […] | AX24: […] | AY24: […] | AZ24: […] | BA24: […] | BC24: EUR / kWh | BD24: PLN / kWh | BE24: […] | BF24: […] | BG24: […] | BH24: […] | BI24: […] | BJ24: […] | BK24: […] | BL24: […] | BN24: =COUNTIFS($G24:$AP24,"",$G$8:$AP$8,"<="&Config!$F$12) -> 1
D25: =INDEX($AR25:$BA25,MATCH(General!$F$14,$AR$4:$BA$4,0)) -> Price with taxes and subsidies | E25: =INDEX($BC25:$BL25,MATCH(General!$F$16,$BC$4:$BL$4,0)) -> PLN / kWh | G25: =SUM(G24,G26:G27) -> 0 | H25: 0.135546 | I25: 0.135546 | J25: 0.135546 | K25: 0.135546 | L25: 0.135546 | M25: 0.135546 | N25: 0.135546 | O25: 0.135546 | P25: 0.135546 | Q25: 0.135546 | R25: 0.135546 | S25: 0.135546 | T25: 0.135546 | U25: 0.135546 | V25: 0.135546 | W25: 0.135546 | X25: 0.135546 | Y25: 0.135546 | Z25: 0.135546 | AA25: 0 | AB25: 0 | AC25: 0 | AD25: 0 | AE25: 0 | AF25: 0 | AG25: 0 | AH25: 0 | AI25: 0 | AJ25: 0 | AK25: 0 | AL25: 0 | AM25: 0 | AN25: 0 | AO25: 0 | AP25: 0 | AR25: Price with taxes and subsidies | AS25: […] | AT25: […] | AU25: […] | AV25: […] | AW25: […] | AX25: […] | AY25: […] | AZ25: […] | BA25: […] | BC25: EUR / kWh | BD25: PLN / kWh | BE25: […] | BF25: […] | BG25: […] | BH25: […] | BI25: […] | BJ25: […] | BK25: […] | BL25: […]
B26: =IF(BN26<>0,"!","") -> ! | D26: =INDEX($AR26:$BA26,MATCH(General!$F$14,$AR$4:$BA$4,0)) -> VAT / special taxes | E26: =INDEX($BC26:$BL26,MATCH(General!$F$16,$BC$4:$BL$4,0)) -> PLN / kWh | H26: =H24*23% -> 0.025346 | I26: =I24*23% -> 0.025346 | J26: 0.025346 | K26: 0.025346 | L26: 0.025346 | M26: 0.025346 | N26: 0.025346 | O26: 0.025346 | P26: 0.025346 | Q26: 0.025346 | R26: 0.025346 | S26: 0.025346 | T26: 0.025346 | U26: 0.025346 | V26: 0.025346 | W26: 0.025346 | X26: 0.025346 | Y26: 0.025346 | Z26: 0.025346 | AR26: VAT / special taxes | AS26: […] | AT26: […] | AU26: […] | AV26: […] | AW26: […] | AX26: […] | AY26: […] | AZ26: […] | BA26: […] | BC26: EUR / kWh | BD26: PLN / kWh | BE26: […] | BF26: […] | BG26: […] | BH26: […] | BI26: […] | BJ26: […] | BK26: […] | BL26: […] | BN26: =COUNTIFS($G26:$AP26,"",$G$8:$AP$8,"<="&Config!$F$12) -> 1
B27: ! | D27: =INDEX($AR27:$BA27,MATCH(General!$F$14,$AR$4:$BA$4,0)) -> Subsidies | E27: =INDEX($BC27:$BL27,MATCH(General!$F$16,$BC$4:$BL$4,0)) -> PLN / kWh | AR27: Subsidies | AS27: […] | AT27: […] | AU27: […] | AV27: […] | AW27: […] | AX27: […] | AY27: […] | AZ27: […] | BA27: […] | BC27: EUR / kWh | BD27: PLN / kWh | BE27: […] | BF27: […] | BG27: […] | BH27: […] | BI27: […] | BJ27: […] | BK27: […] | BL27: […] | BN27: =COUNTIFS($G27:$AP27,"",$G$8:$AP$8,"<="&Config!$F$12) -> 20
D28: =INDEX($AR28:$BA28,MATCH(General!$F$14,$AR$4:$BA$4,0)) -> LPG | AR28: LPG | AS28: […] | AT28: […] | AU28: […] | AV28: […] | AW28: […] | AX28: […] | AY28: […] | AZ28: […] | BA28: […]
B29: =IF(BN29<>0,"!","") -> ! | D29: =INDEX($AR29:$BA29,MATCH(General!$F$14,$AR$4:$BA$4,0)) -> Quantity | E29: =INDEX($BC29:$BL29,MATCH(General!$F$16,$BC$4:$BL$4,0)) -> kWh | F29: =SUM(G29:AP29) -> 0 | H29: 0 | I29: 0 | J29: 0 | K29: 0 | L29: 0 | M29: 0 | N29: 0 | O29: 0 | P29: 0 | Q29: 0 | R29: 0 | S29: 0 | T29: 0 | U29: 0 | V29: 0 | W29: 0 | X29: 0 | Y29: 0 | Z29: 0 | AR29: Quantity | AS29: […] | AT29: […] | AU29: […] | AV29: […] | AW29: […] | AX29: […] | AY29: […] | AZ29: […] | BA29: […] | BC29: kWh | BD29: kWh | BE29: […] | BF29: […] | BG29: […] | BH29: […] | BI29: […] | BJ29: […] | BK29: […] | BL29: […] | BN29: =COUNTIFS($G29:$AP29,"",$G$8:$AP$8,"<="&Config!$F$12) -> 1
B30: ! | D30: =INDEX($AR30:$BA30,MATCH(General!$F$14,$AR$4:$BA$4,0)) -> Price without taxes and subsidies | E30: =INDEX($BC30:$BL30,MATCH(General!$F$16,$BC$4:$BL$4,0)) -> PLN / kWh | H30: 0 | I30: 0 | J30: 0 | K30: 0 | L30: 0 | M30: 0 | N30: 0 | O30: 0 | P30: 0 | Q30: 0 | R30: 0 | S30: 0 | T30: 0 | U30: 0 | V30: 0 | W30: 0 | X30: 0 | Y30: 0 | Z30: 0 | AR30: Price without taxes and subsidies | AS30: […] | AT30: […] | AU30: […] | AV30: […] | AW30: […] | AX30: […] | AY30: […] | AZ30: […] | BA30: […] | BC30: EUR / kWh | BD30: PLN / kWh | BE30: […] | BF30: […] | BG30: […] | BH30: […] | BI30: […] | BJ30: […] | BK30: […] | BL30: […] | BN30: =COUNTIFS($G30:$AP30,"",$G$8:$AP$8,"<="&Config!$F$12) -> 1
D31: =INDEX($AR31:$BA31,MATCH(General!$F$14,$AR$4:$BA$4,0)) -> Price with taxes and subsidies | E31: =INDEX($BC31:$BL31,MATCH(General!$F$16,$BC$4:$BL$4,0)) -> PLN / kWh | G31: =SUM(G30,G32:G33) -> 0 | H31: 0 | I31: 0 | J31: 0 | K31: 0 | L31: 0 | M31: 0 | N31: 0 | O31: 0 | P31: 0 | Q31: 0 | R31: 0 | S31: 0 | T31: 0 | U31: 0 | V31: 0 | W31: 0 | X31: 0 | Y31: 0 | Z31: 0 | AA31: 0 | AB31: 0 | AC31: 0 | AD31: 0 | AE31: 0 | AF31: 0 | AG31: 0 | AH31: 0 | AI31: 0 | AJ31: 0 | AK31: 0 | AL31: 0 | AM31: 0 | AN31: 0 | AO31: 0 | AP31: 0 | AR31: Price with taxes and subsidies | AS31: […] | AT31: […] | AU31: […] | AV31: […] | AW31: […] | AX31: […] | AY31: […] | AZ31: […] | BA31: […] | BC31: EUR / kWh | BD31: PLN / kWh | BE31: […] | BF31: […] | BG31: […] | BH31: […] | BI31: […] | BJ31: […] | BK31: […] | BL31: […]
B32: =IF(BN32<>0,"!","") -> ! | D32: =INDEX($AR32:$BA32,MATCH(General!$F$14,$AR$4:$BA$4,0)) -> VAT / special taxes | E32: =INDEX($BC32:$BL32,MATCH(General!$F$16,$BC$4:$BL$4,0)) -> PLN / kWh | AR32: VAT / special taxes | AS32: […] | AT32: […] | AU32: […] | AV32: […] | AW32: […] | AX32: […] | AY32: […] | AZ32: […] | BA32: […] | BC32: EUR / kWh | BD32: PLN / kWh | BE32: […] | BF32: […] | BG32: […] | BH32: […] | BI32: […] | BJ32: […] | BK32: […] | BL32: […] | BN32: =COUNTIFS($G32:$AP32,"",$G$8:$AP$8,"<="&Config!$F$12) -> 20
B33: ! | D33: =INDEX($AR33:$BA33,MATCH(General!$F$14,$AR$4:$BA$4,0)) -> Subsidies | E33: =INDEX($BC33:$BL33,MATCH(General!$F$16,$BC$4:$BL$4,0)) -> PLN / kWh | AR33: Subsidies | AS33: […] | AT33: […] | AU33: […] | AV33: […] | AW33: […] | AX33: […] | AY33: […] | AZ33: […] | BA33: […] | BC33: EUR / kWh | BD33: PLN / kWh | BE33: […] | BF33: […] | BG33: […] | BH33: […] | BI33: […] | BJ33: […] | BK33: […] | BL33: […] | BN33: =COUNTIFS($G33:$AP33,"",$G$8:$AP$8,"<="&Config!$F$12) -> 20
D34: =INDEX($AR34:$BA34,MATCH(General!$F$14,$AR$4:$BA$4,0)) -> District heating system | AR34: District heating system | AS34: […] | AT34: […] | AU34: […] | AV34: […] | AW34: […] | AX34: […] | AY34: […] | AZ34: […] | BA34: […]
B35: =IF(BN35<>0,"!","") -> ! | D35: =INDEX($AR35:$BA35,MATCH(General!$F$14,$AR$4:$BA$4,0)) -> Quantity | E35: =INDEX($BC35:$BL35,MATCH(General!$F$16,$BC$4:$BL$4,0)) -> kWh | F35: =SUM(G35:AP35) -> 15646215 | H35: 823485 | I35: 823485 | J35: 823485 | K35: 823485 | L35: 823485 | M35: 823485 | N35: 823485 | O35: 823485 | P35: 823485 | Q35: 823485 | R35: 823485 | S35: 823485 | T35: 823485 | U35: 823485 | V35: 823485 | W35: 823485 | X35: 823485 | Y35: 823485 | Z35: 823485 | AR35: Quantity | AS35: […] | AT35: […] | AU35: […] | AV35: […] | AW35: […] | AX35: […] | AY35: […] | AZ35: […] | BA35: […] | BC35: kWh | BD35: kWh | BE35: […] | BF35: […] | BG35: […] | BH35: […] | BI35: […] | BJ35: […] | BK35: […] | BL35: […] | BN35: =COUNTIFS($G35:$AP35,"",$G$8:$AP$8,"<="&Config!$F$12) -> 1
B36: ! | D36: =INDEX($AR36:$BA36,MATCH(General!$F$14,$AR$4:$BA$4,0)) -> Price without taxes and subsidies | E36: =INDEX($BC36:$BL36,MATCH(General!$F$16,$BC$4:$BL$4,0)) -> PLN / kWh | H36: 0.29 | I36: 0.29 | J36: 0.29 | K36: 0.29 | L36: 0.29 | M36: 0.29 | N36: 0.29 | O36: 0.29 | P36: 0.29 | Q36: 0.29 | R36: 0.29 | S36: 0.29 | T36: 0.29 | U36: 0.29 | V36: 0.29 | W36: 0.29 | X36: 0.29 | Y36: 0.29 | Z36: 0.29 | AR36: Price without taxes and subsidies | AS36: […] | AT36: […] | AU36: […] | AV36: […] | AW36: […] | AX36: […] | AY36: […] | AZ36: […] | BA36: […] | BC36: EUR / kWh | BD36: PLN / kWh | BE36: […] | BF36: […] | BG36: […] | BH36: […] | BI36: […] | BJ36: […] | BK36: […] | BL36: […] | BN36: =COUNTIFS($G36:$AP36,"",$G$8:$AP$8,"<="&Config!$F$12) -> 1
D37: =INDEX($AR37:$BA37,MATCH(General!$F$14,$AR$4:$BA$4,0)) -> Price with taxes and subsidies | E37: =INDEX($BC37:$BL37,MATCH(General!$F$16,$BC$4:$BL$4,0)) -> PLN / kWh | G37: =SUM(G36,G38:G39) -> 0 | H37: 0.36 | I37: 0.36 | J37: 0.36 | K37: 0.36 | L37: 0.36 | M37: 0.36 | N37: 0.36 | O37: 0.36 | P37: 0.36 | Q37: 0.36 | R37: 0.36 | S37: 0.36 | T37: 0.36 | U37: 0.36 | V37: 0.36 | W37: 0.36 | X37: 0.36 | Y37: 0.36 | Z37: 0.36 | AA37: 0 | AB37: 0 | AC37: 0 | AD37: 0 | AE37: 0 | AF37: 0 | AG37: 0 | AH37: 0 | AI37: 0 | AJ37: 0 | AK37: 0 | AL37: 0 | AM37: 0 | AN37: 0 | AO37: 0 | AP37: 0 | AR37: Price with taxes and subsidies | AS37: […] | AT37: […] | AU37: […] | AV37: […] | AW37: […] | AX37: […] | AY37: […] | AZ37: […] | BA37: […] | BC37: EUR / kWh | BD37: PLN / kWh | BE37: […] | BF37: […] | BG37: […] | BH37: […] | BI37: […] | BJ37: […] | BK37: […] | BL37: […]
B38: =IF(BN38<>0,"!","") -> ! | D38: =INDEX($AR38:$BA38,MATCH(General!$F$14,$AR$4:$BA$4,0)) -> VAT / special taxes | E38: =INDEX($BC38:$BL38,MATCH(General!$F$16,$BC$4:$BL$4,0)) -> PLN / kWh | H38: 0.07 | I38: 0.07 | J38: 0.07 | K38: 0.07 | L38: 0.07 | M38: 0.07 | N38: 0.07 | O38: 0.07 | P38: 0.07 | Q38: 0.07 | R38: 0.07 | S38: 0.07 | T38: 0.07 | U38: 0.07 | V38: 0.07 | W38: 0.07 | X38: 0.07 | Y38: 0.07 | Z38: 0.07 | AR38: VAT / special taxes | AS38: […] | AT38: […] | AU38: […] | AV38: […] | AW38: […] | AX38: […] | AY38: […] | AZ38: […] | BA38: […] | BC38: EUR / kWh | BD38: PLN / kWh | BE38: […] | BF38: […] | BG38: […] | BH38: […] | BI38: […] | BJ38: […] | BK38: […] | BL38: […] | BN38: =COUNTIFS($G38:$AP38,"",$G$8:$AP$8,"<="&Config!$F$12) -> 1
B39: ! | D39: =INDEX($AR39:$BA39,MATCH(General!$F$14,$AR$4:$BA$4,0)) -> Subsidies | E39: =INDEX($BC39:$BL39,MATCH(General!$F$16,$BC$4:$BL$4,0)) -> PLN / kWh | AR39: Subsidies | AS39: […] | AT39: […] | AU39: […] | AV39: […] | AW39: […] | AX39: […] | AY39: […] | AZ39: […] | BA39: […] | BC39: EUR / kWh | BD39: PLN / kWh | BE39: […] | BF39: […] | BG39: […] | BH39: […] | BI39: […] | BJ39: […] | BK39: […] | BL39: […] | BN39: =COUNTIFS($G39:$AP39,"",$G$8:$AP$8,"<="&Config!$F$12) -> 20
D40: =INDEX($AR40:$BA40,MATCH(General!$F$14,$AR$4:$BA$4,0)) -> Wood | AR40: Wood | AS40: […] | AT40: […] | AU40: […] | AV40: […] | AW40: […] | AX40: […] | AY40: […] | AZ40: […] | BA40: […]
B41: =IF(BN41<>0,"!","") -> ! | D41: =INDEX($AR41:$BA41,MATCH(General!$F$14,$AR$4:$BA$4,0)) -> Quantity | E41: =INDEX($BC41:$BL41,MATCH(General!$F$16,$BC$4:$BL$4,0)) -> kWh | F41: =SUM(G41:AP41) -> 0 | H41: 0 | I41: 0 | J41: 0 | K41: 0 | L41: 0 | M41: 0 | N41: 0 | O41: 0 | P41: 0 | Q41: 0 | R41: 0 | S41: 0 | T41: 0 | U41: 0 | V41: 0 | W41: 0 | X41: 0 | Y41: 0 | Z41: 0 | AR41: Quantity | AS41: […] | AT41: […] | AU41: […] | AV41: […] | AW41: […] | AX41: […] | AY41: […] | AZ41: […] | BA41: […] | BC41: kWh | BD41: kWh | BE41: […] | BF41: […] | BG41: […] | BH41: […] | BI41: […] | BJ41: […] | BK41: […] | BL41: […] | BN41: =COUNTIFS($G41:$AP41,"",$G$8:$AP$8,"<="&Config!$F$12) -> 1
B42: ! | D42: =INDEX($AR42:$BA42,MATCH(General!$F$14,$AR$4:$BA$4,0)) -> Price without taxes and subsidies | E42: =INDEX($BC42:$BL42,MATCH(General!$F$16,$BC$4:$BL$4,0)) -> PLN / kWh | H42: 0 | I42: 0 | J42: 0 | K42: 0 | L42: 0 | M42: 0 | N42: 0 | O42: 0 | P42: 0 | Q42: 0 | R42: 0 | S42: 0 | T42: 0 | U42: 0 | V42: 0 | W42: 0 | X42: 0 | Y42: 0 | Z42: 0 | AR42: Price without taxes and subsidies | AS42: […] | AT42: […] | AU42: […] | AV42: […] | AW42: […] | AX42: […] | AY42: […] | AZ42: […] | BA42: […] | BC42: EUR / kWh | BD42: PLN / kWh | BE42: […] | BF42: […] | BG42: […] | BH42: […] | BI42: […] | BJ42: […] | BK42: […] | BL42: […] | BN42: =COUNTIFS($G42:$AP42,"",$G$8:$AP$8,"<="&Config!$F$12) -> 1
D43: =INDEX($AR43:$BA43,MATCH(General!$F$14,$AR$4:$BA$4,0)) -> Price with taxes and subsidies | E43: =INDEX($BC43:$BL43,MATCH(General!$F$16,$BC$4:$BL$4,0)) -> PLN / kWh | G43: =SUM(G42,G44:G45) -> 0 | H43: 0 | I43: 0 | J43: 0 | K43: 0 | L43: 0 | M43: 0 | N43: 0 | O43: 0 | P43: 0 | Q43: 0 | R43: 0 | S43: 0 | T43: 0 | U43: 0 | V43: 0 | W43: 0 | X43: 0 | Y43: 0 | Z43: 0 | AA43: 0 | AB43: 0 | AC43: 0 | AD43: 0 | AE43: 0 | AF43: 0 | AG43: 0 | AH43: 0 | AI43: 0 | AJ43: 0 | AK43: 0 | AL43: 0 | AM43: 0 | AN43: 0 | AO43: 0 | AP43: 0 | AR43: Price with taxes and subsidies | AS43: […] | AT43: […] | AU43: […] | AV43: […] | AW43: […] | AX43: […] | AY43: […] | AZ43: […] | BA43: […] | BC43: EUR / kWh | BD43: PLN / kWh | BE43: […] | BF43: […] | BG43: […] | BH43: […] | BI43: […] | BJ43: […] | BK43: […] | BL43: […]
B44: =IF(BN44<>0,"!","") -> ! | D44: =INDEX($AR44:$BA44,MATCH(General!$F$14,$AR$4:$BA$4,0)) -> VAT / special taxes | E44: =INDEX($BC44:$BL44,MATCH(General!$F$16,$BC$4:$BL$4,0)) -> PLN / kWh | AR44: VAT / special taxes | AS44: […] | AT44: […] | AU44: […] | AV44: […] | AW44: […] | AX44: […] | AY44: […] | AZ44: […] | BA44: […] | BC44: EUR / kWh | BD44: PLN / kWh | BE44: […] | BF44: […] | BG44: […] | BH44: […] | BI44: […] | BJ44: […] | BK44: […] | BL44: […] | BN44: =COUNTIFS($G44:$AP44,"",$G$8:$AP$8,"<="&Config!$F$12) -> 20
B45: ! | D45: =INDEX($AR45:$BA45,MATCH(General!$F$14,$AR$4:$BA$4,0)) -> Subsidies | E45: =INDEX($BC45:$BL45,MATCH(General!$F$16,$BC$4:$BL$4,0)) -> PLN / kWh | AR45: Subsidies | AS45: […] | AT45: […] | AU45: […] | AV45: […] | AW45: […] | AX45: […] | AY45: […] | AZ45: […] | BA45: […] | BC45: EUR / kWh | BD45: PLN / kWh | BE45: […] | BF45: […] | BG45: […] | BH45: […] | BI45: […] | BJ45: […] | BK45: […] | BL45: […] | BN45: =COUNTIFS($G45:$AP45,"",$G$8:$AP$8,"<="&Config!$F$12) -> 20
D46: =INDEX($AR46:$BA46,MATCH(General!$F$14,$AR$4:$BA$4,0)) -> Coal | AR46: Coal | AS46: […] | AT46: […] | AU46: […] | AV46: […] | AW46: […] | AX46: […] | AY46: […] | AZ46: […] | BA46: […]
B47: =IF(BN47<>0,"!","") -> ! | D47: =INDEX($AR47:$BA47,MATCH(General!$F$14,$AR$4:$BA$4,0)) -> Quantity | E47: =INDEX($BC47:$BL47,MATCH(General!$F$16,$BC$4:$BL$4,0)) -> kWh | F47: =SUM(G47:AP47) -> 0 | H47: 0 | I47: 0 | J47: 0 | K47: 0 | L47: 0 | M47: 0 | N47: 0 | O47: 0 | P47: 0 | Q47: 0 | R47: 0 | S47: 0 | T47: 0 | U47: 0 | V47: 0 | W47: 0 | X47: 0 | Y47: 0 | Z47: 0 | AR47: Quantity | AS47: […] | AT47: […] | AU47: […] | AV47: […] | AW47: […] | AX47: […] | AY47: […] | AZ47: […] | BA47: […] | BC47: kWh | BD47: kWh | BE47: […] | BF47: […] | BG47: […] | BH47: […] | BI47: […] | BJ47: […] | BK47: […] | BL47: […] | BN47: =COUNTIFS($G47:$AP47,"",$G$8:$AP$8,"<="&Config!$F$12) -> 1
B48: ! | D48: =INDEX($AR48:$BA48,MATCH(General!$F$14,$AR$4:$BA$4,0)) -> Price without taxes and subsidies | E48: =INDEX($BC48:$BL48,MATCH(General!$F$16,$BC$4:$BL$4,0)) -> PLN / kWh | H48: 0 | I48: 0 | J48: 0 | K48: 0 | L48: 0 | M48: 0 | N48: 0 | O48: 0 | P48: 0 | Q48: 0 | R48: 0 | S48: 0 | T48: 0 | U48: 0 | V48: 0 | W48: 0 | X48: 0 | Y48: 0 | Z48: 0 | AR48: Price without taxes and subsidies | AS48: […] | AT48: […] | AU48: […] | AV48: […] | AW48: […] | AX48: […] | AY48: […] | AZ48: […] | BA48: […] | BC48: EUR / kWh | BD48: PLN / kWh | BE48: […] | BF48: […] | BG48: […] | BH48: […] | BI48: […] | BJ48: […] | BK48: […] | BL48: […] | BN48: =COUNTIFS($G48:$AP48,"",$G$8:$AP$8,"<="&Config!$F$12) -> 1
D49: =INDEX($AR49:$BA49,MATCH(General!$F$14,$AR$4:$BA$4,0)) -> Price with taxes and subsidies | E49: =INDEX($BC49:$BL49,MATCH(General!$F$16,$BC$4:$BL$4,0)) -> PLN / kWh | G49: =SUM(G48,G50:G51) -> 0 | H49: 0 | I49: 0 | J49: 0 | K49: 0 | L49: 0 | M49: 0 | N49: 0 | O49: 0 | P49: 0 | Q49: 0 | R49: 0 | S49: 0 | T49: 0 | U49: 0 | V49: 0 | W49: 0 | X49: 0 | Y49: 0 | Z49: 0 | AA49: 0 | AB49: 0 | AC49: 0 | AD49: 0 | AE49: 0 | AF49: 0 | AG49: 0 | AH49: 0 | AI49: 0 | AJ49: 0 | AK49: 0 | AL49: 0 | AM49: 0 | AN49: 0 | AO49: 0 | AP49: 0 | AR49: Price with taxes and subsidies | AS49: […] | AT49: […] | AU49: […] | AV49: […] | AW49: […] | AX49: […] | AY49: […] | AZ49: […] | BA49: […] | BC49: EUR / kWh | BD49: PLN / kWh | BE49: […] | BF49: […] | BG49: […] | BH49: […] | BI49: […] | BJ49: […] | BK49: […] | BL49: […]
B50: =IF(BN50<>0,"!","") -> ! | D50: =INDEX($AR50:$BA50,MATCH(General!$F$14,$AR$4:$BA$4,0)) -> VAT / special taxes | E50: =INDEX($BC50:$BL50,MATCH(General!$F$16,$BC$4:$BL$4,0)) -> PLN / kWh | AR50: VAT / special taxes | AS50: […] | AT50: […] | AU50: […] | AV50: […] | AW50: […] | AX50: […] | AY50: […] | AZ50: […] | BA50: […] | BC50: EUR / kWh | BD50: PLN / kWh | BE50: […] | BF50: […] | BG50: […] | BH50: […] | BI50: […] | BJ50: […] | BK50: […] | BL50: […] | BN50: =COUNTIFS($G50:$AP50,"",$G$8:$AP$8,"<="&Config!$F$12) -> 20
B51: ! | D51: =INDEX($AR51:$BA51,MATCH(General!$F$14,$AR$4:$BA$4,0)) -> Subsidies | E51: =INDEX($BC51:$BL51,MATCH(General!$F$16,$BC$4:$BL$4,0)) -> PLN / kWh | AR51: Subsidies | AS51: […] | AT51: […] | AU51: […] | AV51: […] | AW51: […] | AX51: […] | AY51: […] | AZ51: […] | BA51: […] | BC51: EUR / kWh | BD51: PLN / kWh | BE51: […] | BF51: […] | BG51: […] | BH51: […] | BI51: […] | BJ51: […] | BK51: […] | BL51: […] | BN51: =COUNTIFS($G51:$AP51,"",$G$8:$AP$8,"<="&Config!$F$12) -> 20
D53: =INDEX($AR53:$BA53,MATCH(General!$F$14,$AR$4:$BA$4,0)) -> Maintenance costs | E53: =Config!$I$141 -> Unit | F53: Sum | G53: =Config!I$1 -> 2026 | H53: =Config!J$1 -> 2027 | I53: =Config!K$1 -> 2028 | J53: =Config!L$1 -> 2029 | K53: =Config!M$1 -> 2030 | L53: =Config!N$1 -> 2031 | M53: =Config!O$1 -> 2032 | N53: =Config!P$1 -> 2033 | O53: =Config!Q$1 -> 2034 | P53: =Config!R$1 -> 2035 | Q53: =Config!S$1 -> 2036 | R53: =Config!T$1 -> 2037 | S53: =Config!U$1 -> 2038 | T53: =Config!V$1 -> 2039 | U53: =Config!W$1 -> 2040 | V53: =Config!X$1 -> 2041 | W53: =Config!Y$1 -> 2042 | X53: =Config!Z$1 -> 2043 | Y53: =Config!AA$1 -> 2044 | Z53: =Config!AB$1 -> 2045 | AA53: =Config!AC$1 ->  | AB53: =Config!AD$1 ->  | AC53: =Config!AE$1 ->  | AD53: =Config!AF$1 ->  | AE53: =Config!AG$1 ->  | AF53: =Config!AH$1 ->  | AG53: =Config!AI$1 ->  | AH53: =Config!AJ$1 ->  | AI53: =Config!AK$1 ->  | AJ53: =Config!AL$1 ->  | AK53: =Config!AM$1 ->  | AL53: =Config!AN$1 ->  | AM53: =Config!AO$1 ->  | AN53: =Config!AP$1 ->  | AO53: =Config!AQ$1 ->  | AP53: =Config!AR$1 ->  | AR53: Maintenance costs | AS53: […] | AT53: […] | AU53: […] | AV53: […] | AW53: […] | AX53: […] | AY53: […] | AZ53: […] | BA53: […]
G54: =Config!I$2 -> Construction | H54: =Config!J$2 -> Construction | I54: =Config!K$2 -> Operation | J54: =Config!L$2 -> Operation | K54: =Config!M$2 -> Operation | L54: =Config!N$2 -> Operation | M54: =Config!O$2 -> Operation | N54: =Config!P$2 -> Operation | O54: =Config!Q$2 -> Operation | P54: =Config!R$2 -> Operation | Q54: =Config!S$2 -> Operation | R54: =Config!T$2 -> Operation | S54: =Config!U$2 -> Operation | T54: =Config!V$2 -> Operation | U54: =Config!W$2 -> Operation | V54: =Config!X$2 -> Operation | W54: =Config!Y$2 -> Operation | X54: =Config!Z$2 -> Operation | Y54: =Config!AA$2 -> Operation | Z54: =Config!AB$2 -> Operation | AA54: =Config!AC$2 ->  | AB54: =Config!AD$2 ->  | AC54: =Config!AE$2 ->  | AD54: =Config!AF$2 ->  | AE54: =Config!AG$2 ->  | AF54: =Config!AH$2 ->  | AG54: =Config!AI$2 ->  | AH54: =Config!AJ$2 ->  | AI54: =Config!AK$2 ->  | AJ54: =Config!AL$2 ->  | AK54: =Config!AM$2 ->  | AL54: =Config!AN$2 ->  | AM54: =Config!AO$2 ->  | AN54: =Config!AP$2 ->  | AO54: =Config!AQ$2 ->  | AP54: =Config!AR$2 -> 
B55: =IF(BN55<>0,"!","") -> ! | D55: =INDEX($AR55:$BA55,MATCH(General!$F$14,$AR$4:$BA$4,0)) -> Building maintenance | E55: =INDEX($BC55:$BL55,MATCH(General!$F$16,$BC$4:$BL$4,0)) -> PLN | F55: =SUM(G55:AP55) -> 90500 | H55: 500 | I55: 5000 | J55: 5000 | K55: 5000 | L55: 5000 | M55: 5000 | N55: 5000 | O55: 5000 | P55: 5000 | Q55: 5000 | R55: 5000 | S55: 5000 | T55: 5000 | U55: 5000 | V55: 5000 | W55: 5000 | X55: 5000 | Y55: 5000 | Z55: 5000 | AR55: Building maintenance | AS55: […] | AT55: […] | AU55: […] | AV55: […] | AW55: […] | AX55: […] | AY55: […] | AZ55: […] | BA55: […] | BC55: EUR | BD55: PLN | BE55: […] | BF55: […] | BG55: […] | BH55: […] | BI55: […] | BJ55: […] | BK55: […] | BL55: […] | BN55: =COUNTIFS($G55:$AP55,"",$G$53:$AP$53,"<="&Config!$F$12) -> 1
B56: ! | D56: =INDEX($AR56:$BA56,MATCH(General!$F$14,$AR$4:$BA$4,0)) -> Equipment maintenance | E56: =INDEX($BC56:$BL56,MATCH(General!$F$16,$BC$4:$BL$4,0)) -> PLN | F56: 38000 | H56: 2000 | I56: 2000 | J56: 2000 | K56: 2000 | L56: 2000 | M56: 2000 | N56: 2000 | O56: 2000 | P56: 2000 | Q56: 2000 | R56: 2000 | S56: 2000 | T56: 2000 | U56: 2000 | V56: 2000 | W56: 2000 | X56: 2000 | Y56: 2000 | Z56: 2000 | AR56: Equipment maintenance | AS56: […] | AT56: […] | AU56: […] | AV56: […] | AW56: […] | AX56: […] | AY56: […] | AZ56: […] | BA56: […] | BC56: EUR | BD56: PLN | BE56: […] | BF56: […] | BG56: […] | BH56: […] | BI56: […] | BJ56: […] | BK56: […] | BL56: […] | BN56: =COUNTIFS($G56:$AP56,"",$G$53:$AP$53,"<="&Config!$F$12) -> 1
B57: ! | D57: =INDEX($AR57:$BA57,MATCH(General!$F$14,$AR$4:$BA$4,0)) -> Insurance | E57: =INDEX($BC57:$BL57,MATCH(General!$F$16,$BC$4:$BL$4,0)) -> PLN | F57: 38000 | H57: 2000 | I57: 2000 | J57: 2000 | K57: 2000 | L57: 2000 | M57: 2000 | N57: 2000 | O57: 2000 | P57: 2000 | Q57: 2000 | R57: 2000 | S57: 2000 | T57: 2000 | U57: 2000 | V57: 2000 | W57: 2000 | X57: 2000 | Y57: 2000 | Z57: 2000 | AR57: Insurance | AS57: […] | AT57: […] | AU57: […] | AV57: […] | AW57: […] | AX57: […] | AY57: […] | AZ57: […] | BA57: […] | BC57: EUR | BD57: PLN | BE57: […] | BF57: […] | BG57: […] | BH57: […] | BI57: […] | BJ57: […] | BK57: […] | BL57: […] | BN57: =COUNTIFS($G57:$AP57,"",$G$53:$AP$53,"<="&Config!$F$12) -> 1
B58: ! | D58: =INDEX($AR58:$BA58,MATCH(General!$F$14,$AR$4:$BA$4,0)) -> Licence fees | E58: =INDEX($BC58:$BL58,MATCH(General!$F$16,$BC$4:$BL$4,0)) -> PLN | F58: 0 | AR58: Licence fees | AS58: […] | AT58: […] | AU58: […] | AV58: […] | AW58: […] | AX58: […] | AY58: […] | AZ58: […] | BA58: […] | BC58: EUR | BD58: PLN | BE58: […] | BF58: […] | BG58: […] | BH58: […] | BI58: […] | BJ58: […] | BK58: […] | BL58: […] | BN58: =COUNTIFS($G58:$AP58,"",$G$53:$AP$53,"<="&Config!$F$12) -> 20
B59: ! | D59: =INDEX($AR59:$BA59,MATCH(General!$F$14,$AR$4:$BA$4,0)) -> Other | E59: =INDEX($BC59:$BL59,MATCH(General!$F$16,$BC$4:$BL$4,0)) -> PLN | F59: 0 | AR59: Other | AS59: […] | AT59: […] | AU59: […] | AV59: […] | AW59: […] | AX59: […] | AY59: […] | AZ59: […] | BA59: […] | BC59: EUR | BD59: PLN | BE59: […] | BF59: […] | BG59: […] | BH59: […] | BI59: […] | BJ59: […] | BK59: […] | BL59: […] | BN59: =COUNTIFS($G59:$AP59,"",$G$53:$AP$53,"<="&Config!$F$12) -> 20
D60: =INDEX($AR60:$BA60,MATCH(General!$F$14,$AR$4:$BA$4,0)) -> Total cost | E60: =INDEX($BC60:$BL60,MATCH(General!$F$16,$BC$4:$BL$4,0)) -> PLN | F60: =SUM(G60:AP60) -> 166500 | G60: =SUM(G55:G59) -> 0 | H60: =SUM(H55:H59) -> 4500 | I60: 9000 | J60: 9000 | K60: 9000 | L60: 9000 | M60: 9000 | N60: 9000 | O60: 9000 | P60: 9000 | Q60: 9000 | R60: 9000 | S60: 9000 | T60: 9000 | U60: 9000 | V60: 9000 | W60: 9000 | X60: 9000 | Y60: 9000 | Z60: 9000 | AA60: 0 | AB60: 0 | AC60: 0 | AD60: 0 | AE60: 0 | AF60: 0 | AG60: 0 | AH60: 0 | AI60: 0 | AJ60: 0 | AK60: 0 | AL60: 0 | AM60: 0 | AN60: 0 | AO60: 0 | AP60: 0 | AR60: Total cost | AS60: […] | AT60: […] | AU60: […] | AV60: […] | AW60: […] | AX60: […] | AY60: […] | AZ60: […] | BA60: […] | BC60: EUR | BD60: PLN | BE60: […] | BF60: […] | BG60: […] | BH60: […] | BI60: […] | BJ60: […] | BK60: […] | BL60: […]
B61: =IF(BN61<>0,"!","") -> ! | D61: =INDEX($AR61:$BA61,MATCH(General!$F$14,$AR$4:$BA$4,0)) -> VAT expense | E61: =INDEX($BC61:$BL61,MATCH(General!$F$16,$BC$4:$BL$4,0)) -> PLN | F61: =SUM(G61:AP61) -> 38295 | H61: =(SUM(H55:H59))*0.23 -> 1035 | I61: =(SUM(I55:I59))*0.23 -> 2070 | J61: 2070 | K61: 2070 | L61: 2070 | M61: 2070 | N61: 2070 | O61: 2070 | P61: 2070 | Q61: 2070 | R61: 2070 | S61: 2070 | T61: 2070 | U61: 2070 | V61: 2070 | W61: 2070 | X61: 2070 | Y61: 2070 | Z61: 2070 | AR61: VAT expense | AS61: […] | AT61: […] | AU61: […] | AV61: […] | AW61: […] | AX61: […] | AY61: […] | AZ61: […] | BA61: […] | BC61: EUR | BD61: PLN | BE61: […] | BF61: […] | BG61: […] | BH61: […] | BI61: […] | BJ61: […] | BK61: […] | BL61: […] | BN61: =COUNTIFS($G61:$AP61,"",$G$53:$AP$53,"<="&Config!$F$12) -> 1
D62: =INDEX($AR62:$BA62,MATCH(General!$F$14,$AR$4:$BA$4,0)) -> Total cost incl. VAT | E62: =INDEX($BC62:$BL62,MATCH(General!$F$16,$BC$4:$BL$4,0)) -> PLN | F62: =SUM(G62:AP62) -> 204795 | G62: =SUM(G60:G61) -> 0 | H62: =SUM(H60:H61) -> 5535 | I62: 11070 | J62: 11070 | K62: 11070 | L62: 11070 | M62: 11070 | N62: 11070 | O62: 11070 | P62: 11070 | Q62: 11070 | R62: 11070 | S62: 11070 | T62: 11070 | U62: 11070 | V62: 11070 | W62: 11070 | X62: 11070 | Y62: 11070 | Z62: 11070 | AA62: 0 | AB62: 0 | AC62: 0 | AD62: 0 | AE62: 0 | AF62: 0 | AG62: 0 | AH62: 0 | AI62: 0 | AJ62: 0 | AK62: 0 | AL62: 0 | AM62: 0 | AN62: 0 | AO62: 0 | AP62: 0 | AR62: Total cost incl. VAT | AS62: […] | AT62: […] | AU62: […] | AV62: […] | AW62: […] | AX62: […] | AY62: […] | AZ62: […] | BA62: […] | BC62: EUR | BD62: PLN | BE62: […] | BF62: […] | BG62: […] | BH62: […] | BI62: […] | BJ62: […] | BK62: […] | BL62: […]
D64: =INDEX($AR64:$BA64,MATCH(General!$F$14,$AR$4:$BA$4,0)) -> External sub-contracting | E64: =Config!$I$141 -> Unit | F64: Sum | G64: =Config!I$1 -> 2026 | H64: =Config!J$1 -> 2027 | I64: =Config!K$1 -> 2028 | J64: =Config!L$1 -> 2029 | K64: =Config!M$1 -> 2030 | L64: =Config!N$1 -> 2031 | M64: =Config!O$1 -> 2032 | N64: =Config!P$1 -> 2033 | O64: =Config!Q$1 -> 2034 | P64: =Config!R$1 -> 2035 | Q64: =Config!S$1 -> 2036 | R64: =Config!T$1 -> 2037 | S64: =Config!U$1 -> 2038 | T64: =Config!V$1 -> 2039 | U64: =Config!W$1 -> 2040 | V64: =Config!X$1 -> 2041 | W64: =Config!Y$1 -> 2042 | X64: =Config!Z$1 -> 2043 | Y64: =Config!AA$1 -> 2044 | Z64: =Config!AB$1 -> 2045 | AA64: =Config!AC$1 ->  | AB64: =Config!AD$1 ->  | AC64: =Config!AE$1 ->  | AD64: =Config!AF$1 ->  | AE64: =Config!AG$1 ->  | AF64: =Config!AH$1 ->  | AG64: =Config!AI$1 ->  | AH64: =Config!AJ$1 ->  | AI64: =Config!AK$1 ->  | AJ64: =Config!AL$1 ->  | AK64: =Config!AM$1 ->  | AL64: =Config!AN$1 ->  | AM64: =Config!AO$1 ->  | AN64: =Config!AP$1 ->  | AO64: =Config!AQ$1 ->  | AP64: =Config!AR$1 ->  | AR64: External sub-contracting | AS64: […] | AT64: […] | AU64: […] | AV64: […] | AW64: […] | AX64: […] | AY64: […] | AZ64: […] | BA64: […]
G65: =Config!I$2 -> Construction | H65: =Config!J$2 -> Construction | I65: =Config!K$2 -> Operation | J65: =Config!L$2 -> Operation | K65: =Config!M$2 -> Operation | L65: =Config!N$2 -> Operation | M65: =Config!O$2 -> Operation | N65: =Config!P$2 -> Operation | O65: =Config!Q$2 -> Operation | P65: =Config!R$2 -> Operation | Q65: =Config!S$2 -> Operation | R65: =Config!T$2 -> Operation | S65: =Config!U$2 -> Operation | T65: =Config!V$2 -> Operation | U65: =Config!W$2 -> Operation | V65: =Config!X$2 -> Operation | W65: =Config!Y$2 -> Operation | X65: =Config!Z$2 -> Operation | Y65: =Config!AA$2 -> Operation | Z65: =Config!AB$2 -> Operation | AA65: =Config!AC$2 ->  | AB65: =Config!AD$2 ->  | AC65: =Config!AE$2 ->  | AD65: =Config!AF$2 ->  | AE65: =Config!AG$2 ->  | AF65: =Config!AH$2 ->  | AG65: =Config!AI$2 ->  | AH65: =Config!AJ$2 ->  | AI65: =Config!AK$2 ->  | AJ65: =Config!AL$2 ->  | AK65: =Config!AM$2 ->  | AL65: =Config!AN$2 ->  | AM65: =Config!AO$2 ->  | AN65: =Config!AP$2 ->  | AO65: =Config!AQ$2 ->  | AP65: =Config!AR$2 -> 
B66: =IF(BN66<>0,"!","") -> ! | D66: […] | E66: =INDEX($BC66:$BL66,MATCH(General!$F$16,$BC$4:$BL$4,0)) -> PLN | F66: =SUM(G66:AP66) -> 0 | BC66: EUR | BD66: PLN | BE66: […] | BF66: […] | BG66: […] | BH66: […] | BI66: […] | BJ66: […] | BK66: […] | BL66: […] | BN66: =COUNTIFS($G66:$AP66,"",$G$64:$AP$64,"<="&Config!$F$12) -> 20
B67: ! | D67: […] | E67: =INDEX($BC67:$BL67,MATCH(General!$F$16,$BC$4:$BL$4,0)) -> PLN | F67: 0 | BC67: EUR | BD67: PLN | BE67: […] | BF67: […] | BG67: […] | BH67: […] | BI67: […] | BJ67: […] | BK67: […] | BL67: […] | BN67: =COUNTIFS($G67:$AP67,"",$G$64:$AP$64,"<="&Config!$F$12) -> 20
B68: ! | D68: […] | E68: =INDEX($BC68:$BL68,MATCH(General!$F$16,$BC$4:$BL$4,0)) -> PLN | F68: 0 | BC68: EUR | BD68: PLN | BE68: […] | BF68: […] | BG68: […] | BH68: […] | BI68: […] | BJ68: […] | BK68: […] | BL68: […] | BN68: =COUNTIFS($G68:$AP68,"",$G$64:$AP$64,"<="&Config!$F$12) -> 20
B69: ! | D69: […] | E69: =INDEX($BC69:$BL69,MATCH(General!$F$16,$BC$4:$BL$4,0)) -> PLN | F69: 0 | BC69: EUR | BD69: PLN | BE69: […] | BF69: […] | BG69: […] | BH69: […] | BI69: […] | BJ69: […] | BK69: […] | BL69: […] | BN69: =COUNTIFS($G69:$AP69,"",$G$64:$AP$64,"<="&Config!$F$12) -> 20
B70: ! | D70: […] | E70: =INDEX($BC70:$BL70,MATCH(General!$F$16,$BC$4:$BL$4,0)) -> PLN | F70: 0 | BC70: EUR | BD70: PLN | BE70: […] | BF70: […] | BG70: […] | BH70: […] | BI70: […] | BJ70: […] | BK70: […] | BL70: […] | BN70: =COUNTIFS($G70:$AP70,"",$G$64:$AP$64,"<="&Config!$F$12) -> 20
D71: =INDEX($AR71:$BA71,MATCH(General!$F$14,$AR$4:$BA$4,0)) -> Total cost | E71: =INDEX($BC71:$BL71,MATCH(General!$F$16,$BC$4:$BL$4,0)) -> PLN | F71: =SUM(G71:AP71) -> 0 | G71: =SUM(G66:G70) -> 0 | H71: =SUM(H66:H70) -> 0 | I71: 0 | J71: 0 | K71: 0 | L71: 0 | M71: 0 | N71: 0 | O71: 0 | P71: 0 | Q71: 0 | R71: 0 | S71: 0 | T71: 0 | U71: 0 | V71: 0 | W71: 0 | X71: 0 | Y71: 0 | Z71: 0 | AA71: 0 | AB71: 0 | AC71: 0 | AD71: 0 | AE71: 0 | AF71: 0 | AG71: 0 | AH71: 0 | AI71: 0 | AJ71: 0 | AK71: 0 | AL71: 0 | AM71: 0 | AN71: 0 | AO71: 0 | AP71: 0 | AR71: Total cost | AS71: […] | AT71: […] | AU71: […] | AV71: […] | AW71: […] | AX71: […] | AY71: […] | AZ71: […] | BA71: […] | BC71: EUR | BD71: PLN | BE71: […] | BF71: […] | BG71: […] | BH71: […] | BI71: […] | BJ71: […] | BK71: […] | BL71: […]
B72: ! | D72: =INDEX($AR72:$BA72,MATCH(General!$F$14,$AR$4:$BA$4,0)) -> VAT expense | E72: =INDEX($BC72:$BL72,MATCH(General!$F$16,$BC$4:$BL$4,0)) -> PLN | F72: =SUM(G72:AP72) -> 0 | AR72: VAT expense | AS72: […] | AT72: […] | AU72: […] | AV72: […] | AW72: […] | AX72: […] | AY72: […] | AZ72: […] | BA72: […] | BC72: EUR | BD72: PLN | BE72: […] | BF72: […] | BG72: […] | BH72: […] | BI72: […] | BJ72: […] | BK72: […] | BL72: […] | BN72: =COUNTIFS($G72:$AP72,"",$G$75:$AP$75,"<="&Config!$F$12) -> 20
D73: =INDEX($AR73:$BA73,MATCH(General!$F$14,$AR$4:$BA$4,0)) -> Total cost incl. VAT | E73: =INDEX($BC73:$BL73,MATCH(General!$F$16,$BC$4:$BL$4,0)) -> PLN | F73: =SUM(G73:AP73) -> 0 | G73: =SUM(G71:G72) -> 0 | H73: =SUM(H71:H72) -> 0 | I73: =SUM(I71:I72) -> 0 | J73: =SUM(J71:J72) -> 0 | K73: =SUM(K71:K72) -> 0 | L73: =SUM(L71:L72) -> 0 | M73: =SUM(M71:M72) -> 0 | N73: =SUM(N71:N72) -> 0 | O73: =SUM(O71:O72) -> 0 | P73: =SUM(P71:P72) -> 0 | Q73: =SUM(Q71:Q72) -> 0 | R73: =SUM(R71:R72) -> 0 | S73: =SUM(S71:S72) -> 0 | T73: =SUM(T71:T72) -> 0 | U73: =SUM(U71:U72) -> 0 | V73: =SUM(V71:V72) -> 0 | W73: =SUM(W71:W72) -> 0 | X73: =SUM(X71:X72) -> 0 | Y73: =SUM(Y71:Y72) -> 0 | Z73: =SUM(Z71:Z72) -> 0 | AA73: =SUM(AA71:AA72) -> 0 | AB73: =SUM(AB71:AB72) -> 0 | AC73: =SUM(AC71:AC72) -> 0 | AD73: =SUM(AD71:AD72) -> 0 | AE73: =SUM(AE71:AE72) -> 0 | AF73: =SUM(AF71:AF72) -> 0 | AG73: =SUM(AG71:AG72) -> 0 | AH73: =SUM(AH71:AH72) -> 0 | AI73: =SUM(AI71:AI72) -> 0 | AJ73: =SUM(AJ71:AJ72) -> 0 | AK73: =SUM(AK71:AK72) -> 0 | AL73: =SUM(AL71:AL72) -> 0 | AM73: =SUM(AM71:AM72) -> 0 | AN73: =SUM(AN71:AN72) -> 0 | AO73: =SUM(AO71:AO72) -> 0 | AP73: =SUM(AP71:AP72) -> 0 | AR73: Total cost incl. VAT | AS73: […] | AT73: […] | AU73: […] | AV73: […] | AW73: […] | AX73: […] | AY73: […] | AZ73: […] | BA73: […] | BC73: EUR | BD73: PLN | BE73: […] | BF73: […] | BG73: […] | BH73: […] | BI73: […] | BJ73: […] | BK73: […] | BL73: […]
D75: =INDEX($AR75:$BA75,MATCH(General!$F$14,$AR$4:$BA$4,0)) -> Other | E75: =Config!$I$141 -> Unit | F75: Sum | G75: =Config!I$1 -> 2026 | H75: =Config!J$1 -> 2027 | I75: =Config!K$1 -> 2028 | J75: =Config!L$1 -> 2029 | K75: =Config!M$1 -> 2030 | L75: =Config!N$1 -> 2031 | M75: =Config!O$1 -> 2032 | N75: =Config!P$1 -> 2033 | O75: =Config!Q$1 -> 2034 | P75: =Config!R$1 -> 2035 | Q75: =Config!S$1 -> 2036 | R75: =Config!T$1 -> 2037 | S75: =Config!U$1 -> 2038 | T75: =Config!V$1 -> 2039 | U75: =Config!W$1 -> 2040 | V75: =Config!X$1 -> 2041 | W75: =Config!Y$1 -> 2042 | X75: =Config!Z$1 -> 2043 | Y75: =Config!AA$1 -> 2044 | Z75: =Config!AB$1 -> 2045 | AA75: =Config!AC$1 ->  | AB75: =Config!AD$1 ->  | AC75: =Config!AE$1 ->  | AD75: =Config!AF$1 ->  | AE75: =Config!AG$1 ->  | AF75: =Config!AH$1 ->  | AG75: =Config!AI$1 ->  | AH75: =Config!AJ$1 ->  | AI75: =Config!AK$1 ->  | AJ75: =Config!AL$1 ->  | AK75: =Config!AM$1 ->  | AL75: =Config!AN$1 ->  | AM75: =Config!AO$1 ->  | AN75: =Config!AP$1 ->  | AO75: =Config!AQ$1 ->  | AP75: =Config!AR$1 ->  | AR75: Other | AS75: […] | AT75: […] | AU75: […] | AV75: […] | AW75: […] | AX75: […] | AY75: […] | AZ75: […] | BA75: […]
G76: =Config!I$2 -> Construction | H76: =Config!J$2 -> Construction | I76: =Config!K$2 -> Operation | J76: =Config!L$2 -> Operation | K76: =Config!M$2 -> Operation | L76: =Config!N$2 -> Operation | M76: =Config!O$2 -> Operation | N76: =Config!P$2 -> Operation | O76: =Config!Q$2 -> Operation | P76: =Config!R$2 -> Operation | Q76: =Config!S$2 -> Operation | R76: =Config!T$2 -> Operation | S76: =Config!U$2 -> Operation | T76: =Config!V$2 -> Operation | U76: =Config!W$2 -> Operation | V76: =Config!X$2 -> Operation | W76: =Config!Y$2 -> Operation | X76: =Config!Z$2 -> Operation | Y76: =Config!AA$2 -> Operation | Z76: =Config!AB$2 -> Operation | AA76: =Config!AC$2 ->  | AB76: =Config!AD$2 ->  | AC76: =Config!AE$2 ->  | AD76: =Config!AF$2 ->  | AE76: =Config!AG$2 ->  | AF76: =Config!AH$2 ->  | AG76: =Config!AI$2 ->  | AH76: =Config!AJ$2 ->  | AI76: =Config!AK$2 ->  | AJ76: =Config!AL$2 ->  | AK76: =Config!AM$2 ->  | AL76: =Config!AN$2 ->  | AM76: =Config!AO$2 ->  | AN76: =Config!AP$2 ->  | AO76: =Config!AQ$2 ->  | AP76: =Config!AR$2 -> 
B77: =IF(BN77<>0,"!","") -> ! | D77: […] | E77: =INDEX($BC77:$BL77,MATCH(General!$F$16,$BC$4:$BL$4,0)) -> PLN | F77: =SUM(G77:AP77) -> 0 | BC77: EUR | BD77: PLN | BE77: […] | BF77: […] | BG77: […] | BH77: […] | BI77: […] | BJ77: […] | BK77: […] | BL77: […] | BN77: =COUNTIFS($G77:$AP77,"",$G$75:$AP$75,"<="&Config!$F$12) -> 20
B78: ! | D78: […] | E78: =INDEX($BC78:$BL78,MATCH(General!$F$16,$BC$4:$BL$4,0)) -> PLN | F78: 0 | BC78: EUR | BD78: PLN | BE78: […] | BF78: […] | BG78: […] | BH78: […] | BI78: […] | BJ78: […] | BK78: […] | BL78: […] | BN78: =COUNTIFS($G78:$AP78,"",$G$75:$AP$75,"<="&Config!$F$12) -> 20
B79: ! | D79: […] | E79: =INDEX($BC79:$BL79,MATCH(General!$F$16,$BC$4:$BL$4,0)) -> PLN | F79: 0 | BC79: EUR | BD79: PLN | BE79: […] | BF79: […] | BG79: […] | BH79: […] | BI79: […] | BJ79: […] | BK79: […] | BL79: […] | BN79: =COUNTIFS($G79:$AP79,"",$G$75:$AP$75,"<="&Config!$F$12) -> 20
B80: ! | D80: […] | E80: =INDEX($BC80:$BL80,MATCH(General!$F$16,$BC$4:$BL$4,0)) -> PLN | F80: 0 | BC80: EUR | BD80: PLN | BE80: […] | BF80: […] | BG80: […] | BH80: […] | BI80: […] | BJ80: […] | BK80: […] | BL80: […] | BN80: =COUNTIFS($G80:$AP80,"",$G$75:$AP$75,"<="&Config!$F$12) -> 20
B81: ! | D81: […] | E81: =INDEX($BC81:$BL81,MATCH(General!$F$16,$BC$4:$BL$4,0)) -> PLN | F81: 0 | BC81: EUR | BD81: PLN | BE81: […] | BF81: […] | BG81: […] | BH81: […] | BI81: […] | BJ81: […] | BK81: […] | BL81: […] | BN81: =COUNTIFS($G81:$AP81,"",$G$75:$AP$75,"<="&Config!$F$12) -> 20
D82: =INDEX($AR82:$BA82,MATCH(General!$F$14,$AR$4:$BA$4,0)) -> Total cost | E82: =INDEX($BC82:$BL82,MATCH(General!$F$16,$BC$4:$BL$4,0)) -> PLN | F82: =SUM(G82:AP82) -> 0 | G82: =SUM(G77:G81) -> 0 | H82: =SUM(H77:H81) -> 0 | I82: 0 | J82: 0 | K82: 0 | L82: 0 | M82: 0 | N82: 0 | O82: 0 | P82: 0 | Q82: 0 | R82: 0 | S82: 0 | T82: 0 | U82: 0 | V82: 0 | W82: 0 | X82: 0 | Y82: 0 | Z82: 0 | AA82: 0 | AB82: 0 | AC82: 0 | AD82: 0 | AE82: 0 | AF82: 0 | AG82: 0 | AH82: 0 | AI82: 0 | AJ82: 0 | AK82: 0 | AL82: 0 | AM82: 0 | AN82: 0 | AO82: 0 | AP82: 0 | AR82: Total cost | AS82: […] | AT82: […] | AU82: […] | AV82: […] | AW82: […] | AX82: […] | AY82: […] | AZ82: […] | BA82: […] | BC82: EUR | BD82: PLN | BE82: […] | BF82: […] | BG82: […] | BH82: […] | BI82: […] | BJ82: […] | BK82: […] | BL82: […]
B83: =IF(BN83<>0,"!","") -> ! | D83: =INDEX($AR83:$BA83,MATCH(General!$F$14,$AR$4:$BA$4,0)) -> VAT expense | E83: =INDEX($BC83:$BL83,MATCH(General!$F$16,$BC$4:$BL$4,0)) -> PLN | F83: =SUM(G83:AP83) -> 0 | AR83: VAT expense | AS83: […] | AT83: […] | AU83: […] | AV83: […] | AW83: […] | AX83: […] | AY83: […] | AZ83: […] | BA83: […] | BC83: EUR | BD83: PLN | BE83: […] | BF83: […] | BG83: […] | BH83: […] | BI83: […] | BJ83: […] | BK83: […] | BL83: […] | BN83: =COUNTIFS($G83:$AP83,"",$G$75:$AP$75,"<="&Config!$F$12) -> 20
D84: =INDEX($AR84:$BA84,MATCH(General!$F$14,$AR$4:$BA$4,0)) -> Total cost incl. VAT | E84: =INDEX($BC84:$BL84,MATCH(General!$F$16,$BC$4:$BL$4,0)) -> PLN | F84: =SUM(G84:AP84) -> 0 | G84: =SUM(G82:G83) -> 0 | H84: =SUM(H82:H83) -> 0 | I84: =SUM(I82:I83) -> 0 | J84: =SUM(J82:J83) -> 0 | K84: =SUM(K82:K83) -> 0 | L84: =SUM(L82:L83) -> 0 | M84: =SUM(M82:M83) -> 0 | N84: =SUM(N82:N83) -> 0 | O84: =SUM(O82:O83) -> 0 | P84: =SUM(P82:P83) -> 0 | Q84: =SUM(Q82:Q83) -> 0 | R84: =SUM(R82:R83) -> 0 | S84: =SUM(S82:S83) -> 0 | T84: =SUM(T82:T83) -> 0 | U84: =SUM(U82:U83) -> 0 | V84: =SUM(V82:V83) -> 0 | W84: =SUM(W82:W83) -> 0 | X84: =SUM(X82:X83) -> 0 | Y84: =SUM(Y82:Y83) -> 0 | Z84: =SUM(Z82:Z83) -> 0 | AA84: =SUM(AA82:AA83) -> 0 | AB84: =SUM(AB82:AB83) -> 0 | AC84: =SUM(AC82:AC83) -> 0 | AD84: =SUM(AD82:AD83) -> 0 | AE84: =SUM(AE82:AE83) -> 0 | AF84: =SUM(AF82:AF83) -> 0 | AG84: =SUM(AG82:AG83) -> 0 | AH84: =SUM(AH82:AH83) -> 0 | AI84: =SUM(AI82:AI83) -> 0 | AJ84: =SUM(AJ82:AJ83) -> 0 | AK84: =SUM(AK82:AK83) -> 0 | AL84: =SUM(AL82:AL83) -> 0 | AM84: =SUM(AM82:AM83) -> 0 | AN84: =SUM(AN82:AN83) -> 0 | AO84: =SUM(AO82:AO83) -> 0 | AP84: =SUM(AP82:AP83) -> 0 | AR84: Total cost incl. VAT | AS84: […] | AT84: […] | AU84: […] | AV84: […] | AW84: […] | AX84: […] | AY84: […] | AZ84: […] | BA84: […] | BC84: EUR | BD84: PLN | BE84: […] | BF84: […] | BG84: […] | BH84: […] | BI84: […] | BJ84: […] | BK84: […] | BL84: […]
A86: =INDEX($AR86:$BA86,MATCH(General!$F$14,$AR$4:$BA$4,0)) -> Operating costs - costs after energy renovation | AR86: Operating costs - costs after energy renovation | AS86: […] | AT86: […] | AU86: […] | AV86: […] | AW86: […] | AX86: […] | AY86: […] | AZ86: […] | BA86: […]
D88: =INDEX($AR88:$BA88,MATCH(General!$F$14,$AR$4:$BA$4,0)) -> Energy consumption - by energy carrier | E88: =Config!$I$141 -> Unit | F88: Sum | G88: =Config!I$1 -> 2026 | H88: =Config!J$1 -> 2027 | I88: =Config!K$1 -> 2028 | J88: =Config!L$1 -> 2029 | K88: =Config!M$1 -> 2030 | L88: =Config!N$1 -> 2031 | M88: =Config!O$1 -> 2032 | N88: =Config!P$1 -> 2033 | O88: =Config!Q$1 -> 2034 | P88: =Config!R$1 -> 2035 | Q88: =Config!S$1 -> 2036 | R88: =Config!T$1 -> 2037 | S88: =Config!U$1 -> 2038 | T88: =Config!V$1 -> 2039 | U88: =Config!W$1 -> 2040 | V88: =Config!X$1 -> 2041 | W88: =Config!Y$1 -> 2042 | X88: =Config!Z$1 -> 2043 | Y88: =Config!AA$1 -> 2044 | Z88: =Config!AB$1 -> 2045 | AA88: =Config!AC$1 ->  | AB88: =Config!AD$1 ->  | AC88: =Config!AE$1 ->  | AD88: =Config!AF$1 ->  | AE88: =Config!AG$1 ->  | AF88: =Config!AH$1 ->  | AG88: =Config!AI$1 ->  | AH88: =Config!AJ$1 ->  | AI88: =Config!AK$1 ->  | AJ88: =Config!AL$1 ->  | AK88: =Config!AM$1 ->  | AL88: =Config!AN$1 ->  | AM88: =Config!AO$1 ->  | AN88: =Config!AP$1 ->  | AO88: =Config!AQ$1 ->  | AP88: =Config!AR$1 ->  | AR88: Energy consumption - by energy carrier | AS88: […] | AT88: […] | AU88: […] | AV88: […] | AW88: […] | AX88: […] | AY88: […] | AZ88: […] | BA88: […]
G89: =Config!I$2 -> Construction | H89: =Config!J$2 -> Construction | I89: =Config!K$2 -> Operation | J89: =Config!L$2 -> Operation | K89: =Config!M$2 -> Operation | L89: =Config!N$2 -> Operation | M89: =Config!O$2 -> Operation | N89: =Config!P$2 -> Operation | O89: =Config!Q$2 -> Operation | P89: =Config!R$2 -> Operation | Q89: =Config!S$2 -> Operation | R89: =Config!T$2 -> Operation | S89: =Config!U$2 -> Operation | T89: =Config!V$2 -> Operation | U89: =Config!W$2 -> Operation | V89: =Config!X$2 -> Operation | W89: =Config!Y$2 -> Operation | X89: =Config!Z$2 -> Operation | Y89: =Config!AA$2 -> Operation | Z89: =Config!AB$2 -> Operation | AA89: =Config!AC$2 ->  | AB89: =Config!AD$2 ->  | AC89: =Config!AE$2 ->  | AD89: =Config!AF$2 ->  | AE89: =Config!AG$2 ->  | AF89: =Config!AH$2 ->  | AG89: =Config!AI$2 ->  | AH89: =Config!AJ$2 ->  | AI89: =Config!AK$2 ->  | AJ89: =Config!AL$2 ->  | AK89: =Config!AM$2 ->  | AL89: =Config!AN$2 ->  | AM89: =Config!AO$2 ->  | AN89: =Config!AP$2 ->  | AO89: =Config!AQ$2 ->  | AP89: =Config!AR$2 -> 
D90: =INDEX($AR90:$BA90,MATCH(General!$F$14,$AR$4:$BA$4,0)) -> Electricity | AR90: Electricity | AS90: […] | AT90: […] | AU90: […] | AV90: […] | AW90: […] | AX90: […] | AY90: […] | AZ90: […] | BA90: […]
B91: =IF(BN91<>0,"!","") -> ! | D91: =INDEX($AR91:$BA91,MATCH(General!$F$14,$AR$4:$BA$4,0)) -> Quantity | E91: =INDEX($BC91:$BL91,MATCH(General!$F$16,$BC$4:$BL$4,0)) -> kWh | F91: =SUM(G91:AP91) -> 29622083 | H91: 1559057 | I91: 1559057 | J91: 1559057 | K91: 1559057 | L91: 1559057 | M91: 1559057 | N91: 1559057 | O91: 1559057 | P91: 1559057 | Q91: 1559057 | R91: 1559057 | S91: 1559057 | T91: 1559057 | U91: 1559057 | V91: 1559057 | W91: 1559057 | X91: 1559057 | Y91: 1559057 | Z91: 1559057 | AR91: Quantity | AS91: […] | AT91: […] | AU91: […] | AV91: […] | AW91: […] | AX91: […] | AY91: […] | AZ91: […] | BA91: […] | BC91: kWh | BD91: kWh | BE91: […] | BF91: […] | BG91: […] | BH91: […] | BI91: […] | BJ91: […] | BK91: […] | BL91: […] | BN91: =COUNTIFS($G91:$AP91,"",$G$88:$AP$88,"<="&Config!$F$12) -> 1
B92: ! | D92: =INDEX($AR92:$BA92,MATCH(General!$F$14,$AR$4:$BA$4,0)) -> Price without taxes and subsidies | E92: =INDEX($BC92:$BL92,MATCH(General!$F$16,$BC$4:$BL$4,0)) -> PLN / kWh | H92: 0.5 | I92: 0.5 | J92: 0.5 | K92: 0.5 | L92: 0.5 | M92: 0.5 | N92: 0.5 | O92: 0.5 | P92: 0.5 | Q92: 0.5 | R92: 0.5 | S92: 0.5 | T92: 0.5 | U92: 0.5 | V92: 0.5 | W92: 0.5 | X92: 0.5 | Y92: 0.5 | Z92: 0.5 | AR92: Price without taxes and subsidies | AS92: […] | AT92: […] | AU92: […] | AV92: […] | AW92: […] | AX92: […] | AY92: […] | AZ92: […] | BA92: […] | BC92: EUR / kWh | BD92: PLN / kWh | BE92: […] | BF92: […] | BG92: […] | BH92: […] | BI92: […] | BJ92: […] | BK92: […] | BL92: […] | BN92: =COUNTIFS($G92:$AP92,"",$G$88:$AP$88,"<="&Config!$F$12) -> 1
D93: =INDEX($AR93:$BA93,MATCH(General!$F$14,$AR$4:$BA$4,0)) -> Price with taxes and subsidies | E93: =INDEX($BC93:$BL93,MATCH(General!$F$16,$BC$4:$BL$4,0)) -> PLN / kWh | G93: =SUM(G92,G94:G95) -> 0 | H93: 0.615 | I93: 0.615 | J93: 0.615 | K93: 0.615 | L93: 0.615 | M93: 0.615 | N93: 0.615 | O93: 0.615 | P93: 0.615 | Q93: 0.615 | R93: 0.615 | S93: 0.615 | T93: 0.615 | U93: 0.615 | V93: 0.615 | W93: 0.615 | X93: 0.615 | Y93: 0.615 | Z93: 0.615 | AC93: 0 | AD93: 0 | AE93: 0 | AF93: 0 | AG93: 0 | AH93: 0 | AI93: 0 | AJ93: 0 | AK93: 0 | AL93: 0 | AM93: 0 | AN93: 0 | AO93: 0 | AP93: 0 | AR93: Price with taxes and subsidies | AS93: […] | AT93: […] | AU93: […] | AV93: […] | AW93: […] | AX93: […] | AY93: […] | AZ93: […] | BA93: […] | BC93: EUR / kWh | BD93: PLN / kWh | BE93: […] | BF93: […] | BG93: […] | BH93: […] | BI93: […] | BJ93: […] | BK93: […] | BL93: […]
B94: =IF(BN94<>0,"!","") -> ! | D94: =INDEX($AR94:$BA94,MATCH(General!$F$14,$AR$4:$BA$4,0)) -> VAT / special taxes | E94: =INDEX($BC94:$BL94,MATCH(General!$F$16,$BC$4:$BL$4,0)) -> PLN / kWh | H94: =H92*23% -> 0.115 | I94: =I92*23% -> 0.115 | J94: 0.115 | K94: 0.115 | L94: 0.115 | M94: 0.115 | N94: 0.115 | O94: 0.115 | P94: 0.115 | Q94: 0.115 | R94: 0.115 | S94: 0.115 | T94: 0.115 | U94: 0.115 | V94: 0.115 | W94: 0.115 | X94: 0.115 | Y94: 0.115 | Z94: 0.115 | AR94: VAT / special taxes | AS94: […] | AT94: […] | AU94: […] | AV94: […] | AW94: […] | AX94: […] | AY94: […] | AZ94: […] | BA94: […] | BC94: EUR / kWh | BD94: PLN / kWh | BE94: […] | BF94: […] | BG94: […] | BH94: […] | BI94: […] | BJ94: […] | BK94: […] | BL94: […] | BN94: =COUNTIFS($G94:$AP94,"",$G$88:$AP$88,"<="&Config!$F$12) -> 1
B95: ! | D95: =INDEX($AR95:$BA95,MATCH(General!$F$14,$AR$4:$BA$4,0)) -> Subsidies | E95: =INDEX($BC95:$BL95,MATCH(General!$F$16,$BC$4:$BL$4,0)) -> PLN / kWh | AR95: Subsidies | AS95: […] | AT95: […] | AU95: […] | AV95: […] | AW95: […] | AX95: […] | AY95: […] | AZ95: […] | BA95: […] | BC95: EUR / kWh | BD95: PLN / kWh | BE95: […] | BF95: […] | BG95: […] | BH95: […] | BI95: […] | BJ95: […] | BK95: […] | BL95: […] | BN95: =COUNTIFS($G95:$AP95,"",$G$88:$AP$88,"<="&Config!$F$12) -> 20
D96: =INDEX($AR96:$BA96,MATCH(General!$F$14,$AR$4:$BA$4,0)) -> Gas | AR96: Gas | AS96: […] | AT96: […] | AU96: […] | AV96: […] | AW96: […] | AX96: […] | AY96: […] | AZ96: […] | BA96: […]
B97: =IF(BN97<>0,"!","") -> ! | D97: =INDEX($AR97:$BA97,MATCH(General!$F$14,$AR$4:$BA$4,0)) -> Quantity | E97: =INDEX($BC97:$BL97,MATCH(General!$F$16,$BC$4:$BL$4,0)) -> kWh | F97: =SUM(G97:AP97) -> 0 | AR97: Quantity | AS97: […] | AT97: […] | AU97: […] | AV97: […] | AW97: […] | AX97: […] | AY97: […] | AZ97: […] | BA97: […] | BC97: kWh | BD97: kWh | BE97: […] | BF97: […] | BG97: […] | BH97: […] | BI97: […] | BJ97: […] | BK97: […] | BL97: […] | BN97: =COUNTIFS($G97:$AP97,"",$G$88:$AP$88,"<="&Config!$F$12) -> 20
B98: ! | D98: =INDEX($AR98:$BA98,MATCH(General!$F$14,$AR$4:$BA$4,0)) -> Price without taxes and subsidies | E98: =INDEX($BC98:$BL98,MATCH(General!$F$16,$BC$4:$BL$4,0)) -> PLN / kWh | H98: 0.037631491 | I98: 0.037631491 | J98: 0.037631491 | K98: 0.037631491 | L98: 0.037631491 | M98: 0.037631491 | N98: 0.037631491 | O98: 0.037631491 | P98: 0.037631491 | Q98: 0.037631491 | R98: 0.037631491 | S98: 0.037631491 | T98: 0.037631491 | U98: 0.037631491 | V98: 0.037631491 | W98: 0.037631491 | X98: 0.037631491 | Y98: 0.037631491 | Z98: 0.037631491 | AR98: Price without taxes and subsidies | AS98: […] | AT98: […] | AU98: […] | AV98: […] | AW98: […] | AX98: […] | AY98: […] | AZ98: […] | BA98: […] | BC98: EUR / kWh | BD98: PLN / kWh | BE98: […] | BF98: […] | BG98: […] | BH98: […] | BI98: […] | BJ98: […] | BK98: […] | BL98: […] | BN98: =COUNTIFS($G98:$AP98,"",$G$88:$AP$88,"<="&Config!$F$12) -> 1
D99: =INDEX($AR99:$BA99,MATCH(General!$F$14,$AR$4:$BA$4,0)) -> Price with taxes and subsidies | E99: =INDEX($BC99:$BL99,MATCH(General!$F$16,$BC$4:$BL$4,0)) -> PLN / kWh | G99: =SUM(G98,G100:G101) -> 0 | H99: 0.04628673393 | I99: 0.04628673393 | J99: 0.04628673393 | K99: 0.04628673393 | L99: 0.04628673393 | M99: 0.04628673393 | N99: 0.04628673393 | O99: 0.04628673393 | P99: 0.04628673393 | Q99: 0.04628673393 | R99: 0.04628673393 | S99: 0.04628673393 | T99: 0.04628673393 | U99: 0.04628673393 | V99: 0.04628673393 | W99: 0.04628673393 | X99: 0.04628673393 | Y99: 0.04628673393 | Z99: 0.04628673393 | AC99: 0 | AD99: 0 | AE99: 0 | AF99: 0 | AG99: 0 | AH99: 0 | AI99: 0 | AJ99: 0 | AK99: 0 | AL99: 0 | AM99: 0 | AN99: 0 | AO99: 0 | AP99: 0 | AR99: Price with taxes and subsidies | AS99: […] | AT99: […] | AU99: […] | AV99: […] | AW99: […] | AX99: […] | AY99: […] | AZ99: […] | BA99: […] | BC99: EUR / kWh | BD99: PLN / kWh | BE99: […] | BF99: […] | BG99: […] | BH99: […] | BI99: […] | BJ99: […] | BK99: […] | BL99: […]
B100: =IF(BN100<>0,"!","") -> ! | D100: =INDEX($AR100:$BA100,MATCH(General!$F$14,$AR$4:$BA$4,0)) -> VAT / special taxes | E100: =INDEX($BC100:$BL100,MATCH(General!$F$16,$BC$4:$BL$4,0)) -> PLN / kWh | H100: =H98*23% -> 0.00865524293 | I100: =I98*23% -> 0.00865524293 | J100: 0.00865524293 | K100: 0.00865524293 | L100: 0.00865524293 | M100: 0.00865524293 | N100: 0.00865524293 | O100: 0.00865524293 | P100: 0.00865524293 | Q100: 0.00865524293 | R100: 0.00865524293 | S100: 0.00865524293 | T100: 0.00865524293 | U100: 0.00865524293 | V100: 0.00865524293 | W100: 0.00865524293 | X100: 0.00865524293 | Y100: 0.00865524293 | Z100: 0.00865524293 | AR100: VAT / special taxes | AS100: […] | AT100: […] | AU100: […] | AV100: […] | AW100: […] | AX100: […] | AY100: […] | AZ100: […] | BA100: […] | BC100: EUR / kWh | BD100: PLN / kWh | BE100: […] | BF100: […] | BG100: […] | BH100: […] | BI100: […] | BJ100: […] | BK100: […] | BL100: […] | BN100: =COUNTIFS($G100:$AP100,"",$G$88:$AP$88,"<="&Config!$F$12) -> 1
B101: ! | D101: =INDEX($AR101:$BA101,MATCH(General!$F$14,$AR$4:$BA$4,0)) -> Subsidies | E101: =INDEX($BC101:$BL101,MATCH(General!$F$16,$BC$4:$BL$4,0)) -> PLN / kWh | AR101: Subsidies | AS101: […] | AT101: […] | AU101: […] | AV101: […] | AW101: […] | AX101: […] | AY101: […] | AZ101: […] | BA101: […] | BC101: EUR / kWh | BD101: PLN / kWh | BE101: […] | BF101: […] | BG101: […] | BH101: […] | BI101: […] | BJ101: […] | BK101: […] | BL101: […] | BN101: =COUNTIFS($G101:$AP101,"",$G$88:$AP$88,"<="&Config!$F$12) -> 20
D102: =INDEX($AR102:$BA102,MATCH(General!$F$14,$AR$4:$BA$4,0)) -> Fuel oil | AR102: Fuel oil | AS102: […] | AT102: […] | AU102: […] | AV102: […] | AW102: […] | AX102: […] | AY102: […] | AZ102: […] | BA102: […]
B103: =IF(BN103<>0,"!","") -> ! | D103: =INDEX($AR103:$BA103,MATCH(General!$F$14,$AR$4:$BA$4,0)) -> Quantity | E103: =INDEX($BC103:$BL103,MATCH(General!$F$16,$BC$4:$BL$4,0)) -> kWh | F103: =SUM(G103:AP103) -> 0 | AR103: Quantity | AS103: […] | AT103: […] | AU103: […] | AV103: […] | AW103: […] | AX103: […] | AY103: […] | AZ103: […] | BA103: […] | BC103: kWh | BD103: kWh | BE103: […] | BF103: […] | BG103: […] | BH103: […] | BI103: […] | BJ103: […] | BK103: […] | BL103: […] | BN103: =COUNTIFS($G103:$AP103,"",$G$88:$AP$88,"<="&Config!$F$12) -> 20
B104: ! | D104: =INDEX($AR104:$BA104,MATCH(General!$F$14,$AR$4:$BA$4,0)) -> Price without taxes and subsidies | E104: =INDEX($BC104:$BL104,MATCH(General!$F$16,$BC$4:$BL$4,0)) -> PLN / kWh | H104: 0.1102 | I104: 0.1102 | J104: 0.1102 | K104: 0.1102 | L104: 0.1102 | M104: 0.1102 | N104: 0.1102 | O104: 0.1102 | P104: 0.1102 | Q104: 0.1102 | R104: 0.1102 | S104: 0.1102 | T104: 0.1102 | U104: 0.1102 | V104: 0.1102 | W104: 0.1102 | X104: 0.1102 | Y104: 0.1102 | Z104: 0.1102 | AR104: Price without taxes and subsidies | AS104: […] | AT104: […] | AU104: […] | AV104: […] | AW104: […] | AX104: […] | AY104: […] | AZ104: […] | BA104: […] | BC104: EUR / kWh | BD104: PLN / kWh | BE104: […] | BF104: […] | BG104: […] | BH104: […] | BI104: […] | BJ104: […] | BK104: […] | BL104: […] | BN104: =COUNTIFS($G104:$AP104,"",$G$88:$AP$88,"<="&Config!$F$12) -> 1
D105: =INDEX($AR105:$BA105,MATCH(General!$F$14,$AR$4:$BA$4,0)) -> Price with taxes and subsidies | E105: =INDEX($BC105:$BL105,MATCH(General!$F$16,$BC$4:$BL$4,0)) -> PLN / kWh | G105: =SUM(G104,G106:G107) -> 0 | H105: 0.135546 | I105: 0.135546 | J105: 0.135546 | K105: 0.135546 | L105: 0.135546 | M105: 0.135546 | N105: 0.135546 | O105: 0.135546 | P105: 0.135546 | Q105: 0.135546 | R105: 0.135546 | S105: 0.135546 | T105: 0.135546 | U105: 0.135546 | V105: 0.135546 | W105: 0.135546 | X105: 0.135546 | Y105: 0.135546 | Z105: 0.135546 | AC105: 0 | AD105: 0 | AE105: 0 | AF105: 0 | AG105: 0 | AH105: 0 | AI105: 0 | AJ105: 0 | AK105: 0 | AL105: 0 | AM105: 0 | AN105: 0 | AO105: 0 | AP105: 0 | AR105: Price with taxes and subsidies | AS105: […] | AT105: […] | AU105: […] | AV105: […] | AW105: […] | AX105: […] | AY105: […] | AZ105: […] | BA105: […] | BC105: EUR / kWh | BD105: PLN / kWh | BE105: […] | BF105: […] | BG105: […] | BH105: […] | BI105: […] | BJ105: […] | BK105: […] | BL105: […]
B106: =IF(BN106<>0,"!","") -> ! | D106: =INDEX($AR106:$BA106,MATCH(General!$F$14,$AR$4:$BA$4,0)) -> VAT / special taxes | E106: =INDEX($BC106:$BL106,MATCH(General!$F$16,$BC$4:$BL$4,0)) -> PLN / kWh | H106: =H104*23% -> 0.025346 | I106: =I104*23% -> 0.025346 | J106: 0.025346 | K106: 0.025346 | L106: 0.025346 | M106: 0.025346 | N106: 0.025346 | O106: 0.025346 | P106: 0.025346 | Q106: 0.025346 | R106: 0.025346 | S106: 0.025346 | T106: 0.025346 | U106: 0.025346 | V106: 0.025346 | W106: 0.025346 | X106: 0.025346 | Y106: 0.025346 | Z106: 0.025346 | AR106: VAT / special taxes | AS106: […] | AT106: […] | AU106: […] | AV106: […] | AW106: […] | AX106: […] | AY106: […] | AZ106: […] | BA106: […] | BC106: EUR / kWh | BD106: PLN / kWh | BE106: […] | BF106: […] | BG106: […] | BH106: […] | BI106: […] | BJ106: […] | BK106: […] | BL106: […] | BN106: =COUNTIFS($G106:$AP106,"",$G$88:$AP$88,"<="&Config!$F$12) -> 1
B107: ! | D107: =INDEX($AR107:$BA107,MATCH(General!$F$14,$AR$4:$BA$4,0)) -> Subsidies | E107: =INDEX($BC107:$BL107,MATCH(General!$F$16,$BC$4:$BL$4,0)) -> PLN / kWh | AR107: Subsidies | AS107: […] | AT107: […] | AU107: […] | AV107: […] | AW107: […] | AX107: […] | AY107: […] | AZ107: […] | BA107: […] | BC107: EUR / kWh | BD107: PLN / kWh | BE107: […] | BF107: […] | BG107: […] | BH107: […] | BI107: […] | BJ107: […] | BK107: […] | BL107: […] | BN107: =COUNTIFS($G107:$AP107,"",$G$88:$AP$88,"<="&Config!$F$12) -> 20
D108: =INDEX($AR108:$BA108,MATCH(General!$F$14,$AR$4:$BA$4,0)) -> LPG | AR108: LPG | AS108: […] | AT108: […] | AU108: […] | AV108: […] | AW108: […] | AX108: […] | AY108: […] | AZ108: […] | BA108: […]
B109: =IF(BN109<>0,"!","") -> ! | D109: =INDEX($AR109:$BA109,MATCH(General!$F$14,$AR$4:$BA$4,0)) -> Quantity | E109: =INDEX($BC109:$BL109,MATCH(General!$F$16,$BC$4:$BL$4,0)) -> kWh | F109: =SUM(G109:AP109) -> 0 | H109: 0 | I109: 0 | J109: 0 | K109: 0 | L109: 0 | M109: 0 | N109: 0 | O109: 0 | P109: 0 | Q109: 0 | R109: 0 | S109: 0 | T109: 0 | U109: 0 | V109: 0 | W109: 0 | X109: 0 | Y109: 0 | Z109: 0 | AA109: 0 | AR109: Quantity | AS109: […] | AT109: […] | AU109: […] | AV109: […] | AW109: […] | AX109: […] | AY109: […] | AZ109: […] | BA109: […] | BC109: kWh | BD109: kWh | BE109: […] | BF109: […] | BG109: […] | BH109: […] | BI109: […] | BJ109: […] | BK109: […] | BL109: […] | BN109: =COUNTIFS($G109:$AP109,"",$G$88:$AP$88,"<="&Config!$F$12) -> 1
B110: ! | D110: =INDEX($AR110:$BA110,MATCH(General!$F$14,$AR$4:$BA$4,0)) -> Price without taxes and subsidies | E110: =INDEX($BC110:$BL110,MATCH(General!$F$16,$BC$4:$BL$4,0)) -> PLN / kWh | H110: 0 | I110: 0 | J110: 0 | K110: 0 | L110: 0 | M110: 0 | N110: 0 | O110: 0 | P110: 0 | Q110: 0 | R110: 0 | S110: 0 | T110: 0 | U110: 0 | V110: 0 | W110: 0 | X110: 0 | Y110: 0 | Z110: 0 | AA110: 0 | AR110: Price without taxes and subsidies | AS110: […] | AT110: […] | AU110: […] | AV110: […] | AW110: […] | AX110: […] | AY110: […] | AZ110: […] | BA110: […] | BC110: EUR / kWh | BD110: PLN / kWh | BE110: […] | BF110: […] | BG110: […] | BH110: […] | BI110: […] | BJ110: […] | BK110: […] | BL110: […] | BN110: =COUNTIFS($G110:$AP110,"",$G$88:$AP$88,"<="&Config!$F$12) -> 1
D111: =INDEX($AR111:$BA111,MATCH(General!$F$14,$AR$4:$BA$4,0)) -> Price with taxes and subsidies | E111: =INDEX($BC111:$BL111,MATCH(General!$F$16,$BC$4:$BL$4,0)) -> PLN / kWh | G111: =SUM(G110,G112:G113) -> 0 | H111: 0 | I111: 0 | J111: 0 | K111: 0 | L111: 0 | M111: 0 | N111: 0 | O111: 0 | P111: 0 | Q111: 0 | R111: 0 | S111: 0 | T111: 0 | U111: 0 | V111: 0 | W111: 0 | X111: 0 | Y111: 0 | Z111: 0 | AA111: 0 | AB111: 0 | AC111: 0 | AD111: 0 | AE111: 0 | AF111: 0 | AG111: 0 | AH111: 0 | AI111: 0 | AJ111: 0 | AK111: 0 | AL111: 0 | AM111: 0 | AN111: 0 | AO111: 0 | AP111: 0 | AR111: Price with taxes and subsidies | AS111: […] | AT111: […] | AU111: […] | AV111: […] | AW111: […] | AX111: […] | AY111: […] | AZ111: […] | BA111: […] | BC111: EUR / kWh | BD111: PLN / kWh | BE111: […] | BF111: […] | BG111: […] | BH111: […] | BI111: […] | BJ111: […] | BK111: […] | BL111: […]
B112: =IF(BN112<>0,"!","") -> ! | D112: =INDEX($AR112:$BA112,MATCH(General!$F$14,$AR$4:$BA$4,0)) -> VAT / special taxes | E112: =INDEX($BC112:$BL112,MATCH(General!$F$16,$BC$4:$BL$4,0)) -> PLN / kWh | AR112: VAT / special taxes | AS112: […] | AT112: […] | AU112: […] | AV112: […] | AW112: […] | AX112: […] | AY112: […] | AZ112: […] | BA112: […] | BC112: EUR / kWh | BD112: PLN / kWh | BE112: […] | BF112: […] | BG112: […] | BH112: […] | BI112: […] | BJ112: […] | BK112: […] | BL112: […] | BN112: =COUNTIFS($G112:$AP112,"",$G$88:$AP$88,"<="&Config!$F$12) -> 20
B113: ! | D113: =INDEX($AR113:$BA113,MATCH(General!$F$14,$AR$4:$BA$4,0)) -> Subsidies | E113: =INDEX($BC113:$BL113,MATCH(General!$F$16,$BC$4:$BL$4,0)) -> PLN / kWh | AR113: Subsidies | AS113: […] | AT113: […] | AU113: […] | AV113: […] | AW113: […] | AX113: […] | AY113: […] | AZ113: […] | BA113: […] | BC113: EUR / kWh | BD113: PLN / kWh | BE113: […] | BF113: […] | BG113: […] | BH113: […] | BI113: […] | BJ113: […] | BK113: […] | BL113: […] | BN113: =COUNTIFS($G113:$AP113,"",$G$88:$AP$88,"<="&Config!$F$12) -> 20
D114: =INDEX($AR114:$BA114,MATCH(General!$F$14,$AR$4:$BA$4,0)) -> District heating system | AR114: District heating system | AS114: […] | AT114: […] | AU114: […] | AV114: […] | AW114: […] | AX114: […] | AY114: […] | AZ114: […] | BA114: […]
B115: =IF(BN115<>0,"!","") -> ! | D115: =INDEX($AR115:$BA115,MATCH(General!$F$14,$AR$4:$BA$4,0)) -> Quantity | E115: =INDEX($BC115:$BL115,MATCH(General!$F$16,$BC$4:$BL$4,0)) -> kWh | F115: =SUM(G115:AP115) -> 5789099.55 | H115: =0.37*H35 -> 304689.45 | I115: =0.37*I35 -> 304689.45 | J115: 304689.45 | K115: 304689.45 | L115: 304689.45 | M115: 304689.45 | N115: 304689.45 | O115: 304689.45 | P115: 304689.45 | Q115: 304689.45 | R115: 304689.45 | S115: 304689.45 | T115: 304689.45 | U115: 304689.45 | V115: 304689.45 | W115: 304689.45 | X115: 304689.45 | Y115: 304689.45 | Z115: 304689.45 | AA115: 0 | AR115: Quantity | AS115: […] | AT115: […] | AU115: […] | AV115: […] | AW115: […] | AX115: […] | AY115: […] | AZ115: […] | BA115: […] | BC115: kWh | BD115: kWh | BE115: […] | BF115: […] | BG115: […] | BH115: […] | BI115: […] | BJ115: […] | BK115: […] | BL115: […] | BN115: =COUNTIFS($G115:$AP115,"",$G$88:$AP$88,"<="&Config!$F$12) -> 1
B116: ! | D116: =INDEX($AR116:$BA116,MATCH(General!$F$14,$AR$4:$BA$4,0)) -> Price without taxes and subsidies | E116: =INDEX($BC116:$BL116,MATCH(General!$F$16,$BC$4:$BL$4,0)) -> PLN / kWh | H116: 0.29 | I116: 0.29 | J116: 0.29 | K116: 0.29 | L116: 0.29 | M116: 0.29 | N116: 0.29 | O116: 0.29 | P116: 0.29 | Q116: 0.29 | R116: 0.29 | S116: 0.29 | T116: 0.29 | U116: 0.29 | V116: 0.29 | W116: 0.29 | X116: 0.29 | Y116: 0.29 | Z116: 0.29 | AA116: 0 | AR116: Price without taxes and subsidies | AS116: […] | AT116: […] | AU116: […] | AV116: […] | AW116: […] | AX116: […] | AY116: […] | AZ116: […] | BA116: […] | BC116: EUR / kWh | BD116: PLN / kWh | BE116: […] | BF116: […] | BG116: […] | BH116: […] | BI116: […] | BJ116: […] | BK116: […] | BL116: […] | BN116: =COUNTIFS($G116:$AP116,"",$G$88:$AP$88,"<="&Config!$F$12) -> 1
D117: =INDEX($AR117:$BA117,MATCH(General!$F$14,$AR$4:$BA$4,0)) -> Price with taxes and subsidies | E117: =INDEX($BC117:$BL117,MATCH(General!$F$16,$BC$4:$BL$4,0)) -> PLN / kWh | G117: =SUM(G116,G118:G119) -> 0 | H117: 0.36 | I117: 0.36 | J117: 0.36 | K117: 0.36 | L117: 0.36 | M117: 0.36 | N117: 0.36 | O117: 0.36 | P117: 0.36 | Q117: 0.36 | R117: 0.36 | S117: 0.36 | T117: 0.36 | U117: 0.36 | V117: 0.36 | W117: 0.36 | X117: 0.36 | Y117: 0.36 | Z117: 0.36 | AA117: 0 | AB117: 0 | AC117: 0 | AD117: 0 | AE117: 0 | AF117: 0 | AG117: 0 | AH117: 0 | AI117: 0 | AJ117: 0 | AK117: 0 | AL117: 0 | AM117: 0 | AN117: 0 | AO117: 0 | AP117: 0 | AR117: Price with taxes and subsidies | AS117: […] | AT117: […] | AU117: […] | AV117: […] | AW117: […] | AX117: […] | AY117: […] | AZ117: […] | BA117: […] | BC117: EUR / kWh | BD117: PLN / kWh | BE117: […] | BF117: […] | BG117: […] | BH117: […] | BI117: […] | BJ117: […] | BK117: […] | BL117: […]
B118: =IF(BN118<>0,"!","") -> ! | D118: =INDEX($AR118:$BA118,MATCH(General!$F$14,$AR$4:$BA$4,0)) -> VAT / special taxes | E118: =INDEX($BC118:$BL118,MATCH(General!$F$16,$BC$4:$BL$4,0)) -> PLN / kWh | H118: 0.07 | I118: 0.07 | J118: 0.07 | K118: 0.07 | L118: 0.07 | M118: 0.07 | N118: 0.07 | O118: 0.07 | P118: 0.07 | Q118: 0.07 | R118: 0.07 | S118: 0.07 | T118: 0.07 | U118: 0.07 | V118: 0.07 | W118: 0.07 | X118: 0.07 | Y118: 0.07 | Z118: 0.07 | AR118: VAT / special taxes | AS118: […] | AT118: […] | AU118: […] | AV118: […] | AW118: […] | AX118: […] | AY118: […] | AZ118: […] | BA118: […] | BC118: EUR / kWh | BD118: PLN / kWh | BE118: […] | BF118: […] | BG118: […] | BH118: […] | BI118: […] | BJ118: […] | BK118: […] | BL118: […] | BN118: =COUNTIFS($G118:$AP118,"",$G$88:$AP$88,"<="&Config!$F$12) -> 1
B119: ! | D119: =INDEX($AR119:$BA119,MATCH(General!$F$14,$AR$4:$BA$4,0)) -> Subsidies | E119: =INDEX($BC119:$BL119,MATCH(General!$F$16,$BC$4:$BL$4,0)) -> PLN / kWh | AR119: Subsidies | AS119: […] | AT119: […] | AU119: […] | AV119: […] | AW119: […] | AX119: […] | AY119: […] | AZ119: […] | BA119: […] | BC119: EUR / kWh | BD119: PLN / kWh | BE119: […] | BF119: […] | BG119: […] | BH119: […] | BI119: […] | BJ119: […] | BK119: […] | BL119: […] | BN119: =COUNTIFS($G119:$AP119,"",$G$88:$AP$88,"<="&Config!$F$12) -> 20
D120: =INDEX($AR120:$BA120,MATCH(General!$F$14,$AR$4:$BA$4,0)) -> Wood | AR120: Wood | AS120: […] | AT120: […] | AU120: […] | AV120: […] | AW120: […] | AX120: […] | AY120: […] | AZ120: […] | BA120: […]
B121: =IF(BN121<>0,"!","") -> ! | D121: =INDEX($AR121:$BA121,MATCH(General!$F$14,$AR$4:$BA$4,0)) -> Quantity | E121: =INDEX($BC121:$BL121,MATCH(General!$F$16,$BC$4:$BL$4,0)) -> kWh | F121: =SUM(G121:AP121) -> 0 | H121: 0 | I121: 0 | J121: 0 | K121: 0 | L121: 0 | M121: 0 | N121: 0 | O121: 0 | P121: 0 | Q121: 0 | R121: 0 | S121: 0 | T121: 0 | U121: 0 | V121: 0 | W121: 0 | X121: 0 | Y121: 0 | Z121: 0 | AA121: 0 | AR121: Quantity | AS121: […] | AT121: […] | AU121: […] | AV121: […] | AW121: […] | AX121: […] | AY121: […] | AZ121: […] | BA121: […] | BC121: kWh | BD121: kWh | BE121: […] | BF121: […] | BG121: […] | BH121: […] | BI121: […] | BJ121: […] | BK121: […] | BL121: […] | BN121: =COUNTIFS($G121:$AP121,"",$G$88:$AP$88,"<="&Config!$F$12) -> 1
B122: ! | D122: =INDEX($AR122:$BA122,MATCH(General!$F$14,$AR$4:$BA$4,0)) -> Price without taxes and subsidies | E122: =INDEX($BC122:$BL122,MATCH(General!$F$16,$BC$4:$BL$4,0)) -> PLN / kWh | H122: 0 | I122: 0 | J122: 0 | K122: 0 | L122: 0 | M122: 0 | N122: 0 | O122: 0 | P122: 0 | Q122: 0 | R122: 0 | S122: 0 | T122: 0 | U122: 0 | V122: 0 | W122: 0 | X122: 0 | Y122: 0 | Z122: 0 | AA122: 0 | AR122: Price without taxes and subsidies | AS122: […] | AT122: […] | AU122: […] | AV122: […] | AW122: […] | AX122: […] | AY122: […] | AZ122: […] | BA122: […] | BC122: EUR / kWh | BD122: PLN / kWh | BE122: […] | BF122: […] | BG122: […] | BH122: […] | BI122: […] | BJ122: […] | BK122: […] | BL122: […] | BN122: =COUNTIFS($G122:$AP122,"",$G$88:$AP$88,"<="&Config!$F$12) -> 1
D123: =INDEX($AR123:$BA123,MATCH(General!$F$14,$AR$4:$BA$4,0)) -> Price with taxes and subsidies | E123: =INDEX($BC123:$BL123,MATCH(General!$F$16,$BC$4:$BL$4,0)) -> PLN / kWh | G123: =SUM(G122,G124:G125) -> 0 | H123: 0 | I123: 0 | J123: 0 | K123: 0 | L123: 0 | M123: 0 | N123: 0 | O123: 0 | P123: 0 | Q123: 0 | R123: 0 | S123: 0 | T123: 0 | U123: 0 | V123: 0 | W123: 0 | X123: 0 | Y123: 0 | Z123: 0 | AA123: 0 | AB123: 0 | AC123: 0 | AD123: 0 | AE123: 0 | AF123: 0 | AG123: 0 | AH123: 0 | AI123: 0 | AJ123: 0 | AK123: 0 | AL123: 0 | AM123: 0 | AN123: 0 | AO123: 0 | AP123: 0 | AR123: Price with taxes and subsidies | AS123: […] | AT123: […] | AU123: […] | AV123: […] | AW123: […] | AX123: […] | AY123: […] | AZ123: […] | BA123: […] | BC123: EUR / kWh | BD123: PLN / kWh | BE123: […] | BF123: […] | BG123: […] | BH123: […] | BI123: […] | BJ123: […] | BK123: […] | BL123: […]
B124: =IF(BN124<>0,"!","") -> ! | D124: =INDEX($AR124:$BA124,MATCH(General!$F$14,$AR$4:$BA$4,0)) -> VAT / special taxes | E124: =INDEX($BC124:$BL124,MATCH(General!$F$16,$BC$4:$BL$4,0)) -> PLN / kWh | AR124: VAT / special taxes | AS124: […] | AT124: […] | AU124: […] | AV124: […] | AW124: […] | AX124: […] | AY124: […] | AZ124: […] | BA124: […] | BC124: EUR / kWh | BD124: PLN / kWh | BE124: […] | BF124: […] | BG124: […] | BH124: […] | BI124: […] | BJ124: […] | BK124: […] | BL124: […] | BN124: =COUNTIFS($G124:$AP124,"",$G$88:$AP$88,"<="&Config!$F$12) -> 20
B125: ! | D125: =INDEX($AR125:$BA125,MATCH(General!$F$14,$AR$4:$BA$4,0)) -> Subsidies | E125: =INDEX($BC125:$BL125,MATCH(General!$F$16,$BC$4:$BL$4,0)) -> PLN / kWh | AR125: Subsidies | AS125: […] | AT125: […] | AU125: […] | AV125: […] | AW125: […] | AX125: […] | AY125: […] | AZ125: […] | BA125: […] | BC125: EUR / kWh | BD125: PLN / kWh | BE125: […] | BF125: […] | BG125: […] | BH125: […] | BI125: […] | BJ125: […] | BK125: […] | BL125: […] | BN125: =COUNTIFS($G125:$AP125,"",$G$88:$AP$88,"<="&Config!$F$12) -> 20
D126: =INDEX($AR126:$BA126,MATCH(General!$F$14,$AR$4:$BA$4,0)) -> Coal | AR126: Coal | AS126: […] | AT126: […] | AU126: […] | AV126: […] | AW126: […] | AX126: […] | AY126: […] | AZ126: […] | BA126: […]
B127: =IF(BN127<>0,"!","") -> ! | D127: =INDEX($AR127:$BA127,MATCH(General!$F$14,$AR$4:$BA$4,0)) -> Quantity | E127: =INDEX($BC127:$BL127,MATCH(General!$F$16,$BC$4:$BL$4,0)) -> kWh | F127: =SUM(G127:AP127) -> 0 | H127: 0 | I127: 0 | J127: 0 | K127: 0 | L127: 0 | M127: 0 | N127: 0 | O127: 0 | P127: 0 | Q127: 0 | R127: 0 | S127: 0 | T127: 0 | U127: 0 | V127: 0 | W127: 0 | X127: 0 | Y127: 0 | Z127: 0 | AA127: 0 | AR127: Quantity | AS127: […] | AT127: […] | AU127: […] | AV127: […] | AW127: […] | AX127: […] | AY127: […] | AZ127: […] | BA127: […] | BC127: kWh | BD127: kWh | BE127: […] | BF127: […] | BG127: […] | BH127: […] | BI127: […] | BJ127: […] | BK127: […] | BL127: […] | BN127: =COUNTIFS($G127:$AP127,"",$G$88:$AP$88,"<="&Config!$F$12) -> 1
B128: ! | D128: =INDEX($AR128:$BA128,MATCH(General!$F$14,$AR$4:$BA$4,0)) -> Price without taxes and subsidies | E128: =INDEX($BC128:$BL128,MATCH(General!$F$16,$BC$4:$BL$4,0)) -> PLN / kWh | H128: 0 | I128: 0 | J128: 0 | K128: 0 | L128: 0 | M128: 0 | N128: 0 | O128: 0 | P128: 0 | Q128: 0 | R128: 0 | S128: 0 | T128: 0 | U128: 0 | V128: 0 | W128: 0 | X128: 0 | Y128: 0 | Z128: 0 | AA128: 0 | AR128: Price without taxes and subsidies | AS128: […] | AT128: […] | AU128: […] | AV128: […] | AW128: […] | AX128: […] | AY128: […] | AZ128: […] | BA128: […] | BC128: EUR / kWh | BD128: PLN / kWh | BE128: […] | BF128: […] | BG128: […] | BH128: […] | BI128: […] | BJ128: […] | BK128: […] | BL128: […] | BN128: =COUNTIFS($G128:$AP128,"",$G$88:$AP$88,"<="&Config!$F$12) -> 1
D129: =INDEX($AR129:$BA129,MATCH(General!$F$14,$AR$4:$BA$4,0)) -> Price with taxes and subsidies | E129: =INDEX($BC129:$BL129,MATCH(General!$F$16,$BC$4:$BL$4,0)) -> PLN / kWh | G129: =SUM(G128,G130:G131) -> 0 | H129: 0 | I129: 0 | J129: 0 | K129: 0 | L129: 0 | M129: 0 | N129: 0 | O129: 0 | P129: 0 | Q129: 0 | R129: 0 | S129: 0 | T129: 0 | U129: 0 | V129: 0 | W129: 0 | X129: 0 | Y129: 0 | Z129: 0 | AA129: 0 | AB129: 0 | AC129: 0 | AD129: 0 | AE129: 0 | AF129: 0 | AG129: 0 | AH129: 0 | AI129: 0 | AJ129: 0 | AK129: 0 | AL129: 0 | AM129: 0 | AN129: 0 | AO129: 0 | AP129: 0 | AR129: Price with taxes and subsidies | AS129: […] | AT129: […] | AU129: […] | AV129: […] | AW129: […] | AX129: […] | AY129: […] | AZ129: […] | BA129: […] | BC129: EUR / kWh | BD129: PLN / kWh | BE129: […] | BF129: […] | BG129: […] | BH129: […] | BI129: […] | BJ129: […] | BK129: […] | BL129: […]
B130: =IF(BN130<>0,"!","") -> ! | D130: =INDEX($AR130:$BA130,MATCH(General!$F$14,$AR$4:$BA$4,0)) -> VAT / special taxes | E130: =INDEX($BC130:$BL130,MATCH(General!$F$16,$BC$4:$BL$4,0)) -> PLN / kWh | AR130: VAT / special taxes | AS130: […] | AT130: […] | AU130: […] | AV130: […] | AW130: […] | AX130: […] | AY130: […] | AZ130: […] | BA130: […] | BC130: EUR / kWh | BD130: PLN / kWh | BE130: […] | BF130: […] | BG130: […] | BH130: […] | BI130: […] | BJ130: […] | BK130: […] | BL130: […] | BN130: =COUNTIFS($G130:$AP130,"",$G$88:$AP$88,"<="&Config!$F$12) -> 20
B131: ! | D131: =INDEX($AR131:$BA131,MATCH(General!$F$14,$AR$4:$BA$4,0)) -> Subsidies | E131: =INDEX($BC131:$BL131,MATCH(General!$F$16,$BC$4:$BL$4,0)) -> PLN / kWh | AR131: Subsidies | AS131: […] | AT131: […] | AU131: […] | AV131: […] | AW131: […] | AX131: […] | AY131: […] | AZ131: […] | BA131: […] | BC131: EUR / kWh | BD131: PLN / kWh | BE131: […] | BF131: […] | BG131: […] | BH131: […] | BI131: […] | BJ131: […] | BK131: […] | BL131: […] | BN131: =COUNTIFS($G131:$AP131,"",$G$88:$AP$88,"<="&Config!$F$12) -> 20
D133: =INDEX($AR133:$BA133,MATCH(General!$F$14,$AR$4:$BA$4,0)) -> Maintenance costs | E133: =Config!$I$141 -> Unit | F133: Sum | G133: =Config!I$1 -> 2026 | H133: =Config!J$1 -> 2027 | I133: =Config!K$1 -> 2028 | J133: =Config!L$1 -> 2029 | K133: =Config!M$1 -> 2030 | L133: =Config!N$1 -> 2031 | M133: =Config!O$1 -> 2032 | N133: =Config!P$1 -> 2033 | O133: =Config!Q$1 -> 2034 | P133: =Config!R$1 -> 2035 | Q133: =Config!S$1 -> 2036 | R133: =Config!T$1 -> 2037 | S133: =Config!U$1 -> 2038 | T133: =Config!V$1 -> 2039 | U133: =Config!W$1 -> 2040 | V133: =Config!X$1 -> 2041 | W133: =Config!Y$1 -> 2042 | X133: =Config!Z$1 -> 2043 | Y133: =Config!AA$1 -> 2044 | Z133: =Config!AB$1 -> 2045 | AA133: =Config!AC$1 ->  | AB133: =Config!AD$1 ->  | AC133: =Config!AE$1 ->  | AD133: =Config!AF$1 ->  | AE133: =Config!AG$1 ->  | AF133: =Config!AH$1 ->  | AG133: =Config!AI$1 ->  | AH133: =Config!AJ$1 ->  | AI133: =Config!AK$1 ->  | AJ133: =Config!AL$1 ->  | AK133: =Config!AM$1 ->  | AL133: =Config!AN$1 ->  | AM133: =Config!AO$1 ->  | AN133: =Config!AP$1 ->  | AO133: =Config!AQ$1 ->  | AP133: =Config!AR$1 ->  | AR133: Maintenance costs | AS133: […] | AT133: […] | AU133: […] | AV133: […] | AW133: […] | AX133: […] | AY133: […] | AZ133: […] | BA133: […]
G134: =Config!I$2 -> Construction | H134: =Config!J$2 -> Construction | I134: =Config!K$2 -> Operation | J134: =Config!L$2 -> Operation | K134: =Config!M$2 -> Operation | L134: =Config!N$2 -> Operation | M134: =Config!O$2 -> Operation | N134: =Config!P$2 -> Operation | O134: =Config!Q$2 -> Operation | P134: =Config!R$2 -> Operation | Q134: =Config!S$2 -> Operation | R134: =Config!T$2 -> Operation | S134: =Config!U$2 -> Operation | T134: =Config!V$2 -> Operation | U134: =Config!W$2 -> Operation | V134: =Config!X$2 -> Operation | W134: =Config!Y$2 -> Operation | X134: =Config!Z$2 -> Operation | Y134: =Config!AA$2 -> Operation | Z134: =Config!AB$2 -> Operation | AA134: =Config!AC$2 ->  | AB134: =Config!AD$2 ->  | AC134: =Config!AE$2 ->  | AD134: =Config!AF$2 ->  | AE134: =Config!AG$2 ->  | AF134: =Config!AH$2 ->  | AG134: =Config!AI$2 ->  | AH134: =Config!AJ$2 ->  | AI134: =Config!AK$2 ->  | AJ134: =Config!AL$2 ->  | AK134: =Config!AM$2 ->  | AL134: =Config!AN$2 ->  | AM134: =Config!AO$2 ->  | AN134: =Config!AP$2 ->  | AO134: =Config!AQ$2 ->  | AP134: =Config!AR$2 -> 
B135: =IF(BN135<>0,"!","") -> ! | D135: =INDEX($AR135:$BA135,MATCH(General!$F$14,$AR$4:$BA$4,0)) -> Building maintenance | E135: =INDEX($BC135:$BL135,MATCH(General!$F$16,$BC$4:$BL$4,0)) -> PLN | F135: =SUM(G135:AP135) -> 3800 | H135: 200 | I135: 200 | J135: 200 | K135: 200 | L135: 200 | M135: 200 | N135: 200 | O135: 200 | P135: 200 | Q135: 200 | R135: 200 | S135: 200 | T135: 200 | U135: 200 | V135: 200 | W135: 200 | X135: 200 | Y135: 200 | Z135: 200 | AR135: Building maintenance | AS135: […] | AT135: […] | AU135: […] | AV135: […] | AW135: […] | AX135: […] | AY135: […] | AZ135: […] | BA135: […] | BC135: EUR | BD135: PLN | BE135: […] | BF135: […] | BG135: […] | BH135: […] | BI135: […] | BJ135: […] | BK135: […] | BL135: […] | BN135: =COUNTIFS($G135:$AP135,"",$G$133:$AP$133,"<="&Config!$F$12) -> 1
B136: ! | D136: =INDEX($AR136:$BA136,MATCH(General!$F$14,$AR$4:$BA$4,0)) -> Equipment maintenance | E136: =INDEX($BC136:$BL136,MATCH(General!$F$16,$BC$4:$BL$4,0)) -> PLN | F136: 9500 | H136: 500 | I136: 500 | J136: 500 | K136: 500 | L136: 500 | M136: 500 | N136: 500 | O136: 500 | P136: 500 | Q136: 500 | R136: 500 | S136: 500 | T136: 500 | U136: 500 | V136: 500 | W136: 500 | X136: 500 | Y136: 500 | Z136: 500 | AR136: Equipment maintenance | AS136: […] | AT136: […] | AU136: […] | AV136: […] | AW136: […] | AX136: […] | AY136: […] | AZ136: […] | BA136: […] | BC136: EUR | BD136: PLN | BE136: […] | BF136: […] | BG136: […] | BH136: […] | BI136: […] | BJ136: […] | BK136: […] | BL136: […] | BN136: =COUNTIFS($G136:$AP136,"",$G$133:$AP$133,"<="&Config!$F$12) -> 1
B137: ! | D137: =INDEX($AR137:$BA137,MATCH(General!$F$14,$AR$4:$BA$4,0)) -> Insurance | E137: =INDEX($BC137:$BL137,MATCH(General!$F$16,$BC$4:$BL$4,0)) -> PLN | F137: 57000 | H137: 3000 | I137: 3000 | J137: 3000 | K137: 3000 | L137: 3000 | M137: 3000 | N137: 3000 | O137: 3000 | P137: 3000 | Q137: 3000 | R137: 3000 | S137: 3000 | T137: 3000 | U137: 3000 | V137: 3000 | W137: 3000 | X137: 3000 | Y137: 3000 | Z137: 3000 | AR137: Insurance | AS137: […] | AT137: […] | AU137: […] | AV137: […] | AW137: […] | AX137: […] | AY137: […] | AZ137: […] | BA137: […] | BC137: EUR | BD137: PLN | BE137: […] | BF137: […] | BG137: […] | BH137: […] | BI137: […] | BJ137: […] | BK137: […] | BL137: […] | BN137: =COUNTIFS($G137:$AP137,"",$G$133:$AP$133,"<="&Config!$F$12) -> 1
B138: ! | D138: =INDEX($AR138:$BA138,MATCH(General!$F$14,$AR$4:$BA$4,0)) -> Licence fees | E138: =INDEX($BC138:$BL138,MATCH(General!$F$16,$BC$4:$BL$4,0)) -> PLN | F138: 0 | AR138: Licence fees | AS138: […] | AT138: […] | AU138: […] | AV138: […] | AW138: […] | AX138: […] | AY138: […] | AZ138: […] | BA138: […] | BC138: EUR | BD138: PLN | BE138: […] | BF138: […] | BG138: […] | BH138: […] | BI138: […] | BJ138: […] | BK138: […] | BL138: […] | BN138: =COUNTIFS($G138:$AP138,"",$G$133:$AP$133,"<="&Config!$F$12) -> 20
B139: ! | D139: =INDEX($AR139:$BA139,MATCH(General!$F$14,$AR$4:$BA$4,0)) -> Other | E139: =INDEX($BC139:$BL139,MATCH(General!$F$16,$BC$4:$BL$4,0)) -> PLN | F139: 0 | AR139: Other | AS139: […] | AT139: […] | AU139: […] | AV139: […] | AW139: […] | AX139: […] | AY139: […] | AZ139: […] | BA139: […] | BC139: EUR | BD139: PLN | BE139: […] | BF139: […] | BG139: […] | BH139: […] | BI139: […] | BJ139: […] | BK139: […] | BL139: […] | BN139: =COUNTIFS($G139:$AP139,"",$G$133:$AP$133,"<="&Config!$F$12) -> 20
D140: =INDEX($AR140:$BA140,MATCH(General!$F$14,$AR$4:$BA$4,0)) -> Total cost | E140: =INDEX($BC140:$BL140,MATCH(General!$F$16,$BC$4:$BL$4,0)) -> PLN | F140: =SUM(G140:AP140) -> 70300 | G140: =SUM(G135:G139) -> 0 | H140: =SUM(H135:H139) -> 3700 | I140: 3700 | J140: 3700 | K140: 3700 | L140: 3700 | M140: 3700 | N140: 3700 | O140: 3700 | P140: 3700 | Q140: 3700 | R140: 3700 | S140: 3700 | T140: 3700 | U140: 3700 | V140: 3700 | W140: 3700 | X140: 3700 | Y140: 3700 | Z140: 3700 | AA140: 0 | AB140: 0 | AC140: 0 | AD140: 0 | AE140: 0 | AF140: 0 | AG140: 0 | AH140: 0 | AI140: 0 | AJ140: 0 | AK140: 0 | AL140: 0 | AM140: 0 | AN140: 0 | AO140: 0 | AP140: 0 | AR140: Total cost | AS140: […] | AT140: […] | AU140: […] | AV140: […] | AW140: […] | AX140: […] | AY140: […] | AZ140: […] | BA140: […] | BC140: EUR | BD140: PLN | BE140: […] | BF140: […] | BG140: […] | BH140: […] | BI140: […] | BJ140: […] | BK140: […] | BL140: […]
B141: =IF(BN141<>0,"!","") -> ! | D141: =INDEX($AR141:$BA141,MATCH(General!$F$14,$AR$4:$BA$4,0)) -> VAT expense | E141: =INDEX($BC141:$BL141,MATCH(General!$F$16,$BC$4:$BL$4,0)) -> PLN | F141: =SUM(G141:AP141) -> 16169 | H141: =H140*0.23 -> 851 | I141: =I140*0.23 -> 851 | J141: 851 | K141: 851 | L141: 851 | M141: 851 | N141: 851 | O141: 851 | P141: 851 | Q141: 851 | R141: 851 | S141: 851 | T141: 851 | U141: 851 | V141: 851 | W141: 851 | X141: 851 | Y141: 851 | Z141: 851 | AR141: VAT expense | AS141: […] | AT141: […] | AU141: […] | AV141: […] | AW141: […] | AX141: […] | AY141: […] | AZ141: […] | BA141: […] | BC141: EUR | BD141: PLN | BE141: […] | BF141: […] | BG141: […] | BH141: […] | BI141: […] | BJ141: […] | BK141: […] | BL141: […] | BN141: =COUNTIFS($G141:$AP141,"",$G$133:$AP$133,"<="&Config!$F$12) -> 1
D142: =INDEX($AR142:$BA142,MATCH(General!$F$14,$AR$4:$BA$4,0)) -> Total cost incl. VAT | E142: =INDEX($BC142:$BL142,MATCH(General!$F$16,$BC$4:$BL$4,0)) -> PLN | F142: =SUM(G142:AP142) -> 86469 | G142: =SUM(G140:G141) -> 0 | H142: =SUM(H140:H141) -> 4551 | I142: =SUM(I140:I141) -> 4551 | J142: =SUM(J140:J141) -> 4551 | K142: =SUM(K140:K141) -> 4551 | L142: =SUM(L140:L141) -> 4551 | M142: =SUM(M140:M141) -> 4551 | N142: =SUM(N140:N141) -> 4551 | O142: =SUM(O140:O141) -> 4551 | P142: =SUM(P140:P141) -> 4551 | Q142: =SUM(Q140:Q141) -> 4551 | R142: =SUM(R140:R141) -> 4551 | S142: =SUM(S140:S141) -> 4551 | T142: =SUM(T140:T141) -> 4551 | U142: =SUM(U140:U141) -> 4551 | V142: =SUM(V140:V141) -> 4551 | W142: =SUM(W140:W141) -> 4551 | X142: =SUM(X140:X141) -> 4551 | Y142: =SUM(Y140:Y141) -> 4551 | Z142: =SUM(Z140:Z141) -> 4551 | AA142: =SUM(AA140:AA141) -> 0 | AB142: =SUM(AB140:AB141) -> 0 | AC142: =SUM(AC140:AC141) -> 0 | AD142: =SUM(AD140:AD141) -> 0 | AE142: =SUM(AE140:AE141) -> 0 | AF142: =SUM(AF140:AF141) -> 0 | AG142: =SUM(AG140:AG141) -> 0 | AH142: =SUM(AH140:AH141) -> 0 | AI142: =SUM(AI140:AI141) -> 0 | AJ142: =SUM(AJ140:AJ141) -> 0 | AK142: =SUM(AK140:AK141) -> 0 | AL142: =SUM(AL140:AL141) -> 0 | AM142: =SUM(AM140:AM141) -> 0 | AN142: =SUM(AN140:AN141) -> 0 | AO142: =SUM(AO140:AO141) -> 0 | AP142: =SUM(AP140:AP141) -> 0 | AR142: Total cost incl. VAT | AS142: […] | AT142: […] | AU142: […] | AV142: […] | AW142: […] | AX142: […] | AY142: […] | AZ142: […] | BA142: […] | BC142: EUR | BD142: PLN | BE142: […] | BF142: […] | BG142: […] | BH142: […] | BI142: […] | BJ142: […] | BK142: […] | BL142: […]
D144: =INDEX($AR144:$BA144,MATCH(General!$F$14,$AR$4:$BA$4,0)) -> External sub-contracting | E144: =Config!$I$141 -> Unit | F144: Sum | G144: =Config!I$1 -> 2026 | H144: =Config!J$1 -> 2027 | I144: =Config!K$1 -> 2028 | J144: =Config!L$1 -> 2029 | K144: =Config!M$1 -> 2030 | L144: =Config!N$1 -> 2031 | M144: =Config!O$1 -> 2032 | N144: =Config!P$1 -> 2033 | O144: =Config!Q$1 -> 2034 | P144: =Config!R$1 -> 2035 | Q144: =Config!S$1 -> 2036 | R144: =Config!T$1 -> 2037 | S144: =Config!U$1 -> 2038 | T144: =Config!V$1 -> 2039 | U144: =Config!W$1 -> 2040 | V144: =Config!X$1 -> 2041 | W144: =Config!Y$1 -> 2042 | X144: =Config!Z$1 -> 2043 | Y144: =Config!AA$1 -> 2044 | Z144: =Config!AB$1 -> 2045 | AA144: =Config!AC$1 ->  | AB144: =Config!AD$1 ->  | AC144: =Config!AE$1 ->  | AD144: =Config!AF$1 ->  | AE144: =Config!AG$1 ->  | AF144: =Config!AH$1 ->  | AG144: =Config!AI$1 ->  | AH144: =Config!AJ$1 ->  | AI144: =Config!AK$1 ->  | AJ144: =Config!AL$1 ->  | AK144: =Config!AM$1 ->  | AL144: =Config!AN$1 ->  | AM144: =Config!AO$1 ->  | AN144: =Config!AP$1 ->  | AO144: =Config!AQ$1 ->  | AP144: =Config!AR$1 ->  | AR144: External sub-contracting | AS144: […] | AT144: […] | AU144: […] | AV144: […] | AW144: […] | AX144: […] | AY144: […] | AZ144: […] | BA144: […]
G145: =Config!I$2 -> Construction | H145: =Config!J$2 -> Construction | I145: =Config!K$2 -> Operation | J145: =Config!L$2 -> Operation | K145: =Config!M$2 -> Operation | L145: =Config!N$2 -> Operation | M145: =Config!O$2 -> Operation | N145: =Config!P$2 -> Operation | O145: =Config!Q$2 -> Operation | P145: =Config!R$2 -> Operation | Q145: =Config!S$2 -> Operation | R145: =Config!T$2 -> Operation | S145: =Config!U$2 -> Operation | T145: =Config!V$2 -> Operation | U145: =Config!W$2 -> Operation | V145: =Config!X$2 -> Operation | W145: =Config!Y$2 -> Operation | X145: =Config!Z$2 -> Operation | Y145: =Config!AA$2 -> Operation | Z145: =Config!AB$2 -> Operation | AA145: =Config!AC$2 ->  | AB145: =Config!AD$2 ->  | AC145: =Config!AE$2 ->  | AD145: =Config!AF$2 ->  | AE145: =Config!AG$2 ->  | AF145: =Config!AH$2 ->  | AG145: =Config!AI$2 ->  | AH145: =Config!AJ$2 ->  | AI145: =Config!AK$2 ->  | AJ145: =Config!AL$2 ->  | AK145: =Config!AM$2 ->  | AL145: =Config!AN$2 ->  | AM145: =Config!AO$2 ->  | AN145: =Config!AP$2 ->  | AO145: =Config!AQ$2 ->  | AP145: =Config!AR$2 -> 
B146: =IF(BN146<>0,"!","") -> ! | D146: […] | E146: =INDEX($BC146:$BL146,MATCH(General!$F$16,$BC$4:$BL$4,0)) -> PLN | F146: =SUM(G146:AP146) -> 0 | BC146: EUR | BD146: PLN | BE146: […] | BF146: […] | BG146: […] | BH146: […] | BI146: […] | BJ146: […] | BK146: […] | BL146: […] | BN146: =COUNTIFS($G146:$AP146,"",$G$144:$AP$144,"<="&Config!$F$12) -> 20
B147: ! | D147: […] | E147: =INDEX($BC147:$BL147,MATCH(General!$F$16,$BC$4:$BL$4,0)) -> PLN | F147: 0 | BC147: EUR | BD147: PLN | BE147: […] | BF147: […] | BG147: […] | BH147: […] | BI147: […] | BJ147: […] | BK147: […] | BL147: […] | BN147: =COUNTIFS($G147:$AP147,"",$G$144:$AP$144,"<="&Config!$F$12) -> 20
B148: ! | D148: […] | E148: =INDEX($BC148:$BL148,MATCH(General!$F$16,$BC$4:$BL$4,0)) -> PLN | F148: 0 | BC148: EUR | BD148: PLN | BE148: […] | BF148: […] | BG148: […] | BH148: […] | BI148: […] | BJ148: […] | BK148: […] | BL148: […] | BN148: =COUNTIFS($G148:$AP148,"",$G$144:$AP$144,"<="&Config!$F$12) -> 20
B149: ! | D149: […] | E149: =INDEX($BC149:$BL149,MATCH(General!$F$16,$BC$4:$BL$4,0)) -> PLN | F149: 0 | BC149: EUR | BD149: PLN | BE149: […] | BF149: […] | BG149: […] | BH149: […] | BI149: […] | BJ149: […] | BK149: […] | BL149: […] | BN149: =COUNTIFS($G149:$AP149,"",$G$144:$AP$144,"<="&Config!$F$12) -> 20
B150: ! | D150: […] | E150: =INDEX($BC150:$BL150,MATCH(General!$F$16,$BC$4:$BL$4,0)) -> PLN | F150: 0 | BC150: EUR | BD150: PLN | BE150: […] | BF150: […] | BG150: […] | BH150: […] | BI150: […] | BJ150: […] | BK150: […] | BL150: […] | BN150: =COUNTIFS($G150:$AP150,"",$G$144:$AP$144,"<="&Config!$F$12) -> 20
D151: =INDEX($AR151:$BA151,MATCH(General!$F$14,$AR$4:$BA$4,0)) -> Total cost | E151: =INDEX($BC151:$BL151,MATCH(General!$F$16,$BC$4:$BL$4,0)) -> PLN | F151: =SUM(G151:AP151) -> 0 | G151: =SUM(G146:G150) -> 0 | H151: =SUM(H146:H150) -> 0 | I151: 0 | J151: 0 | K151: 0 | L151: 0 | M151: 0 | N151: 0 | O151: 0 | P151: 0 | Q151: 0 | R151: 0 | S151: 0 | T151: 0 | U151: 0 | V151: 0 | W151: 0 | X151: 0 | Y151: 0 | Z151: 0 | AA151: 0 | AB151: 0 | AC151: 0 | AD151: 0 | AE151: 0 | AF151: 0 | AG151: 0 | AH151: 0 | AI151: 0 | AJ151: 0 | AK151: 0 | AL151: 0 | AM151: 0 | AN151: 0 | AO151: 0 | AP151: 0 | AR151: Total cost | AS151: […] | AT151: […] | AU151: […] | AV151: […] | AW151: […] | AX151: […] | AY151: […] | AZ151: […] | BA151: […] | BC151: EUR | BD151: PLN | BE151: […] | BF151: […] | BG151: […] | BH151: […] | BI151: […] | BJ151: […] | BK151: […] | BL151: […]
B152: =IF(BN152<>0,"!","") -> ! | D152: =INDEX($AR152:$BA152,MATCH(General!$F$14,$AR$4:$BA$4,0)) -> VAT expense | E152: =INDEX($BC152:$BL152,MATCH(General!$F$16,$BC$4:$BL$4,0)) -> PLN | F152: =SUM(G152:AP152) -> 0 | AR152: VAT expense | AS152: […] | AT152: […] | AU152: […] | AV152: […] | AW152: […] | AX152: […] | AY152: […] | AZ152: […] | BA152: […] | BC152: EUR | BD152: PLN | BE152: […] | BF152: […] | BG152: […] | BH152: […] | BI152: […] | BJ152: […] | BK152: […] | BL152: […] | BN152: =COUNTIFS($G152:$AP152,"",$G$144:$AP$144,"<="&Config!$F$12) -> 20
D153: =INDEX($AR153:$BA153,MATCH(General!$F$14,$AR$4:$BA$4,0)) -> Total cost incl. VAT | E153: =INDEX($BC153:$BL153,MATCH(General!$F$16,$BC$4:$BL$4,0)) -> PLN | F153: =SUM(G153:AP153) -> 0 | G153: =SUM(G151:G152) -> 0 | H153: =SUM(H151:H152) -> 0 | I153: =SUM(I151:I152) -> 0 | J153: =SUM(J151:J152) -> 0 | K153: =SUM(K151:K152) -> 0 | L153: =SUM(L151:L152) -> 0 | M153: =SUM(M151:M152) -> 0 | N153: =SUM(N151:N152) -> 0 | O153: =SUM(O151:O152) -> 0 | P153: =SUM(P151:P152) -> 0 | Q153: =SUM(Q151:Q152) -> 0 | R153: =SUM(R151:R152) -> 0 | S153: =SUM(S151:S152) -> 0 | T153: =SUM(T151:T152) -> 0 | U153: =SUM(U151:U152) -> 0 | V153: =SUM(V151:V152) -> 0 | W153: =SUM(W151:W152) -> 0 | X153: =SUM(X151:X152) -> 0 | Y153: =SUM(Y151:Y152) -> 0 | Z153: =SUM(Z151:Z152) -> 0 | AA153: =SUM(AA151:AA152) -> 0 | AB153: =SUM(AB151:AB152) -> 0 | AC153: =SUM(AC151:AC152) -> 0 | AD153: =SUM(AD151:AD152) -> 0 | AE153: =SUM(AE151:AE152) -> 0 | AF153: =SUM(AF151:AF152) -> 0 | AG153: =SUM(AG151:AG152) -> 0 | AH153: =SUM(AH151:AH152) -> 0 | AI153: =SUM(AI151:AI152) -> 0 | AJ153: =SUM(AJ151:AJ152) -> 0 | AK153: =SUM(AK151:AK152) -> 0 | AL153: =SUM(AL151:AL152) -> 0 | AM153: =SUM(AM151:AM152) -> 0 | AN153: =SUM(AN151:AN152) -> 0 | AO153: =SUM(AO151:AO152) -> 0 | AP153: =SUM(AP151:AP152) -> 0 | AR153: Total cost incl. VAT | AS153: […] | AT153: […] | AU153: […] | AV153: […] | AW153: […] | AX153: […] | AY153: […] | AZ153: […] | BA153: […] | BC153: EUR | BD153: PLN | BE153: […] | BF153: […] | BG153: […] | BH153: […] | BI153: […] | BJ153: […] | BK153: […] | BL153: […]
D155: =INDEX($AR155:$BA155,MATCH(General!$F$14,$AR$4:$BA$4,0)) -> Other | E155: =Config!$I$141 -> Unit | F155: Sum | G155: =Config!I$1 -> 2026 | H155: =Config!J$1 -> 2027 | I155: =Config!K$1 -> 2028 | J155: =Config!L$1 -> 2029 | K155: =Config!M$1 -> 2030 | L155: =Config!N$1 -> 2031 | M155: =Config!O$1 -> 2032 | N155: =Config!P$1 -> 2033 | O155: =Config!Q$1 -> 2034 | P155: =Config!R$1 -> 2035 | Q155: =Config!S$1 -> 2036 | R155: =Config!T$1 -> 2037 | S155: =Config!U$1 -> 2038 | T155: =Config!V$1 -> 2039 | U155: =Config!W$1 -> 2040 | V155: =Config!X$1 -> 2041 | W155: =Config!Y$1 -> 2042 | X155: =Config!Z$1 -> 2043 | Y155: =Config!AA$1 -> 2044 | Z155: =Config!AB$1 -> 2045 | AA155: =Config!AC$1 ->  | AB155: =Config!AD$1 ->  | AC155: =Config!AE$1 ->  | AD155: =Config!AF$1 ->  | AE155: =Config!AG$1 ->  | AF155: =Config!AH$1 ->  | AG155: =Config!AI$1 ->  | AH155: =Config!AJ$1 ->  | AI155: =Config!AK$1 ->  | AJ155: =Config!AL$1 ->  | AK155: =Config!AM$1 ->  | AL155: =Config!AN$1 ->  | AM155: =Config!AO$1 ->  | AN155: =Config!AP$1 ->  | AO155: =Config!AQ$1 ->  | AP155: =Config!AR$1 ->  | AR155: Other | AS155: […] | AT155: […] | AU155: […] | AV155: […] | AW155: […] | AX155: […] | AY155: […] | AZ155: […] | BA155: […]
G156: =Config!I$2 -> Construction | H156: =Config!J$2 -> Construction | I156: =Config!K$2 -> Operation | J156: =Config!L$2 -> Operation | K156: =Config!M$2 -> Operation | L156: =Config!N$2 -> Operation | M156: =Config!O$2 -> Operation | N156: =Config!P$2 -> Operation | O156: =Config!Q$2 -> Operation | P156: =Config!R$2 -> Operation | Q156: =Config!S$2 -> Operation | R156: =Config!T$2 -> Operation | S156: =Config!U$2 -> Operation | T156: =Config!V$2 -> Operation | U156: =Config!W$2 -> Operation | V156: =Config!X$2 -> Operation | W156: =Config!Y$2 -> Operation | X156: =Config!Z$2 -> Operation | Y156: =Config!AA$2 -> Operation | Z156: =Config!AB$2 -> Operation | AA156: =Config!AC$2 ->  | AB156: =Config!AD$2 ->  | AC156: =Config!AE$2 ->  | AD156: =Config!AF$2 ->  | AE156: =Config!AG$2 ->  | AF156: =Config!AH$2 ->  | AG156: =Config!AI$2 ->  | AH156: =Config!AJ$2 ->  | AI156: =Config!AK$2 ->  | AJ156: =Config!AL$2 ->  | AK156: =Config!AM$2 ->  | AL156: =Config!AN$2 ->  | AM156: =Config!AO$2 ->  | AN156: =Config!AP$2 ->  | AO156: =Config!AQ$2 ->  | AP156: =Config!AR$2 -> 
B157: =IF(BN157<>0,"!","") -> ! | D157: […] | E157: =INDEX($BC157:$BL157,MATCH(General!$F$16,$BC$4:$BL$4,0)) -> PLN | F157: =SUM(G157:AP157) -> 0 | BC157: EUR | BD157: PLN | BE157: […] | BF157: […] | BG157: […] | BH157: […] | BI157: […] | BJ157: […] | BK157: […] | BL157: […] | BN157: =COUNTIFS($G157:$AP157,"",$G$155:$AP$155,"<="&Config!$F$12) -> 20
B158: ! | D158: […] | E158: =INDEX($BC158:$BL158,MATCH(General!$F$16,$BC$4:$BL$4,0)) -> PLN | F158: 0 | BC158: EUR | BD158: PLN | BE158: […] | BF158: […] | BG158: […] | BH158: […] | BI158: […] | BJ158: […] | BK158: […] | BL158: […] | BN158: =COUNTIFS($G158:$AP158,"",$G$155:$AP$155,"<="&Config!$F$12) -> 20
B159: ! | D159: […] | E159: =INDEX($BC159:$BL159,MATCH(General!$F$16,$BC$4:$BL$4,0)) -> PLN | F159: 0 | BC159: EUR | BD159: PLN | BE159: […] | BF159: […] | BG159: […] | BH159: […] | BI159: […] | BJ159: […] | BK159: […] | BL159: […] | BN159: =COUNTIFS($G159:$AP159,"",$G$155:$AP$155,"<="&Config!$F$12) -> 20
B160: ! | D160: […] | E160: =INDEX($BC160:$BL160,MATCH(General!$F$16,$BC$4:$BL$4,0)) -> PLN | F160: 0 | BC160: EUR | BD160: PLN | BE160: […] | BF160: […] | BG160: […] | BH160: […] | BI160: […] | BJ160: […] | BK160: […] | BL160: […] | BN160: =COUNTIFS($G160:$AP160,"",$G$155:$AP$155,"<="&Config!$F$12) -> 20
B161: ! | D161: […] | E161: =INDEX($BC161:$BL161,MATCH(General!$F$16,$BC$4:$BL$4,0)) -> PLN | F161: 0 | BC161: EUR | BD161: PLN | BE161: […] | BF161: […] | BG161: […] | BH161: […] | BI161: […] | BJ161: […] | BK161: […] | BL161: […] | BN161: =COUNTIFS($G161:$AP161,"",$G$155:$AP$155,"<="&Config!$F$12) -> 20
D162: =INDEX($AR162:$BA162,MATCH(General!$F$14,$AR$4:$BA$4,0)) -> Total cost | E162: =INDEX($BC162:$BL162,MATCH(General!$F$16,$BC$4:$BL$4,0)) -> PLN | F162: =SUM(G162:AP162) -> 0 | G162: =SUM(G157:G161) -> 0 | H162: =SUM(H157:H161) -> 0 | I162: 0 | J162: 0 | K162: 0 | L162: 0 | M162: 0 | N162: 0 | O162: 0 | P162: 0 | Q162: 0 | R162: 0 | S162: 0 | T162: 0 | U162: 0 | V162: 0 | W162: 0 | X162: 0 | Y162: 0 | Z162: 0 | AA162: 0 | AB162: 0 | AC162: 0 | AD162: 0 | AE162: 0 | AF162: 0 | AG162: 0 | AH162: 0 | AI162: 0 | AJ162: 0 | AK162: 0 | AL162: 0 | AM162: 0 | AN162: 0 | AO162: 0 | AP162: 0 | AR162: Total cost | AS162: […] | AT162: […] | AU162: […] | AV162: […] | AW162: […] | AX162: […] | AY162: […] | AZ162: […] | BA162: […] | BC162: EUR | BD162: PLN | BE162: […] | BF162: […] | BG162: […] | BH162: […] | BI162: […] | BJ162: […] | BK162: […] | BL162: […]
B163: =IF(BN163<>0,"!","") -> ! | D163: =INDEX($AR163:$BA163,MATCH(General!$F$14,$AR$4:$BA$4,0)) -> VAT expense | E163: =INDEX($BC163:$BL163,MATCH(General!$F$16,$BC$4:$BL$4,0)) -> PLN | F163: =SUM(G163:AP163) -> 0 | AR163: VAT expense | AS163: […] | AT163: […] | AU163: […] | AV163: […] | AW163: […] | AX163: […] | AY163: […] | AZ163: […] | BA163: […] | BC163: EUR | BD163: PLN | BE163: […] | BF163: […] | BG163: […] | BH163: […] | BI163: […] | BJ163: […] | BK163: […] | BL163: […] | BN163: =COUNTIFS($G163:$AP163,"",$G$155:$AP$155,"<="&Config!$F$12) -> 20
D164: =INDEX($AR164:$BA164,MATCH(General!$F$14,$AR$4:$BA$4,0)) -> Total cost incl. VAT | E164: =INDEX($BC164:$BL164,MATCH(General!$F$16,$BC$4:$BL$4,0)) -> PLN | F164: =SUM(G164:AP164) -> 0 | G164: =SUM(G162:G163) -> 0 | H164: =SUM(H162:H163) -> 0 | I164: =SUM(I162:I163) -> 0 | J164: =SUM(J162:J163) -> 0 | K164: =SUM(K162:K163) -> 0 | L164: =SUM(L162:L163) -> 0 | M164: =SUM(M162:M163) -> 0 | N164: =SUM(N162:N163) -> 0 | O164: =SUM(O162:O163) -> 0 | P164: =SUM(P162:P163) -> 0 | Q164: =SUM(Q162:Q163) -> 0 | R164: =SUM(R162:R163) -> 0 | S164: =SUM(S162:S163) -> 0 | T164: =SUM(T162:T163) -> 0 | U164: =SUM(U162:U163) -> 0 | V164: =SUM(V162:V163) -> 0 | W164: =SUM(W162:W163) -> 0 | X164: =SUM(X162:X163) -> 0 | Y164: =SUM(Y162:Y163) -> 0 | Z164: =SUM(Z162:Z163) -> 0 | AA164: =SUM(AA162:AA163) -> 0 | AB164: =SUM(AB162:AB163) -> 0 | AC164: =SUM(AC162:AC163) -> 0 | AD164: =SUM(AD162:AD163) -> 0 | AE164: =SUM(AE162:AE163) -> 0 | AF164: =SUM(AF162:AF163) -> 0 | AG164: =SUM(AG162:AG163) -> 0 | AH164: =SUM(AH162:AH163) -> 0 | AI164: =SUM(AI162:AI163) -> 0 | AJ164: =SUM(AJ162:AJ163) -> 0 | AK164: =SUM(AK162:AK163) -> 0 | AL164: =SUM(AL162:AL163) -> 0 | AM164: =SUM(AM162:AM163) -> 0 | AN164: =SUM(AN162:AN163) -> 0 | AO164: =SUM(AO162:AO163) -> 0 | AP164: =SUM(AP162:AP163) -> 0 | AR164: Total cost incl. VAT | AS164: […] | AT164: […] | AU164: […] | AV164: […] | AW164: […] | AX164: […] | AY164: […] | AZ164: […] | BA164: […] | BC164: EUR | BD164: PLN | BE164: […] | BF164: […] | BG164: […] | BH164: […] | BI164: […] | BJ164: […] | BK164: […] | BL164: […]
A166: =INDEX($AR166:$BA166,MATCH(General!$F$14,$AR$4:$BA$4,0)) -> Income tax | AR166: Income tax | AS166: […] | AT166: […] | AU166: […] | AV166: […] | AW166: […] | AX166: […] | AY166: […] | AZ166: […] | BA166: […]
D168: =INDEX($AR168:$BA168,MATCH(General!$F$14,$AR$4:$BA$4,0)) -> Income tax | E168: =Config!$I$141 -> Unit | F168: Sum | G168: =Config!I$1 -> 2026 | H168: =Config!J$1 -> 2027 | I168: =Config!K$1 -> 2028 | J168: =Config!L$1 -> 2029 | K168: =Config!M$1 -> 2030 | L168: =Config!N$1 -> 2031 | M168: =Config!O$1 -> 2032 | N168: =Config!P$1 -> 2033 | O168: =Config!Q$1 -> 2034 | P168: =Config!R$1 -> 2035 | Q168: =Config!S$1 -> 2036 | R168: =Config!T$1 -> 2037 | S168: =Config!U$1 -> 2038 | T168: =Config!V$1 -> 2039 | U168: =Config!W$1 -> 2040 | V168: =Config!X$1 -> 2041 | W168: =Config!Y$1 -> 2042 | X168: =Config!Z$1 -> 2043 | Y168: =Config!AA$1 -> 2044 | Z168: =Config!AB$1 -> 2045 | AA168: =Config!AC$1 ->  | AB168: =Config!AD$1 ->  | AC168: =Config!AE$1 ->  | AD168: =Config!AF$1 ->  | AE168: =Config!AG$1 ->  | AF168: =Config!AH$1 ->  | AG168: =Config!AI$1 ->  | AH168: =Config!AJ$1 ->  | AI168: =Config!AK$1 ->  | AJ168: =Config!AL$1 ->  | AK168: =Config!AM$1 ->  | AL168: =Config!AN$1 ->  | AM168: =Config!AO$1 ->  | AN168: =Config!AP$1 ->  | AO168: =Config!AQ$1 ->  | AP168: =Config!AR$1 ->  | AR168: Income tax | AS168: […] | AT168: […] | AU168: […] | AV168: […] | AW168: […] | AX168: […] | AY168: […] | AZ168: […] | BA168: […]
G169: =Config!I$2 -> Construction | H169: =Config!J$2 -> Construction | I169: =Config!K$2 -> Operation | J169: =Config!L$2 -> Operation | K169: =Config!M$2 -> Operation | L169: =Config!N$2 -> Operation | M169: =Config!O$2 -> Operation | N169: =Config!P$2 -> Operation | O169: =Config!Q$2 -> Operation | P169: =Config!R$2 -> Operation | Q169: =Config!S$2 -> Operation | R169: =Config!T$2 -> Operation | S169: =Config!U$2 -> Operation | T169: =Config!V$2 -> Operation | U169: =Config!W$2 -> Operation | V169: =Config!X$2 -> Operation | W169: =Config!Y$2 -> Operation | X169: =Config!Z$2 -> Operation | Y169: =Config!AA$2 -> Operation | Z169: =Config!AB$2 -> Operation | AA169: =Config!AC$2 ->  | AB169: =Config!AD$2 ->  | AC169: =Config!AE$2 ->  | AD169: =Config!AF$2 ->  | AE169: =Config!AG$2 ->  | AF169: =Config!AH$2 ->  | AG169: =Config!AI$2 ->  | AH169: =Config!AJ$2 ->  | AI169: =Config!AK$2 ->  | AJ169: =Config!AL$2 ->  | AK169: =Config!AM$2 ->  | AL169: =Config!AN$2 ->  | AM169: =Config!AO$2 ->  | AN169: =Config!AP$2 ->  | AO169: =Config!AQ$2 ->  | AP169: =Config!AR$2 -> 
B170: =IF(BN170<>0,"!","") -> ! | D170: =INDEX($AR170:$BA170,MATCH(General!$F$14,$AR$4:$BA$4,0)) -> Income tax | E170: =INDEX($BC170:$BL170,MATCH(General!$F$16,$BC$4:$BL$4,0)) -> PLN | F170: =SUM(G170:AP170) -> 0 | AR170: Income tax | AS170: […] | AT170: […] | AU170: […] | AV170: […] | AW170: […] | AX170: […] | AY170: […] | AZ170: […] | BA170: […] | BC170: EUR | BD170: PLN | BE170: […] | BF170: […] | BG170: […] | BH170: […] | BI170: […] | BJ170: […] | BK170: […] | BL170: […] | BN170: =COUNTIFS($G170:$AP170,"",$G$168:$AP$168,"<="&Config!$F$12) -> 20

Sheet Fin
A1: =Config!$I$132 -> FINANCING | AE1: Check
A2: =General!$D$8&" "&General!$F$8 -> Name of the project beneficiary:
A3: =General!$D$10&" "&General!$F$10 -> Name of the investment project: | I3: =Config!AT$1 -> Language | T3: =Config!BE$1 -> Currency / Units
A4: =IF(SUM(AE6:AE107)<>0,Config!$I$152,"") -> All input cells should be filled in with assumptions | I4: =Config!AT$2 -> English | J4: =Config!AU$2 -> Polish | K4: =Config!AV$2 -> […] | L4: =Config!AW$2 -> […] | M4: =Config!AX$2 -> […] | N4: =Config!AY$2 -> […] | O4: =Config!AZ$2 -> […] | P4: =Config!BA$2 -> […] | Q4: =Config!BB$2 -> […] | R4: =Config!BC$2 -> […] | T4: =Config!BE$2 -> EUR | U4: =Config!BF$2 -> PLN | V4: =Config!BG$2 -> […] | W4: =Config!BH$2 -> […] | X4: =Config!BI$2 -> […] | Y4: =Config!BJ$2 -> […] | Z4: =Config!BK$2 -> […] | AA4: =Config!BL$2 -> […] | AB4: =Config!BM$2 -> […] | AC4: =Config!BN$2 -> […]
A6: =INDEX($I6:$R6,MATCH(General!$F$14,$I$4:$R$4,0)) -> Financial and preparatory costs of potential finacing models | I6: Financial and preparatory costs of potential finacing models | J6: […] | K6: […] | L6: […] | M6: […] | N6: […] | O6: […] | P6: […] | Q6: […] | R6: […]
D8: =INDEX($I8:$R8,MATCH(General!$F$14,$I$4:$R$4,0)) -> Own funds | E8: =Config!$I$141 -> Unit | I8: Own funds | J8: […] | K8: […] | L8: […] | M8: […] | N8: […] | O8: […] | P8: […] | Q8: […] | R8: […]
D9: =INDEX($I9:$R9,MATCH(General!$F$14,$I$4:$R$4,0)) -> Preparation costs related to the type of financing | E9: =INDEX($T9:$AC9,MATCH(General!$F$16,$T$4:$AC$4,0)) -> PLN | F9: =SUM(F10:F11) -> 15000 | I9: Preparation costs related to the type of financing | J9: […] | K9: […] | L9: […] | M9: […] | N9: […] | O9: […] | P9: […] | Q9: […] | R9: […] | T9: EUR | U9: PLN | V9: […] | W9: […] | X9: […] | Y9: […] | Z9: […] | AA9: […] | AB9: […] | AC9: […]
B10: =IF(AE10<>0,"!","") ->  | D10: =INDEX($I10:$R10,MATCH(General!$F$14,$I$4:$R$4,0)) -> Investment plan with socioeconomic assessment | E10: =INDEX($T10:$AC10,MATCH(General!$F$16,$T$4:$AC$4,0)) -> PLN | F10: 15000 | I10: Investment plan with socioeconomic assessment | J10: […] | K10: […] | L10: […] | M10: […] | N10: […] | O10: […] | P10: […] | Q10: […] | R10: […] | T10: EUR | U10: PLN | V10: […] | W10: […] | X10: […] | Y10: […] | Z10: […] | AA10: […] | AB10: […] | AC10: […] | AE10: =COUNTIFS(F10,"") -> 0
B11: ! | D11: =INDEX($I11:$R11,MATCH(General!$F$14,$I$4:$R$4,0)) -> Other costs | E11: =INDEX($T11:$AC11,MATCH(General!$F$16,$T$4:$AC$4,0)) -> PLN | I11: Other costs | J11: […] | K11: […] | L11: […] | M11: […] | N11: […] | O11: […] | P11: […] | Q11: […] | R11: […] | T11: EUR | U11: PLN | V11: […] | W11: […] | X11: […] | Y11: […] | Z11: […] | AA11: […] | AB11: […] | AC11: […] | AE11: =COUNTIFS(F11,"") -> 1
D12: =INDEX($I12:$R12,MATCH(General!$F$14,$I$4:$R$4,0)) -> Financing conditions | I12: Financing conditions | J12: […] | K12: […] | L12: […] | M12: […] | N12: […] | O12: […] | P12: […] | Q12: […] | R12: […]
D13: =INDEX($I13:$R13,MATCH(General!$F$14,$I$4:$R$4,0)) -> Own funds | I13: Own funds | J13: […] | K13: […] | L13: […] | M13: […] | N13: […] | O13: […] | P13: […] | Q13: […] | R13: […]
B14: =IF(AE14<>0,"!","") ->  | D14: =INDEX($I14:$R14,MATCH(General!$F$14,$I$4:$R$4,0)) -> Entity granting a financing | E14: =INDEX($T14:$AC14,MATCH(General!$F$16,$T$4:$AC$4,0)) -> tekst | F14: Private | I14: Entity granting a financing | J14: […] | K14: […] | L14: […] | M14: […] | N14: […] | O14: […] | P14: […] | Q14: […] | R14: […] | T14: text | U14: tekst | V14: […] | W14: […] | X14: […] | Y14: […] | Z14: […] | AA14: […] | AB14: […] | AC14: […] | AE14: =COUNTIFS(F14,"") -> 0
D16: =INDEX($I16:$R16,MATCH(General!$F$14,$I$4:$R$4,0)) -> Own funds + Grant | E16: =Config!$I$141 -> Unit | I16: Own funds + Grant | J16: […] | K16: […] | L16: […] | M16: […] | N16: […] | O16: […] | P16: […] | Q16: […] | R16: […]
D17: =INDEX($I17:$R17,MATCH(General!$F$14,$I$4:$R$4,0)) -> Preparation costs related to the type of financing | E17: =INDEX($T17:$AC17,MATCH(General!$F$16,$T$4:$AC$4,0)) -> PLN | F17: =SUM(F18:F20) -> 20000 | I17: Preparation costs related to the type of financing | J17: […] | K17: […] | L17: […] | M17: […] | N17: […] | O17: […] | P17: […] | Q17: […] | R17: […] | T17: EUR | U17: PLN | V17: […] | W17: […] | X17: […] | Y17: […] | Z17: […] | AA17: […] | AB17: […] | AC17: […]
B18: =IF(AE18<>0,"!","") ->  | D18: =INDEX($I18:$R18,MATCH(General!$F$14,$I$4:$R$4,0)) -> Project management and reporting | E18: =INDEX($T18:$AC18,MATCH(General!$F$16,$T$4:$AC$4,0)) -> PLN | F18: 10000 | I18: Project management and reporting | J18: […] | K18: […] | L18: […] | M18: […] | N18: […] | O18: […] | P18: […] | Q18: […] | R18: […] | T18: EUR | U18: PLN | V18: […] | W18: […] | X18: […] | Y18: […] | Z18: […] | AA18: […] | AB18: […] | AC18: […] | AE18: =COUNTIFS(F18,"") -> 0
B19: ! | D19: =INDEX($I19:$R19,MATCH(General!$F$14,$I$4:$R$4,0)) -> Investment plan with socioeconomic assessment | E19: =INDEX($T19:$AC19,MATCH(General!$F$16,$T$4:$AC$4,0)) -> PLN | I19: Investment plan with socioeconomic assessment | J19: […] | K19: […] | L19: […] | M19: […] | N19: […] | O19: […] | P19: […] | Q19: […] | R19: […] | T19: EUR | U19: PLN | V19: […] | W19: […] | X19: […] | Y19: […] | Z19: […] | AA19: […] | AB19: […] | AC19: […] | AE19: =COUNTIFS(F19,"") -> 1
D20: =INDEX($I20:$R20,MATCH(General!$F$14,$I$4:$R$4,0)) -> Other costs | E20: =INDEX($T20:$AC20,MATCH(General!$F$16,$T$4:$AC$4,0)) -> PLN | F20: 10000 | I20: Other costs | J20: […] | K20: […] | L20: […] | M20: […] | N20: […] | O20: […] | P20: […] | Q20: […] | R20: […] | T20: EUR | U20: PLN | V20: […] | W20: […] | X20: […] | Y20: […] | Z20: […] | AA20: […] | AB20: […] | AC20: […] | AE20: =COUNTIFS(F20,"") -> 0
D21: =INDEX($I21:$R21,MATCH(General!$F$14,$I$4:$R$4,0)) -> Financing conditions | I21: Financing conditions | J21: […] | K21: […] | L21: […] | M21: […] | N21: […] | O21: […] | P21: […] | Q21: […] | R21: […]
D22: =INDEX($I22:$R22,MATCH(General!$F$14,$I$4:$R$4,0)) -> Own funds | I22: Own funds | J22: […] | K22: […] | L22: […] | M22: […] | N22: […] | O22: […] | P22: […] | Q22: […] | R22: […]
B23: =IF(AE23<>0,"!","") ->  | D23: =INDEX($I23:$R23,MATCH(General!$F$14,$I$4:$R$4,0)) -> Entity granting a financing | E23: =INDEX($T23:$AC23,MATCH(General!$F$16,$T$4:$AC$4,0)) -> text | F23: Public | I23: Entity granting a financing | J23: […] | K23: […] | L23: […] | M23: […] | N23: […] | O23: […] | P23: […] | Q23: […] | R23: […] | T23: text | U23: text | V23: […] | W23: […] | X23: […] | Y23: […] | Z23: […] | AA23: […] | AB23: […] | AC23: […] | AE23: =COUNTIFS(F23,"") -> 0
D24: =INDEX($I24:$R24,MATCH(General!$F$14,$I$4:$R$4,0)) -> Grant | I24: Grant | J24: […] | K24: […] | L24: […] | M24: […] | N24: […] | O24: […] | P24: […] | Q24: […] | R24: […]
B25: =IF(AE25<>0,"!","") ->  | D25: =INDEX($I25:$R25,MATCH(General!$F$14,$I$4:$R$4,0)) -> Entity granting a financing | E25: =INDEX($T25:$AC25,MATCH(General!$F$16,$T$4:$AC$4,0)) -> text | F25: Private | I25: Entity granting a financing | J25: […] | K25: […] | L25: […] | M25: […] | N25: […] | O25: […] | P25: […] | Q25: […] | R25: […] | T25: text | U25: text | V25: […] | W25: […] | X25: […] | Y25: […] | Z25: […] | AA25: […] | AB25: […] | AC25: […] | AE25: =COUNTIFS(F25,"") -> 0
D26: =INDEX($I26:$R26,MATCH(General!$F$14,$I$4:$R$4,0)) -> Is public investment financed with EU funds? | E26: =INDEX($T26:$AC26,MATCH(General!$F$16,$T$4:$AC$4,0)) -> text | F26: Yes | I26: Is public investment financed with EU funds? | J26: […] | K26: […] | L26: […] | M26: […] | N26: […] | O26: […] | P26: […] | Q26: […] | R26: […] | T26: text | U26: text | V26: […] | W26: […] | X26: […] | Y26: […] | Z26: […] | AA26: […] | AB26: […] | AC26: […] | AE26: =COUNTIFS(F26,"") -> 0
D27: =INDEX($I27:$R27,MATCH(General!$F$14,$I$4:$R$4,0)) -> Co-financing rate of eligible project costs | E27: =INDEX($T27:$AC27,MATCH(General!$F$16,$T$4:$AC$4,0)) -> % | F27: 0.3 | I27: Co-financing rate of eligible project costs | J27: […] | K27: […] | L27: […] | M27: […] | N27: […] | O27: […] | P27: […] | Q27: […] | R27: […] | T27: % | U27: % | V27: […] | W27: […] | X27: […] | Y27: […] | Z27: […] | AA27: […] | AB27: […] | AC27: […] | AE27: =COUNTIFS(F27,"") -> 0
D29: =INDEX($I29:$R29,MATCH(General!$F$14,$I$4:$R$4,0)) -> Standard loan | E29: =Config!$I$141 -> Unit | I29: Standard loan | J29: […] | K29: […] | L29: […] | M29: […] | N29: […] | O29: […] | P29: […] | Q29: […] | R29: […]
D30: =INDEX($I30:$R30,MATCH(General!$F$14,$I$4:$R$4,0)) -> Preparation costs related to the type of financing | E30: =INDEX($T30:$AC30,MATCH(General!$F$16,$T$4:$AC$4,0)) -> PLN | F30: =SUM(F31:F32) -> 10000 | I30: Preparation costs related to the type of financing | J30: […] | K30: […] | L30: […] | M30: […] | N30: […] | O30: […] | P30: […] | Q30: […] | R30: […] | T30: EUR | U30: PLN | V30: […] | W30: […] | X30: […] | Y30: […] | Z30: […] | AA30: […] | AB30: […] | AC30: […]
B31: =IF(AE31<>0,"!","") ->  | D31: =INDEX($I31:$R31,MATCH(General!$F$14,$I$4:$R$4,0)) -> Investment plan | E31: =INDEX($T31:$AC31,MATCH(General!$F$16,$T$4:$AC$4,0)) -> PLN | F31: 10000 | I31: Investment plan | J31: […] | K31: […] | L31: […] | M31: […] | N31: […] | O31: […] | P31: […] | Q31: […] | R31: […] | T31: EUR | U31: PLN | V31: […] | W31: […] | X31: […] | Y31: […] | Z31: […] | AA31: […] | AB31: […] | AC31: […] | AE31: =COUNTIFS(F31,"") -> 0
B32: ! | D32: =INDEX($I32:$R32,MATCH(General!$F$14,$I$4:$R$4,0)) -> Other costs | E32: =INDEX($T32:$AC32,MATCH(General!$F$16,$T$4:$AC$4,0)) -> PLN | I32: Other costs | J32: […] | K32: […] | L32: […] | M32: […] | N32: […] | O32: […] | P32: […] | Q32: […] | R32: […] | T32: EUR | U32: PLN | V32: […] | W32: […] | X32: […] | Y32: […] | Z32: […] | AA32: […] | AB32: […] | AC32: […] | AE32: =COUNTIFS(F32,"") -> 1
D33: =INDEX($I33:$R33,MATCH(General!$F$14,$I$4:$R$4,0)) -> Financing conditions | I33: Financing conditions | J33: […] | K33: […] | L33: […] | M33: […] | N33: […] | O33: […] | P33: […] | Q33: […] | R33: […]
D34: =INDEX($I34:$R34,MATCH(General!$F$14,$I$4:$R$4,0)) -> Standard loan | I34: Standard loan | J34: […] | K34: […] | L34: […] | M34: […] | N34: […] | O34: […] | P34: […] | Q34: […] | R34: […]
B35: =IF(AE35<>0,"!","") ->  | D35: =INDEX($I35:$R35,MATCH(General!$F$14,$I$4:$R$4,0)) -> Entity granting a financing | E35: =INDEX($T35:$AC35,MATCH(General!$F$16,$T$4:$AC$4,0)) -> text | F35: Public | I35: Entity granting a financing | J35: […] | K35: […] | L35: […] | M35: […] | N35: […] | O35: […] | P35: […] | Q35: […] | R35: […] | T35: text | U35: text | V35: […] | W35: […] | X35: […] | Y35: […] | Z35: […] | AA35: […] | AB35: […] | AC35: […] | AE35: =COUNTIFS(F35,"") -> 0
D36: =INDEX($I36:$R36,MATCH(General!$F$14,$I$4:$R$4,0)) -> Is public investment financed with EU funds? | E36: =INDEX($T36:$AC36,MATCH(General!$F$16,$T$4:$AC$4,0)) -> text | F36: No | I36: Is public investment financed with EU funds? | J36: […] | K36: […] | L36: […] | M36: […] | N36: […] | O36: […] | P36: […] | Q36: […] | R36: […] | T36: text | U36: text | V36: […] | W36: […] | X36: […] | Y36: […] | Z36: […] | AA36: […] | AB36: […] | AC36: […] | AE36: =COUNTIFS(F36,"") -> 0
D37: =INDEX($I37:$R37,MATCH(General!$F$14,$I$4:$R$4,0)) -> Interest rate per annum | E37: =INDEX($T37:$AC37,MATCH(General!$F$16,$T$4:$AC$4,0)) -> % | F37: 0.05 | I37: Interest rate per annum | J37: […] | K37: […] | L37: […] | M37: […] | N37: […] | O37: […] | P37: […] | Q37: […] | R37: […] | T37: % | U37: % | V37: […] | W37: […] | X37: […] | Y37: […] | Z37: […] | AA37: […] | AB37: […] | AC37: […] | AE37: =COUNTIFS(F37,"") -> 0
D38: =INDEX($I38:$R38,MATCH(General!$F$14,$I$4:$R$4,0)) -> Tenor | E38: =INDEX($T38:$AC38,MATCH(General!$F$16,$T$4:$AC$4,0)) -> years | F38: 10 | I38: Tenor | J38: […] | K38: […] | L38: […] | M38: […] | N38: […] | O38: […] | P38: […] | Q38: […] | R38: […] | T38: years | U38: years | V38: […] | W38: […] | X38: […] | Y38: […] | Z38: […] | AA38: […] | AB38: […] | AC38: […] | AE38: =COUNTIFS(F38,"") -> 0
D40: =INDEX($I40:$R40,MATCH(General!$F$14,$I$4:$R$4,0)) -> Standard loan + Grant | E40: =Config!$I$141 -> Unit | I40: Standard loan + Grant | J40: […] | K40: […] | L40: […] | M40: […] | N40: […] | O40: […] | P40: […] | Q40: […] | R40: […]
D41: =INDEX($I41:$R41,MATCH(General!$F$14,$I$4:$R$4,0)) -> Preparation costs related to the type of financing | E41: =INDEX($T41:$AC41,MATCH(General!$F$16,$T$4:$AC$4,0)) -> PLN | F41: =SUM(F42:F44) -> 10000 | I41: Preparation costs related to the type of financing | J41: […] | K41: […] | L41: […] | M41: […] | N41: […] | O41: […] | P41: […] | Q41: […] | R41: […] | T41: EUR | U41: PLN | V41: […] | W41: […] | X41: […] | Y41: […] | Z41: […] | AA41: […] | AB41: […] | AC41: […]
B42: =IF(AE42<>0,"!","") ->  | D42: =INDEX($I42:$R42,MATCH(General!$F$14,$I$4:$R$4,0)) -> Investment plan | E42: =INDEX($T42:$AC42,MATCH(General!$F$16,$T$4:$AC$4,0)) -> PLN | F42: 10000 | I42: Investment plan | J42: […] | K42: […] | L42: […] | M42: […] | N42: […] | O42: […] | P42: […] | Q42: […] | R42: […] | T42: EUR | U42: PLN | V42: […] | W42: […] | X42: […] | Y42: […] | Z42: […] | AA42: […] | AB42: […] | AC42: […] | AE42: =COUNTIFS(F42,"") -> 0
B43: ! | D43: =INDEX($I43:$R43,MATCH(General!$F$14,$I$4:$R$4,0)) -> Project management and reporting | E43: =INDEX($T43:$AC43,MATCH(General!$F$16,$T$4:$AC$4,0)) -> PLN | I43: Project management and reporting | J43: […] | K43: […] | L43: […] | M43: […] | N43: […] | O43: […] | P43: […] | Q43: […] | R43: […] | T43: EUR | U43: PLN | V43: […] | W43: […] | X43: […] | Y43: […] | Z43: […] | AA43: […] | AB43: […] | AC43: […] | AE43: =COUNTIFS(F43,"") -> 1
B44: ! | D44: =INDEX($I44:$R44,MATCH(General!$F$14,$I$4:$R$4,0)) -> Other costs | E44: =INDEX($T44:$AC44,MATCH(General!$F$16,$T$4:$AC$4,0)) -> PLN | I44: Other costs | J44: […] | K44: […] | L44: […] | M44: […] | N44: […] | O44: […] | P44: […] | Q44: […] | R44: […] | T44: EUR | U44: PLN | V44: […] | W44: […] | X44: […] | Y44: […] | Z44: […] | AA44: […] | AB44: […] | AC44: […] | AE44: =COUNTIFS(F44,"") -> 1
D45: =INDEX($I45:$R45,MATCH(General!$F$14,$I$4:$R$4,0)) -> Financing conditions | I45: Financing conditions | J45: […] | K45: […] | L45: […] | M45: […] | N45: […] | O45: […] | P45: […] | Q45: […] | R45: […]
D46: =INDEX($I46:$R46,MATCH(General!$F$14,$I$4:$R$4,0)) -> Standard loan | I46: Standard loan | J46: […] | K46: […] | L46: […] | M46: […] | N46: […] | O46: […] | P46: […] | Q46: […] | R46: […]
B47: =IF(AE47<>0,"!","") ->  | D47: =INDEX($I47:$R47,MATCH(General!$F$14,$I$4:$R$4,0)) -> Entity granting a financing | E47: =INDEX($T47:$AC47,MATCH(General!$F$16,$T$4:$AC$4,0)) -> text | F47: Private | I47: Entity granting a financing | J47: […] | K47: […] | L47: […] | M47: […] | N47: […] | O47: […] | P47: […] | Q47: […] | R47: […] | T47: text | U47: text | V47: […] | W47: […] | X47: […] | Y47: […] | Z47: […] | AA47: […] | AB47: […] | AC47: […] | AE47: =COUNTIFS(F47,"") -> 0
D48: =INDEX($I48:$R48,MATCH(General!$F$14,$I$4:$R$4,0)) -> Is public investment financed with EU funds? | E48: =INDEX($T48:$AC48,MATCH(General!$F$16,$T$4:$AC$4,0)) -> text | F48: Yes | I48: Is public investment financed with EU funds? | J48: […] | K48: […] | L48: […] | M48: […] | N48: […] | O48: […] | P48: […] | Q48: […] | R48: […] | T48: text | U48: text | V48: […] | W48: […] | X48: […] | Y48: […] | Z48: […] | AA48: […] | AB48: […] | AC48: […] | AE48: =COUNTIFS(F48,"") -> 0
D49: =INDEX($I49:$R49,MATCH(General!$F$14,$I$4:$R$4,0)) -> Interest rate per annum | E49: =INDEX($T49:$AC49,MATCH(General!$F$16,$T$4:$AC$4,0)) -> % | F49: 0.05 | I49: Interest rate per annum | J49: […] | K49: […] | L49: […] | M49: […] | N49: […] | O49: […] | P49: […] | Q49: […] | R49: […] | T49: % | U49: % | V49: […] | W49: […] | X49: […] | Y49: […] | Z49: […] | AA49: […] | AB49: […] | AC49: […] | AE49: =COUNTIFS(F49,"") -> 0
D50: =INDEX($I50:$R50,MATCH(General!$F$14,$I$4:$R$4,0)) -> Tenor | E50: =INDEX($T50:$AC50,MATCH(General!$F$16,$T$4:$AC$4,0)) -> years | F50: 15 | I50: Tenor | J50: […] | K50: […] | L50: […] | M50: […] | N50: […] | O50: […] | P50: […] | Q50: […] | R50: […] | T50: years | U50: years | V50: […] | W50: […] | X50: […] | Y50: […] | Z50: […] | AA50: […] | AB50: […] | AC50: […] | AE50: =COUNTIFS(F50,"") -> 0
D51: =INDEX($I51:$R51,MATCH(General!$F$14,$I$4:$R$4,0)) -> Grant | I51: Grant | J51: […] | K51: […] | L51: […] | M51: […] | N51: […] | O51: […] | P51: […] | Q51: […] | R51: […]
B52: =IF(AE52<>0,"!","") ->  | D52: =INDEX($I52:$R52,MATCH(General!$F$14,$I$4:$R$4,0)) -> Entity granting a financing | E52: =INDEX($T52:$AC52,MATCH(General!$F$16,$T$4:$AC$4,0)) -> text | F52: Public | I52: Entity granting a financing | J52: […] | K52: […] | L52: […] | M52: […] | N52: […] | O52: […] | P52: […] | Q52: […] | R52: […] | T52: text | U52: text | V52: […] | W52: […] | X52: […] | Y52: […] | Z52: […] | AA52: […] | AB52: […] | AC52: […] | AE52: =COUNTIFS(F52,"") -> 0
D53: =INDEX($I53:$R53,MATCH(General!$F$14,$I$4:$R$4,0)) -> Is public investment financed with EU funds? | E53: =INDEX($T53:$AC53,MATCH(General!$F$16,$T$4:$AC$4,0)) -> text | F53: Yes | I53: Is public investment financed with EU funds? | J53: […] | K53: […] | L53: […] | M53: […] | N53: […] | O53: […] | P53: […] | Q53: […] | R53: […] | T53: text | U53: text | V53: […] | W53: […] | X53: […] | Y53: […] | Z53: […] | AA53: […] | AB53: […] | AC53: […] | AE53: =COUNTIFS(F53,"") -> 0
D54: =INDEX($I54:$R54,MATCH(General!$F$14,$I$4:$R$4,0)) -> Co-financing rate of eligible project costs | E54: =INDEX($T54:$AC54,MATCH(General!$F$16,$T$4:$AC$4,0)) -> % | F54: 0.5 | I54: Co-financing rate of eligible project costs | J54: […] | K54: […] | L54: […] | M54: […] | N54: […] | O54: […] | P54: […] | Q54: […] | R54: […] | T54: % | U54: % | V54: […] | W54: […] | X54: […] | Y54: […] | Z54: […] | AA54: […] | AB54: […] | AC54: […] | AE54: =COUNTIFS(F54,"") -> 0
D56: =INDEX($I56:$R56,MATCH(General!$F$14,$I$4:$R$4,0)) -> Green loan | E56: =Config!$I$141 -> Unit | I56: Green loan | J56: […] | K56: […] | L56: […] | M56: […] | N56: […] | O56: […] | P56: […] | Q56: […] | R56: […]
D57: =INDEX($I57:$R57,MATCH(General!$F$14,$I$4:$R$4,0)) -> Preparation costs related to the type of financing | E57: =INDEX($T57:$AC57,MATCH(General!$F$16,$T$4:$AC$4,0)) -> PLN | F57: =SUM(F58:F59) -> 10000 | I57: Preparation costs related to the type of financing | J57: […] | K57: […] | L57: […] | M57: […] | N57: […] | O57: […] | P57: […] | Q57: […] | R57: […] | T57: EUR | U57: PLN | V57: […] | W57: […] | X57: […] | Y57: […] | Z57: […] | AA57: […] | AB57: […] | AC57: […]
B58: =IF(AE58<>0,"!","") ->  | D58: =INDEX($I58:$R58,MATCH(General!$F$14,$I$4:$R$4,0)) -> Investment plan | E58: =INDEX($T58:$AC58,MATCH(General!$F$16,$T$4:$AC$4,0)) -> PLN | F58: 10000 | I58: Investment plan | J58: […] | K58: […] | L58: […] | M58: […] | N58: […] | O58: […] | P58: […] | Q58: […] | R58: […] | T58: EUR | U58: PLN | V58: […] | W58: […] | X58: […] | Y58: […] | Z58: […] | AA58: […] | AB58: […] | AC58: […] | AE58: =COUNTIFS(F58,"") -> 0
B59: ! | D59: =INDEX($I59:$R59,MATCH(General!$F$14,$I$4:$R$4,0)) -> Other costs | E59: =INDEX($T59:$AC59,MATCH(General!$F$16,$T$4:$AC$4,0)) -> PLN | I59: Other costs | J59: […] | K59: […] | L59: […] | M59: […] | N59: […] | O59: […] | P59: […] | Q59: […] | R59: […] | T59: EUR | U59: PLN | V59: […] | W59: […] | X59: […] | Y59: […] | Z59: […] | AA59: […] | AB59: […] | AC59: […] | AE59: =COUNTIFS(F59,"") -> 1
D60: =INDEX($I60:$R60,MATCH(General!$F$14,$I$4:$R$4,0)) -> Financing conditions | I60: Financing conditions | J60: […] | K60: […] | L60: […] | M60: […] | N60: […] | O60: […] | P60: […] | Q60: […] | R60: […]
D61: =INDEX($I61:$R61,MATCH(General!$F$14,$I$4:$R$4,0)) -> Green loan | I61: Green loan | J61: […] | K61: […] | L61: […] | M61: […] | N61: […] | O61: […] | P61: […] | Q61: […] | R61: […]
B62: =IF(AE62<>0,"!","") ->  | D62: =INDEX($I62:$R62,MATCH(General!$F$14,$I$4:$R$4,0)) -> Entity granting a financing | E62: =INDEX($T62:$AC62,MATCH(General!$F$16,$T$4:$AC$4,0)) -> tekst | F62: Public | I62: Entity granting a financing | J62: […] | K62: […] | L62: […] | M62: […] | N62: […] | O62: […] | P62: […] | Q62: […] | R62: […] | T62: text | U62: tekst | V62: […] | W62: […] | X62: […] | Y62: […] | Z62: […] | AA62: […] | AB62: […] | AC62: […] | AE62: =COUNTIFS(F62,"") -> 0
D63: =INDEX($I63:$R63,MATCH(General!$F$14,$I$4:$R$4,0)) -> Is public investment financed with EU funds? | E63: =INDEX($T63:$AC63,MATCH(General!$F$16,$T$4:$AC$4,0)) -> text | F63: Yes | I63: Is public investment financed with EU funds? | J63: […] | K63: […] | L63: […] | M63: […] | N63: […] | O63: […] | P63: […] | Q63: […] | R63: […] | T63: text | U63: text | V63: […] | W63: […] | X63: […] | Y63: […] | Z63: […] | AA63: […] | AB63: […] | AC63: […] | AE63: =COUNTIFS(F63,"") -> 0
D64: =INDEX($I64:$R64,MATCH(General!$F$14,$I$4:$R$4,0)) -> Interest rate per annum | E64: =INDEX($T64:$AC64,MATCH(General!$F$16,$T$4:$AC$4,0)) -> % | F64: 0.045 | I64: Interest rate per annum | J64: […] | K64: […] | L64: […] | M64: […] | N64: […] | O64: […] | P64: […] | Q64: […] | R64: […] | T64: % | U64: % | V64: […] | W64: […] | X64: […] | Y64: […] | Z64: […] | AA64: […] | AB64: […] | AC64: […] | AE64: =COUNTIFS(F64,"") -> 0
D65: =INDEX($I65:$R65,MATCH(General!$F$14,$I$4:$R$4,0)) -> Tenor | E65: =INDEX($T65:$AC65,MATCH(General!$F$16,$T$4:$AC$4,0)) -> lata | F65: 10 | I65: Tenor | J65: […] | K65: […] | L65: […] | M65: […] | N65: […] | O65: […] | P65: […] | Q65: […] | R65: […] | T65: years | U65: lata | V65: […] | W65: […] | X65: […] | Y65: […] | Z65: […] | AA65: […] | AB65: […] | AC65: […] | AE65: =COUNTIFS(F65,"") -> 0
D67: =INDEX($I67:$R67,MATCH(General!$F$14,$I$4:$R$4,0)) -> Capital rebate loan (FIs) | E67: =Config!$I$141 -> Unit | I67: Capital rebate loan (FIs) | J67: […] | K67: […] | L67: […] | M67: […] | N67: […] | O67: […] | P67: […] | Q67: […] | R67: […]
D68: =INDEX($I68:$R68,MATCH(General!$F$14,$I$4:$R$4,0)) -> Preparation costs related to the type of financing | E68: =INDEX($T68:$AC68,MATCH(General!$F$16,$T$4:$AC$4,0)) -> PLN | F68: =SUM(F69:F70) -> 10000 | I68: Preparation costs related to the type of financing | J68: […] | K68: […] | L68: […] | M68: […] | N68: […] | O68: […] | P68: […] | Q68: […] | R68: […] | T68: EUR | U68: PLN | V68: […] | W68: […] | X68: […] | Y68: […] | Z68: […] | AA68: […] | AB68: […] | AC68: […]
B69: =IF(AE69<>0,"!","") ->  | D69: =INDEX($I69:$R69,MATCH(General!$F$14,$I$4:$R$4,0)) -> Investment plan | E69: =INDEX($T69:$AC69,MATCH(General!$F$16,$T$4:$AC$4,0)) -> PLN | F69: 10000 | I69: Investment plan | J69: […] | K69: […] | L69: […] | M69: […] | N69: […] | O69: […] | P69: […] | Q69: […] | R69: […] | T69: EUR | U69: PLN | V69: […] | W69: […] | X69: […] | Y69: […] | Z69: […] | AA69: […] | AB69: […] | AC69: […] | AE69: =COUNTIFS(F69,"") -> 0
B70: ! | D70: =INDEX($I70:$R70,MATCH(General!$F$14,$I$4:$R$4,0)) -> Other costs | E70: =INDEX($T70:$AC70,MATCH(General!$F$16,$T$4:$AC$4,0)) -> PLN | I70: Other costs | J70: […] | K70: […] | L70: […] | M70: […] | N70: […] | O70: […] | P70: […] | Q70: […] | R70: […] | T70: EUR | U70: PLN | V70: […] | W70: […] | X70: […] | Y70: […] | Z70: […] | AA70: […] | AB70: […] | AC70: […] | AE70: =COUNTIFS(F70,"") -> 1
D71: =INDEX($I71:$R71,MATCH(General!$F$14,$I$4:$R$4,0)) -> Financing conditions | I71: Financing conditions | J71: […] | K71: […] | L71: […] | M71: […] | N71: […] | O71: […] | P71: […] | Q71: […] | R71: […]
D72: =INDEX($I72:$R72,MATCH(General!$F$14,$I$4:$R$4,0)) -> Capital rebate loan (FIs) | I72: Capital rebate loan (FIs) | J72: […] | K72: […] | L72: […] | M72: […] | N72: […] | O72: […] | P72: […] | Q72: […] | R72: […]
B73: =IF(AE73<>0,"!","") ->  | D73: =INDEX($I73:$R73,MATCH(General!$F$14,$I$4:$R$4,0)) -> Entity granting a financing | E73: =INDEX($T73:$AC73,MATCH(General!$F$16,$T$4:$AC$4,0)) -> tekst | F73: Public | I73: Entity granting a financing | J73: […] | K73: […] | L73: […] | M73: […] | N73: […] | O73: […] | P73: […] | Q73: […] | R73: […] | T73: text | U73: tekst | V73: […] | W73: […] | X73: […] | Y73: […] | Z73: […] | AA73: […] | AB73: […] | AC73: […] | AE73: =COUNTIFS(F73,"") -> 0
D74: =INDEX($I74:$R74,MATCH(General!$F$14,$I$4:$R$4,0)) -> Is public investment financed with EU funds? | E74: =INDEX($T74:$AC74,MATCH(General!$F$16,$T$4:$AC$4,0)) -> text | F74: Yes | I74: Is public investment financed with EU funds? | J74: […] | K74: […] | L74: […] | M74: […] | N74: […] | O74: […] | P74: […] | Q74: […] | R74: […] | T74: text | U74: text | V74: […] | W74: […] | X74: […] | Y74: […] | Z74: […] | AA74: […] | AB74: […] | AC74: […] | AE74: =COUNTIFS(F74,"") -> 0
D75: =INDEX($I75:$R75,MATCH(General!$F$14,$I$4:$R$4,0)) -> Co-financing rate of eligible project costs | E75: =INDEX($T75:$AC75,MATCH(General!$F$16,$T$4:$AC$4,0)) -> % | F75: 0.5 | I75: Co-financing rate of eligible project costs | J75: […] | K75: […] | L75: […] | M75: […] | N75: […] | O75: […] | P75: […] | Q75: […] | R75: […] | T75: % | U75: % | V75: […] | W75: […] | X75: […] | Y75: […] | Z75: […] | AA75: […] | AB75: […] | AC75: […] | AE75: =COUNTIFS(F75,"") -> 0
D76: =INDEX($I76:$R76,MATCH(General!$F$14,$I$4:$R$4,0)) -> Interest rate per annum | E76: =INDEX($T76:$AC76,MATCH(General!$F$16,$T$4:$AC$4,0)) -> % | F76: 0.07 | I76: Interest rate per annum | J76: […] | K76: […] | L76: […] | M76: […] | N76: […] | O76: […] | P76: […] | Q76: […] | R76: […] | T76: % | U76: % | V76: […] | W76: […] | X76: […] | Y76: […] | Z76: […] | AA76: […] | AB76: […] | AC76: […] | AE76: =COUNTIFS(F76,"") -> 0
D77: =INDEX($I77:$R77,MATCH(General!$F$14,$I$4:$R$4,0)) -> Tenor | E77: =INDEX($T77:$AC77,MATCH(General!$F$16,$T$4:$AC$4,0)) -> lata | F77: 10 | I77: Tenor | J77: […] | K77: […] | L77: […] | M77: […] | N77: […] | O77: […] | P77: […] | Q77: […] | R77: […] | T77: years | U77: lata | V77: […] | W77: […] | X77: […] | Y77: […] | Z77: […] | AA77: […] | AB77: […] | AC77: […] | AE77: =COUNTIFS(F77,"") -> 0
D79: =INDEX($I79:$R79,MATCH(General!$F$14,$I$4:$R$4,0)) -> Bonds (standard II) | E79: =Config!$I$141 -> Unit | I79: Bonds (standard II) | J79: […] | K79: […] | L79: […] | M79: […] | N79: […] | O79: […] | P79: […] | Q79: […] | R79: […]
D80: =INDEX($I80:$R80,MATCH(General!$F$14,$I$4:$R$4,0)) -> Preparation costs related to the type of financing | E80: =INDEX($T80:$AC80,MATCH(General!$F$16,$T$4:$AC$4,0)) -> PLN | F80: =SUM(F81:F82) -> 0 | I80: Preparation costs related to the type of financing | J80: […] | K80: […] | L80: […] | M80: […] | N80: […] | O80: […] | P80: […] | Q80: […] | R80: […] | T80: EUR | U80: PLN | V80: […] | W80: […] | X80: […] | Y80: […] | Z80: […] | AA80: […] | AB80: […] | AC80: […]
B81: =IF(AE81<>0,"!","") -> ! | D81: =INDEX($I81:$R81,MATCH(General!$F$14,$I$4:$R$4,0)) -> Pre-issuance costs (investment advisory, credit and risk rating and legal fees) | E81: =INDEX($T81:$AC81,MATCH(General!$F$16,$T$4:$AC$4,0)) -> PLN | I81: Pre-issuance costs (investment advisory, credit and risk rating and legal fees) | J81: […] | K81: […] | L81: […] | M81: […] | N81: […] | O81: […] | P81: […] | Q81: […] | R81: […] | T81: EUR | U81: PLN | V81: […] | W81: […] | X81: […] | Y81: […] | Z81: […] | AA81: […] | AB81: […] | AC81: […] | AE81: =COUNTIFS(F81,"") -> 1
B82: ! | D82: =INDEX($I82:$R82,MATCH(General!$F$14,$I$4:$R$4,0)) -> Issuance costs (underwriting and placement fees, exchange listing, regulatory and depository-settlement fees) | E82: =INDEX($T82:$AC82,MATCH(General!$F$16,$T$4:$AC$4,0)) -> PLN | I82: Issuance costs (underwriting and placement fees, exchange listing, regulatory and depository-settlement fees) | J82: […] | K82: […] | L82: […] | M82: […] | N82: […] | O82: […] | P82: […] | Q82: […] | R82: […] | T82: EUR | U82: PLN | V82: […] | W82: […] | X82: […] | Y82: […] | Z82: […] | AA82: […] | AB82: […] | AC82: […] | AE82: =COUNTIFS(F82,"") -> 1
D83: =INDEX($I83:$R83,MATCH(General!$F$14,$I$4:$R$4,0)) -> Post-Issuance and ongoing compliance costs | E83: =INDEX($T83:$AC83,MATCH(General!$F$16,$T$4:$AC$4,0)) -> PLN | F83: =SUM(F84:F85) -> 80 | I83: Post-Issuance and ongoing compliance costs | J83: […] | K83: […] | L83: […] | M83: […] | N83: […] | O83: […] | P83: […] | Q83: […] | R83: […] | T83: EUR | U83: PLN | V83: […] | W83: […] | X83: […] | Y83: […] | Z83: […] | AA83: […] | AB83: […] | AC83: […]
B84: =IF(AE84<>0,"!","") ->  | D84: =INDEX($I84:$R84,MATCH(General!$F$14,$I$4:$R$4,0)) -> Annual stock exchange and depository | E84: =INDEX($T84:$AC84,MATCH(General!$F$16,$T$4:$AC$4,0)) -> PLN | F84: 40 | I84: Annual stock exchange and depository | J84: […] | K84: […] | L84: […] | M84: […] | N84: […] | O84: […] | P84: […] | Q84: […] | R84: […] | T84: EUR | U84: PLN | V84: […] | W84: […] | X84: […] | Y84: […] | Z84: […] | AA84: […] | AB84: […] | AC84: […] | AE84: =COUNTIFS(F84,"") -> 0
D85: =INDEX($I85:$R85,MATCH(General!$F$14,$I$4:$R$4,0)) -> External reviews and audits (Post-Issuance) | E85: =INDEX($T85:$AC85,MATCH(General!$F$16,$T$4:$AC$4,0)) -> PLN | F85: 40 | I85: External reviews and audits (Post-Issuance) | J85: […] | K85: […] | L85: […] | M85: […] | N85: […] | O85: […] | P85: […] | Q85: […] | R85: […] | T85: EUR | U85: PLN | V85: […] | W85: […] | X85: […] | Y85: […] | Z85: […] | AA85: […] | AB85: […] | AC85: […] | AE85: =COUNTIFS(F85,"") -> 0
D86: =INDEX($I86:$R86,MATCH(General!$F$14,$I$4:$R$4,0)) -> Financing conditions | I86: Financing conditions | J86: […] | K86: […] | L86: […] | M86: […] | N86: […] | O86: […] | P86: […] | Q86: […] | R86: […]
D87: =INDEX($I87:$R87,MATCH(General!$F$14,$I$4:$R$4,0)) -> Bonds (standard II) | I87: Bonds (standard II) | J87: […] | K87: […] | L87: […] | M87: […] | N87: […] | O87: […] | P87: […] | Q87: […] | R87: […]
B88: =IF(AE88<>0,"!","") ->  | D88: =INDEX($I88:$R88,MATCH(General!$F$14,$I$4:$R$4,0)) -> Entity granting a financing | E88: =INDEX($T88:$AC88,MATCH(General!$F$16,$T$4:$AC$4,0)) -> tekst | F88: Public | I88: Entity granting a financing | J88: […] | K88: […] | L88: […] | M88: […] | N88: […] | O88: […] | P88: […] | Q88: […] | R88: […] | T88: text | U88: tekst | V88: […] | W88: […] | X88: […] | Y88: […] | Z88: […] | AA88: […] | AB88: […] | AC88: […] | AE88: =COUNTIFS(F88,"") -> 0
D89: =INDEX($I89:$R89,MATCH(General!$F$14,$I$4:$R$4,0)) -> Is public investment financed with EU funds? | E89: =INDEX($T89:$AC89,MATCH(General!$F$16,$T$4:$AC$4,0)) -> text | F89: Yes | I89: Is public investment financed with EU funds? | J89: […] | K89: […] | L89: […] | M89: […] | N89: […] | O89: […] | P89: […] | Q89: […] | R89: […] | T89: text | U89: text | V89: […] | W89: […] | X89: […] | Y89: […] | Z89: […] | AA89: […] | AB89: […] | AC89: […] | AE89: =COUNTIFS(F89,"") -> 0
D90: =INDEX($I90:$R90,MATCH(General!$F$14,$I$4:$R$4,0)) -> Interest rate per annum | E90: =INDEX($T90:$AC90,MATCH(General!$F$16,$T$4:$AC$4,0)) -> % | F90: 0.05 | I90: Interest rate per annum | J90: […] | K90: […] | L90: […] | M90: […] | N90: […] | O90: […] | P90: […] | Q90: […] | R90: […] | T90: % | U90: % | V90: […] | W90: […] | X90: […] | Y90: […] | Z90: […] | AA90: […] | AB90: […] | AC90: […] | AE90: =COUNTIFS(F90,"") -> 0
D91: =INDEX($I91:$R91,MATCH(General!$F$14,$I$4:$R$4,0)) -> Tenor | E91: =INDEX($T91:$AC91,MATCH(General!$F$16,$T$4:$AC$4,0)) -> lata | F91: 10 | I91: Tenor | J91: […] | K91: […] | L91: […] | M91: […] | N91: […] | O91: […] | P91: […] | Q91: […] | R91: […] | T91: years | U91: lata | V91: […] | W91: […] | X91: […] | Y91: […] | Z91: […] | AA91: […] | AB91: […] | AC91: […] | AE91: =COUNTIFS(F91,"") -> 0
D93: =INDEX($I93:$R93,MATCH(General!$F$14,$I$4:$R$4,0)) -> Bonds (EuGBS-SLB) | E93: =Config!$I$141 -> Unit | I93: Bonds (EuGBS-SLB) | J93: […] | K93: […] | L93: […] | M93: […] | N93: […] | O93: […] | P93: […] | Q93: […] | R93: […]
D94: =INDEX($I94:$R94,MATCH(General!$F$14,$I$4:$R$4,0)) -> Preparation costs related to the type of financing | E94: =INDEX($T94:$AC94,MATCH(General!$F$16,$T$4:$AC$4,0)) -> PLN | F94: =SUM(F95:F96) -> 0 | I94: Preparation costs related to the type of financing | J94: […] | K94: […] | L94: […] | M94: […] | N94: […] | O94: […] | P94: […] | Q94: […] | R94: […] | T94: EUR | U94: PLN | V94: […] | W94: […] | X94: […] | Y94: […] | Z94: […] | AA94: […] | AB94: […] | AC94: […]
B95: =IF(AE95<>0,"!","") -> ! | D95: =INDEX($I95:$R95,MATCH(General!$F$14,$I$4:$R$4,0)) -> Pre-issuance costs (investment advisory and legal fees, credit and risk rating, external review and certification) | E95: =INDEX($T95:$AC95,MATCH(General!$F$16,$T$4:$AC$4,0)) -> PLN | I95: Pre-issuance costs (investment advisory and legal fees, credit and risk rating, external review and certification) | J95: […] | K95: […] | L95: […] | M95: […] | N95: […] | O95: […] | P95: […] | Q95: […] | R95: […] | T95: EUR | U95: PLN | V95: […] | W95: […] | X95: […] | Y95: […] | Z95: […] | AA95: […] | AB95: […] | AC95: […] | AE95: =COUNTIFS(F95,"") -> 1
B96: ! | D96: =INDEX($I96:$R96,MATCH(General!$F$14,$I$4:$R$4,0)) -> Issuance costs (underwriting and placement fees, exchange listing, regulatory and depository-settlement fees) | E96: =INDEX($T96:$AC96,MATCH(General!$F$16,$T$4:$AC$4,0)) -> PLN | I96: Issuance costs (underwriting and placement fees, exchange listing, regulatory and depository-settlement fees) | J96: […] | K96: […] | L96: […] | M96: […] | N96: […] | O96: […] | P96: […] | Q96: […] | R96: […] | T96: EUR | U96: PLN | V96: […] | W96: […] | X96: […] | Y96: […] | Z96: […] | AA96: […] | AB96: […] | AC96: […] | AE96: =COUNTIFS(F96,"") -> 1
D97: =INDEX($I97:$R97,MATCH(General!$F$14,$I$4:$R$4,0)) -> Post-Issuance and ongoing compliance costs | E97: =INDEX($T97:$AC97,MATCH(General!$F$16,$T$4:$AC$4,0)) -> PLN | F97: =SUM(F98:F99) -> 0 | I97: Post-Issuance and ongoing compliance costs | J97: […] | K97: […] | L97: […] | M97: […] | N97: […] | O97: […] | P97: […] | Q97: […] | R97: […] | T97: EUR | U97: PLN | V97: […] | W97: […] | X97: […] | Y97: […] | Z97: […] | AA97: […] | AB97: […] | AC97: […]
B98: =IF(AE98<>0,"!","") -> ! | D98: =INDEX($I98:$R98,MATCH(General!$F$14,$I$4:$R$4,0)) -> Annual stock exchange and depository | E98: =INDEX($T98:$AC98,MATCH(General!$F$16,$T$4:$AC$4,0)) -> PLN | I98: Annual stock exchange and depository | J98: […] | K98: […] | L98: […] | M98: […] | N98: […] | O98: […] | P98: […] | Q98: […] | R98: […] | T98: EUR | U98: PLN | V98: […] | W98: […] | X98: […] | Y98: […] | Z98: […] | AA98: […] | AB98: […] | AC98: […] | AE98: =COUNTIFS(F98,"") -> 1
B99: ! | D99: =INDEX($I99:$R99,MATCH(General!$F$14,$I$4:$R$4,0)) -> External allocation reviews and audits (Post-Issuance) | E99: =INDEX($T99:$AC99,MATCH(General!$F$16,$T$4:$AC$4,0)) -> PLN | I99: External allocation reviews and audits (Post-Issuance) | J99: […] | K99: […] | L99: […] | M99: […] | N99: […] | O99: […] | P99: […] | Q99: […] | R99: […] | T99: EUR | U99: PLN | V99: […] | W99: […] | X99: […] | Y99: […] | Z99: […] | AA99: […] | AB99: […] | AC99: […] | AE99: =COUNTIFS(F99,"") -> 1
D100: =INDEX($I100:$R100,MATCH(General!$F$14,$I$4:$R$4,0)) -> Financing conditions | I100: Financing conditions | J100: […] | K100: […] | L100: […] | M100: […] | N100: […] | O100: […] | P100: […] | Q100: […] | R100: […]
D101: =INDEX($I101:$R101,MATCH(General!$F$14,$I$4:$R$4,0)) -> Bonds (EuGBS-SLB) | I101: Bonds (EuGBS-SLB) | J101: […] | K101: […] | L101: […] | M101: […] | N101: […] | O101: […] | P101: […] | Q101: […] | R101: […]
B102: =IF(AE102<>0,"!","") ->  | D102: =INDEX($I102:$R102,MATCH(General!$F$14,$I$4:$R$4,0)) -> Entity granting a financing | E102: =INDEX($T102:$AC102,MATCH(General!$F$16,$T$4:$AC$4,0)) -> tekst | F102: Public | I102: Entity granting a financing | J102: […] | K102: […] | L102: […] | M102: […] | N102: […] | O102: […] | P102: […] | Q102: […] | R102: […] | T102: text | U102: tekst | V102: […] | W102: […] | X102: […] | Y102: […] | Z102: […] | AA102: […] | AB102: […] | AC102: […] | AE102: =COUNTIFS(F102,"") -> 0
B103: =IF(AE103<>0,"!","") ->  | D103: =INDEX($I103:$R103,MATCH(General!$F$14,$I$4:$R$4,0)) -> Is public investment financed with EU funds? | E103: =INDEX($T103:$AC103,MATCH(General!$F$16,$T$4:$AC$4,0)) -> text | F103: Yes | I103: Is public investment financed with EU funds? | J103: […] | K103: […] | L103: […] | M103: […] | N103: […] | O103: […] | P103: […] | Q103: […] | R103: […] | T103: text | U103: text | V103: […] | W103: […] | X103: […] | Y103: […] | Z103: […] | AA103: […] | AB103: […] | AC103: […] | AE103: =COUNTIFS(F103,"") -> 0
D104: =INDEX($I104:$R104,MATCH(General!$F$14,$I$4:$R$4,0)) -> Interest rate per annum | E104: =INDEX($T104:$AC104,MATCH(General!$F$16,$T$4:$AC$4,0)) -> % | F104: 0.048 | I104: Interest rate per annum | J104: […] | K104: […] | L104: […] | M104: […] | N104: […] | O104: […] | P104: […] | Q104: […] | R104: […] | T104: % | U104: % | V104: […] | W104: […] | X104: […] | Y104: […] | Z104: […] | AA104: […] | AB104: […] | AC104: […] | AE104: =COUNTIFS(F104,"") -> 0
D105: =INDEX($I105:$R105,MATCH(General!$F$14,$I$4:$R$4,0)) -> Tenor | E105: =INDEX($T105:$AC105,MATCH(General!$F$16,$T$4:$AC$4,0)) -> lata | F105: 10 | I105: Tenor | J105: […] | K105: […] | L105: […] | M105: […] | N105: […] | O105: […] | P105: […] | Q105: […] | R105: […] | T105: years | U105: lata | V105: […] | W105: […] | X105: […] | Y105: […] | Z105: […] | AA105: […] | AB105: […] | AC105: […] | AE105: =COUNTIFS(F105,"") -> 0

Sheet Analysis_param
A1: =Config!$I$133 -> KEY PARAMETERS OF THE ANALYSIS | BN1: Check
A2: =General!$D$8&" "&General!$F$8 -> Name of the project beneficiary:
A3: =General!$D$10&" "&General!$F$10 -> Name of the investment project: | AR3: =Config!AT$1 -> Language | BC3: =Config!BE$1 -> Currency / Units
A4: =IF(SUM(BN6:BN84)<>0,Config!$I$152,"") -> All input cells should be filled in with assumptions | AR4: =Config!AT$2 -> English | AS4: =Config!AU$2 -> Polish | AT4: =Config!AV$2 -> […] | AU4: =Config!AW$2 -> […] | AV4: =Config!AX$2 -> […] | AW4: =Config!AY$2 -> […] | AX4: =Config!AZ$2 -> […] | AY4: =Config!BA$2 -> […] | AZ4: =Config!BB$2 -> […] | BA4: =Config!BC$2 -> […] | BC4: =Config!BE$2 -> EUR | BD4: =Config!BF$2 -> PLN | BE4: =Config!BG$2 -> […] | BF4: =Config!BH$2 -> […] | BG4: =Config!BI$2 -> […] | BH4: =Config!BJ$2 -> […] | BI4: =Config!BK$2 -> […] | BJ4: =Config!BL$2 -> […] | BK4: =Config!BM$2 -> […] | BL4: =Config!BN$2 -> […]
A6: =INDEX($AR6:$BA6,MATCH(General!$F$14,$AR$4:$BA$4,0)) -> Financial analysis | AR6: Financial analysis | AS6: […] | AT6: […] | AU6: […] | AV6: […] | AW6: […] | AX6: […] | AY6: […] | AZ6: […] | BA6: […]
D8: =INDEX($AR8:$BA8,MATCH(General!$F$14,$AR$4:$BA$4,0)) -> Discount rate | E8: =Config!$I$141 -> Unit | AR8: Discount rate | AS8: […] | AT8: […] | AU8: […] | AV8: […] | AW8: […] | AX8: […] | AY8: […] | AZ8: […] | BA8: […]
B9: =IF(BN9<>0,"!","") ->  | D9: =INDEX($AR9:$BA9,MATCH(General!$F$14,$AR$4:$BA$4,0)) -> Financial discount rate used in the model - real discount rate | E9: =INDEX($BC9:$BL9,MATCH(General!$F$16,$BC$4:$BL$4,0)) -> % | F9: 0.04 | AR9: Financial discount rate used in the model - real discount rate | AS9: […] | AT9: […] | AU9: […] | AV9: […] | AW9: […] | AX9: […] | AY9: […] | AZ9: […] | BA9: […] | BC9: % | BD9: % | BE9: […] | BF9: […] | BG9: […] | BH9: […] | BI9: […] | BJ9: […] | BK9: […] | BL9: […] | BN9: =COUNTIFS(F9,"") -> 0
D11: =INDEX($AR11:$BA11,MATCH(General!$F$14,$AR$4:$BA$4,0)) -> Residual value | E11: =Config!$I$141 -> Unit | AR11: Residual value | AS11: […] | AT11: […] | AU11: […] | AV11: […] | AW11: […] | AX11: […] | AY11: […] | AZ11: […] | BA11: […]
B12: =IF(BN12<>0,"!","") ->  | D12: =INDEX($AR12:$BA12,MATCH(General!$F$14,$AR$4:$BA$4,0)) -> Residual value selection | E12: =INDEX($BC12:$BL12,MATCH(General!$F$16,$BC$4:$BL$4,0)) -> tekst | F12: Net book value | AR12: Residual value selection | AS12: […] | AT12: […] | AU12: […] | AV12: […] | AW12: […] | AX12: […] | AY12: […] | AZ12: […] | BA12: […] | BC12: text | BD12: tekst | BE12: […] | BF12: […] | BG12: […] | BH12: […] | BI12: […] | BJ12: […] | BK12: […] | BL12: […] | BN12: =COUNTIFS(F12,"") -> 0
D13: =INDEX($AR13:$BA13,MATCH(General!$F$14,$AR$4:$BA$4,0)) -> Net book value | AR13: Net book value | AS13: […] | AT13: […] | AU13: […] | AV13: […] | AW13: […] | AX13: […] | AY13: […] | AZ13: […] | BA13: […] | BC13: EUR | BD13: PLN | BE13: […] | BF13: […] | BG13: […] | BH13: […] | BI13: […] | BJ13: […] | BK13: […] | BL13: […]
D14: =INDEX($AR14:$BA14,MATCH(General!$F$14,$AR$4:$BA$4,0)) -> Total amortised CAPEX at the end of a forecast period | E14: =INDEX($BC14:$BL14,MATCH(General!$F$16,$BC$4:$BL$4,0)) -> PLN | F14: =Calc!F722 -> 374149.125 | AR14: Total amortised CAPEX at the end of a forecast period | AS14: […] | AT14: […] | AU14: […] | AV14: […] | AW14: […] | AX14: […] | AY14: […] | AZ14: […] | BA14: […] | BC14: EUR | BD14: PLN | BE14: […] | BF14: […] | BG14: […] | BH14: […] | BI14: […] | BJ14: […] | BK14: […] | BL14: […]
D15: =INDEX($AR15:$BA15,MATCH(General!$F$14,$AR$4:$BA$4,0)) -> VAT | E15: =INDEX($BC15:$BL15,MATCH(General!$F$16,$BC$4:$BL$4,0)) -> PLN | F15: =Calc!F724 -> 0 | AR15: VAT | AS15: […] | AT15: […] | AU15: […] | AV15: […] | AW15: […] | AX15: […] | AY15: […] | AZ15: […] | BA15: […] | BC15: EUR | BD15: PLN | BE15: […] | BF15: […] | BG15: […] | BH15: […] | BI15: […] | BJ15: […] | BK15: […] | BL15: […]
D16: =INDEX($AR16:$BA16,MATCH(General!$F$14,$AR$4:$BA$4,0)) -> Total amortised CAPEX at the end of a forecast period incl. VAT | E16: =INDEX($BC16:$BL16,MATCH(General!$F$16,$BC$4:$BL$4,0)) -> PLN | F16: =Calc!F725 -> 374149.125 | AR16: Total amortised CAPEX at the end of a forecast period incl. VAT | AS16: […] | AT16: […] | AU16: […] | AV16: […] | AW16: […] | AX16: […] | AY16: […] | AZ16: […] | BA16: […] | BC16: EUR | BD16: PLN | BE16: […] | BF16: […] | BG16: […] | BH16: […] | BI16: […] | BJ16: […] | BK16: […] | BL16: […]
D17: =INDEX($AR17:$BA17,MATCH(General!$F$14,$AR$4:$BA$4,0)) -> Input | AR17: Input | AS17: […] | AT17: […] | AU17: […] | AV17: […] | AW17: […] | AX17: […] | AY17: […] | AZ17: […] | BA17: […] | BC17: EUR | BD17: PLN | BE17: […] | BF17: […] | BG17: […] | BH17: […] | BI17: […] | BJ17: […] | BK17: […] | BL17: […]
B18: =IF(BN18<>0,"!","") ->  | D18: =INDEX($AR18:$BA18,MATCH(General!$F$14,$AR$4:$BA$4,0)) -> Total | E18: =INDEX($BC18:$BL18,MATCH(General!$F$16,$BC$4:$BL$4,0)) -> PLN | F18: 0 | AR18: Total | AS18: […] | AT18: […] | AU18: […] | AV18: […] | AW18: […] | AX18: […] | AY18: […] | AZ18: […] | BA18: […] | BC18: EUR | BD18: PLN | BE18: […] | BF18: […] | BG18: […] | BH18: […] | BI18: […] | BJ18: […] | BK18: […] | BL18: […] | BN18: =COUNTIFS(F18,"") -> 0
B19: =IF(BN19<>0,"!","") ->  | D19: =INDEX($AR19:$BA19,MATCH(General!$F$14,$AR$4:$BA$4,0)) -> VAT | E19: =INDEX($BC19:$BL19,MATCH(General!$F$16,$BC$4:$BL$4,0)) -> PLN | F19: 0 | AR19: VAT | AS19: […] | AT19: […] | AU19: […] | AV19: […] | AW19: […] | AX19: […] | AY19: […] | AZ19: […] | BA19: […] | BC19: EUR | BD19: PLN | BE19: […] | BF19: […] | BG19: […] | BH19: […] | BI19: […] | BJ19: […] | BK19: […] | BL19: […] | BN19: =COUNTIFS(F19,"") -> 0
D20: =INDEX($AR20:$BA20,MATCH(General!$F$14,$AR$4:$BA$4,0)) -> Total incl. VAT | E20: =INDEX($BC20:$BL20,MATCH(General!$F$16,$BC$4:$BL$4,0)) -> PLN | F20: =SUM(F18:F19) -> 0 | AR20: Total incl. VAT | AS20: […] | AT20: […] | AU20: […] | AV20: […] | AW20: […] | AX20: […] | AY20: […] | AZ20: […] | BA20: […] | BC20: EUR | BD20: PLN | BE20: […] | BF20: […] | BG20: […] | BH20: […] | BI20: […] | BJ20: […] | BK20: […] | BL20: […]
A22: =INDEX($AR22:$BA22,MATCH(General!$F$14,$AR$4:$BA$4,0)) -> Economic analysis | AR22: Economic analysis | AS22: […] | AT22: […] | AU22: […] | AV22: […] | AW22: […] | AX22: […] | AY22: […] | AZ22: […] | BA22: […]
D24: =INDEX($AR24:$BA24,MATCH(General!$F$14,$AR$4:$BA$4,0)) -> Discount rate | E24: =Config!$I$141 -> Unit | AR24: Discount rate | AS24: […] | AT24: […] | AU24: […] | AV24: […] | AW24: […] | AX24: […] | AY24: […] | AZ24: […] | BA24: […]
B25: =IF(BN25<>0,"!","") ->  | D25: =INDEX($AR25:$BA25,MATCH(General!$F$14,$AR$4:$BA$4,0)) -> Social discount rate used in the model | E25: =INDEX($BC25:$BL25,MATCH(General!$F$16,$BC$4:$BL$4,0)) -> % | F25: 0.03 | AR25: Social discount rate used in the model | AS25: […] | AT25: […] | AU25: […] | AV25: […] | AW25: […] | AX25: […] | AY25: […] | AZ25: […] | BA25: […] | BC25: % | BD25: % | BE25: […] | BF25: […] | BG25: […] | BH25: […] | BI25: […] | BJ25: […] | BK25: […] | BL25: […] | BN25: =COUNTIFS(F25,"") -> 0
D27: =INDEX($AR27:$BA27,MATCH(General!$F$14,$AR$4:$BA$4,0)) -> Correction factor parameters | E27: =Config!$I$141 -> Unit | AR27: Correction factor parameters | AS27: […] | AT27: […] | AU27: […] | AV27: […] | AW27: […] | AX27: […] | AY27: […] | AZ27: […] | BA27: […]
B28: =IF(BN28<>0,"!","") ->  | D28: =INDEX($AR28:$BA28,MATCH(General!$F$14,$AR$4:$BA$4,0)) -> CAPEX Correction factor due to fiscal corrections | E28: =INDEX($BC28:$BL28,MATCH(General!$F$16,$BC$4:$BL$4,0)) -> x | F28: 0.8056526157 | AR28: CAPEX Correction factor due to fiscal corrections | AS28: […] | AT28: […] | AU28: […] | AV28: […] | AW28: […] | AX28: […] | AY28: […] | AZ28: […] | BA28: […] | BC28: x | BD28: x | BE28: […] | BF28: […] | BG28: […] | BH28: […] | BI28: […] | BJ28: […] | BK28: […] | BL28: […] | BN28: =COUNTIFS(F28,"") -> 0
B29: =IF(BN29<>0,"!","") ->  | D29: =INDEX($AR29:$BA29,MATCH(General!$F$14,$AR$4:$BA$4,0)) -> CAPEX Correction factor due to shadow pricing | E29: =INDEX($BC29:$BL29,MATCH(General!$F$16,$BC$4:$BL$4,0)) -> x | F29: 1 | AR29: CAPEX Correction factor due to shadow pricing | AS29: […] | AT29: […] | AU29: […] | AV29: […] | AW29: […] | AX29: […] | AY29: […] | AZ29: […] | BA29: […] | BC29: x | BD29: x | BE29: […] | BF29: […] | BG29: […] | BH29: […] | BI29: […] | BJ29: […] | BK29: […] | BL29: […] | BN29: =COUNTIFS(F29,"") -> 0
B30: =IF(BN30<>0,"!","") ->  | D30: =INDEX($AR30:$BA30,MATCH(General!$F$14,$AR$4:$BA$4,0)) -> OPEX Correction factor due to fiscal corrections | E30: =INDEX($BC30:$BL30,MATCH(General!$F$16,$BC$4:$BL$4,0)) -> x | F30: 0.8849557522 | AR30: OPEX Correction factor due to fiscal corrections | AS30: […] | AT30: […] | AU30: […] | AV30: […] | AW30: […] | AX30: […] | AY30: […] | AZ30: […] | BA30: […] | BC30: x | BD30: x | BE30: […] | BF30: […] | BG30: […] | BH30: […] | BI30: […] | BJ30: […] | BK30: […] | BL30: […] | BN30: =COUNTIFS(F30,"") -> 0
B31: =IF(BN31<>0,"!","") ->  | D31: =INDEX($AR31:$BA31,MATCH(General!$F$14,$AR$4:$BA$4,0)) -> OPEX Correction factor due to shadow pricing | E31: =INDEX($BC31:$BL31,MATCH(General!$F$16,$BC$4:$BL$4,0)) -> x | F31: 1 | AR31: OPEX Correction factor due to shadow pricing | AS31: […] | AT31: […] | AU31: […] | AV31: […] | AW31: […] | AX31: […] | AY31: […] | AZ31: […] | BA31: […] | BC31: x | BD31: x | BE31: […] | BF31: […] | BG31: […] | BH31: […] | BI31: […] | BJ31: […] | BK31: […] | BL31: […] | BN31: =COUNTIFS(F31,"") -> 0
B32: =IF(BN32<>0,"!","") ->  | D32: =INDEX($AR32:$BA32,MATCH(General!$F$14,$AR$4:$BA$4,0)) -> Revenue Correction factor due to fiscal corrections | E32: =INDEX($BC32:$BL32,MATCH(General!$F$16,$BC$4:$BL$4,0)) -> x | F32: 1 | AR32: Revenue Correction factor due to fiscal corrections | AS32: […] | AT32: […] | AU32: […] | AV32: […] | AW32: […] | AX32: […] | AY32: […] | AZ32: […] | BA32: […] | BC32: x | BD32: x | BE32: […] | BF32: […] | BG32: […] | BH32: […] | BI32: […] | BJ32: […] | BK32: […] | BL32: […] | BN32: =COUNTIFS(F32,"") -> 0
D34: =INDEX($AR34:$BA34,MATCH(General!$F$14,$AR$4:$BA$4,0)) -> Socio-economic parameters | E34: =Config!$I$141 -> Unit | G34: =Config!I$1 -> 2026 | H34: =Config!J$1 -> 2027 | I34: =Config!K$1 -> 2028 | J34: =Config!L$1 -> 2029 | K34: =Config!M$1 -> 2030 | L34: =Config!N$1 -> 2031 | M34: =Config!O$1 -> 2032 | N34: =Config!P$1 -> 2033 | O34: =Config!Q$1 -> 2034 | P34: =Config!R$1 -> 2035 | Q34: =Config!S$1 -> 2036 | R34: =Config!T$1 -> 2037 | S34: =Config!U$1 -> 2038 | T34: =Config!V$1 -> 2039 | U34: =Config!W$1 -> 2040 | V34: =Config!X$1 -> 2041 | W34: =Config!Y$1 -> 2042 | X34: =Config!Z$1 -> 2043 | Y34: =Config!AA$1 -> 2044 | Z34: =Config!AB$1 -> 2045 | AA34: =Config!AC$1 ->  | AB34: =Config!AD$1 ->  | AC34: =Config!AE$1 ->  | AD34: =Config!AF$1 ->  | AE34: =Config!AG$1 ->  | AF34: =Config!AH$1 ->  | AG34: =Config!AI$1 ->  | AH34: =Config!AJ$1 ->  | AI34: =Config!AK$1 ->  | AJ34: =Config!AL$1 ->  | AK34: =Config!AM$1 ->  | AL34: =Config!AN$1 ->  | AM34: =Config!AO$1 ->  | AN34: =Config!AP$1 ->  | AO34: =Config!AQ$1 ->  | AP34: =Config!AR$1 ->  | AR34: Socio-economic parameters | AS34: […] | AT34: […] | AU34: […] | AV34: […] | AW34: […] | AX34: […] | AY34: […] | AZ34: […] | BA34: […]
G35: =Config!I$2 -> Construction | H35: =Config!J$2 -> Construction | I35: =Config!K$2 -> Operation | J35: =Config!L$2 -> Operation | K35: =Config!M$2 -> Operation | L35: =Config!N$2 -> Operation | M35: =Config!O$2 -> Operation | N35: =Config!P$2 -> Operation | O35: =Config!Q$2 -> Operation | P35: =Config!R$2 -> Operation | Q35: =Config!S$2 -> Operation | R35: =Config!T$2 -> Operation | S35: =Config!U$2 -> Operation | T35: =Config!V$2 -> Operation | U35: =Config!W$2 -> Operation | V35: =Config!X$2 -> Operation | W35: =Config!Y$2 -> Operation | X35: =Config!Z$2 -> Operation | Y35: =Config!AA$2 -> Operation | Z35: =Config!AB$2 -> Operation | AA35: =Config!AC$2 ->  | AB35: =Config!AD$2 ->  | AC35: =Config!AE$2 ->  | AD35: =Config!AF$2 ->  | AE35: =Config!AG$2 ->  | AF35: =Config!AH$2 ->  | AG35: =Config!AI$2 ->  | AH35: =Config!AJ$2 ->  | AI35: =Config!AK$2 ->  | AJ35: =Config!AL$2 ->  | AK35: =Config!AM$2 ->  | AL35: =Config!AN$2 ->  | AM35: =Config!AO$2 ->  | AN35: =Config!AP$2 ->  | AO35: =Config!AQ$2 ->  | AP35: =Config!AR$2 -> 
D36: =INDEX($AR36:$BA36,MATCH(General!$F$14,$AR$4:$BA$4,0)) -> Macroeconomic assumptions | AR36: Macroeconomic assumptions | AS36: […] | AT36: […] | AU36: […] | AV36: […] | AW36: […] | AX36: […] | AY36: […] | AZ36: […] | BA36: […]
B37: =IF(BN37<>0,"!","") ->  | D37: =INDEX($AR37:$BA37,MATCH(General!$F$14,$AR$4:$BA$4,0)) -> Exchange rate for recalculating shadow prices into project's currency | E37: =INDEX($BC37:$BL37,MATCH(General!$F$16,$BC$4:$BL$4,0)) -> FX | G37: 1 | H37: 1 | I37: 1 | J37: 1 | K37: 1 | L37: 1 | M37: 1 | N37: 1 | O37: 1 | P37: 1 | Q37: 1 | R37: 1 | S37: 1 | T37: 1 | U37: 1 | V37: 1 | W37: 1 | X37: 1 | Y37: 1 | Z37: 1 | AR37: Exchange rate for recalculating shadow prices into project's currency | AS37: […] | AT37: […] | AU37: […] | AV37: […] | AW37: […] | AX37: […] | AY37: […] | AZ37: […] | BA37: […] | BC37: FX | BD37: FX | BE37: […] | BF37: […] | BG37: […] | BH37: […] | BI37: […] | BJ37: […] | BK37: […] | BL37: […] | BN37: =COUNTIFS($G37:$AP37,"",$G$34:$AP$34,"<="&Config!$F$12) -> 0
B38: =IF(BN38<>0,"!","") ->  | D38: =INDEX($AR38:$BA38,MATCH(General!$F$14,$AR$4:$BA$4,0)) -> Forecasted long-term per capita GDP growth | E38: =INDEX($BC38:$BL38,MATCH(General!$F$16,$BC$4:$BL$4,0)) -> % | G38: 0 | H38: 0.015 | I38: 0.015 | J38: 0.015 | K38: 0.015 | L38: 0.015 | M38: 0.015 | N38: 0.015 | O38: 0.015 | P38: 0.015 | Q38: 0.015 | R38: 0.015 | S38: 0.015 | T38: 0.015 | U38: 0.015 | V38: 0.015 | W38: 0.015 | X38: 0.015 | Y38: 0.015 | Z38: 0.015 | AR38: Forecasted long-term per capita GDP growth | AS38: […] | AT38: […] | AU38: […] | AV38: […] | AW38: […] | AX38: […] | AY38: […] | AZ38: […] | BA38: […] | BC38: % | BD38: % | BE38: […] | BF38: […] | BG38: […] | BH38: […] | BI38: […] | BJ38: […] | BK38: […] | BL38: […] | BN38: =COUNTIFS($G38:$AP38,"",$G$34:$AP$34,"<="&Config!$F$12) -> 0
D39: =INDEX($AR39:$BA39,MATCH(General!$F$14,$AR$4:$BA$4,0)) -> Shadow prices in EUR | AR39: Shadow prices in EUR | AS39: […] | AT39: […] | AU39: […] | AV39: […] | AW39: […] | AX39: […] | AY39: […] | AZ39: […] | BA39: […]
B40: =IF(BN40<>0,"!","") ->  | D40: =INDEX($AR40:$BA40,MATCH(General!$F$14,$AR$4:$BA$4,0)) -> Damage cost of air pollutant: PM2.5 per tonne | E40: =INDEX($BC40:$BL40,MATCH(General!$F$16,$BC$4:$BL$4,0)) -> EUR / tona | G40: 165 | H40: 182 | I40: 199 | J40: 216 | K40: 233 | L40: 250 | M40: 278 | N40: 306 | O40: 334 | P40: 362 | Q40: 390 | R40: 417 | S40: 444 | T40: 471 | U40: 498 | V40: 525 | W40: 552 | X40: 579 | Y40: 606 | Z40: 633 | AR40: Damage cost of air pollutant: PM2.5 per tonne | AS40: […] | AT40: […] | AU40: […] | AV40: […] | AW40: […] | AX40: […] | AY40: […] | AZ40: […] | BA40: […] | BC40: EUR / tonne | BD40: EUR / tona | BE40: […] | BF40: […] | BG40: […] | BH40: […] | BI40: […] | BJ40: […] | BK40: […] | BL40: […] | BN40: =COUNTIFS($G40:$AP40,"",$G$34:$AP$34,"<="&Config!$F$12) -> 0
D41: =INDEX($AR41:$BA41,MATCH(General!$F$14,$AR$4:$BA$4,0)) -> Damage cost of air pollutant: PM2.5 per tonne | E41: =INDEX($BC41:$BL41,MATCH(General!$F$16,$BC$4:$BL$4,0)) -> EUR / tona | F41: 24261 | AR41: Damage cost of air pollutant: PM2.5 per tonne | AS41: […] | AT41: […] | AU41: […] | AV41: […] | AW41: […] | AX41: […] | AY41: […] | AZ41: […] | BA41: […] | BC41: EUR / tonne | BD41: EUR / tona | BE41: […] | BF41: […] | BG41: […] | BH41: […] | BI41: […] | BJ41: […] | BK41: […] | BL41: […] | BN41: =COUNTIFS(F41,"") -> 0
D42: =INDEX($AR42:$BA42,MATCH(General!$F$14,$AR$4:$BA$4,0)) -> Damage cost of air pollutant: PM10 per tonne | E42: =INDEX($BC42:$BL42,MATCH(General!$F$16,$BC$4:$BL$4,0)) -> EUR / tona | F42: 1383 | AR42: Damage cost of air pollutant: PM10 per tonne | AS42: […] | AT42: […] | AU42: […] | AV42: […] | AW42: […] | AX42: […] | AY42: […] | AZ42: […] | BA42: […] | BC42: EUR / tonne | BD42: EUR / tona | BE42: […] | BF42: […] | BG42: […] | BH42: […] | BI42: […] | BJ42: […] | BK42: […] | BL42: […] | BN42: =COUNTIFS(F42,"") -> 0
D43: =INDEX($AR43:$BA43,MATCH(General!$F$14,$AR$4:$BA$4,0)) -> Damage cost of air pollutant: NOx per tonne | E43: =INDEX($BC43:$BL43,MATCH(General!$F$16,$BC$4:$BL$4,0)) -> EUR / tona | F43: 8223 | AR43: Damage cost of air pollutant: NOx per tonne | AS43: […] | AT43: […] | AU43: […] | AV43: […] | AW43: […] | AX43: […] | AY43: […] | AZ43: […] | BA43: […] | BC43: EUR / tonne | BD43: EUR / tona | BE43: […] | BF43: […] | BG43: […] | BH43: […] | BI43: […] | BJ43: […] | BK43: […] | BL43: […] | BN43: =COUNTIFS(F43,"") -> 0
D44: =INDEX($AR44:$BA44,MATCH(General!$F$14,$AR$4:$BA$4,0)) -> Damage cost of air pollutant: SOx per tonne | E44: =INDEX($BC44:$BL44,MATCH(General!$F$16,$BC$4:$BL$4,0)) -> EUR / tona | F44: 7079 | AR44: Damage cost of air pollutant: SOx per tonne | AS44: […] | AT44: […] | AU44: […] | AV44: […] | AW44: […] | AX44: […] | AY44: […] | AZ44: […] | BA44: […] | BC44: EUR / tonne | BD44: EUR / tona | BE44: […] | BF44: […] | BG44: […] | BH44: […] | BI44: […] | BJ44: […] | BK44: […] | BL44: […] | BN44: =COUNTIFS(F44,"") -> 0
D45: =INDEX($AR45:$BA45,MATCH(General!$F$14,$AR$4:$BA$4,0)) -> Economic benefit of enhanced security of energy supply per MWh | E45: =INDEX($BC45:$BL45,MATCH(General!$F$16,$BC$4:$BL$4,0)) -> EUR / tona | F45: 10 | AR45: Economic benefit of enhanced security of energy supply per MWh | AS45: […] | AT45: […] | AU45: […] | AV45: […] | AW45: […] | AX45: […] | AY45: […] | AZ45: […] | BA45: […] | BC45: EUR / tonne | BD45: EUR / tona | BE45: […] | BF45: […] | BG45: […] | BH45: […] | BI45: […] | BJ45: […] | BK45: […] | BL45: […] | BN45: =COUNTIFS(F45,"") -> 0
D47: =INDEX($AR47:$BA47,MATCH(General!$F$14,$AR$4:$BA$4,0)) -> Avoided emissions of GHG and airborne pollutants | E47: =Config!$I$141 -> Unit | F47: Sum | G47: =Config!I$1 -> 2026 | H47: =Config!J$1 -> 2027 | I47: =Config!K$1 -> 2028 | J47: =Config!L$1 -> 2029 | K47: =Config!M$1 -> 2030 | L47: =Config!N$1 -> 2031 | M47: =Config!O$1 -> 2032 | N47: =Config!P$1 -> 2033 | O47: =Config!Q$1 -> 2034 | P47: =Config!R$1 -> 2035 | Q47: =Config!S$1 -> 2036 | R47: =Config!T$1 -> 2037 | S47: =Config!U$1 -> 2038 | T47: =Config!V$1 -> 2039 | U47: =Config!W$1 -> 2040 | V47: =Config!X$1 -> 2041 | W47: =Config!Y$1 -> 2042 | X47: =Config!Z$1 -> 2043 | Y47: =Config!AA$1 -> 2044 | Z47: =Config!AB$1 -> 2045 | AA47: =Config!AC$1 ->  | AB47: =Config!AD$1 ->  | AC47: =Config!AE$1 ->  | AD47: =Config!AF$1 ->  | AE47: =Config!AG$1 ->  | AF47: =Config!AH$1 ->  | AG47: =Config!AI$1 ->  | AH47: =Config!AJ$1 ->  | AI47: =Config!AK$1 ->  | AJ47: =Config!AL$1 ->  | AK47: =Config!AM$1 ->  | AL47: =Config!AN$1 ->  | AM47: =Config!AO$1 ->  | AN47: =Config!AP$1 ->  | AO47: =Config!AQ$1 ->  | AP47: =Config!AR$1 ->  | AR47: Avoided emissions of GHG and airborne pollutants | AS47: […] | AT47: […] | AU47: […] | AV47: […] | AW47: […] | AX47: […] | AY47: […] | AZ47: […] | BA47: […]
G48: =Config!I$2 -> Construction | H48: =Config!J$2 -> Construction | I48: =Config!K$2 -> Operation | J48: =Config!L$2 -> Operation | K48: =Config!M$2 -> Operation | L48: =Config!N$2 -> Operation | M48: =Config!O$2 -> Operation | N48: =Config!P$2 -> Operation | O48: =Config!Q$2 -> Operation | P48: =Config!R$2 -> Operation | Q48: =Config!S$2 -> Operation | R48: =Config!T$2 -> Operation | S48: =Config!U$2 -> Operation | T48: =Config!V$2 -> Operation | U48: =Config!W$2 -> Operation | V48: =Config!X$2 -> Operation | W48: =Config!Y$2 -> Operation | X48: =Config!Z$2 -> Operation | Y48: =Config!AA$2 -> Operation | Z48: =Config!AB$2 -> Operation | AA48: =Config!AC$2 ->  | AB48: =Config!AD$2 ->  | AC48: =Config!AE$2 ->  | AD48: =Config!AF$2 ->  | AE48: =Config!AG$2 ->  | AF48: =Config!AH$2 ->  | AG48: =Config!AI$2 ->  | AH48: =Config!AJ$2 ->  | AI48: =Config!AK$2 ->  | AJ48: =Config!AL$2 ->  | AK48: =Config!AM$2 ->  | AL48: =Config!AN$2 ->  | AM48: =Config!AO$2 ->  | AN48: =Config!AP$2 ->  | AO48: =Config!AQ$2 ->  | AP48: =Config!AR$2 -> 
B49: =IF(BN49<>0,"!","") -> ! | D49: =INDEX($AR49:$BA49,MATCH(General!$F$14,$AR$4:$BA$4,0)) -> Reduction of CO2 emissions from energy renovation | E49: =INDEX($BC49:$BL49,MATCH(General!$F$16,$BC$4:$BL$4,0)) -> tona / rok | F49: =SUM(G49:AP49) -> 7799.69 | H49: 410.51 | I49: 410.51 | J49: 410.51 | K49: 410.51 | L49: 410.51 | M49: 410.51 | N49: 410.51 | O49: 410.51 | P49: 410.51 | Q49: 410.51 | R49: 410.51 | S49: 410.51 | T49: 410.51 | U49: 410.51 | V49: 410.51 | W49: 410.51 | X49: 410.51 | Y49: 410.51 | Z49: 410.51 | AR49: Reduction of CO2 emissions from energy renovation | AS49: […] | AT49: […] | AU49: […] | AV49: […] | AW49: […] | AX49: […] | AY49: […] | AZ49: […] | BA49: […] | BC49: tonne / year | BD49: tona / rok | BE49: […] | BF49: […] | BG49: […] | BH49: […] | BI49: […] | BJ49: […] | BK49: […] | BL49: […] | BN49: =COUNTIFS($G49:$AP49,"",$G$47:$AP$47,"<="&Config!$F$12) -> 1
B50: ! | D50: =INDEX($AR50:$BA50,MATCH(General!$F$14,$AR$4:$BA$4,0)) -> Sequestered CO2 from GI (NBS) | E50: =INDEX($BC50:$BL50,MATCH(General!$F$16,$BC$4:$BL$4,0)) -> tona / rok | F50: =SUM(G50:AP50) -> 0 | AR50: Sequestered CO2 from GI (NBS) | AS50: […] | AT50: […] | AU50: […] | AV50: […] | AW50: […] | AX50: […] | AY50: […] | AZ50: […] | BA50: […] | BC50: tonne / year | BD50: tona / rok | BE50: […] | BF50: […] | BG50: […] | BH50: […] | BI50: […] | BJ50: […] | BK50: […] | BL50: […] | BN50: =COUNTIFS($G50:$AP50,"",$G$47:$AP$47,"<="&Config!$F$12) -> 20
B51: ! | D51: =INDEX($AR51:$BA51,MATCH(General!$F$14,$AR$4:$BA$4,0)) -> Reduction of air pollutant: PM2.5 | E51: =INDEX($BC51:$BL51,MATCH(General!$F$16,$BC$4:$BL$4,0)) -> tona / rok | F51: 0 | AR51: Reduction of air pollutant: PM2.5 | AS51: […] | AT51: […] | AU51: […] | AV51: […] | AW51: […] | AX51: […] | AY51: […] | AZ51: […] | BA51: […] | BC51: tonne / year | BD51: tona / rok | BE51: […] | BF51: […] | BG51: […] | BH51: […] | BI51: […] | BJ51: […] | BK51: […] | BL51: […] | BN51: =COUNTIFS($G51:$AP51,"",$G$47:$AP$47,"<="&Config!$F$12) -> 20
B52: ! | D52: =INDEX($AR52:$BA52,MATCH(General!$F$14,$AR$4:$BA$4,0)) -> Sequestered air pollutant: PM2.5 | E52: =INDEX($BC52:$BL52,MATCH(General!$F$16,$BC$4:$BL$4,0)) -> tona / rok | F52: 0 | AR52: Sequestered air pollutant: PM2.5 | AS52: […] | AT52: […] | AU52: […] | AV52: […] | AW52: […] | AX52: […] | AY52: […] | AZ52: […] | BA52: […] | BC52: tonne / year | BD52: tona / rok | BE52: […] | BF52: […] | BG52: […] | BH52: […] | BI52: […] | BJ52: […] | BK52: […] | BL52: […] | BN52: =COUNTIFS($G52:$AP52,"",$G$47:$AP$47,"<="&Config!$F$12) -> 20
B53: ! | D53: =INDEX($AR53:$BA53,MATCH(General!$F$14,$AR$4:$BA$4,0)) -> Reduction of air pollutant: PM10 | E53: =INDEX($BC53:$BL53,MATCH(General!$F$16,$BC$4:$BL$4,0)) -> tona / rok | F53: 0 | AR53: Reduction of air pollutant: PM10 | AS53: […] | AT53: […] | AU53: […] | AV53: […] | AW53: […] | AX53: […] | AY53: […] | AZ53: […] | BA53: […] | BC53: tonne / year | BD53: tona / rok | BE53: […] | BF53: […] | BG53: […] | BH53: […] | BI53: […] | BJ53: […] | BK53: […] | BL53: […] | BN53: =COUNTIFS($G53:$AP53,"",$G$47:$AP$47,"<="&Config!$F$12) -> 20
B54: ! | D54: =INDEX($AR54:$BA54,MATCH(General!$F$14,$AR$4:$BA$4,0)) -> Sequestered air pollutant: PM10 | E54: =INDEX($BC54:$BL54,MATCH(General!$F$16,$BC$4:$BL$4,0)) -> tona / rok | F54: 0 | AR54: Sequestered air pollutant: PM10 | AS54: […] | AT54: […] | AU54: […] | AV54: […] | AW54: […] | AX54: […] | AY54: […] | AZ54: […] | BA54: […] | BC54: tonne / year | BD54: tona / rok | BE54: […] | BF54: […] | BG54: […] | BH54: […] | BI54: […] | BJ54: […] | BK54: […] | BL54: […] | BN54: =COUNTIFS($G54:$AP54,"",$G$47:$AP$47,"<="&Config!$F$12) -> 20
B55: ! | D55: =INDEX($AR55:$BA55,MATCH(General!$F$14,$AR$4:$BA$4,0)) -> Reduction of air pollutant: NOx | E55: =INDEX($BC55:$BL55,MATCH(General!$F$16,$BC$4:$BL$4,0)) -> tona / rok | F55: 0 | AR55: Reduction of air pollutant: NOx | AS55: […] | AT55: […] | AU55: […] | AV55: […] | AW55: […] | AX55: […] | AY55: […] | AZ55: […] | BA55: […] | BC55: tonne / year | BD55: tona / rok | BE55: […] | BF55: […] | BG55: […] | BH55: […] | BI55: […] | BJ55: […] | BK55: […] | BL55: […] | BN55: =COUNTIFS($G55:$AP55,"",$G$47:$AP$47,"<="&Config!$F$12) -> 20
B56: ! | D56: =INDEX($AR56:$BA56,MATCH(General!$F$14,$AR$4:$BA$4,0)) -> Sequestered air pollutant: NOx | E56: =INDEX($BC56:$BL56,MATCH(General!$F$16,$BC$4:$BL$4,0)) -> tona / rok | F56: 0 | AR56: Sequestered air pollutant: NOx | AS56: […] | AT56: […] | AU56: […] | AV56: […] | AW56: […] | AX56: […] | AY56: […] | AZ56: […] | BA56: […] | BC56: tonne / year | BD56: tona / rok | BE56: […] | BF56: […] | BG56: […] | BH56: […] | BI56: […] | BJ56: […] | BK56: […] | BL56: […] | BN56: =COUNTIFS($G56:$AP56,"",$G$47:$AP$47,"<="&Config!$F$12) -> 20
B57: ! | D57: =INDEX($AR57:$BA57,MATCH(General!$F$14,$AR$4:$BA$4,0)) -> Reduction of air pollutant: SOx | E57: =INDEX($BC57:$BL57,MATCH(General!$F$16,$BC$4:$BL$4,0)) -> tona / rok | F57: 0 | AR57: Reduction of air pollutant: SOx | AS57: […] | AT57: […] | AU57: […] | AV57: […] | AW57: […] | AX57: […] | AY57: […] | AZ57: […] | BA57: […] | BC57: tonne / year | BD57: tona / rok | BE57: […] | BF57: […] | BG57: […] | BH57: […] | BI57: […] | BJ57: […] | BK57: […] | BL57: […] | BN57: =COUNTIFS($G57:$AP57,"",$G$47:$AP$47,"<="&Config!$F$12) -> 20
B58: ! | D58: =INDEX($AR58:$BA58,MATCH(General!$F$14,$AR$4:$BA$4,0)) -> Sequestered air pollutant: SOx | E58: =INDEX($BC58:$BL58,MATCH(General!$F$16,$BC$4:$BL$4,0)) -> tona / rok | F58: 0 | AR58: Sequestered air pollutant: SOx | AS58: […] | AT58: […] | AU58: […] | AV58: […] | AW58: […] | AX58: […] | AY58: […] | AZ58: […] | BA58: […] | BC58: tonne / year | BD58: tona / rok | BE58: […] | BF58: […] | BG58: […] | BH58: […] | BI58: […] | BJ58: […] | BK58: […] | BL58: […] | BN58: =COUNTIFS($G58:$AP58,"",$G$47:$AP$47,"<="&Config!$F$12) -> 20
D60: =INDEX($AR60:$BA60,MATCH(General!$F$14,$AR$4:$BA$4,0)) -> Energy produced from RES | E60: =Config!$I$141 -> Unit | F60: Sum | G60: =Config!I$1 -> 2026 | H60: =Config!J$1 -> 2027 | I60: =Config!K$1 -> 2028 | J60: =Config!L$1 -> 2029 | K60: =Config!M$1 -> 2030 | L60: =Config!N$1 -> 2031 | M60: =Config!O$1 -> 2032 | N60: =Config!P$1 -> 2033 | O60: =Config!Q$1 -> 2034 | P60: =Config!R$1 -> 2035 | Q60: =Config!S$1 -> 2036 | R60: =Config!T$1 -> 2037 | S60: =Config!U$1 -> 2038 | T60: =Config!V$1 -> 2039 | U60: =Config!W$1 -> 2040 | V60: =Config!X$1 -> 2041 | W60: =Config!Y$1 -> 2042 | X60: =Config!Z$1 -> 2043 | Y60: =Config!AA$1 -> 2044 | Z60: =Config!AB$1 -> 2045 | AA60: =Config!AC$1 ->  | AB60: =Config!AD$1 ->  | AC60: =Config!AE$1 ->  | AD60: =Config!AF$1 ->  | AE60: =Config!AG$1 ->  | AF60: =Config!AH$1 ->  | AG60: =Config!AI$1 ->  | AH60: =Config!AJ$1 ->  | AI60: =Config!AK$1 ->  | AJ60: =Config!AL$1 ->  | AK60: =Config!AM$1 ->  | AL60: =Config!AN$1 ->  | AM60: =Config!AO$1 ->  | AN60: =Config!AP$1 ->  | AO60: =Config!AQ$1 ->  | AP60: =Config!AR$1 ->  | AR60: Energy produced from RES | AS60: […] | AT60: […] | AU60: […] | AV60: […] | AW60: […] | AX60: […] | AY60: […] | AZ60: […] | BA60: […]
G61: =Config!I$2 -> Construction | H61: =Config!J$2 -> Construction | I61: =Config!K$2 -> Operation | J61: =Config!L$2 -> Operation | K61: =Config!M$2 -> Operation | L61: =Config!N$2 -> Operation | M61: =Config!O$2 -> Operation | N61: =Config!P$2 -> Operation | O61: =Config!Q$2 -> Operation | P61: =Config!R$2 -> Operation | Q61: =Config!S$2 -> Operation | R61: =Config!T$2 -> Operation | S61: =Config!U$2 -> Operation | T61: =Config!V$2 -> Operation | U61: =Config!W$2 -> Operation | V61: =Config!X$2 -> Operation | W61: =Config!Y$2 -> Operation | X61: =Config!Z$2 -> Operation | Y61: =Config!AA$2 -> Operation | Z61: =Config!AB$2 -> Operation | AA61: =Config!AC$2 ->  | AB61: =Config!AD$2 ->  | AC61: =Config!AE$2 ->  | AD61: =Config!AF$2 ->  | AE61: =Config!AG$2 ->  | AF61: =Config!AH$2 ->  | AG61: =Config!AI$2 ->  | AH61: =Config!AJ$2 ->  | AI61: =Config!AK$2 ->  | AJ61: =Config!AL$2 ->  | AK61: =Config!AM$2 ->  | AL61: =Config!AN$2 ->  | AM61: =Config!AO$2 ->  | AN61: =Config!AP$2 ->  | AO61: =Config!AQ$2 ->  | AP61: =Config!AR$2 -> 
B62: =IF(BN62<>0,"!","") -> ! | D62: =INDEX($AR62:$BA62,MATCH(General!$F$14,$AR$4:$BA$4,0)) -> Electricity | E62: =INDEX($BC62:$BL62,MATCH(General!$F$16,$BC$4:$BL$4,0)) -> MWh | F62: =SUM(G62:AP62) -> 3097.779 | H62: 163.041 | I62: 163.041 | J62: 163.041 | K62: 163.041 | L62: 163.041 | M62: 163.041 | N62: 163.041 | O62: 163.041 | P62: 163.041 | Q62: 163.041 | R62: 163.041 | S62: 163.041 | T62: 163.041 | U62: 163.041 | V62: 163.041 | W62: 163.041 | X62: 163.041 | Y62: 163.041 | Z62: 163.041 | AR62: Electricity | AS62: […] | AT62: […] | AU62: […] | AV62: […] | AW62: […] | AX62: […] | AY62: […] | AZ62: […] | BA62: […] | BC62: MWh | BD62: MWh | BE62: […] | BF62: […] | BG62: […] | BH62: […] | BI62: […] | BJ62: […] | BK62: […] | BL62: […] | BN62: =COUNTIFS($G62:$AP62,"",$G$60:$AP$60,"<="&Config!$F$12) -> 1
B63: =IF(BN63<>0,"!","") -> ! | D63: =INDEX($AR63:$BA63,MATCH(General!$F$14,$AR$4:$BA$4,0)) -> Heat | E63: =INDEX($BC63:$BL63,MATCH(General!$F$16,$BC$4:$BL$4,0)) -> MWh | F63: 0 | AR63: Heat | AS63: […] | AT63: […] | AU63: […] | AV63: […] | AW63: […] | AX63: […] | AY63: […] | AZ63: […] | BA63: […] | BC63: MWh | BD63: MWh | BE63: […] | BF63: […] | BG63: […] | BH63: […] | BI63: […] | BJ63: […] | BK63: […] | BL63: […] | BN63: =COUNTIFS($G63:$AP63,"",$G$60:$AP$60,"<="&Config!$F$12) -> 20
B64: =IF(BN64<>0,"!","") -> ! | D64: =INDEX($AR64:$BA64,MATCH(General!$F$14,$AR$4:$BA$4,0)) -> Other | E64: =INDEX($BC64:$BL64,MATCH(General!$F$16,$BC$4:$BL$4,0)) -> MWh | F64: 0 | AR64: Other | AS64: […] | AT64: […] | AU64: […] | AV64: […] | AW64: […] | AX64: […] | AY64: […] | AZ64: […] | BA64: […] | BC64: MWh | BD64: MWh | BE64: […] | BF64: […] | BG64: […] | BH64: […] | BI64: […] | BJ64: […] | BK64: […] | BL64: […] | BN64: =COUNTIFS($G64:$AP64,"",$G$60:$AP$60,"<="&Config!$F$12) -> 20
D66: =INDEX($AR66:$BA66,MATCH(General!$F$14,$AR$4:$BA$4,0)) -> Improved thermal comfort benefit | E66: =Config!$I$141 -> Unit | F66: Sum | G66: =Config!I$1 -> 2026 | H66: =Config!J$1 -> 2027 | I66: =Config!K$1 -> 2028 | J66: =Config!L$1 -> 2029 | K66: =Config!M$1 -> 2030 | L66: =Config!N$1 -> 2031 | M66: =Config!O$1 -> 2032 | N66: =Config!P$1 -> 2033 | O66: =Config!Q$1 -> 2034 | P66: =Config!R$1 -> 2035 | Q66: =Config!S$1 -> 2036 | R66: =Config!T$1 -> 2037 | S66: =Config!U$1 -> 2038 | T66: =Config!V$1 -> 2039 | U66: =Config!W$1 -> 2040 | V66: =Config!X$1 -> 2041 | W66: =Config!Y$1 -> 2042 | X66: =Config!Z$1 -> 2043 | Y66: =Config!AA$1 -> 2044 | Z66: =Config!AB$1 -> 2045 | AA66: =Config!AC$1 ->  | AB66: =Config!AD$1 ->  | AC66: =Config!AE$1 ->  | AD66: =Config!AF$1 ->  | AE66: =Config!AG$1 ->  | AF66: =Config!AH$1 ->  | AG66: =Config!AI$1 ->  | AH66: =Config!AJ$1 ->  | AI66: =Config!AK$1 ->  | AJ66: =Config!AL$1 ->  | AK66: =Config!AM$1 ->  | AL66: =Config!AN$1 ->  | AM66: =Config!AO$1 ->  | AN66: =Config!AP$1 ->  | AO66: =Config!AQ$1 ->  | AP66: =Config!AR$1 ->  | AR66: Improved thermal comfort benefit | AS66: […] | AT66: […] | AU66: […] | AV66: […] | AW66: […] | AX66: […] | AY66: […] | AZ66: […] | BA66: […]
G67: =Config!I$2 -> Construction | H67: =Config!J$2 -> Construction | I67: =Config!K$2 -> Operation | J67: =Config!L$2 -> Operation | K67: =Config!M$2 -> Operation | L67: =Config!N$2 -> Operation | M67: =Config!O$2 -> Operation | N67: =Config!P$2 -> Operation | O67: =Config!Q$2 -> Operation | P67: =Config!R$2 -> Operation | Q67: =Config!S$2 -> Operation | R67: =Config!T$2 -> Operation | S67: =Config!U$2 -> Operation | T67: =Config!V$2 -> Operation | U67: =Config!W$2 -> Operation | V67: =Config!X$2 -> Operation | W67: =Config!Y$2 -> Operation | X67: =Config!Z$2 -> Operation | Y67: =Config!AA$2 -> Operation | Z67: =Config!AB$2 -> Operation | AA67: =Config!AC$2 ->  | AB67: =Config!AD$2 ->  | AC67: =Config!AE$2 ->  | AD67: =Config!AF$2 ->  | AE67: =Config!AG$2 ->  | AF67: =Config!AH$2 ->  | AG67: =Config!AI$2 ->  | AH67: =Config!AJ$2 ->  | AI67: =Config!AK$2 ->  | AJ67: =Config!AL$2 ->  | AK67: =Config!AM$2 ->  | AL67: =Config!AN$2 ->  | AM67: =Config!AO$2 ->  | AN67: =Config!AP$2 ->  | AO67: =Config!AQ$2 ->  | AP67: =Config!AR$2 -> 
B68: =IF(BN68<>0,"!","") ->  | D68: =INDEX($AR68:$BA68,MATCH(General!$F$14,$AR$4:$BA$4,0)) -> Actual temperature without the project | E68: =INDEX($BC68:$BL68,MATCH(General!$F$16,$BC$4:$BL$4,0)) -> °C | F68: =SUM(G68:AP68) -> 400 | G68: 20 | H68: 20 | I68: 20 | J68: 20 | K68: 20 | L68: 20 | M68: 20 | N68: 20 | O68: 20 | P68: 20 | Q68: 20 | R68: 20 | S68: 20 | T68: 20 | U68: 20 | V68: 20 | W68: 20 | X68: 20 | Y68: 20 | Z68: 20 | AR68: Actual temperature without the project | AS68: […] | AT68: […] | AU68: […] | AV68: […] | AW68: […] | AX68: […] | AY68: […] | AZ68: […] | BA68: […] | BC68: °C | BD68: °C | BE68: […] | BF68: […] | BG68: […] | BH68: […] | BI68: […] | BJ68: […] | BK68: […] | BL68: […] | BN68: =COUNTIFS($G68:$AP68,"",$G$66:$AP$66,"<="&Config!$F$12) -> 0
B69: =IF(BN69<>0,"!","") ->  | D69: =INDEX($AR69:$BA69,MATCH(General!$F$14,$AR$4:$BA$4,0)) -> Actual temperature with the project | E69: =INDEX($BC69:$BL69,MATCH(General!$F$16,$BC$4:$BL$4,0)) -> °C | F69: 420 | G69: 21 | H69: 21 | I69: 21 | J69: 21 | K69: 21 | L69: 21 | M69: 21 | N69: 21 | O69: 21 | P69: 21 | Q69: 21 | R69: 21 | S69: 21 | T69: 21 | U69: 21 | V69: 21 | W69: 21 | X69: 21 | Y69: 21 | Z69: 21 | AR69: Actual temperature with the project | AS69: […] | AT69: […] | AU69: […] | AV69: […] | AW69: […] | AX69: […] | AY69: […] | AZ69: […] | BA69: […] | BC69: °C | BD69: °C | BE69: […] | BF69: […] | BG69: […] | BH69: […] | BI69: […] | BJ69: […] | BK69: […] | BL69: […] | BN69: =COUNTIFS($G69:$AP69,"",$G$66:$AP$66,"<="&Config!$F$12) -> 0
B70: =IF(BN70<>0,"!","") -> ! | D70: =INDEX($AR70:$BA70,MATCH(General!$F$14,$AR$4:$BA$4,0)) -> Annual energy cost in counterfactual without-the-project scenario to reach thermal comfort of with-the project scenario | E70: =INDEX($BC70:$BL70,MATCH(General!$F$16,$BC$4:$BL$4,0)) -> PLN | F70: 0 | AR70: Annual energy cost in counterfactual without-the-project scenario to reach thermal comfort of with-the project scenario | AS70: […] | AT70: […] | AU70: […] | AV70: […] | AW70: […] | AX70: […] | AY70: […] | AZ70: […] | BA70: […] | BC70: EUR | BD70: PLN | BE70: […] | BF70: […] | BG70: […] | BH70: […] | BI70: […] | BJ70: […] | BK70: […] | BL70: […] | BN70: =COUNTIFS($G70:$AP70,"",$G$66:$AP$66,"<="&Config!$F$12) -> 20
D72: =INDEX($AR72:$BA72,MATCH(General!$F$14,$AR$4:$BA$4,0)) -> Increase in property values | E72: =Config!$I$141 -> Unit | AR72: Increase in property values | AS72: […] | AT72: […] | AU72: […] | AV72: […] | AW72: […] | AX72: […] | AY72: […] | AZ72: […] | BA72: […]
B73: =IF(BN73<>0,"!","") ->  | D73: =INDEX($AR73:$BA73,MATCH(General!$F$14,$AR$4:$BA$4,0)) -> Initial property value | E73: =INDEX($BC73:$BL73,MATCH(General!$F$16,$BC$4:$BL$4,0)) -> PLN | F73: 2000000 | AR73: Initial property value | AS73: […] | AT73: […] | AU73: […] | AV73: […] | AW73: […] | AX73: […] | AY73: […] | AZ73: […] | BA73: […] | BC73: EUR | BD73: PLN | BE73: […] | BF73: […] | BG73: […] | BH73: […] | BI73: […] | BJ73: […] | BK73: […] | BL73: […] | BN73: =COUNTIFS(F73,"") -> 0
B74: =IF(BN74<>0,"!","") ->  | D74: =INDEX($AR74:$BA74,MATCH(General!$F$14,$AR$4:$BA$4,0)) -> Estimated price increase | E74: =INDEX($BC74:$BL74,MATCH(General!$F$16,$BC$4:$BL$4,0)) -> % | F74: 0.2 | AR74: Estimated price increase | AS74: […] | AT74: […] | AU74: […] | AV74: […] | AW74: […] | AX74: […] | AY74: […] | AZ74: […] | BA74: […] | BC74: % | BD74: % | BE74: […] | BF74: […] | BG74: […] | BH74: […] | BI74: […] | BJ74: […] | BK74: […] | BL74: […] | BN74: =COUNTIFS(F74,"") -> 0
D75: =INDEX($AR75:$BA75,MATCH(General!$F$14,$AR$4:$BA$4,0)) -> Increase in property value (ΔV) | E75: =INDEX($BC75:$BL75,MATCH(General!$F$16,$BC$4:$BL$4,0)) -> PLN | F75: =F73*F74 -> 400000 | AR75: Increase in property value (ΔV) | AS75: […] | AT75: […] | AU75: […] | AV75: […] | AW75: […] | AX75: […] | AY75: […] | AZ75: […] | BA75: […] | BC75: EUR | BD75: PLN | BE75: […] | BF75: […] | BG75: […] | BH75: […] | BI75: […] | BJ75: […] | BK75: […] | BL75: […]
A77: =INDEX($AR77:$BA77,MATCH(General!$F$14,$AR$4:$BA$4,0)) -> Sensitivity analysis | AR77: Sensitivity analysis | AS77: […] | AT77: […] | AU77: […] | AV77: […] | AW77: […] | AX77: […] | AY77: […] | AZ77: […] | BA77: […]
D79: =INDEX($AR79:$BA79,MATCH(General!$F$14,$AR$4:$BA$4,0)) -> Sensitivity analysis | E79: =Config!$I$141 -> Unit | AR79: Sensitivity analysis | AS79: […] | AT79: […] | AU79: […] | AV79: […] | AW79: […] | AX79: […] | AY79: […] | AZ79: […] | BA79: […]
D80: =INDEX($AR80:$BA80,MATCH(General!$F$14,$AR$4:$BA$4,0)) -> Capital expenditures | E80: =INDEX($BC80:$BL80,MATCH(General!$F$16,$BC$4:$BL$4,0)) -> % | F80: -0.01 | G80: 0.01 | AR80: Capital expenditures | AS80: […] | AT80: […] | AU80: […] | AV80: […] | AW80: […] | AX80: […] | AY80: […] | AZ80: […] | BA80: […] | BC80: % | BD80: % | BE80: […] | BF80: […] | BG80: […] | BH80: […] | BI80: […] | BJ80: […] | BK80: […] | BL80: […]
D81: =INDEX($AR81:$BA81,MATCH(General!$F$14,$AR$4:$BA$4,0)) -> Operating expenses | E81: =INDEX($BC81:$BL81,MATCH(General!$F$16,$BC$4:$BL$4,0)) -> % | F81: -0.01 | G81: 0.01 | AR81: Operating expenses | AS81: […] | AT81: […] | AU81: […] | AV81: […] | AW81: […] | AX81: […] | AY81: […] | AZ81: […] | BA81: […] | BC81: % | BD81: % | BE81: […] | BF81: […] | BG81: […] | BH81: […] | BI81: […] | BJ81: […] | BK81: […] | BL81: […]
D82: =INDEX($AR82:$BA82,MATCH(General!$F$14,$AR$4:$BA$4,0)) -> Revenues / benefits | E82: =INDEX($BC82:$BL82,MATCH(General!$F$16,$BC$4:$BL$4,0)) -> % | F82: -0.01 | G82: 0.01 | AR82: Revenues / benefits | AS82: […] | AT82: […] | AU82: […] | AV82: […] | AW82: […] | AX82: […] | AY82: […] | AZ82: […] | BA82: […] | BC82: % | BD82: % | BE82: […] | BF82: […] | BG82: […] | BH82: […] | BI82: […] | BJ82: […] | BK82: […] | BL82: […]

Sheet Dashboard
B1: =Config!$I$127 -> DASHBOARD
B4: =Technical!$C$6 -> 1. Identification of the project
D6: =Technical!D8 -> Name of the project beneficiary: | F6: =General!F8 -> 0
D8: =Technical!D9 -> Name of the investment project: | F8: =General!F10 -> 0
B10: =Technical!$C$11 -> 2. Summary of the operating assumptions
B20: =Technical!$C$34 -> 3. Comparison of different financing options
D22: =Technical!$D$55 -> Comparison of the investment and financing costs for different funding options (PLN)
B53: =Technical!$C$82 -> 4. Summary of the financial and economic analysis assumptions
B68: =Technical!$C$100 -> 5. Results of the financial and economic analysis
B78: =Technical!$C$151 -> 6. Sensitivity analysis

Sheet Calc
A1: =Config!$I$134 -> CALCULATIONS | E1: =Config!$I$141 -> Unit | I1: =Config!I$1 -> 2026 | J1: =Config!J$1 -> 2027 | K1: =Config!K$1 -> 2028 | L1: =Config!L$1 -> 2029 | M1: =Config!M$1 -> 2030 | N1: =Config!N$1 -> 2031 | O1: =Config!O$1 -> 2032 | P1: =Config!P$1 -> 2033 | Q1: =Config!Q$1 -> 2034 | R1: =Config!R$1 -> 2035 | S1: =Config!S$1 -> 2036 | T1: =Config!T$1 -> 2037 | U1: =Config!U$1 -> 2038 | V1: =Config!V$1 -> 2039 | W1: =Config!W$1 -> 2040 | X1: =Config!X$1 -> 2041 | Y1: =Config!Y$1 -> 2042 | Z1: =Config!Z$1 -> 2043 | AA1: =Config!AA$1 -> 2044 | AB1: =Config!AB$1 -> 2045 | AC1: =Config!AC$1 ->  | AD1: =Config!AD$1 ->  | AE1: =Config!AE$1 ->  | AF1: =Config!AF$1 ->  | AG1: =Config!AG$1 ->  | AH1: =Config!AH$1 ->  | AI1: =Config!AI$1 ->  | AJ1: =Config!AJ$1 ->  | AK1: =Config!AK$1 ->  | AL1: =Config!AL$1 ->  | AM1: =Config!AM$1 ->  | AN1: =Config!AN$1 ->  | AO1: =Config!AO$1 ->  | AP1: =Config!AP$1 ->  | AQ1: =Config!AQ$1 ->  | AR1: =Config!AR$1 -> 
A2: =General!$D$8&" "&General!$F$8 -> Name of the project beneficiary: | I2: =Config!I$2 -> Construction | J2: =Config!J$2 -> Construction | K2: =Config!K$2 -> Operation | L2: =Config!L$2 -> Operation | M2: =Config!M$2 -> Operation | N2: =Config!N$2 -> Operation | O2: =Config!O$2 -> Operation | P2: =Config!P$2 -> Operation | Q2: =Config!Q$2 -> Operation | R2: =Config!R$2 -> Operation | S2: =Config!S$2 -> Operation | T2: =Config!T$2 -> Operation | U2: =Config!U$2 -> Operation | V2: =Config!V$2 -> Operation | W2: =Config!W$2 -> Operation | X2: =Config!X$2 -> Operation | Y2: =Config!Y$2 -> Operation | Z2: =Config!Z$2 -> Operation | AA2: =Config!AA$2 -> Operation | AB2: =Config!AB$2 -> Operation | AC2: =Config!AC$2 ->  | AD2: =Config!AD$2 ->  | AE2: =Config!AE$2 ->  | AF2: =Config!AF$2 ->  | AG2: =Config!AG$2 ->  | AH2: =Config!AH$2 ->  | AI2: =Config!AI$2 ->  | AJ2: =Config!AJ$2 ->  | AK2: =Config!AK$2 ->  | AL2: =Config!AL$2 ->  | AM2: =Config!AM$2 ->  | AN2: =Config!AN$2 ->  | AO2: =Config!AO$2 ->  | AP2: =Config!AP$2 ->  | AQ2: =Config!AQ$2 ->  | AR2: =Config!AR$2 -> 
A3: =General!$D$10&" "&General!$F$10 -> Name of the investment project: | AT3: =Config!AT$1 -> Language | BE3: =Config!BE$1 -> Currency / Units
AT4: =Config!AT$2 -> English | AU4: =Config!AU$2 -> Polish | AV4: =Config!AV$2 -> […] | AW4: =Config!AW$2 -> […] | AX4: =Config!AX$2 -> […] | AY4: =Config!AY$2 -> […] | AZ4: =Config!AZ$2 -> […] | BA4: =Config!BA$2 -> […] | BB4: =Config!BB$2 -> […] | BC4: =Config!BC$2 -> […] | BE4: =Config!BE$2 -> EUR | BF4: =Config!BF$2 -> PLN | BG4: =Config!BG$2 -> […] | BH4: =Config!BH$2 -> […] | BI4: =Config!BI$2 -> […] | BJ4: =Config!BJ$2 -> […] | BK4: =Config!BK$2 -> […] | BL4: =Config!BL$2 -> […] | BM4: =Config!BM$2 -> […] | BN4: =Config!BN$2 -> […]
A6: =INDEX($AT6:$BC6,MATCH(General!$F$14,$AT$4:$BC$4,0)) -> Capital expenditures, replacement & decommissioning costs | AT6: Capital expenditures, replacement & decommissioning costs | AU6: […] | AV6: […] | AW6: […] | AX6: […] | AY6: […] | AZ6: […] | BA6: […] | BB6: […] | BC6: […]
B8: =INDEX($AT8:$BC8,MATCH(General!$F$14,$AT$4:$BC$4,0)) -> Capital expenditures | AT8: Capital expenditures | AU8: […] | AV8: […] | AW8: […] | AX8: […] | AY8: […] | AZ8: […] | BA8: […] | BB8: […] | BC8: […]
C10: =INDEX($AT10:$BC10,MATCH(General!$F$14,$AT$4:$BC$4,0)) -> Capital expenditures | AT10: Capital expenditures | AU10: […] | AV10: […] | AW10: […] | AX10: […] | AY10: […] | AZ10: […] | BA10: […] | BB10: […] | BC10: […]
D12: =INDEX($AT12:$BC12,MATCH(General!$F$14,$AT$4:$BC$4,0)) -> Capital expenditures - eligible for grant funding | AT12: Capital expenditures - eligible for grant funding | AU12: […] | AV12: […] | AW12: […] | AX12: […] | AY12: […] | AZ12: […] | BA12: […] | BB12: […] | BC12: […]
D13: =INDEX($AT13:$BC13,MATCH(General!$F$14,$AT$4:$BC$4,0)) -> 1. Planning/design fees | E13: =INDEX($BE13:$BN13,MATCH(General!$F$16,$BE$4:$BN$4,0)) -> PLN | F13: =SUM(I13:AR13) -> 10000 | I13: =CAPEX!G10 -> 10000 | J13: =CAPEX!H10 -> 0 | K13: =CAPEX!I10 -> 0 | L13: =CAPEX!J10 -> 0 | M13: =CAPEX!K10 -> 0 | N13: =CAPEX!L10 -> 0 | O13: =CAPEX!M10 -> 0 | P13: =CAPEX!N10 -> 0 | Q13: =CAPEX!O10 -> 0 | R13: =CAPEX!P10 -> 0 | S13: =CAPEX!Q10 -> 0 | T13: =CAPEX!R10 -> 0 | U13: =CAPEX!S10 -> 0 | V13: =CAPEX!T10 -> 0 | W13: =CAPEX!U10 -> 0 | X13: =CAPEX!V10 -> 0 | Y13: =CAPEX!W10 -> 0 | Z13: =CAPEX!X10 -> 0 | AA13: =CAPEX!Y10 -> 0 | AB13: =CAPEX!Z10 -> 0 | AC13: =CAPEX!AA10 -> 0 | AD13: =CAPEX!AB10 -> 0 | AE13: =CAPEX!AC10 -> 0 | AF13: =CAPEX!AD10 -> 0 | AG13: =CAPEX!AE10 -> 0 | AH13: =CAPEX!AF10 -> 0 | AI13: =CAPEX!AG10 -> 0 | AJ13: =CAPEX!AH10 -> 0 | AK13: =CAPEX!AI10 -> 0 | AL13: =CAPEX!AJ10 -> 0 | AM13: =CAPEX!AK10 -> 0 | AN13: =CAPEX!AL10 -> 0 | AO13: =CAPEX!AM10 -> 0 | AP13: =CAPEX!AN10 -> 0 | AQ13: =CAPEX!AO10 -> 0 | AR13: =CAPEX!AP10 -> 0 | AT13: 1. Planning/design fees | AU13: […] | AV13: […] | AW13: […] | AX13: […] | AY13: […] | AZ13: […] | BA13: […] | BB13: […] | BC13: […] | BE13: EUR | BF13: PLN | BG13: […] | BH13: […] | BI13: […] | BJ13: […] | BK13: […] | BL13: […] | BM13: […] | BN13: […]
D14: =INDEX($AT14:$BC14,MATCH(General!$F$14,$AT$4:$BC$4,0)) -> 2. Land purchase | E14: =INDEX($BE14:$BN14,MATCH(General!$F$16,$BE$4:$BN$4,0)) -> PLN | F14: 0 | I14: =CAPEX!G11 -> 0 | J14: =CAPEX!H11 -> 0 | K14: =CAPEX!I11 -> 0 | L14: =CAPEX!J11 -> 0 | M14: =CAPEX!K11 -> 0 | N14: =CAPEX!L11 -> 0 | O14: =CAPEX!M11 -> 0 | P14: =CAPEX!N11 -> 0 | Q14: =CAPEX!O11 -> 0 | R14: =CAPEX!P11 -> 0 | S14: =CAPEX!Q11 -> 0 | T14: =CAPEX!R11 -> 0 | U14: =CAPEX!S11 -> 0 | V14: =CAPEX!T11 -> 0 | W14: =CAPEX!U11 -> 0 | X14: =CAPEX!V11 -> 0 | Y14: =CAPEX!W11 -> 0 | Z14: =CAPEX!X11 -> 0 | AA14: =CAPEX!Y11 -> 0 | AB14: =CAPEX!Z11 -> 0 | AC14: =CAPEX!AA11 -> 0 | AD14: =CAPEX!AB11 -> 0 | AE14: =CAPEX!AC11 -> 0 | AF14: =CAPEX!AD11 -> 0 | AG14: =CAPEX!AE11 -> 0 | AH14: =CAPEX!AF11 -> 0 | AI14: =CAPEX!AG11 -> 0 | AJ14: =CAPEX!AH11 -> 0 | AK14: =CAPEX!AI11 -> 0 | AL14: =CAPEX!AJ11 -> 0 | AM14: =CAPEX!AK11 -> 0 | AN14: =CAPEX!AL11 -> 0 | AO14: =CAPEX!AM11 -> 0 | AP14: =CAPEX!AN11 -> 0 | AQ14: =CAPEX!AO11 -> 0 | AR14: =CAPEX!AP11 -> 0 | AT14: 2. Land purchase | AU14: […] | AV14: […] | AW14: […] | AX14: […] | AY14: […] | AZ14: […] | BA14: […] | BB14: […] | BC14: […] | BE14: EUR | BF14: PLN | BG14: […] | BH14: […] | BI14: […] | BJ14: […] | BK14: […] | BL14: […] | BM14: […] | BN14: […]
D15: =INDEX($AT15:$BC15,MATCH(General!$F$14,$AT$4:$BC$4,0)) -> 3. Building and construction | E15: =INDEX($BE15:$BN15,MATCH(General!$F$16,$BE$4:$BN$4,0)) -> PLN | F15: 577957.5 | I15: =SUM(I16:I21) -> 0 | J15: =SUM(J16:J21) -> 577957.5 | K15: 0 | L15: 0 | M15: 0 | N15: 0 | O15: 0 | P15: 0 | Q15: =SUM(Q16:Q21) -> 0 | R15: 0 | S15: 0 | T15: 0 | U15: 0 | V15: 0 | W15: 0 | X15: 0 | Y15: 0 | Z15: 0 | AA15: 0 | AB15: 0 | AC15: 0 | AD15: 0 | AE15: 0 | AF15: 0 | AG15: 0 | AH15: 0 | AI15: 0 | AJ15: 0 | AK15: 0 | AL15: 0 | AM15: 0 | AN15: 0 | AO15: 0 | AP15: 0 | AQ15: 0 | AR15: 0 | AT15: 3. Building and construction | AU15: […] | AV15: […] | AW15: […] | AX15: […] | AY15: […] | AZ15: […] | BA15: […] | BB15: […] | BC15: […] | BE15: EUR | BF15: PLN | BG15: […] | BH15: […] | BI15: […] | BJ15: […] | BK15: […] | BL15: […] | BM15: […] | BN15: […]
D16: =INDEX($AT16:$BC16,MATCH(General!$F$14,$AT$4:$BC$4,0)) -> a. Construction elements | E16: =INDEX($BE16:$BN16,MATCH(General!$F$16,$BE$4:$BN$4,0)) -> PLN | F16: 0 | I16: =CAPEX!G13 -> 0 | J16: =CAPEX!H13 -> 0 | K16: =CAPEX!I13 -> 0 | L16: =CAPEX!J13 -> 0 | M16: =CAPEX!K13 -> 0 | N16: =CAPEX!L13 -> 0 | O16: =CAPEX!M13 -> 0 | P16: =CAPEX!N13 -> 0 | Q16: =CAPEX!O13 -> 0 | R16: =CAPEX!P13 -> 0 | S16: =CAPEX!Q13 -> 0 | T16: =CAPEX!R13 -> 0 | U16: =CAPEX!S13 -> 0 | V16: =CAPEX!T13 -> 0 | W16: =CAPEX!U13 -> 0 | X16: =CAPEX!V13 -> 0 | Y16: =CAPEX!W13 -> 0 | Z16: =CAPEX!X13 -> 0 | AA16: =CAPEX!Y13 -> 0 | AB16: =CAPEX!Z13 -> 0 | AC16: =CAPEX!AA13 -> 0 | AD16: =CAPEX!AB13 -> 0 | AE16: =CAPEX!AC13 -> 0 | AF16: =CAPEX!AD13 -> 0 | AG16: =CAPEX!AE13 -> 0 | AH16: =CAPEX!AF13 -> 0 | AI16: =CAPEX!AG13 -> 0 | AJ16: =CAPEX!AH13 -> 0 | AK16: =CAPEX!AI13 -> 0 | AL16: =CAPEX!AJ13 -> 0 | AM16: =CAPEX!AK13 -> 0 | AN16: =CAPEX!AL13 -> 0 | AO16: =CAPEX!AM13 -> 0 | AP16: =CAPEX!AN13 -> 0 | AQ16: =CAPEX!AO13 -> 0 | AR16: =CAPEX!AP13 -> 0 | AT16: a. Construction elements | AU16: […] | AV16: […] | AW16: […] | AX16: […] | AY16: […] | AZ16: […] | BA16: […] | BB16: […] | BC16: […] | BE16: EUR | BF16: PLN | BG16: […] | BH16: […] | BI16: […] | BJ16: […] | BK16: […] | BL16: […] | BM16: […] | BN16: […]
D17: =INDEX($AT17:$BC17,MATCH(General!$F$14,$AT$4:$BC$4,0)) -> b. Insulation and facade | E17: =INDEX($BE17:$BN17,MATCH(General!$F$16,$BE$4:$BN$4,0)) -> PLN | F17: 577957.5 | I17: =CAPEX!G14 -> 0 | J17: =CAPEX!H14 -> 577957.5 | K17: =CAPEX!I14 -> 0 | L17: =CAPEX!J14 -> 0 | M17: =CAPEX!K14 -> 0 | N17: =CAPEX!L14 -> 0 | O17: =CAPEX!M14 -> 0 | P17: =CAPEX!N14 -> 0 | Q17: =CAPEX!O14 -> 0 | R17: =CAPEX!P14 -> 0 | S17: =CAPEX!Q14 -> 0 | T17: =CAPEX!R14 -> 0 | U17: =CAPEX!S14 -> 0 | V17: =CAPEX!T14 -> 0 | W17: =CAPEX!U14 -> 0 | X17: =CAPEX!V14 -> 0 | Y17: =CAPEX!W14 -> 0 | Z17: =CAPEX!X14 -> 0 | AA17: =CAPEX!Y14 -> 0 | AB17: =CAPEX!Z14 -> 0 | AC17: =CAPEX!AA14 -> 0 | AD17: =CAPEX!AB14 -> 0 | AE17: =CAPEX!AC14 -> 0 | AF17: =CAPEX!AD14 -> 0 | AG17: =CAPEX!AE14 -> 0 | AH17: =CAPEX!AF14 -> 0 | AI17: =CAPEX!AG14 -> 0 | AJ17: =CAPEX!AH14 -> 0 | AK17: =CAPEX!AI14 -> 0 | AL17: =CAPEX!AJ14 -> 0 | AM17: =CAPEX!AK14 -> 0 | AN17: =CAPEX!AL14 -> 0 | AO17: =CAPEX!AM14 -> 0 | AP17: =CAPEX!AN14 -> 0 | AQ17: =CAPEX!AO14 -> 0 | AR17: =CAPEX!AP14 -> 0 | AT17: b. Insulation and facade | AU17: […] | AV17: […] | AW17: […] | AX17: […] | AY17: […] | AZ17: […] | BA17: […] | BB17: […] | BC17: […] | BE17: EUR | BF17: PLN | BG17: […] | BH17: […] | BI17: […] | BJ17: […] | BK17: […] | BL17: […] | BM17: […] | BN17: […]
D18: =INDEX($AT18:$BC18,MATCH(General!$F$14,$AT$4:$BC$4,0)) -> c. Windows | E18: =INDEX($BE18:$BN18,MATCH(General!$F$16,$BE$4:$BN$4,0)) -> PLN | F18: 0 | I18: =CAPEX!G15 -> 0 | J18: =CAPEX!H15 -> 0 | K18: =CAPEX!I15 -> 0 | L18: =CAPEX!J15 -> 0 | M18: =CAPEX!K15 -> 0 | N18: =CAPEX!L15 -> 0 | O18: =CAPEX!M15 -> 0 | P18: =CAPEX!N15 -> 0 | Q18: =CAPEX!O15 -> 0 | R18: =CAPEX!P15 -> 0 | S18: =CAPEX!Q15 -> 0 | T18: =CAPEX!R15 -> 0 | U18: =CAPEX!S15 -> 0 | V18: =CAPEX!T15 -> 0 | W18: =CAPEX!U15 -> 0 | X18: =CAPEX!V15 -> 0 | Y18: =CAPEX!W15 -> 0 | Z18: =CAPEX!X15 -> 0 | AA18: =CAPEX!Y15 -> 0 | AB18: =CAPEX!Z15 -> 0 | AC18: =CAPEX!AA15 -> 0 | AD18: =CAPEX!AB15 -> 0 | AE18: =CAPEX!AC15 -> 0 | AF18: =CAPEX!AD15 -> 0 | AG18: =CAPEX!AE15 -> 0 | AH18: =CAPEX!AF15 -> 0 | AI18: =CAPEX!AG15 -> 0 | AJ18: =CAPEX!AH15 -> 0 | AK18: =CAPEX!AI15 -> 0 | AL18: =CAPEX!AJ15 -> 0 | AM18: =CAPEX!AK15 -> 0 | AN18: =CAPEX!AL15 -> 0 | AO18: =CAPEX!AM15 -> 0 | AP18: =CAPEX!AN15 -> 0 | AQ18: =CAPEX!AO15 -> 0 | AR18: =CAPEX!AP15 -> 0 | AT18: c. Windows | AU18: […] | AV18: […] | AW18: […] | AX18: […] | AY18: […] | AZ18: […] | BA18: […] | BB18: […] | BC18: […] | BE18: EUR | BF18: PLN | BG18: […] | BH18: […] | BI18: […] | BJ18: […] | BK18: […] | BL18: […] | BM18: […] | BN18: […]
D19: =INDEX($AT19:$BC19,MATCH(General!$F$14,$AT$4:$BC$4,0)) -> d. Seismic retrofit reinforcements | E19: =INDEX($BE19:$BN19,MATCH(General!$F$16,$BE$4:$BN$4,0)) -> PLN | F19: 0 | I19: =CAPEX!G16 -> 0 | J19: =CAPEX!H16 -> 0 | K19: =CAPEX!I16 -> 0 | L19: =CAPEX!J16 -> 0 | M19: =CAPEX!K16 -> 0 | N19: =CAPEX!L16 -> 0 | O19: =CAPEX!M16 -> 0 | P19: =CAPEX!N16 -> 0 | Q19: =CAPEX!O16 -> 0 | R19: =CAPEX!P16 -> 0 | S19: =CAPEX!Q16 -> 0 | T19: =CAPEX!R16 -> 0 | U19: =CAPEX!S16 -> 0 | V19: =CAPEX!T16 -> 0 | W19: =CAPEX!U16 -> 0 | X19: =CAPEX!V16 -> 0 | Y19: =CAPEX!W16 -> 0 | Z19: =CAPEX!X16 -> 0 | AA19: =CAPEX!Y16 -> 0 | AB19: =CAPEX!Z16 -> 0 | AC19: =CAPEX!AA16 -> 0 | AD19: =CAPEX!AB16 -> 0 | AE19: =CAPEX!AC16 -> 0 | AF19: =CAPEX!AD16 -> 0 | AG19: =CAPEX!AE16 -> 0 | AH19: =CAPEX!AF16 -> 0 | AI19: =CAPEX!AG16 -> 0 | AJ19: =CAPEX!AH16 -> 0 | AK19: =CAPEX!AI16 -> 0 | AL19: =CAPEX!AJ16 -> 0 | AM19: =CAPEX!AK16 -> 0 | AN19: =CAPEX!AL16 -> 0 | AO19: =CAPEX!AM16 -> 0 | AP19: =CAPEX!AN16 -> 0 | AQ19: =CAPEX!AO16 -> 0 | AR19: =CAPEX!AP16 -> 0 | AT19: d. Seismic retrofit reinforcements | AU19: […] | AV19: […] | AW19: […] | AX19: […] | AY19: […] | AZ19: […] | BA19: […] | BB19: […] | BC19: […] | BE19: EUR | BF19: PLN | BG19: […] | BH19: […] | BI19: […] | BJ19: […] | BK19: […] | BL19: […] | BM19: […] | BN19: […]
D20: =INDEX($AT20:$BC20,MATCH(General!$F$14,$AT$4:$BC$4,0)) -> e. Green infrastructure (NBS) | E20: =INDEX($BE20:$BN20,MATCH(General!$F$16,$BE$4:$BN$4,0)) -> PLN | F20: 0 | I20: =CAPEX!G17 -> 0 | J20: =CAPEX!H17 -> 0 | K20: =CAPEX!I17 -> 0 | L20: =CAPEX!J17 -> 0 | M20: =CAPEX!K17 -> 0 | N20: =CAPEX!L17 -> 0 | O20: =CAPEX!M17 -> 0 | P20: =CAPEX!N17 -> 0 | Q20: =CAPEX!O17 -> 0 | R20: =CAPEX!P17 -> 0 | S20: =CAPEX!Q17 -> 0 | T20: =CAPEX!R17 -> 0 | U20: =CAPEX!S17 -> 0 | V20: =CAPEX!T17 -> 0 | W20: =CAPEX!U17 -> 0 | X20: =CAPEX!V17 -> 0 | Y20: =CAPEX!W17 -> 0 | Z20: =CAPEX!X17 -> 0 | AA20: =CAPEX!Y17 -> 0 | AB20: =CAPEX!Z17 -> 0 | AC20: =CAPEX!AA17 -> 0 | AD20: =CAPEX!AB17 -> 0 | AE20: =CAPEX!AC17 -> 0 | AF20: =CAPEX!AD17 -> 0 | AG20: =CAPEX!AE17 -> 0 | AH20: =CAPEX!AF17 -> 0 | AI20: =CAPEX!AG17 -> 0 | AJ20: =CAPEX!AH17 -> 0 | AK20: =CAPEX!AI17 -> 0 | AL20: =CAPEX!AJ17 -> 0 | AM20: =CAPEX!AK17 -> 0 | AN20: =CAPEX!AL17 -> 0 | AO20: =CAPEX!AM17 -> 0 | AP20: =CAPEX!AN17 -> 0 | AQ20: =CAPEX!AO17 -> 0 | AR20: =CAPEX!AP17 -> 0 | AT20: e. Green infrastructure (NBS) | AU20: […] | AV20: […] | AW20: […] | AX20: […] | AY20: […] | AZ20: […] | BA20: […] | BB20: […] | BC20: […] | BE20: EUR | BF20: PLN | BG20: […] | BH20: […] | BI20: […] | BJ20: […] | BK20: […] | BL20: […] | BM20: […] | BN20: […]
D21: =INDEX($AT21:$BC21,MATCH(General!$F$14,$AT$4:$BC$4,0)) -> f. Other | E21: =INDEX($BE21:$BN21,MATCH(General!$F$16,$BE$4:$BN$4,0)) -> PLN | F21: 0 | I21: =CAPEX!G18 -> 0 | J21: =CAPEX!H18 -> 0 | K21: =CAPEX!I18 -> 0 | L21: =CAPEX!J18 -> 0 | M21: =CAPEX!K18 -> 0 | N21: =CAPEX!L18 -> 0 | O21: =CAPEX!M18 -> 0 | P21: =CAPEX!N18 -> 0 | Q21: =CAPEX!O18 -> 0 | R21: =CAPEX!P18 -> 0 | S21: =CAPEX!Q18 -> 0 | T21: =CAPEX!R18 -> 0 | U21: =CAPEX!S18 -> 0 | V21: =CAPEX!T18 -> 0 | W21: =CAPEX!U18 -> 0 | X21: =CAPEX!V18 -> 0 | Y21: =CAPEX!W18 -> 0 | Z21: =CAPEX!X18 -> 0 | AA21: =CAPEX!Y18 -> 0 | AB21: =CAPEX!Z18 -> 0 | AC21: =CAPEX!AA18 -> 0 | AD21: =CAPEX!AB18 -> 0 | AE21: =CAPEX!AC18 -> 0 | AF21: =CAPEX!AD18 -> 0 | AG21: =CAPEX!AE18 -> 0 | AH21: =CAPEX!AF18 -> 0 | AI21: =CAPEX!AG18 -> 0 | AJ21: =CAPEX!AH18 -> 0 | AK21: =CAPEX!AI18 -> 0 | AL21: =CAPEX!AJ18 -> 0 | AM21: =CAPEX!AK18 -> 0 | AN21: =CAPEX!AL18 -> 0 | AO21: =CAPEX!AM18 -> 0 | AP21: =CAPEX!AN18 -> 0 | AQ21: =CAPEX!AO18 -> 0 | AR21: =CAPEX!AP18 -> 0 | AT21: f. Other | AU21: […] | AV21: […] | AW21: […] | AX21: […] | AY21: […] | AZ21: […] | BA21: […] | BB21: […] | BC21: […] | BE21: EUR | BF21: PLN | BG21: […] | BH21: […] | BI21: […] | BJ21: […] | BK21: […] | BL21: […] | BM21: […] | BN21: […]
D22: =INDEX($AT22:$BC22,MATCH(General!$F$14,$AT$4:$BC$4,0)) -> 4. Plant and machinery | E22: =INDEX($BE22:$BN22,MATCH(General!$F$16,$BE$4:$BN$4,0)) -> PLN | F22: 3486497 | I22: =SUM(I23:I29) -> 0 | J22: =SUM(J23:J29) -> 3486497 | K22: 0 | L22: 0 | M22: 0 | N22: 0 | O22: 0 | P22: 0 | Q22: =SUM(Q23:Q29) -> 0 | R22: 0 | S22: 0 | T22: 0 | U22: 0 | V22: 0 | W22: 0 | X22: 0 | Y22: 0 | Z22: 0 | AA22: 0 | AB22: 0 | AC22: 0 | AD22: 0 | AE22: 0 | AF22: 0 | AG22: 0 | AH22: 0 | AI22: 0 | AJ22: 0 | AK22: 0 | AL22: 0 | AM22: 0 | AN22: 0 | AO22: 0 | AP22: 0 | AQ22: 0 | AR22: 0 | AT22: 4. Plant and machinery | AU22: […] | AV22: […] | AW22: […] | AX22: […] | AY22: […] | AZ22: […] | BA22: […] | BB22: […] | BC22: […] | BE22: EUR | BF22: PLN | BG22: […] | BH22: […] | BI22: […] | BJ22: […] | BK22: […] | BL22: […] | BM22: […] | BN22: […]
D23: =INDEX($AT23:$BC23,MATCH(General!$F$14,$AT$4:$BC$4,0)) -> a. Heating, ventilation, and air conditioning | E23: =INDEX($BE23:$BN23,MATCH(General!$F$16,$BE$4:$BN$4,0)) -> PLN | F23: 2728772 | I23: =CAPEX!G20 -> 0 | J23: =CAPEX!H20 -> 2728772 | K23: =CAPEX!I20 -> 0 | L23: =CAPEX!J20 -> 0 | M23: =CAPEX!K20 -> 0 | N23: =CAPEX!L20 -> 0 | O23: =CAPEX!M20 -> 0 | P23: =CAPEX!N20 -> 0 | Q23: =CAPEX!O20 -> 0 | R23: =CAPEX!P20 -> 0 | S23: =CAPEX!Q20 -> 0 | T23: =CAPEX!R20 -> 0 | U23: =CAPEX!S20 -> 0 | V23: =CAPEX!T20 -> 0 | W23: =CAPEX!U20 -> 0 | X23: =CAPEX!V20 -> 0 | Y23: =CAPEX!W20 -> 0 | Z23: =CAPEX!X20 -> 0 | AA23: =CAPEX!Y20 -> 0 | AB23: =CAPEX!Z20 -> 0 | AC23: =CAPEX!AA20 -> 0 | AD23: =CAPEX!AB20 -> 0 | AE23: =CAPEX!AC20 -> 0 | AF23: =CAPEX!AD20 -> 0 | AG23: =CAPEX!AE20 -> 0 | AH23: =CAPEX!AF20 -> 0 | AI23: =CAPEX!AG20 -> 0 | AJ23: =CAPEX!AH20 -> 0 | AK23: =CAPEX!AI20 -> 0 | AL23: =CAPEX!AJ20 -> 0 | AM23: =CAPEX!AK20 -> 0 | AN23: =CAPEX!AL20 -> 0 | AO23: =CAPEX!AM20 -> 0 | AP23: =CAPEX!AN20 -> 0 | AQ23: =CAPEX!AO20 -> 0 | AR23: =CAPEX!AP20 -> 0 | AT23: a. Heating, ventilation, and air conditioning | AU23: […] | AV23: […] | AW23: […] | AX23: […] | AY23: […] | AZ23: […] | BA23: […] | BB23: […] | BC23: […] | BE23: EUR | BF23: PLN | BG23: […] | BH23: […] | BI23: […] | BJ23: […] | BK23: […] | BL23: […] | BM23: […] | BN23: […]
D24: =INDEX($AT24:$BC24,MATCH(General!$F$14,$AT$4:$BC$4,0)) -> b. Solar power plant | E24: =INDEX($BE24:$BN24,MATCH(General!$F$16,$BE$4:$BN$4,0)) -> PLN | F24: 562725 | I24: =CAPEX!G21 -> 0 | J24: =CAPEX!H21 -> 562725 | K24: =CAPEX!I21 -> 0 | L24: =CAPEX!J21 -> 0 | M24: =CAPEX!K21 -> 0 | N24: =CAPEX!L21 -> 0 | O24: =CAPEX!M21 -> 0 | P24: =CAPEX!N21 -> 0 | Q24: =CAPEX!O21 -> 0 | R24: =CAPEX!P21 -> 0 | S24: =CAPEX!Q21 -> 0 | T24: =CAPEX!R21 -> 0 | U24: =CAPEX!S21 -> 0 | V24: =CAPEX!T21 -> 0 | W24: =CAPEX!U21 -> 0 | X24: =CAPEX!V21 -> 0 | Y24: =CAPEX!W21 -> 0 | Z24: =CAPEX!X21 -> 0 | AA24: =CAPEX!Y21 -> 0 | AB24: =CAPEX!Z21 -> 0 | AC24: =CAPEX!AA21 -> 0 | AD24: =CAPEX!AB21 -> 0 | AE24: =CAPEX!AC21 -> 0 | AF24: =CAPEX!AD21 -> 0 | AG24: =CAPEX!AE21 -> 0 | AH24: =CAPEX!AF21 -> 0 | AI24: =CAPEX!AG21 -> 0 | AJ24: =CAPEX!AH21 -> 0 | AK24: =CAPEX!AI21 -> 0 | AL24: =CAPEX!AJ21 -> 0 | AM24: =CAPEX!AK21 -> 0 | AN24: =CAPEX!AL21 -> 0 | AO24: =CAPEX!AM21 -> 0 | AP24: =CAPEX!AN21 -> 0 | AQ24: =CAPEX!AO21 -> 0 | AR24: =CAPEX!AP21 -> 0 | AT24: b. Solar power plant | AU24: […] | AV24: […] | AW24: […] | AX24: […] | AY24: […] | AZ24: […] | BA24: […] | BB24: […] | BC24: […] | BE24: EUR | BF24: PLN | BG24: […] | BH24: […] | BI24: […] | BJ24: […] | BK24: […] | BL24: […] | BM24: […] | BN24: […]
D25: =INDEX($AT25:$BC25,MATCH(General!$F$14,$AT$4:$BC$4,0)) -> c. Battery energy storage system | E25: =INDEX($BE25:$BN25,MATCH(General!$F$16,$BE$4:$BN$4,0)) -> PLN | F25: 0 | I25: =CAPEX!G22 -> 0 | J25: =CAPEX!H22 -> 0 | K25: =CAPEX!I22 -> 0 | L25: =CAPEX!J22 -> 0 | M25: =CAPEX!K22 -> 0 | N25: =CAPEX!L22 -> 0 | O25: =CAPEX!M22 -> 0 | P25: =CAPEX!N22 -> 0 | Q25: =CAPEX!O22 -> 0 | R25: =CAPEX!P22 -> 0 | S25: =CAPEX!Q22 -> 0 | T25: =CAPEX!R22 -> 0 | U25: =CAPEX!S22 -> 0 | V25: =CAPEX!T22 -> 0 | W25: =CAPEX!U22 -> 0 | X25: =CAPEX!V22 -> 0 | Y25: =CAPEX!W22 -> 0 | Z25: =CAPEX!X22 -> 0 | AA25: =CAPEX!Y22 -> 0 | AB25: =CAPEX!Z22 -> 0 | AC25: =CAPEX!AA22 -> 0 | AD25: =CAPEX!AB22 -> 0 | AE25: =CAPEX!AC22 -> 0 | AF25: =CAPEX!AD22 -> 0 | AG25: =CAPEX!AE22 -> 0 | AH25: =CAPEX!AF22 -> 0 | AI25: =CAPEX!AG22 -> 0 | AJ25: =CAPEX!AH22 -> 0 | AK25: =CAPEX!AI22 -> 0 | AL25: =CAPEX!AJ22 -> 0 | AM25: =CAPEX!AK22 -> 0 | AN25: =CAPEX!AL22 -> 0 | AO25: =CAPEX!AM22 -> 0 | AP25: =CAPEX!AN22 -> 0 | AQ25: =CAPEX!AO22 -> 0 | AR25: =CAPEX!AP22 -> 0 | AT25: c. Battery energy storage system | AU25: […] | AV25: […] | AW25: […] | AX25: […] | AY25: […] | AZ25: […] | BA25: […] | BB25: […] | BC25: […] | BE25: EUR | BF25: PLN | BG25: […] | BH25: […] | BI25: […] | BJ25: […] | BK25: […] | BL25: […] | BM25: […] | BN25: […]
D26: =INDEX($AT26:$BC26,MATCH(General!$F$14,$AT$4:$BC$4,0)) -> d. Charging equipment | E26: =INDEX($BE26:$BN26,MATCH(General!$F$16,$BE$4:$BN$4,0)) -> PLN | F26: 0 | I26: =CAPEX!G23 -> 0 | J26: =CAPEX!H23 -> 0 | K26: =CAPEX!I23 -> 0 | L26: =CAPEX!J23 -> 0 | M26: =CAPEX!K23 -> 0 | N26: =CAPEX!L23 -> 0 | O26: =CAPEX!M23 -> 0 | P26: =CAPEX!N23 -> 0 | Q26: =CAPEX!O23 -> 0 | R26: =CAPEX!P23 -> 0 | S26: =CAPEX!Q23 -> 0 | T26: =CAPEX!R23 -> 0 | U26: =CAPEX!S23 -> 0 | V26: =CAPEX!T23 -> 0 | W26: =CAPEX!U23 -> 0 | X26: =CAPEX!V23 -> 0 | Y26: =CAPEX!W23 -> 0 | Z26: =CAPEX!X23 -> 0 | AA26: =CAPEX!Y23 -> 0 | AB26: =CAPEX!Z23 -> 0 | AC26: =CAPEX!AA23 -> 0 | AD26: =CAPEX!AB23 -> 0 | AE26: =CAPEX!AC23 -> 0 | AF26: =CAPEX!AD23 -> 0 | AG26: =CAPEX!AE23 -> 0 | AH26: =CAPEX!AF23 -> 0 | AI26: =CAPEX!AG23 -> 0 | AJ26: =CAPEX!AH23 -> 0 | AK26: =CAPEX!AI23 -> 0 | AL26: =CAPEX!AJ23 -> 0 | AM26: =CAPEX!AK23 -> 0 | AN26: =CAPEX!AL23 -> 0 | AO26: =CAPEX!AM23 -> 0 | AP26: =CAPEX!AN23 -> 0 | AQ26: =CAPEX!AO23 -> 0 | AR26: =CAPEX!AP23 -> 0 | AT26: d. Charging equipment | AU26: […] | AV26: […] | AW26: […] | AX26: […] | AY26: […] | AZ26: […] | BA26: […] | BB26: […] | BC26: […] | BE26: EUR | BF26: PLN | BG26: […] | BH26: […] | BI26: […] | BJ26: […] | BK26: […] | BL26: […] | BM26: […] | BN26: […]
D27: =INDEX($AT27:$BC27,MATCH(General!$F$14,$AT$4:$BC$4,0)) -> e. IT equipment and sensors | E27: =INDEX($BE27:$BN27,MATCH(General!$F$16,$BE$4:$BN$4,0)) -> PLN | F27: 0 | I27: =CAPEX!G24 -> 0 | J27: =CAPEX!H24 -> 0 | K27: =CAPEX!I24 -> 0 | L27: =CAPEX!J24 -> 0 | M27: =CAPEX!K24 -> 0 | N27: =CAPEX!L24 -> 0 | O27: =CAPEX!M24 -> 0 | P27: =CAPEX!N24 -> 0 | Q27: =CAPEX!O24 -> 0 | R27: =CAPEX!P24 -> 0 | S27: =CAPEX!Q24 -> 0 | T27: =CAPEX!R24 -> 0 | U27: =CAPEX!S24 -> 0 | V27: =CAPEX!T24 -> 0 | W27: =CAPEX!U24 -> 0 | X27: =CAPEX!V24 -> 0 | Y27: =CAPEX!W24 -> 0 | Z27: =CAPEX!X24 -> 0 | AA27: =CAPEX!Y24 -> 0 | AB27: =CAPEX!Z24 -> 0 | AC27: =CAPEX!AA24 -> 0 | AD27: =CAPEX!AB24 -> 0 | AE27: =CAPEX!AC24 -> 0 | AF27: =CAPEX!AD24 -> 0 | AG27: =CAPEX!AE24 -> 0 | AH27: =CAPEX!AF24 -> 0 | AI27: =CAPEX!AG24 -> 0 | AJ27: =CAPEX!AH24 -> 0 | AK27: =CAPEX!AI24 -> 0 | AL27: =CAPEX!AJ24 -> 0 | AM27: =CAPEX!AK24 -> 0 | AN27: =CAPEX!AL24 -> 0 | AO27: =CAPEX!AM24 -> 0 | AP27: =CAPEX!AN24 -> 0 | AQ27: =CAPEX!AO24 -> 0 | AR27: =CAPEX!AP24 -> 0 | AT27: e. IT equipment and sensors | AU27: […] | AV27: […] | AW27: […] | AX27: […] | AY27: […] | AZ27: […] | BA27: […] | BB27: […] | BC27: […] | BE27: EUR | BF27: PLN | BG27: […] | BH27: […] | BI27: […] | BJ27: […] | BK27: […] | BL27: […] | BM27: […] | BN27: […]
D28: =INDEX($AT28:$BC28,MATCH(General!$F$14,$AT$4:$BC$4,0)) -> f. Other electric equipment | E28: =INDEX($BE28:$BN28,MATCH(General!$F$16,$BE$4:$BN$4,0)) -> PLN | F28: 0 | I28: =CAPEX!G25 -> 0 | J28: =CAPEX!H25 -> 0 | K28: =CAPEX!I25 -> 0 | L28: =CAPEX!J25 -> 0 | M28: =CAPEX!K25 -> 0 | N28: =CAPEX!L25 -> 0 | O28: =CAPEX!M25 -> 0 | P28: =CAPEX!N25 -> 0 | Q28: =CAPEX!O25 -> 0 | R28: =CAPEX!P25 -> 0 | S28: =CAPEX!Q25 -> 0 | T28: =CAPEX!R25 -> 0 | U28: =CAPEX!S25 -> 0 | V28: =CAPEX!T25 -> 0 | W28: =CAPEX!U25 -> 0 | X28: =CAPEX!V25 -> 0 | Y28: =CAPEX!W25 -> 0 | Z28: =CAPEX!X25 -> 0 | AA28: =CAPEX!Y25 -> 0 | AB28: =CAPEX!Z25 -> 0 | AC28: =CAPEX!AA25 -> 0 | AD28: =CAPEX!AB25 -> 0 | AE28: =CAPEX!AC25 -> 0 | AF28: =CAPEX!AD25 -> 0 | AG28: =CAPEX!AE25 -> 0 | AH28: =CAPEX!AF25 -> 0 | AI28: =CAPEX!AG25 -> 0 | AJ28: =CAPEX!AH25 -> 0 | AK28: =CAPEX!AI25 -> 0 | AL28: =CAPEX!AJ25 -> 0 | AM28: =CAPEX!AK25 -> 0 | AN28: =CAPEX!AL25 -> 0 | AO28: =CAPEX!AM25 -> 0 | AP28: =CAPEX!AN25 -> 0 | AQ28: =CAPEX!AO25 -> 0 | AR28: =CAPEX!AP25 -> 0 | AT28: f. Other electric equipment | AU28: […] | AV28: […] | AW28: […] | AX28: […] | AY28: […] | AZ28: […] | BA28: […] | BB28: […] | BC28: […] | BE28: EUR | BF28: PLN | BG28: […] | BH28: […] | BI28: […] | BJ28: […] | BK28: […] | BL28: […] | BM28: […] | BN28: […]
D29: =INDEX($AT29:$BC29,MATCH(General!$F$14,$AT$4:$BC$4,0)) -> g. Indoor lighting | E29: =INDEX($BE29:$BN29,MATCH(General!$F$16,$BE$4:$BN$4,0)) -> PLN | F29: 195000 | I29: =CAPEX!G26 -> 0 | J29: =CAPEX!H26 -> 195000 | K29: =CAPEX!I26 -> 0 | L29: =CAPEX!J26 -> 0 | M29: =CAPEX!K26 -> 0 | N29: =CAPEX!L26 -> 0 | O29: =CAPEX!M26 -> 0 | P29: =CAPEX!N26 -> 0 | Q29: =CAPEX!O26 -> 0 | R29: =CAPEX!P26 -> 0 | S29: =CAPEX!Q26 -> 0 | T29: =CAPEX!R26 -> 0 | U29: =CAPEX!S26 -> 0 | V29: =CAPEX!T26 -> 0 | W29: =CAPEX!U26 -> 0 | X29: =CAPEX!V26 -> 0 | Y29: =CAPEX!W26 -> 0 | Z29: =CAPEX!X26 -> 0 | AA29: =CAPEX!Y26 -> 0 | AB29: =CAPEX!Z26 -> 0 | AC29: =CAPEX!AA26 -> 0 | AD29: =CAPEX!AB26 -> 0 | AE29: =CAPEX!AC26 -> 0 | AF29: =CAPEX!AD26 -> 0 | AG29: =CAPEX!AE26 -> 0 | AH29: =CAPEX!AF26 -> 0 | AI29: =CAPEX!AG26 -> 0 | AJ29: =CAPEX!AH26 -> 0 | AK29: =CAPEX!AI26 -> 0 | AL29: =CAPEX!AJ26 -> 0 | AM29: =CAPEX!AK26 -> 0 | AN29: =CAPEX!AL26 -> 0 | AO29: =CAPEX!AM26 -> 0 | AP29: =CAPEX!AN26 -> 0 | AQ29: =CAPEX!AO26 -> 0 | AR29: =CAPEX!AP26 -> 0 | AT29: g. Indoor lighting | AU29: […] | AV29: […] | AW29: […] | AX29: […] | AY29: […] | AZ29: […] | BA29: […] | BB29: […] | BC29: […] | BE29: EUR | BF29: PLN | BG29: […] | BH29: […] | BI29: […] | BJ29: […] | BK29: […] | BL29: […] | BM29: […] | BN29: […]
D30: =INDEX($AT30:$BC30,MATCH(General!$F$14,$AT$4:$BC$4,0)) -> 5. Contingencies | E30: =INDEX($BE30:$BN30,MATCH(General!$F$16,$BE$4:$BN$4,0)) -> PLN | F30: 0 | I30: =CAPEX!G27 -> 0 | J30: =CAPEX!H27 -> 0 | K30: =CAPEX!I27 -> 0 | L30: =CAPEX!J27 -> 0 | M30: =CAPEX!K27 -> 0 | N30: =CAPEX!L27 -> 0 | O30: =CAPEX!M27 -> 0 | P30: =CAPEX!N27 -> 0 | Q30: =CAPEX!O27 -> 0 | R30: =CAPEX!P27 -> 0 | S30: =CAPEX!Q27 -> 0 | T30: =CAPEX!R27 -> 0 | U30: =CAPEX!S27 -> 0 | V30: =CAPEX!T27 -> 0 | W30: =CAPEX!U27 -> 0 | X30: =CAPEX!V27 -> 0 | Y30: =CAPEX!W27 -> 0 | Z30: =CAPEX!X27 -> 0 | AA30: =CAPEX!Y27 -> 0 | AB30: =CAPEX!Z27 -> 0 | AC30: =CAPEX!AA27 -> 0 | AD30: =CAPEX!AB27 -> 0 | AE30: =CAPEX!AC27 -> 0 | AF30: =CAPEX!AD27 -> 0 | AG30: =CAPEX!AE27 -> 0 | AH30: =CAPEX!AF27 -> 0 | AI30: =CAPEX!AG27 -> 0 | AJ30: =CAPEX!AH27 -> 0 | AK30: =CAPEX!AI27 -> 0 | AL30: =CAPEX!AJ27 -> 0 | AM30: =CAPEX!AK27 -> 0 | AN30: =CAPEX!AL27 -> 0 | AO30: =CAPEX!AM27 -> 0 | AP30: =CAPEX!AN27 -> 0 | AQ30: =CAPEX!AO27 -> 0 | AR30: =CAPEX!AP27 -> 0 | AT30: 5. Contingencies | AU30: […] | AV30: […] | AW30: […] | AX30: […] | AY30: […] | AZ30: […] | BA30: […] | BB30: […] | BC30: […] | BE30: EUR | BF30: PLN | BG30: […] | BH30: […] | BI30: […] | BJ30: […] | BK30: […] | BL30: […] | BM30: […] | BN30: […]
D31: =INDEX($AT31:$BC31,MATCH(General!$F$14,$AT$4:$BC$4,0)) -> 6. Price adjustment | E31: =INDEX($BE31:$BN31,MATCH(General!$F$16,$BE$4:$BN$4,0)) -> PLN | F31: 0 | I31: =CAPEX!G28 -> 0 | J31: =CAPEX!H28 -> 0 | K31: =CAPEX!I28 -> 0 | L31: =CAPEX!J28 -> 0 | M31: =CAPEX!K28 -> 0 | N31: =CAPEX!L28 -> 0 | O31: =CAPEX!M28 -> 0 | P31: =CAPEX!N28 -> 0 | Q31: =CAPEX!O28 -> 0 | R31: =CAPEX!P28 -> 0 | S31: =CAPEX!Q28 -> 0 | T31: =CAPEX!R28 -> 0 | U31: =CAPEX!S28 -> 0 | V31: =CAPEX!T28 -> 0 | W31: =CAPEX!U28 -> 0 | X31: =CAPEX!V28 -> 0 | Y31: =CAPEX!W28 -> 0 | Z31: =CAPEX!X28 -> 0 | AA31: =CAPEX!Y28 -> 0 | AB31: =CAPEX!Z28 -> 0 | AC31: =CAPEX!AA28 -> 0 | AD31: =CAPEX!AB28 -> 0 | AE31: =CAPEX!AC28 -> 0 | AF31: =CAPEX!AD28 -> 0 | AG31: =CAPEX!AE28 -> 0 | AH31: =CAPEX!AF28 -> 0 | AI31: =CAPEX!AG28 -> 0 | AJ31: =CAPEX!AH28 -> 0 | AK31: =CAPEX!AI28 -> 0 | AL31: =CAPEX!AJ28 -> 0 | AM31: =CAPEX!AK28 -> 0 | AN31: =CAPEX!AL28 -> 0 | AO31: =CAPEX!AM28 -> 0 | AP31: =CAPEX!AN28 -> 0 | AQ31: =CAPEX!AO28 -> 0 | AR31: =CAPEX!AP28 -> 0 | AT31: 6. Price adjustment | AU31: […] | AV31: […] | AW31: […] | AX31: […] | AY31: […] | AZ31: […] | BA31: […] | BB31: […] | BC31: […] | BE31: EUR | BF31: PLN | BG31: […] | BH31: […] | BI31: […] | BJ31: […] | BK31: […] | BL31: […] | BM31: […] | BN31: […]
D32: =INDEX($AT32:$BC32,MATCH(General!$F$14,$AT$4:$BC$4,0)) -> 7. Publicity | E32: =INDEX($BE32:$BN32,MATCH(General!$F$16,$BE$4:$BN$4,0)) -> PLN | F32: 0 | I32: =CAPEX!G29 -> 0 | J32: =CAPEX!H29 -> 0 | K32: =CAPEX!I29 -> 0 | L32: =CAPEX!J29 -> 0 | M32: =CAPEX!K29 -> 0 | N32: =CAPEX!L29 -> 0 | O32: =CAPEX!M29 -> 0 | P32: =CAPEX!N29 -> 0 | Q32: =CAPEX!O29 -> 0 | R32: =CAPEX!P29 -> 0 | S32: =CAPEX!Q29 -> 0 | T32: =CAPEX!R29 -> 0 | U32: =CAPEX!S29 -> 0 | V32: =CAPEX!T29 -> 0 | W32: =CAPEX!U29 -> 0 | X32: =CAPEX!V29 -> 0 | Y32: =CAPEX!W29 -> 0 | Z32: =CAPEX!X29 -> 0 | AA32: =CAPEX!Y29 -> 0 | AB32: =CAPEX!Z29 -> 0 | AC32: =CAPEX!AA29 -> 0 | AD32: =CAPEX!AB29 -> 0 | AE32: =CAPEX!AC29 -> 0 | AF32: =CAPEX!AD29 -> 0 | AG32: =CAPEX!AE29 -> 0 | AH32: =CAPEX!AF29 -> 0 | AI32: =CAPEX!AG29 -> 0 | AJ32: =CAPEX!AH29 -> 0 | AK32: =CAPEX!AI29 -> 0 | AL32: =CAPEX!AJ29 -> 0 | AM32: =CAPEX!AK29 -> 0 | AN32: =CAPEX!AL29 -> 0 | AO32: =CAPEX!AM29 -> 0 | AP32: =CAPEX!AN29 -> 0 | AQ32: =CAPEX!AO29 -> 0 | AR32: =CAPEX!AP29 -> 0 | AT32: 7. Publicity | AU32: […] | AV32: […] | AW32: […] | AX32: […] | AY32: […] | AZ32: […] | BA32: […] | BB32: […] | BC32: […] | BE32: EUR | BF32: PLN | BG32: […] | BH32: […] | BI32: […] | BJ32: […] | BK32: […] | BL32: […] | BM32: […] | BN32: […]
D33: =INDEX($AT33:$BC33,MATCH(General!$F$14,$AT$4:$BC$4,0)) -> 8. Supervision during contrusction implementation | E33: =INDEX($BE33:$BN33,MATCH(General!$F$16,$BE$4:$BN$4,0)) -> PLN | F33: 1000 | I33: =CAPEX!G30 -> 0 | J33: =CAPEX!H30 -> 1000 | K33: =CAPEX!I30 -> 0 | L33: =CAPEX!J30 -> 0 | M33: =CAPEX!K30 -> 0 | N33: =CAPEX!L30 -> 0 | O33: =CAPEX!M30 -> 0 | P33: =CAPEX!N30 -> 0 | Q33: =CAPEX!O30 -> 0 | R33: =CAPEX!P30 -> 0 | S33: =CAPEX!Q30 -> 0 | T33: =CAPEX!R30 -> 0 | U33: =CAPEX!S30 -> 0 | V33: =CAPEX!T30 -> 0 | W33: =CAPEX!U30 -> 0 | X33: =CAPEX!V30 -> 0 | Y33: =CAPEX!W30 -> 0 | Z33: =CAPEX!X30 -> 0 | AA33: =CAPEX!Y30 -> 0 | AB33: =CAPEX!Z30 -> 0 | AC33: =CAPEX!AA30 -> 0 | AD33: =CAPEX!AB30 -> 0 | AE33: =CAPEX!AC30 -> 0 | AF33: =CAPEX!AD30 -> 0 | AG33: =CAPEX!AE30 -> 0 | AH33: =CAPEX!AF30 -> 0 | AI33: =CAPEX!AG30 -> 0 | AJ33: =CAPEX!AH30 -> 0 | AK33: =CAPEX!AI30 -> 0 | AL33: =CAPEX!AJ30 -> 0 | AM33: =CAPEX!AK30 -> 0 | AN33: =CAPEX!AL30 -> 0 | AO33: =CAPEX!AM30 -> 0 | AP33: =CAPEX!AN30 -> 0 | AQ33: =CAPEX!AO30 -> 0 | AR33: =CAPEX!AP30 -> 0 | AT33: 8. Supervision during contrusction implementation | AU33: […] | AV33: […] | AW33: […] | AX33: […] | AY33: […] | AZ33: […] | BA33: […] | BB33: […] | BC33: […] | BE33: EUR | BF33: PLN | BG33: […] | BH33: […] | BI33: […] | BJ33: […] | BK33: […] | BL33: […] | BM33: […] | BN33: […]
D34: =INDEX($AT34:$BC34,MATCH(General!$F$14,$AT$4:$BC$4,0)) -> 9. Technical assistance | E34: =INDEX($BE34:$BN34,MATCH(General!$F$16,$BE$4:$BN$4,0)) -> PLN | F34: 0 | I34: =CAPEX!G31 -> 0 | J34: =CAPEX!H31 -> 0 | K34: =CAPEX!I31 -> 0 | L34: =CAPEX!J31 -> 0 | M34: =CAPEX!K31 -> 0 | N34: =CAPEX!L31 -> 0 | O34: =CAPEX!M31 -> 0 | P34: =CAPEX!N31 -> 0 | Q34: =CAPEX!O31 -> 0 | R34: =CAPEX!P31 -> 0 | S34: =CAPEX!Q31 -> 0 | T34: =CAPEX!R31 -> 0 | U34: =CAPEX!S31 -> 0 | V34: =CAPEX!T31 -> 0 | W34: =CAPEX!U31 -> 0 | X34: =CAPEX!V31 -> 0 | Y34: =CAPEX!W31 -> 0 | Z34: =CAPEX!X31 -> 0 | AA34: =CAPEX!Y31 -> 0 | AB34: =CAPEX!Z31 -> 0 | AC34: =CAPEX!AA31 -> 0 | AD34: =CAPEX!AB31 -> 0 | AE34: =CAPEX!AC31 -> 0 | AF34: =CAPEX!AD31 -> 0 | AG34: =CAPEX!AE31 -> 0 | AH34: =CAPEX!AF31 -> 0 | AI34: =CAPEX!AG31 -> 0 | AJ34: =CAPEX!AH31 -> 0 | AK34: =CAPEX!AI31 -> 0 | AL34: =CAPEX!AJ31 -> 0 | AM34: =CAPEX!AK31 -> 0 | AN34: =CAPEX!AL31 -> 0 | AO34: =CAPEX!AM31 -> 0 | AP34: =CAPEX!AN31 -> 0 | AQ34: =CAPEX!AO31 -> 0 | AR34: =CAPEX!AP31 -> 0 | AT34: 9. Technical assistance | AU34: […] | AV34: […] | AW34: […] | AX34: […] | AY34: […] | AZ34: […] | BA34: […] | BB34: […] | BC34: […] | BE34: EUR | BF34: PLN | BG34: […] | BH34: […] | BI34: […] | BJ34: […] | BK34: […] | BL34: […] | BM34: […] | BN34: […]
D35: =INDEX($AT35:$BC35,MATCH(General!$F$14,$AT$4:$BC$4,0)) -> Total | E35: =INDEX($BE35:$BN35,MATCH(General!$F$16,$BE$4:$BN$4,0)) -> PLN | F35: 4075454.5 | I35: =SUM(I13:I15,I22,I30:I34) -> 10000 | J35: =SUM(J13:J15,J22,J30:J34) -> 4065454.5 | K35: 0 | L35: 0 | M35: 0 | N35: 0 | O35: 0 | P35: 0 | Q35: =SUM(Q13:Q15,Q22,Q30:Q34) -> 0 | R35: 0 | S35: 0 | T35: 0 | U35: 0 | V35: 0 | W35: 0 | X35: 0 | Y35: 0 | Z35: 0 | AA35: 0 | AB35: 0 | AC35: 0 | AD35: 0 | AE35: 0 | AF35: 0 | AG35: 0 | AH35: 0 | AI35: 0 | AJ35: 0 | AK35: 0 | AL35: 0 | AM35: 0 | AN35: 0 | AO35: 0 | AP35: 0 | AQ35: 0 | AR35: 0 | AT35: Total | AU35: […] | AV35: […] | AW35: […] | AX35: […] | AY35: […] | AZ35: […] | BA35: […] | BB35: […] | BC35: […] | BE35: EUR | BF35: PLN | BG35: […] | BH35: […] | BI35: […] | BJ35: […] | BK35: […] | BL35: […] | BM35: […] | BN35: […]
D36: =INDEX($AT36:$BC36,MATCH(General!$F$14,$AT$4:$BC$4,0)) -> VAT expense | E36: =INDEX($BE36:$BN36,MATCH(General!$F$16,$BE$4:$BN$4,0)) -> PLN | F36: =SUM(I36:AR36) -> 0 | I36: =CAPEX!G33 -> 0 | J36: =CAPEX!H33 -> 0 | K36: =CAPEX!I33 -> 0 | L36: =CAPEX!J33 -> 0 | M36: =CAPEX!K33 -> 0 | N36: =CAPEX!L33 -> 0 | O36: =CAPEX!M33 -> 0 | P36: =CAPEX!N33 -> 0 | Q36: =CAPEX!O33 -> 0 | R36: =CAPEX!P33 -> 0 | S36: =CAPEX!Q33 -> 0 | T36: =CAPEX!R33 -> 0 | U36: =CAPEX!S33 -> 0 | V36: =CAPEX!T33 -> 0 | W36: =CAPEX!U33 -> 0 | X36: =CAPEX!V33 -> 0 | Y36: =CAPEX!W33 -> 0 | Z36: =CAPEX!X33 -> 0 | AA36: =CAPEX!Y33 -> 0 | AB36: =CAPEX!Z33 -> 0 | AC36: =CAPEX!AA33 -> 0 | AD36: =CAPEX!AB33 -> 0 | AE36: =CAPEX!AC33 -> 0 | AF36: =CAPEX!AD33 -> 0 | AG36: =CAPEX!AE33 -> 0 | AH36: =CAPEX!AF33 -> 0 | AI36: =CAPEX!AG33 -> 0 | AJ36: =CAPEX!AH33 -> 0 | AK36: =CAPEX!AI33 -> 0 | AL36: =CAPEX!AJ33 -> 0 | AM36: =CAPEX!AK33 -> 0 | AN36: =CAPEX!AL33 -> 0 | AO36: =CAPEX!AM33 -> 0 | AP36: =CAPEX!AN33 -> 0 | AQ36: =CAPEX!AO33 -> 0 | AR36: =CAPEX!AP33 -> 0 | AT36: VAT expense | AU36: […] | AV36: […] | AW36: […] | AX36: […] | AY36: […] | AZ36: […] | BA36: […] | BB36: […] | BC36: […] | BE36: EUR | BF36: PLN | BG36: […] | BH36: […] | BI36: […] | BJ36: […] | BK36: […] | BL36: […] | BM36: […] | BN36: […]
D37: =INDEX($AT37:$BC37,MATCH(General!$F$14,$AT$4:$BC$4,0)) -> Total incl. VAT | E37: =INDEX($BE37:$BN37,MATCH(General!$F$16,$BE$4:$BN$4,0)) -> PLN | F37: 4075454.5 | I37: =SUM(I35:I36) -> 10000 | J37: =SUM(J35:J36) -> 4065454.5 | K37: 0 | L37: 0 | M37: 0 | N37: 0 | O37: 0 | P37: 0 | Q37: 0 | R37: 0 | S37: 0 | T37: 0 | U37: 0 | V37: 0 | W37: 0 | X37: 0 | Y37: 0 | Z37: 0 | AA37: 0 | AB37: 0 | AC37: 0 | AD37: 0 | AE37: 0 | AF37: 0 | AG37: 0 | AH37: 0 | AI37: 0 | AJ37: 0 | AK37: 0 | AL37: 0 | AM37: 0 | AN37: 0 | AO37: 0 | AP37: 0 | AQ37: 0 | AR37: 0 | AT37: Total incl. VAT | AU37: […] | AV37: […] | AW37: […] | AX37: […] | AY37: […] | AZ37: […] | BA37: […] | BB37: […] | BC37: […] | BE37: EUR | BF37: PLN | BG37: […] | BH37: […] | BI37: […] | BJ37: […] | BK37: […] | BL37: […] | BM37: […] | BN37: […]
D39: =INDEX($AT39:$BC39,MATCH(General!$F$14,$AT$4:$BC$4,0)) -> Capital expenditures - non-eligible for grant funding | AT39: Capital expenditures - non-eligible for grant funding | AU39: […] | AV39: […] | AW39: […] | AX39: […] | AY39: […] | AZ39: […] | BA39: […] | BB39: […] | BC39: […]
